Workbook

Sheet Global
A2: Repayment policy parameters
A4: Threshold in 2016 | B4: 21000 | I4: Constants: | K4: gBaseYear | L4: 2000
A5: Repayment rate | B5: 0.09 | K5: gModelYear | L5: 2014
A6: Maximum real interest rate | B6: 0.03 | K6: gMaxYear | L6: 2060
A7: Threshold for maximum interest (in 2016) | B7: 41000 | K7: Minimum Age on entry | L7: 18
A8: Maximum repayment term | B8: 30 | K8: Minimum Age on SRDD | L8: 22
A9: Nominal loan amount taken | B9: 12000 | C9: 12000 | D9: 12000 | K9: SRDD year | L9: 2018
A10: Proportion female | B10: 0.55
A11: Assumed discount rate | B11: 0.022
A13: Inflation and earnings projections | B13: 1999-2000 | C13: 2000-01 | D13: 2001-02 | E13: 2002-03 | F13: 2003-04 | G13: 2004-05 | H13: 2005-06 | I13: 2006-07 | J13: 2007-08 | K13: 2008-09 | L13: 2009-10 | M13: 2010-11 | N13: 2011-12 | O13: 2012-13 | P13: 2013-14 | Q13: 2014-15 | R13: 2015-16 | S13: 2016-17 | T13: 2017-18 | U13: 2018-19 | V13: 2019-20 | W13: 2020-21 | X13: 2021-22 | Y13: 2022-23 | Z13: 2023-24 | AA13: 2024-25 | AB13: 2025-26 | AC13: 2026-27 | AD13: 2027-28 | AE13: 2028-29 | AF13: 2029-30 | AG13: 2030-31 | AH13: 2031-32 | AI13: 2032-33 | AJ13: 2033-34 | AK13: 2034-35 | AL13: 2035-36 | AM13: 2036-37 | AN13: 2037-38 | AO13: 2038-39 | AP13: 2039-40 | AQ13: 2040-41 | AR13: 2041-42 | AS13: 2042-43 | AT13: 2043-44 | AU13: 2044-45 | AV13: 2045-46 | AW13: 2046-47 | AX13: 2047-48 | AY13: 2048-49 | AZ13: 2049-50 | BA13: 2050-51 | BB13: 2051-52 | BC13: 2052-53 | BD13: 2053-54 | BE13: 2054-55 | BF13: 2055-56 | BG13: 2056-57 | BH13: 2057-58 | BI13: 2058-59 | BJ13: 2059-60 | BK13: 2060-61
B14: 1999 | C14: 2000 | D14: 2001 | E14: 2002 | F14: 2003 | G14: 2004 | H14: 2005 | I14: 2006 | J14: 2007 | K14: 2008 | L14: 2009 | M14: 2010 | N14: 2011 | O14: 2012 | P14: 2013 | Q14: 2014 | R14: 2015 | S14: 2016 | T14: 2017 | U14: 2018 | V14: 2019 | W14: 2020 | X14: 2021 | Y14: 2022 | Z14: 2023 | AA14: 2024 | AB14: 2025 | AC14: 2026 | AD14: 2027 | AE14: 2028 | AF14: 2029 | AG14: 2030 | AH14: 2031 | AI14: 2032 | AJ14: 2033 | AK14: 2034 | AL14: 2035 | AM14: 2036 | AN14: 2037 | AO14: 2038 | AP14: 2039 | AQ14: 2040 | AR14: 2041 | AS14: 2042 | AT14: 2043 | AU14: 2044 | AV14: 2045 | AW14: 2046 | AX14: 2047 | AY14: 2048 | AZ14: 2049 | BA14: 2050 | BB14: 2051 | BC14: 2052 | BD14: 2053 | BE14: 2054 | BF14: 2055 | BG14: 2056 | BH14: 2057 | BI14: 2058 | BJ14: 2059 | BK14: 2060
A15: RPI | B15: 0.026 | C15: 0.023 | D15: 0.013 | E15: 0.031 | F15: 0.026 | G15: 0.032 | H15: 0.024 | I15: 0.048 | J15: 0.038 | K15: 0 | L15: 0.037 | M15: 0.053 | N15: 0.036 | O15: 0.033 | P15: 0.025 | Q15: 0.009 | R15: 0.017 | S15: 0.026 | T15: 0.031 | U15: 0.031 | V15: 0.031 | W15: 0.031 | X15: 0.031 | Y15: 0.031 | Z15: 0.031 | AA15: 0.03 | AB15: 0.03 | AC15: 0.03 | AD15: 0.03 | AE15: 0.03 | AF15: 0.03 | AG15: 0.03 | AH15: 0.03 | AI15: 0.03 | AJ15: 0.03 | AK15: 0.03 | AL15: 0.03 | AM15: 0.03 | AN15: 0.03 | AO15: 0.03 | AP15: 0.03 | AQ15: 0.03 | AR15: 0.03 | AS15: 0.03 | AT15: 0.03 | AU15: 0.03 | AV15: 0.03 | AW15: 0.03 | AX15: 0.03 | AY15: 0.03 | AZ15: 0.03 | BA15: 0.03 | BB15: 0.03 | BC15: 0.03 | BD15: 0.03 | BE15: 0.03 | BF15: 0.03 | BG15: 0.03 | BH15: 0.03 | BI15: 0.03 | BJ15: 0.03 | BK15: 0.03
A16: RPIX | O16: 0.032 | P16: 0.025 | Q16: 0.009 | R16: 0.018 | S16: 0.024 | T16: 0.028 | U16: 0.029 | V16: 0.03 | W16: 0.029 | X16: 0.029 | Y16: 0.029 | Z16: 0.029 | AA16: 0.028 | AB16: 0.028 | AC16: 0.028 | AD16: 0.028 | AE16: 0.028 | AF16: 0.028 | AG16: 0.028 | AH16: 0.028 | AI16: 0.028 | AJ16: 0.028 | AK16: 0.028 | AL16: 0.028 | AM16: 0.028 | AN16: 0.028 | AO16: 0.028 | AP16: 0.028 | AQ16: 0.028 | AR16: 0.028 | AS16: 0.028 | AT16: 0.028 | AU16: 0.028 | AV16: 0.028 | AW16: 0.028 | AX16: 0.028 | AY16: 0.028 | AZ16: 0.028 | BA16: 0.028 | BB16: 0.028 | BC16: 0.028 | BD16: 0.028 | BE16: 0.028 | BF16: 0.028 | BG16: 0.028 | BH16: 0.028 | BI16: 0.028 | BJ16: 0.028 | BK16: 0.028
A17: Earnings (Mar for thresh) | P17: 0.022 | Q17: 0.027 | R17: 0.03 | S17: 0.033 | T17: 0.039 | U17: 0.042 | V17: 0.044 | W17: 0.044 | X17: 0.044 | Y17: 0.044 | Z17: 0.044 | AA17: 0.044 | AB17: 0.044 | AC17: 0.044 | AD17: 0.044 | AE17: 0.044 | AF17: 0.044 | AG17: 0.044 | AH17: 0.044 | AI17: 0.044 | AJ17: 0.044 | AK17: 0.044 | AL17: 0.044 | AM17: 0.044 | AN17: 0.044 | AO17: 0.044 | AP17: 0.044 | AQ17: 0.044 | AR17: 0.044 | AS17: 0.044 | AT17: 0.044 | AU17: 0.044 | AV17: 0.044 | AW17: 0.044 | AX17: 0.044 | AY17: 0.044 | AZ17: 0.044 | BA17: 0.044 | BB17: 0.044 | BC17: 0.044 | BD17: 0.044 | BE17: 0.044 | BF17: 0.044 | BG17: 0.044 | BH17: 0.044 | BI17: 0.044 | BJ17: 0.044 | BK17: 0.044
A18: Earnings (Sep for wages) | C18: 0.044 | D18: 0.033 | E18: 0.036 | F18: 0.049 | G18: 0.049 | H18: 0.039 | I18: 0.038 | J18: 0.028 | K18: 0.011 | L18: 0.023 | M18: 0.02 | N18: 0.017 | O18: 0.008 | P18: 0.015 | Q18: 0.023 | R18: 0.03 | S18: 0.038 | T18: 0.039 | U18: 0.045 | V18: 0.044 | W18: 0.044 | X18: 0.044 | Y18: 0.044 | Z18: 0.044 | AA18: 0.044 | AB18: 0.044 | AC18: 0.044 | AD18: 0.044 | AE18: 0.044 | AF18: 0.044 | AG18: 0.044 | AH18: 0.044 | AI18: 0.044 | AJ18: 0.044 | AK18: 0.044 | AL18: 0.044 | AM18: 0.044 | AN18: 0.044 | AO18: 0.044 | AP18: 0.044 | AQ18: 0.044 | AR18: 0.044 | AS18: 0.044 | AT18: 0.044 | AU18: 0.044 | AV18: 0.044 | AW18: 0.044 | AX18: 0.044 | AY18: 0.044 | AZ18: 0.044 | BA18: 0.044 | BB18: 0.044 | BC18: 0.044 | BD18: 0.044 | BE18: 0.044 | BF18: 0.044 | BG18: 0.044 | BH18: 0.044 | BI18: 0.044 | BJ18: 0.044 | BK18: 0.044
A20: Nominal wage index for 2009 inc dist | C20: =D20/(1+C18) -> 0.7256568123 | D20: 0.7575857121 | E20: 0.7825860406 | F20: 0.810759138 | G20: 0.8504863358 | H20: 0.8921601663 | I20: 0.9269544127 | J20: 0.9621786804 | K20: 0.9891196835 | L20: 1 | M20: =L20*(1+L18) -> 1.023 | N20: 1.04346 | O20: 1.06119882 | P20: 1.069688411 | Q20: 1.085733737 | R20: 1.110705613 | S20: 1.144026781 | T20: 1.187499799 | U20: 1.233812291 | V20: 1.289333844 | W20: 1.346064533 | X20: 1.405291373 | Y20: 1.467124193 | Z20: 1.531677657 | AA20: 1.599071474 | AB20: 1.669430619 | AC20: 1.742885566 | AD20: 1.819572531 | AE20: 1.899633723 | AF20: 1.983217607 | AG20: 2.070479181 | AH20: 2.161580265 | AI20: 2.256689797 | AJ20: 2.355984148 | AK20: 2.459647451 | AL20: 2.567871938 | AM20: 2.680858304 | AN20: 2.798816069 | AO20: 2.921963976 | AP20: 3.050530391 | AQ20: 3.184753728 | AR20: 3.324882892 | AS20: =AR20*(1+AR18) -> 3.471177739 | AT20: 3.62390956 | AU20: 3.783361581 | AV20: 3.94982949 | AW20: 4.123621988 | AX20: 4.305061355 | AY20: 4.494484055 | AZ20: 4.692241353 | BA20: 4.898699973 | BB20: 5.114242772 | BC20: 5.339269454 | BD20: 5.574197309 | BE20: 5.819461991 | BF20: 6.075518319 | BG20: 6.342841125 | BH20: 6.621926134 | BI20: 6.913290884 | BJ20: 7.217475683 | BK20: 7.535044613
A23: Pre-formatted for RABcalc sheet
B24: 1999 | C24: 2000 | D24: 2001 | E24: 2002 | F24: 2003 | G24: 2004 | H24: 2005 | I24: 2006 | J24: 2007 | K24: 2008 | L24: 2009 | M24: 2010 | N24: 2011 | O24: 2012 | P24: 2013 | Q24: 2014 | R24: 2015 | S24: 2016 | T24: 2017 | U24: 2018 | V24: 2019 | W24: 2020 | X24: 2021 | Y24: 2022 | Z24: 2023 | AA24: 2024 | AB24: 2025 | AC24: 2026 | AD24: 2027 | AE24: 2028 | AF24: 2029 | AG24: 2030 | AH24: 2031 | AI24: 2032 | AJ24: 2033 | AK24: 2034 | AL24: 2035 | AM24: 2036 | AN24: 2037 | AO24: 2038 | AP24: 2039 | AQ24: 2040 | AR24: 2041 | AS24: 2042 | AT24: 2043 | AU24: 2044 | AV24: 2045 | AW24: 2046 | AX24: 2047 | AY24: 2048 | AZ24: 2049 | BA24: 2050 | BB24: 2051 | BC24: 2052 | BD24: 2053 | BE24: 2054 | BF24: 2055 | BG24: 2056 | BH24: 2057 | BI24: 2058 | BJ24: 2059 | BK24: 2060
A25: RPI (cumulative index) | B25: 1 | C25: =B25*(1+C15) -> 1.023 | D25: 1.036299 | E25: 1.068424269 | F25: 1.0962033 | G25: 1.131281806 | H25: 1.158432569 | I25: 1.214037332 | J25: 1.260170751 | K25: 1.260170751 | L25: 1.306797069 | M25: 1.376057313 | N25: 1.425595377 | O25: 1.472640024 | P25: 1.509456025 | Q25: 1.523041129 | R25: 1.548932828 | S25: 1.589205082 | T25: 1.638470439 | U25: 1.689263023 | V25: 1.741630176 | W25: 1.795620712 | X25: 1.851284954 | Y25: 1.908674787 | Z25: 1.967843706 | AA25: 2.026879017 | AB25: 2.087685388 | AC25: 2.150315949 | AD25: 2.214825428 | AE25: 2.281270191 | AF25: 2.349708296 | AG25: 2.420199545 | AH25: 2.492805531 | AI25: =AH25*(1+AI15) -> 2.567589697 | AJ25: 2.644617388 | AK25: 2.72395591 | AL25: 2.805674587 | AM25: 2.889844825 | AN25: 2.97654017 | AO25: 3.065836375 | AP25: 3.157811466 | AQ25: 3.25254581 | AR25: 3.350122184 | AS25: 3.45062585 | AT25: 3.554144625 | AU25: 3.660768964 | AV25: 3.770592033 | AW25: 3.883709794 | AX25: 4.000221088 | AY25: 4.12022772 | AZ25: 4.243834552 | BA25: 4.371149589 | BB25: 4.502284076 | BC25: 4.637352598 | BD25: 4.776473176 | BE25: 4.919767372 | BF25: 5.067360393 | BG25: 5.219381205 | BH25: 5.375962641 | BI25: 5.53724152 | BJ25: 5.703358766 | BK25: 5.874459529
A31: Repayment Results
A33: Overall RAB charge | B33: =AVERAGE(dRABOutputs) -> 0.44038766
A34: Maximum RAB case | B34: =MAX(dRABOutputs) -> 1
A35: Minimum RAB case | B35: =MIN(dRABOutputs) -> -0.04
A36: Positive RAB cases | B36: =COUNTIF(dRABOutputs,">=0") -> 9758
A37: Negative RAB cases | B37: =COUNTIF(dRABOutputs,"<0") -> 242
A38: Write-off cases | B38: =COUNTIF(dWriteOffs,">0") -> 6407
A40: Calculate detailed results? | B40: TRUE
A42: Lifetime income percentile | B42: 1 | C42: 2 | D42: 3 | E42: 4 | F42: 5 | G42: 6 | H42: 7 | I42: 8 | J42: 9 | K42: 10 | L42: 11 | M42: 12 | N42: 13 | O42: 14 | P42: 15 | Q42: 16 | R42: 17 | S42: 18 | T42: 19 | U42: 20 | V42: 21 | W42: 22 | X42: 23 | Y42: 24 | Z42: 25 | AA42: 26 | AB42: 27 | AC42: 28 | AD42: 29 | AE42: 30 | AF42: 31 | AG42: 32 | AH42: 33 | AI42: 34 | AJ42: 35 | AK42: 36 | AL42: 37 | AM42: 38 | AN42: 39 | AO42: 40 | AP42: 41 | AQ42: 42 | AR42: 43 | AS42: 44 | AT42: 45 | AU42: 46 | AV42: 47 | AW42: 48 | AX42: 49 | AY42: 50 | AZ42: 51 | BA42: 52 | BB42: 53 | BC42: 54 | BD42: 55 | BE42: 56 | BF42: 57 | BG42: 58 | BH42: 59 | BI42: 60 | BJ42: 61 | BK42: 62 | BL42: 63 | BM42: 64 | BN42: 65 | BO42: 66 | BP42: 67 | BQ42: 68 | BR42: 69 | BS42: 70 | BT42: 71 | BU42: 72 | BV42: 73 | BW42: 74 | BX42: 75 | BY42: 76 | BZ42: 77 | CA42: 78 | CB42: 79 | CC42: 80 | CD42: 81 | CE42: 82 | CF42: 83 | CG42: 84 | CH42: 85 | CI42: 86 | CJ42: 87 | CK42: 88 | CL42: 89 | CM42: 90 | CN42: 91 | CO42: 92 | CP42: 93 | CQ42: 94 | CR42: 95 | CS42: 96 | CT42: 97 | CU42: 98 | CV42: 99 | CW42: 100
A43: Average RAB charge | B43: =SUMIF(dIncRanks,B42,dRABOutputs)/COUNTIF(dIncRanks,B42) -> 0.993896 | C43: 0.991111 | D43: 0.962103 | E43: 0.957963 | F43: 0.943071 | G43: 0.900036 | H43: 0.922253 | I43: 0.90398 | J43: 0.895706 | K43: 0.875314 | L43: 0.854864 | M43: 0.867483 | N43: 0.851789 | O43: 0.855126 | P43: 0.828806 | Q43: 0.813404 | R43: 0.810854 | S43: 0.794122 | T43: 0.788077 | U43: 0.785967 | V43: 0.800753 | W43: 0.779527 | X43: 0.739753 | Y43: 0.708459 | Z43: 0.737811 | AA43: 0.72109 | AB43: 0.700174 | AC43: 0.712645 | AD43: 0.699585 | AE43: 0.674952 | AF43: 0.657241 | AG43: 0.628425 | AH43: =SUMIF(dIncRanks,AH42,dRABOutputs)/COUNTIF(dIncRanks,AH42) -> 0.669089 | AI43: 0.639188 | AJ43: 0.620123 | AK43: 0.621691 | AL43: 0.610024 | AM43: 0.597423 | AN43: 0.596398 | AO43: 0.573077 | AP43: 0.547739 | AQ43: 0.531405 | AR43: 0.54151 | AS43: 0.519427 | AT43: 0.518783 | AU43: 0.484843 | AV43: 0.488631 | AW43: 0.472242 | AX43: 0.431429 | AY43: 0.414868 | AZ43: 0.395183 | BA43: 0.39229 | BB43: 0.378044 | BC43: 0.364242 | BD43: 0.365817 | BE43: 0.339276 | BF43: 0.326489 | BG43: 0.30225 | BH43: 0.279114 | BI43: 0.278075 | BJ43: 0.251467 | BK43: 0.234295 | BL43: 0.236704 | BM43: 0.206834 | BN43: =SUMIF(dIncRanks,BN42,dRABOutputs)/COUNTIF(dIncRanks,BN42) -> 0.19911 | BO43: 0.185347 | BP43: 0.183376 | BQ43: 0.173429 | BR43: 0.148217 | BS43: 0.142246 | BT43: 0.1287 | BU43: 0.131532 | BV43: 0.129 | BW43: 0.12608 | BX43: 0.115871 | BY43: 0.111139 | BZ43: 0.10234 | CA43: 0.11234 | CB43: 0.107734 | CC43: 0.101921 | CD43: 0.106256 | CE43: 0.085241 | CF43: 0.087935 | CG43: 0.095748 | CH43: 0.095979 | CI43: 0.086839 | CJ43: 0.064552 | CK43: 0.080751 | CL43: 0.069716 | CM43: 0.071214 | CN43: 0.075135 | CO43: 0.078518 | CP43: 0.077002 | CQ43: 0.069133 | CR43: 0.071249 | CS43: 0.064008 | CT43: =SUMIF(dIncRanks,CT42,dRABOutputs)/COUNTIF(dIncRanks,CT42) -> 0.053279 | CU43: 0.054111 | CV43: 0.045775 | CW43: 0.023633
A44: Entry Age Distribution | B44: 18 | C44: 19 | D44: 20 | E44: 21 | F44: 22 | G44: 23 | H44: 24 | I44: 25 | J44: 26 | K44: 27 | L44: 28 | M44: 29 | N44: 30 | O44: 31 | P44: 32 | Q44: 33 | R44: 34 | S44: 35 | T44: 36 | U44: 37 | V44: 38 | W44: 39 | X44: 40 | Y44: 41 | Z44: 42 | AA44: 43 | AB44: 44 | AC44: 45 | AD44: 46 | AE44: 47 | AF44: 48 | AG44: 49 | AH44: 50 | AI44: 51 | AJ44: 52 | AK44: 53 | AL44: 54 | AM44: 55 | AN44: 56 | AO44: 57 | AP44: 58 | AQ44: 59 | AR44: 60 | AS44: 61 | AT44: 62 | AU44: 63 | AV44: 64
B45: =COUNTIF(dEntryAge,B44)/10000 -> 0.3203 | C45: 0.3253 | D45: 0.1063 | E45: 0.0534 | F45: 0.0399 | G45: 0.0281 | H45: 0.0191 | I45: 0.0142 | J45: 0.012 | K45: 0.0089 | L45: 0.0072 | M45: 0.0068 | N45: 0.0057 | O45: 0.0047 | P45: 0.0035 | Q45: 0.0049 | R45: 0.0038 | S45: 0.0045 | T45: 0.0027 | U45: 0.0027 | V45: 0.003 | W45: 0.0022 | X45: 0.0026 | Y45: 0.0021 | Z45: 0.0019 | AA45: 0.0017 | AB45: 0.0017 | AC45: 0.0013 | AD45: 0.001 | AE45: 0.0012 | AF45: 0.0007 | AG45: 0.0008 | AH45: 0.0006 | AI45: 0.0007 | AJ45: 0.0012 | AK45: 0.0006 | AL45: 0.0007 | AM45: 0.0005 | AN45: 0.0002 | AO45: 0.0005 | AP45: 0.0002 | AQ45: 0.0002 | AR45: 0 | AS45: 0 | AT45: 0.0001 | AU45: 0.0001 | AV45: 0

Sheet RABcalc
A2: Global variables
A4: Maximum real interest | B4: =Global!B6 -> 0.03
A5: Repayment rate | B5: =Global!B5 -> 0.09
A6: Discount rate | B6: =Global!B11 -> 0.022
A7: Max repayment years | B7: =IF(E29=65,E29-F29,MAX(2016-gModelYear+30,E29-(gModelYear-D29))) -> 34
A8: Financial year | C8: 2000-01 | D8: 2001-02 | E8: 2002-03 | F8: 2003-04 | G8: 2004-05 | H8: 2005-06 | I8: 2006-07 | J8: 2007-08 | K8: 2008-09 | L8: 2009-10 | M8: 2010-11 | N8: 2011-12 | O8: 2012-13 | P8: 2013-14 | Q8: 2014-15 | R8: 2015-16 | S8: 2016-17 | T8: 2017-18 | U8: 2018-19 | V8: 2019-20 | W8: 2020-21 | X8: 2021-22 | Y8: 2022-23 | Z8: 2023-24 | AA8: 2024-25 | AB8: 2025-26 | AC8: 2026-27 | AD8: 2027-28 | AE8: 2028-29 | AF8: 2029-30 | AG8: 2030-31 | AH8: 2031-32 | AI8: 2032-33 | AJ8: 2033-34 | AK8: 2034-35 | AL8: 2035-36 | AM8: 2036-37 | AN8: 2037-38 | AO8: 2038-39 | AP8: 2039-40 | AQ8: 2040-41 | AR8: 2041-42 | AS8: 2042-43 | AT8: 2043-44 | AU8: 2044-45 | AV8: 2045-46 | AW8: 2046-47 | AX8: 2047-48 | AY8: 2048-49 | AZ8: 2049-50 | BA8: 2050-51 | BB8: 2051-52 | BC8: 2052-53 | BD8: 2053-54 | BE8: 2054-55 | BF8: 2055-56 | BG8: 2056-57 | BH8: 2057-58 | BI8: 2058-59 | BJ8: 2059-60 | BK8: 2060-61
A9: Year (first year in financial year) - hidden to avoid confusion | C9: 2000 | D9: 2001 | E9: 2002 | F9: 2003 | G9: 2004 | H9: 2005 | I9: 2006 | J9: 2007 | K9: 2008 | L9: 2009 | M9: 2010 | N9: 2011 | O9: 2012 | P9: 2013 | Q9: 2014 | R9: 2015 | S9: 2016 | T9: 2017 | U9: 2018 | V9: 2019 | W9: 2020 | X9: 2021 | Y9: 2022 | Z9: 2023 | AA9: 2024 | AB9: 2025 | AC9: 2026 | AD9: 2027 | AE9: 2028 | AF9: 2029 | AG9: 2030 | AH9: 2031 | AI9: 2032 | AJ9: 2033 | AK9: 2034 | AL9: 2035 | AM9: 2036 | AN9: 2037 | AO9: 2038 | AP9: 2039 | AQ9: 2040 | AR9: 2041 | AS9: 2042 | AT9: 2043 | AU9: 2044 | AV9: 2045 | AW9: 2046 | AX9: 2047 | AY9: 2048 | AZ9: 2049 | BA9: 2050 | BB9: 2051 | BC9: 2052 | BD9: 2053 | BE9: 2054 | BF9: 2055 | BG9: 2056 | BH9: 2057 | BI9: 2058 | BJ9: 2059 | BK9: 2060
A10: RPIX for March ye | C10: =Global!C16 -> 0 | D10: =Global!D16 -> 0 | E10: =Global!E16 -> 0 | F10: =Global!F16 -> 0 | G10: =Global!G16 -> 0 | H10: =Global!H16 -> 0 | I10: =Global!I16 -> 0 | J10: =Global!J16 -> 0 | K10: =Global!K16 -> 0 | L10: =Global!L16 -> 0 | M10: =Global!M16 -> 0 | N10: =Global!N16 -> 0 | O10: =Global!O16 -> 0.032 | P10: =Global!P16 -> 0.025 | Q10: =Global!Q16 -> 0.009 | R10: =Global!R16 -> 0.018 | S10: =Global!S16 -> 0.024 | T10: =Global!T16 -> 0.028 | U10: =Global!U16 -> 0.029 | V10: =Global!V16 -> 0.03 | W10: =Global!W16 -> 0.029 | X10: =Global!X16 -> 0.029 | Y10: =Global!Y16 -> 0.029 | Z10: =Global!Z16 -> 0.029 | AA10: =Global!AA16 -> 0.028 | AB10: =Global!AB16 -> 0.028 | AC10: =Global!AC16 -> 0.028 | AD10: =Global!AD16 -> 0.028 | AE10: =Global!AE16 -> 0.028 | AF10: =Global!AF16 -> 0.028 | AG10: =Global!AG16 -> 0.028 | AH10: =Global!AH16 -> 0.028 | AI10: =Global!AI16 -> 0.028 | AJ10: =Global!AJ16 -> 0.028 | AK10: =Global!AK16 -> 0.028 | AL10: =Global!AL16 -> 0.028 | AM10: =Global!AM16 -> 0.028 | AN10: =Global!AN16 -> 0.028 | AO10: =Global!AO16 -> 0.028 | AP10: =Global!AP16 -> 0.028 | AQ10: =Global!AQ16 -> 0.028 | AR10: =Global!AR16 -> 0.028 | AS10: =Global!AS16 -> 0.028 | AT10: =Global!AT16 -> 0.028 | AU10: =Global!AU16 -> 0.028 | AV10: =Global!AV16 -> 0.028 | AW10: =Global!AW16 -> 0.028 | AX10: =Global!AX16 -> 0.028 | AY10: =Global!AY16 -> 0.028 | AZ10: =Global!AZ16 -> 0.028 | BA10: =Global!BA16 -> 0.028 | BB10: =Global!BB16 -> 0.028 | BC10: =Global!BC16 -> 0.028 | BD10: =Global!BD16 -> 0.028 | BE10: =Global!BE16 -> 0.028 | BF10: =Global!BF16 -> 0.028 | BG10: =Global!BG16 -> 0.028 | BH10: =Global!BH16 -> 0.028 | BI10: =Global!BI16 -> 0.028 | BJ10: =Global!BJ16 -> 0.028 | BK10: =Global!BK16 -> 0.028
A11: RPI for March ye | C11: =Global!C15 -> 0.023 | D11: =Global!D15 -> 0.013 | E11: =Global!E15 -> 0.031 | F11: =Global!F15 -> 0.026 | G11: =Global!G15 -> 0.032 | H11: =Global!H15 -> 0.024 | I11: =Global!I15 -> 0.048 | J11: =Global!J15 -> 0.038 | K11: =Global!K15 -> 0 | L11: =Global!L15 -> 0.037 | M11: =Global!M15 -> 0.053 | N11: =Global!N15 -> 0.036 | O11: =Global!O15 -> 0.033 | P11: =Global!P15 -> 0.025 | Q11: =Global!Q15 -> 0.009 | R11: =Global!R15 -> 0.017 | S11: =Global!S15 -> 0.026 | T11: =Global!T15 -> 0.031 | U11: =Global!U15 -> 0.031 | V11: =Global!V15 -> 0.031 | W11: =Global!W15 -> 0.031 | X11: =Global!X15 -> 0.031 | Y11: =Global!Y15 -> 0.031 | Z11: =Global!Z15 -> 0.031 | AA11: =Global!AA15 -> 0.03 | AB11: =Global!AB15 -> 0.03 | AC11: =Global!AC15 -> 0.03 | AD11: =Global!AD15 -> 0.03 | AE11: =Global!AE15 -> 0.03 | AF11: =Global!AF15 -> 0.03 | AG11: =Global!AG15 -> 0.03 | AH11: =Global!AH15 -> 0.03 | AI11: =Global!AI15 -> 0.03 | AJ11: =Global!AJ15 -> 0.03 | AK11: =Global!AK15 -> 0.03 | AL11: =Global!AL15 -> 0.03 | AM11: =Global!AM15 -> 0.03 | AN11: =Global!AN15 -> 0.03 | AO11: =Global!AO15 -> 0.03 | AP11: =Global!AP15 -> 0.03 | AQ11: =Global!AQ15 -> 0.03 | AR11: =Global!AR15 -> 0.03 | AS11: =Global!AS15 -> 0.03 | AT11: =Global!AT15 -> 0.03 | AU11: =Global!AU15 -> 0.03 | AV11: =Global!AV15 -> 0.03 | AW11: =Global!AW15 -> 0.03 | AX11: =Global!AX15 -> 0.03 | AY11: =Global!AY15 -> 0.03 | AZ11: =Global!AZ15 -> 0.03 | BA11: =Global!BA15 -> 0.03 | BB11: =Global!BB15 -> 0.03 | BC11: =Global!BC15 -> 0.03 | BD11: =Global!BD15 -> 0.03 | BE11: =Global!BE15 -> 0.03 | BF11: =Global!BF15 -> 0.03 | BG11: =Global!BG15 -> 0.03 | BH11: =Global!BH15 -> 0.03 | BI11: =Global!BI15 -> 0.03 | BJ11: =Global!BJ15 -> 0.03 | BK11: =Global!BK15 -> 0.03
A12: RPI for financial year interest rate | D12: =(7/12*Global!C15+5/12*Global!B15) -> 0.02425 | E12: =(7/12*Global!D15+5/12*Global!C15) -> 0.01716666667 | F12: =(7/12*Global!E15+5/12*Global!D15) -> 0.0235 | G12: =(7/12*Global!F15+5/12*Global!E15) -> 0.02808333333 | H12: =(7/12*Global!G15+5/12*Global!F15) -> 0.0295 | I12: =(7/12*Global!H15+5/12*Global!G15) -> 0.02733333333 | J12: =(7/12*Global!I15+5/12*Global!H15) -> 0.038 | K12: =(7/12*Global!J15+5/12*Global!I15) -> 0.04216666667 | L12: =(7/12*Global!K15+5/12*Global!J15) -> 0.01583333333 | M12: =(7/12*Global!L15+5/12*Global!K15) -> 0.02158333333 | N12: =(7/12*Global!M15+5/12*Global!L15) -> 0.04633333333 | O12: =(7/12*Global!N15+5/12*Global!M15) -> 0.04308333333 | P12: =(7/12*Global!O15+5/12*Global!N15) -> 0.03425 | Q12: =(7/12*Global!P15+5/12*Global!O15) -> 0.02833333333 | R12: =(7/12*Global!Q15+5/12*Global!P15) -> 0.01566666667 | S12: =(7/12*Global!R15+5/12*Global!Q15) -> 0.01366666667 | T12: =(7/12*Global!S15+5/12*Global!R15) -> 0.02225 | U12: =(7/12*Global!T15+5/12*Global!S15) -> 0.02891666667 | V12: =(7/12*Global!U15+5/12*Global!T15) -> 0.031 | W12: =(7/12*Global!V15+5/12*Global!U15) -> 0.031 | X12: =(7/12*Global!W15+5/12*Global!V15) -> 0.031 | Y12: =(7/12*Global!X15+5/12*Global!W15) -> 0.031 | Z12: =(7/12*Global!Y15+5/12*Global!X15) -> 0.031 | AA12: =(7/12*Global!Z15+5/12*Global!Y15) -> 0.031 | AB12: =(7/12*Global!AA15+5/12*Global!Z15) -> 0.03041666667 | AC12: =(7/12*Global!AB15+5/12*Global!AA15) -> 0.03 | AD12: =(7/12*Global!AC15+5/12*Global!AB15) -> 0.03 | AE12: =(7/12*Global!AD15+5/12*Global!AC15) -> 0.03 | AF12: =(7/12*Global!AE15+5/12*Global!AD15) -> 0.03 | AG12: =(7/12*Global!AF15+5/12*Global!AE15) -> 0.03 | AH12: =(7/12*Global!AG15+5/12*Global!AF15) -> 0.03 | AI12: =(7/12*Global!AH15+5/12*Global!AG15) -> 0.03 | AJ12: =(7/12*Global!AI15+5/12*Global!AH15) -> 0.03 | AK12: =(7/12*Global!AJ15+5/12*Global!AI15) -> 0.03 | AL12: =(7/12*Global!AK15+5/12*Global!AJ15) -> 0.03 | AM12: =(7/12*Global!AL15+5/12*Global!AK15) -> 0.03 | AN12: =(7/12*Global!AM15+5/12*Global!AL15) -> 0.03 | AO12: =(7/12*Global!AN15+5/12*Global!AM15) -> 0.03 | AP12: =(7/12*Global!AO15+5/12*Global!AN15) -> 0.03 | AQ12: =(7/12*Global!AP15+5/12*Global!AO15) -> 0.03 | AR12: =(7/12*Global!AQ15+5/12*Global!AP15) -> 0.03 | AS12: =(7/12*Global!AR15+5/12*Global!AQ15) -> 0.03 | AT12: =(7/12*Global!AS15+5/12*Global!AR15) -> 0.03 | AU12: =(7/12*Global!AT15+5/12*Global!AS15) -> 0.03 | AV12: =(7/12*Global!AU15+5/12*Global!AT15) -> 0.03 | AW12: =(7/12*Global!AV15+5/12*Global!AU15) -> 0.03 | AX12: =(7/12*Global!AW15+5/12*Global!AV15) -> 0.03 | AY12: =(7/12*Global!AX15+5/12*Global!AW15) -> 0.03 | AZ12: =(7/12*Global!AY15+5/12*Global!AX15) -> 0.03 | BA12: =(7/12*Global!AZ15+5/12*Global!AY15) -> 0.03 | BB12: =(7/12*Global!BA15+5/12*Global!AZ15) -> 0.03 | BC12: =(7/12*Global!BB15+5/12*Global!BA15) -> 0.03 | BD12: =(7/12*Global!BC15+5/12*Global!BB15) -> 0.03 | BE12: =(7/12*Global!BD15+5/12*Global!BC15) -> 0.03 | BF12: =(7/12*Global!BE15+5/12*Global!BD15) -> 0.03 | BG12: =(7/12*Global!BF15+5/12*Global!BE15) -> 0.03 | BH12: =(7/12*Global!BG15+5/12*Global!BF15) -> 0.03 | BI12: =(7/12*Global!BH15+5/12*Global!BG15) -> 0.03 | BJ12: =(7/12*Global!BI15+5/12*Global!BH15) -> 0.03 | BK12: =(7/12*Global!BJ15+5/12*Global!BI15) -> 0.03
A13: Real interest rate | C13: =IF(C9<SRDD,$B$4,IF(C9<2016,0,IF(C35>C20,$B$4,IF(C35<C19,0,(C35-C19)/(C20-C19)*$B$4)))) -> 0.03 | D13: 0.03 | E13: 0.03 | F13: 0.03 | G13: 0.03 | H13: 0.03 | I13: 0.03 | J13: 0.03 | K13: 0.03 | L13: 0.03 | M13: 0.03 | N13: 0.03 | O13: 0.03 | P13: 0.03 | Q13: 0.03 | R13: 0.03 | S13: 0.03 | T13: 0.03 | U13: 0 | V13: 0 | W13: 0 | X13: 0.004949527399 | Y13: 0 | Z13: 0.0128128859 | AA13: 0.02000851702 | AB13: 0.02194045799 | AC13: 0.01574860111 | AD13: 0.03 | AE13: 0.03 | AF13: 0.03 | AG13: 0.03 | AH13: 0.03 | AI13: =IF(AI9<SRDD,$B$4,IF(AI9<2016,0,IF(AI35>AI20,$B$4,IF(AI35<AI19,0,(AI35-AI19)/(AI20-AI19)*$B$4)))) -> 0.02545553127 | AJ13: 0.02877179551 | AK13: 0.02323359042 | AL13: 0.01345145122 | AM13: 0.02219147913 | AN13: 0.03 | AO13: 0.009856057393 | AP13: 0.03 | AQ13: 0.03 | AR13: 0.03 | AS13: 0.02074743293 | AT13: 0.03 | AU13: 0.02297287751 | AV13: 0.01411294341 | AW13: 0.01548707284 | AX13: 0.02714034331 | AY13: 0.009798312188 | AZ13: 0.01385838946 | BA13: 0.01500578448 | BB13: 0.03 | BC13: 0.03 | BD13: 0 | BE13: 0 | BF13: 0 | BG13: 0 | BH13: 0 | BI13: 0 | BJ13: 0 | BK13: 0
A14: Total interest rate (RPI + real) | D14: =D12+D13 -> 0.05425 | E14: =E12+E13 -> 0.04716666667 | F14: 0.0535 | G14: 0.05808333333 | H14: 0.0595 | I14: 0.05733333333 | J14: 0.068 | K14: 0.07216666667 | L14: 0.04583333333 | M14: 0.05158333333 | N14: 0.07633333333 | O14: 0.07308333333 | P14: 0.06425 | Q14: 0.05833333333 | R14: 0.04566666667 | S14: 0.04366666667 | T14: 0.05225 | U14: 0.02891666667 | V14: 0.031 | W14: 0.031 | X14: 0.0359495274 | Y14: 0.031 | Z14: 0.0438128859 | AA14: 0.05100851702 | AB14: 0.05235712465 | AC14: 0.04574860111 | AD14: 0.06 | AE14: 0.06 | AF14: 0.06 | AG14: 0.06 | AH14: 0.06 | AI14: 0.05545553127 | AJ14: 0.05877179551 | AK14: 0.05323359042 | AL14: 0.04345145122 | AM14: 0.05219147913 | AN14: 0.06 | AO14: 0.03985605739 | AP14: 0.06 | AQ14: 0.06 | AR14: 0.06 | AS14: 0.05074743293 | AT14: 0.06 | AU14: 0.05297287751 | AV14: 0.04411294341 | AW14: 0.04548707284 | AX14: 0.05714034331 | AY14: 0.03979831219 | AZ14: 0.04385838946 | BA14: 0.04500578448 | BB14: 0.06 | BC14: 0.06 | BD14: 0.03 | BE14: 0.03 | BF14: 0.03 | BG14: 0.03 | BH14: 0.03 | BI14: 0.03 | BJ14: 0.03 | BK14: 0.03
A15: Interest charged (cumulative index) | B15: =INDEX(C15:BK15,MATCH(gModelYear-1,C9:BK9,0))*(1+INDEX(C14:BK14,MATCH(gModelYear,C9:BK9,0)))^0.5 -> 2.195338944 | C15: =1+C14 -> 1 | D15: =C15*(1+D14) -> 1.05425 | E15: =D15*(1+E14) -> 1.103975458 | F15: 1.163038145 | G15: =F15*(1+G14) -> 1.230591278 | H15: 1.303811459 | I15: 1.378563316 | J15: 1.472305621 | K15: 1.57855701 | L15: 1.65090754 | M15: 1.736066854 | N15: 1.868586623 | O15: 2.005149162 | P15: =O15*(1+P14) -> 2.133979996 | Q15: =P15*(1+Q14) -> 2.258462163 | R15: 2.361598601 | S15: =R15*(1+S14) -> 2.46472174 | T15: 2.593503451 | U15: 2.668498926 | V15: 2.751222393 | W15: 2.836510287 | X15: 2.938481491 | Y15: 3.029574417 | Z15: 3.162308816 | AA15: 3.323613499 | AB15: 3.497628345 | AC15: 3.657639949 | AD15: 3.877098346 | AE15: 4.109724247 | AF15: 4.356307701 | AG15: 4.617686164 | AH15: 4.894747333 | AI15: 5.166188147 | AJ15: 5.469814301 | AK15: 5.760992155 | AL15: 6.011315624 | AM15: 6.325055078 | AN15: 6.704558383 | AO15: 6.971775647 | AP15: 7.390082185 | AQ15: 7.833487117 | AR15: 8.303496344 | AS15: 8.724877467 | AT15: 9.248370115 | AU15: 9.738282893 | AV15: 10.16786721 | AW15: 10.63037373 | AX15: 11.23779694 | AY15: 11.68504229 | AZ15: 12.19752942 | BA15: 12.7464888 | BB15: 13.51127813 | BC15: 14.32195482 | BD15: 14.75161346 | BE15: 15.19416187 | BF15: 15.64998672 | BG15: 16.11948632 | BH15: 16.60307091 | BI15: 17.10116304 | BJ15: 17.61419793 | BK15: 18.14262387
A16: RPI (cumulative index) | C16: =Global!C25 -> 1.023 | D16: =Global!D25 -> 1.036299 | E16: =Global!E25 -> 1.068424269 | F16: =Global!F25 -> 1.0962033 | G16: =Global!G25 -> 1.131281806 | H16: =Global!H25 -> 1.158432569 | I16: =Global!I25 -> 1.214037332 | J16: =Global!J25 -> 1.260170751 | K16: =Global!K25 -> 1.260170751 | L16: =Global!L25 -> 1.306797069 | M16: =Global!M25 -> 1.376057313 | N16: =Global!N25 -> 1.425595377 | O16: =Global!O25 -> 1.472640024 | P16: =Global!P25 -> 1.509456025 | Q16: =Global!Q25 -> 1.523041129 | R16: =Global!R25 -> 1.548932828 | S16: =Global!S25 -> 1.589205082 | T16: =Global!T25 -> 1.638470439 | U16: =Global!U25 -> 1.689263023 | V16: =Global!V25 -> 1.741630176 | W16: =Global!W25 -> 1.795620712 | X16: =Global!X25 -> 1.851284954 | Y16: =Global!Y25 -> 1.908674787 | Z16: =Global!Z25 -> 1.967843706 | AA16: =Global!AA25 -> 2.026879017 | AB16: =Global!AB25 -> 2.087685388 | AC16: =Global!AC25 -> 2.150315949 | AD16: =Global!AD25 -> 2.214825428 | AE16: =Global!AE25 -> 2.281270191 | AF16: =Global!AF25 -> 2.349708296 | AG16: =Global!AG25 -> 2.420199545 | AH16: =Global!AH25 -> 2.492805531 | AI16: =Global!AI25 -> 2.567589697 | AJ16: =Global!AJ25 -> 2.644617388 | AK16: =Global!AK25 -> 2.72395591 | AL16: =Global!AL25 -> 2.805674587 | AM16: =Global!AM25 -> 2.889844825 | AN16: =Global!AN25 -> 2.97654017 | AO16: =Global!AO25 -> 3.065836375 | AP16: =Global!AP25 -> 3.157811466 | AQ16: =Global!AQ25 -> 3.25254581 | AR16: =Global!AR25 -> 3.350122184 | AS16: =Global!AS25 -> 3.45062585 | AT16: =Global!AT25 -> 3.554144625 | AU16: =Global!AU25 -> 3.660768964 | AV16: =Global!AV25 -> 3.770592033 | AW16: =Global!AW25 -> 3.883709794 | AX16: =Global!AX25 -> 4.000221088 | AY16: =Global!AY25 -> 4.12022772 | AZ16: =Global!AZ25 -> 4.243834552 | BA16: =Global!BA25 -> 4.371149589 | BB16: =Global!BB25 -> 4.502284076 | BC16: =Global!BC25 -> 4.637352598 | BD16: =Global!BD25 -> 4.776473176 | BE16: =Global!BE25 -> 4.919767372 | BF16: =Global!BF25 -> 5.067360393 | BG16: =Global!BG25 -> 5.219381205 | BH16: =Global!BH25 -> 5.375962641 | BI16: =Global!BI25 -> 5.53724152 | BJ16: =Global!BJ25 -> 5.703358766 | BK16: =Global!BK25 -> 5.874459529
A17: RPIX (cumulative index) | B17: =INDEX(C17:BK17,MATCH(gModelYear,C9:BK9,0)) -> 1.0578 | C17: 1 | D17: =C17*(1+C10) -> 1 | E17: 1 | F17: 1 | G17: 1 | H17: 1 | I17: 1 | J17: 1 | K17: 1 | L17: 1 | M17: 1 | N17: 1 | O17: 1 | P17: 1.032 | Q17: 1.0578 | R17: 1.0673202 | S17: 1.086531964 | T17: 1.112608731 | U17: 1.143761775 | V17: 1.176930867 | W17: 1.212238793 | X17: 1.247393718 | Y17: 1.283568135 | Z17: 1.320791611 | AA17: 1.359094568 | AB17: 1.397149216 | AC17: 1.436269394 | AD17: 1.476484937 | AE17: 1.517826515 | AF17: 1.560325658 | AG17: 1.604014776 | AH17: 1.64892719 | AI17: 1.695097151 | AJ17: =AI17*(1+AI10) -> 1.742559871 | AK17: 1.791351548 | AL17: 1.841509391 | AM17: 1.893071654 | AN17: 1.946077661 | AO17: 2.000567835 | AP17: 2.056583734 | AQ17: 2.114168079 | AR17: 2.173364785 | AS17: 2.234218999 | AT17: 2.296777131 | AU17: 2.361086891 | AV17: 2.427197324 | AW17: 2.495158849 | AX17: 2.565023297 | AY17: 2.636843949 | AZ17: 2.710675579 | BA17: 2.786574496 | BB17: 2.864598582 | BC17: 2.944807342 | BD17: 3.027261947 | BE17: 3.112025282 | BF17: 3.19916199 | BG17: 3.288738526 | BH17: 3.380823204 | BI17: 3.475486254 | BJ17: 3.572799869 | BK17: 3.672838265
A18: Nominal discount index | B18: =INDEX(C18:BK18,MATCH(gModelYear-1,C9:BK9,0))*((1+INDEX(C11:BK11,MATCH(gModelYear,C9:BK9,0)))*(1+B6))^0.5 -> 1.988279834 | C18: 1 | D18: =C18*(1+D11)*(1+$B$6) -> 1.035286 | E18: 1.090862223 | F18: 1.143847583 | G18: 1.206420621 | H18: 1.26255296 | I18: 1.352264923 | J18: 1.434531312 | K18: 1.466091001 | L18: 1.553783768 | M18: 1.672129262 | N18: 1.770437086 | O18: 1.869096463 | P18: 1.957972 | Q18: 2.01905681 | R18: 2.098555153 | S18: 2.200486174 | T18: 2.318612673 | U18: 2.443080438 | V18: 2.574229882 | W18: 2.712419691 | X18: 2.858027804 | Y18: 3.011452453 | Z18: 3.173113244 | AA18: 3.340209387 | AB18: 3.516104813 | AC18: 3.701262893 | AD18: 3.896171397 | AE18: 4.101343783 | AF18: 4.317320546 | AG18: 4.544670646 | AH18: 4.783993002 | AI18: 5.035918074 | AJ18: =AI18*(1+AJ11)*(1+$B$6) -> 5.30110952 | AK18: 5.580265947 | AL18: 5.874122752 | AM18: 6.183454056 | AN18: 6.509074746 | AO18: 6.851842622 | AP18: 7.212660655 | AQ18: 7.592479365 | AR18: 7.992299328 | AS18: 8.413173811 | AT18: 8.856211544 | AU18: 9.322579644 | AV18: 9.813506688 | AW18: 10.33028595 | AX18: 10.87427881 | AY18: 11.44691833 | AZ18: 12.04971305 | BA18: 12.68425094 | BB18: 13.35220359 | BC18: 14.05533063 | BD18: 14.79548435 | BE18: 15.57461455 | BF18: 16.39477375 | BG18: 17.25812254 | BH18: 18.16693527 | BI18: 19.12360608 | BJ18: 20.13065518 | BK18: 21.19073548
A19: Threshold (lower) | C19: 21000 | D19: 21000 | E19: 21000 | F19: 21000 | G19: 21000 | H19: 21000 | I19: 21000 | J19: 21000 | K19: 21000 | L19: 21000 | M19: 21000 | N19: 21000 | O19: 21000 | P19: 21000 | Q19: 21000 | R19: 21000 | S19: =Global!B4 -> 21000 | T19: =ROUNDUP(S19*(1+Global!R$17)*2,-1)/2 -> 21630 | U19: =ROUNDUP(T19*(1+Global!S$17)*2,-1)/2 -> 22345 | V19: =ROUNDUP(U19*(1+Global!T$17)*2,-1)/2 -> 23220 | W19: =ROUNDUP(V19*(1+Global!U$17)*2,-1)/2 -> 24200 | X19: =ROUNDUP(W19*(1+Global!V$17)*2,-1)/2 -> 25265 | Y19: =ROUNDUP(X19*(1+Global!W$17)*2,-1)/2 -> 26380 | Z19: =ROUNDUP(Y19*(1+Global!X$17)*2,-1)/2 -> 27545 | AA19: =ROUNDUP(Z19*(1+Global!Y$17)*2,-1)/2 -> 28760 | AB19: =ROUNDUP(AA19*(1+Global!Z$17)*2,-1)/2 -> 30030 | AC19: =ROUNDUP(AB19*(1+Global!AA$17)*2,-1)/2 -> 31355 | AD19: =ROUNDUP(AC19*(1+Global!AB$17)*2,-1)/2 -> 32735 | AE19: =ROUNDUP(AD19*(1+Global!AC$17)*2,-1)/2 -> 34180 | AF19: =ROUNDUP(AE19*(1+Global!AD$17)*2,-1)/2 -> 35685 | AG19: =ROUNDUP(AF19*(1+Global!AE$17)*2,-1)/2 -> 37260 | AH19: =ROUNDUP(AG19*(1+Global!AF$17)*2,-1)/2 -> 38900 | AI19: =ROUNDUP(AH19*(1+Global!AG$17)*2,-1)/2 -> 40615 | AJ19: =ROUNDUP(AI19*(1+Global!AH$17)*2,-1)/2 -> 42405 | AK19: =ROUNDUP(AJ19*(1+Global!AI$17)*2,-1)/2 -> 44275 | AL19: =ROUNDUP(AK19*(1+Global!AJ$17)*2,-1)/2 -> 46225 | AM19: =ROUNDUP(AL19*(1+Global!AK$17)*2,-1)/2 -> 48260 | AN19: =ROUNDUP(AM19*(1+Global!AL$17)*2,-1)/2 -> 50385 | AO19: =ROUNDUP(AN19*(1+Global!AM$17)*2,-1)/2 -> 52605 | AP19: =ROUNDUP(AO19*(1+Global!AN$17)*2,-1)/2 -> 54920 | AQ19: =ROUNDUP(AP19*(1+Global!AO$17)*2,-1)/2 -> 57340 | AR19: =ROUNDUP(AQ19*(1+Global!AP$17)*2,-1)/2 -> 59865 | AS19: =ROUNDUP(AR19*(1+Global!AQ$17)*2,-1)/2 -> 62500 | AT19: =ROUNDUP(AS19*(1+Global!AR$17)*2,-1)/2 -> 65250 | AU19: =ROUNDUP(AT19*(1+Global!AS$17)*2,-1)/2 -> 68125 | AV19: =ROUNDUP(AU19*(1+Global!AT$17)*2,-1)/2 -> 71125 | AW19: =ROUNDUP(AV19*(1+Global!AU$17)*2,-1)/2 -> 74255 | AX19: =ROUNDUP(AW19*(1+Global!AV$17)*2,-1)/2 -> 77525 | AY19: =ROUNDUP(AX19*(1+Global!AW$17)*2,-1)/2 -> 80940 | AZ19: =ROUNDUP(AY19*(1+Global!AX$17)*2,-1)/2 -> 84505 | BA19: =ROUNDUP(AZ19*(1+Global!AY$17)*2,-1)/2 -> 88225 | BB19: =ROUNDUP(BA19*(1+Global!AZ$17)*2,-1)/2 -> 92110 | BC19: =ROUNDUP(BB19*(1+Global!BA$17)*2,-1)/2 -> 96165 | BD19: =ROUNDUP(BC19*(1+Global!BB$17)*2,-1)/2 -> 100400 | BE19: =ROUNDUP(BD19*(1+Global!BC$17)*2,-1)/2 -> 104820 | BF19: =ROUNDUP(BE19*(1+Global!BD$17)*2,-1)/2 -> 109435 | BG19: =ROUNDUP(BF19*(1+Global!BE$17)*2,-1)/2 -> 114255 | BH19: =ROUNDUP(BG19*(1+Global!BF$17)*2,-1)/2 -> 119285 | BI19: =ROUNDUP(BH19*(1+Global!BG$17)*2,-1)/2 -> 124535 | BJ19: =ROUNDUP(BI19*(1+Global!BH$17)*2,-1)/2 -> 130015 | BK19: =ROUNDUP(BJ19*(1+Global!BI$17)*2,-1)/2 -> 135740
A20: Threshold (upper) | C20: 41000 | D20: 41000 | E20: 41000 | F20: 41000 | G20: 41000 | H20: 41000 | I20: 41000 | J20: 41000 | K20: 41000 | L20: 41000 | M20: 41000 | N20: 41000 | O20: 41000 | P20: 41000 | Q20: 41000 | R20: 41000 | S20: =Global!B7 -> 41000 | T20: =ROUNDUP(S20*(1+Global!R$17)*2,-1)/2 -> 42230 | U20: =ROUNDUP(T20*(1+Global!S$17)*2,-1)/2 -> 43625 | V20: =ROUNDUP(U20*(1+Global!T$17)*2,-1)/2 -> 45330 | W20: =ROUNDUP(V20*(1+Global!U$17)*2,-1)/2 -> 47235 | X20: =ROUNDUP(W20*(1+Global!V$17)*2,-1)/2 -> 49315 | Y20: =ROUNDUP(X20*(1+Global!W$17)*2,-1)/2 -> 51485 | Z20: =ROUNDUP(Y20*(1+Global!X$17)*2,-1)/2 -> 53755 | AA20: =ROUNDUP(Z20*(1+Global!Y$17)*2,-1)/2 -> 56125 | AB20: =ROUNDUP(AA20*(1+Global!Z$17)*2,-1)/2 -> 58595 | AC20: =ROUNDUP(AB20*(1+Global!AA$17)*2,-1)/2 -> 61175 | AD20: =ROUNDUP(AC20*(1+Global!AB$17)*2,-1)/2 -> 63870 | AE20: =ROUNDUP(AD20*(1+Global!AC$17)*2,-1)/2 -> 66685 | AF20: =ROUNDUP(AE20*(1+Global!AD$17)*2,-1)/2 -> 69620 | AG20: =ROUNDUP(AF20*(1+Global!AE$17)*2,-1)/2 -> 72685 | AH20: =ROUNDUP(AG20*(1+Global!AF$17)*2,-1)/2 -> 75885 | AI20: =ROUNDUP(AH20*(1+Global!AG$17)*2,-1)/2 -> 79225 | AJ20: =ROUNDUP(AI20*(1+Global!AH$17)*2,-1)/2 -> 82715 | AK20: =ROUNDUP(AJ20*(1+Global!AI$17)*2,-1)/2 -> 86355 | AL20: =ROUNDUP(AK20*(1+Global!AJ$17)*2,-1)/2 -> 90155 | AM20: =ROUNDUP(AL20*(1+Global!AK$17)*2,-1)/2 -> 94125 | AN20: =ROUNDUP(AM20*(1+Global!AL$17)*2,-1)/2 -> 98270 | AO20: =ROUNDUP(AN20*(1+Global!AM$17)*2,-1)/2 -> 102595 | AP20: =ROUNDUP(AO20*(1+Global!AN$17)*2,-1)/2 -> 107110 | AQ20: =ROUNDUP(AP20*(1+Global!AO$17)*2,-1)/2 -> 111825 | AR20: =ROUNDUP(AQ20*(1+Global!AP$17)*2,-1)/2 -> 116750 | AS20: =ROUNDUP(AR20*(1+Global!AQ$17)*2,-1)/2 -> 121890 | AT20: =ROUNDUP(AS20*(1+Global!AR$17)*2,-1)/2 -> 127255 | AU20: =ROUNDUP(AT20*(1+Global!AS$17)*2,-1)/2 -> 132855 | AV20: =ROUNDUP(AU20*(1+Global!AT$17)*2,-1)/2 -> 138705 | AW20: =ROUNDUP(AV20*(1+Global!AU$17)*2,-1)/2 -> 144810 | AX20: =ROUNDUP(AW20*(1+Global!AV$17)*2,-1)/2 -> 151185 | AY20: =ROUNDUP(AX20*(1+Global!AW$17)*2,-1)/2 -> 157840 | AZ20: =ROUNDUP(AY20*(1+Global!AX$17)*2,-1)/2 -> 164785 | BA20: =ROUNDUP(AZ20*(1+Global!AY$17)*2,-1)/2 -> 172040 | BB20: =ROUNDUP(BA20*(1+Global!AZ$17)*2,-1)/2 -> 179610 | BC20: =ROUNDUP(BB20*(1+Global!BA$17)*2,-1)/2 -> 187515 | BD20: =ROUNDUP(BC20*(1+Global!BB$17)*2,-1)/2 -> 195770 | BE20: =ROUNDUP(BD20*(1+Global!BC$17)*2,-1)/2 -> 204385 | BF20: =ROUNDUP(BE20*(1+Global!BD$17)*2,-1)/2 -> 213380 | BG20: =ROUNDUP(BF20*(1+Global!BE$17)*2,-1)/2 -> 222770 | BH20: =ROUNDUP(BG20*(1+Global!BF$17)*2,-1)/2 -> 232575 | BI20: =ROUNDUP(BH20*(1+Global!BG$17)*2,-1)/2 -> 242810 | BJ20: =ROUNDUP(BI20*(1+Global!BH$17)*2,-1)/2 -> 253495 | BK20: =ROUNDUP(BJ20*(1+Global!BI$17)*2,-1)/2 -> 264650
A21: Borrower specific
A25: Age | C25: =C34-Start_Year+gBaseYear -> 4 | D25: =C25+1 -> 5 | E25: =D25+1 -> 6 | F25: 7 | G25: 8 | H25: 9 | I25: 10 | J25: 11 | K25: 12 | L25: 13 | M25: 14 | N25: 15 | O25: 16 | P25: 17 | Q25: 18 | R25: 19 | S25: 20 | T25: 21 | U25: 22 | V25: 23 | W25: 24 | X25: 25 | Y25: 26 | Z25: 27 | AA25: 28 | AB25: 29 | AC25: 30 | AD25: 31 | AE25: 32 | AF25: 33 | AG25: 34 | AH25: 35 | AI25: 36 | AJ25: 37 | AK25: 38 | AL25: 39 | AM25: 40 | AN25: 41 | AO25: 42 | AP25: 43 | AQ25: 44 | AR25: 45 | AS25: 46 | AT25: 47 | AU25: 48 | AV25: 49 | AW25: 50 | AX25: 51 | AY25: 52 | AZ25: 53 | BA25: 54 | BB25: 55 | BC25: 56 | BD25: 57 | BE25: 58 | BF25: 59 | BG25: 60 | BH25: 61 | BI25: 62 | BJ25: 63 | BK25: 64
D26: Death age | E26: Disability age | F26: SRDD Age
D27: =IF(rGender="M",MATCH(K33*(1-INDEX(Lookups!$B$4:$C$49,MATCH(MAX(F27,20),Lookups!$A$4:$A$49),IF(rGender="F",2,1)))+INDEX(Lookups!$B$4:$C$49,MATCH(MAX(F27,20),Lookups!$A$4:$A$49),IF(rGender="F",2,1)),Lookups!$B$4:$B$59,1),MATCH(K33*(1-INDEX(Lookups!$B$4:$C$49,MATCH(MAX(F27,20),Lookups!$A$4:$A$49),IF(rGender="F",2,1)))+INDEX(Lookups!$B$4:$C$49,MATCH(MAX(F27,20),Lookups!$A$4:$A$49),IF(rGender="F",2,1)),Lookups!$C$4:$C$59,1))+19 -> 75 | E27: =IF(rGender="M",MATCH(L33*(1-INDEX(Lookups!$D$4:$E$49,MATCH(MAX(F27,20),Lookups!$A$4:$A$49),IF(rGender="F",2,1)))+INDEX(Lookups!$D$4:$E$49,MATCH(MAX(F27,20),Lookups!$A$4:$A$49),IF(rGender="F",2,1)),Lookups!$D$4:$D$59,1),MATCH(L33*(1-INDEX(Lookups!$D$4:$E$49,MATCH(MAX(F27,20),Lookups!$A$4:$A$49),IF(rGender="F",2,1)))+INDEX(Lookups!$D$4:$E$49,MATCH(MAX(F27,20),Lookups!$A$4:$A$49),IF(rGender="F",2,1)),Lookups!$E$4:$E$59,1))+19 -> 65 | F27: =C34+MAX(0,SRDD-gModelYear) -> 22 | H27: E/EU | I27: Start Year | J27: Loan amount
A28: Loans taken | D28: SRDD | E28: Write-off Rule | F28: Entry age | P28: =IF(P9=gModelYear,$J$29,IF(P9=gModelYear+1,$K$29,IF(P9=gModelYear+2,$L$29,0)))*P17/$B$17 -> 0 | Q28: 12000 | R28: 12108 | S28: 12325.944 | T28: 0 | U28: 0 | V28: 0 | W28: 0 | X28: 0 | Y28: 0 | Z28: 0 | AA28: 0 | AB28: 0 | AC28: 0 | AD28: 0 | AE28: 0 | AF28: 0 | AG28: 0 | AH28: 0 | AI28: 0 | AJ28: 0 | AK28: 0 | AL28: 0 | AM28: 0 | AN28: 0 | AO28: 0 | AP28: 0 | AQ28: 0 | AR28: 0 | AS28: 0 | AT28: 0 | AU28: 0 | AV28: 0 | AW28: 0 | AX28: 0 | AY28: 0 | AZ28: 0 | BA28: 0 | BB28: 0 | BC28: 0 | BD28: 0 | BE28: 0 | BF28: 0 | BG28: 0 | BH28: 0 | BI28: 0 | BJ28: 0 | BK28: 0
D29: =gSRDD -> 2018 | E29: =Global!$B$8 -> 30 | F29: =gAgeonEntry -> 18 | H29: E | I29: =gModelYear -> 2014 | J29: =Global!B9:D9 -> 12000 | K29: 12000 | L29: 12000
A30: Income - labour | C30: 0 | D30: 0 | E30: 0 | F30: 0 | G30: 0 | H30: 0 | I30: 0 | J30: 0 | K30: 0 | L30: 0 | M30: 0 | N30: 0 | O30: 0 | P30: 0 | Q30: 0 | R30: 0 | S30: 0 | T30: 0 | U30: 0 | V30: 8846 | W30: 12952 | X30: 20802 | Y30: 16398 | Z30: 25292 | AA30: 29399 | AB30: 30502 | AC30: 26972 | AD30: 60611 | AE30: 35463 | AF30: 50617 | AG30: 49093 | AH30: 41166 | AI30: 32515 | AJ30: 34408 | AK30: 31250 | AL30: 25672 | AM30: 30657 | AN30: 36223 | AO30: 23624 | AP30: 38079 | AQ30: 37192 | AR30: 36638 | AS30: 29838 | AT30: 54913 | AU30: 31108 | AV30: 26056 | AW30: 26840 | AX30: 33487 | AY30: 23597 | AZ30: 25913 | BA30: 26568 | BB30: 47899 | BC30: 45565 | BD30: 0 | BE30: 0 | BF30: 0 | BG30: 0 | BH30: 0 | BI30: 0 | BJ30: 0 | BK30: 0
A31: Direct repayments | C31: 0 | D31: 0 | E31: 0 | F31: 0 | G31: 0 | H31: 0 | I31: 0 | J31: 0 | K31: 0 | L31: 0 | M31: 0 | N31: 0 | O31: 0 | P31: 0 | Q31: 0 | R31: 0 | S31: 0 | T31: 0 | U31: 0 | V31: 0 | W31: 0 | X31: 0 | Y31: 0 | Z31: 0 | AA31: 0 | AB31: 0 | AC31: 0 | AD31: 0 | AE31: 0 | AF31: 0 | AG31: 0 | AH31: 0 | AI31: 0 | AJ31: 0 | AK31: 0 | AL31: 0 | AM31: 0 | AN31: 0 | AO31: 0 | AP31: 0 | AQ31: 0 | AR31: 0 | AS31: 0 | AT31: 0 | AU31: 0 | AV31: 0 | AW31: 0 | AX31: 0 | AY31: 0 | AZ31: 0 | BA31: 0 | BB31: 0 | BC31: 0 | BD31: 0 | BE31: 0 | BF31: 0 | BG31: 0 | BH31: 0 | BI31: 0 | BJ31: 0 | BK31: 0
A32: Income - investment | C32: 0 | D32: 0 | E32: 0 | F32: 0 | G32: 0 | H32: 0 | I32: 0 | J32: 0 | K32: 0 | L32: 0 | M32: 0 | N32: 0 | O32: 0 | P32: 0 | Q32: 0 | R32: 0 | S32: 0 | T32: 0 | U32: 0 | V32: 0 | W32: 0 | X32: 0 | Y32: 0 | Z32: 0 | AA32: 0 | AB32: 0 | AC32: 0 | AD32: 0 | AE32: 0 | AF32: 0 | AG32: 0 | AH32: 0 | AI32: 0 | AJ32: 0 | AK32: 0 | AL32: 0 | AM32: 0 | AN32: 0 | AO32: 0 | AP32: 0 | AQ32: 0 | AR32: 0 | AS32: 0 | AT32: 16700 | AU32: 0 | AV32: 0 | AW32: 0 | AX32: 0 | AY32: 0 | AZ32: 0 | BA32: 0 | BB32: 0 | BC32: 0 | BD32: 0 | BE32: 0 | BF32: 0 | BG32: 0 | BH32: 0 | BI32: 0 | BJ32: 0 | BK32: 0
A33: Gender / Random numbers | C33: F | D33: 0.4151220322 | E33: 0.3027254343 | F33: 0.09413456917 | G33: 0.9436234236 | H33: 0.6302828789 | I33: 0.6815558672 | J33: 0.4850537777 | K33: 0.2949041128 | L33: 0.2888793945 | M33: 0.08255732059 | N33: 0.3567621708 | O33: 0.5045374632 | P33: 0.4538998604 | Q33: 0.07262432575 | R33: 0.8113105297 | S33: 0.4909805059 | T33: 0.3914575577 | U33: 0.04677641392 | V33: 0.4038746357 | W33: 0.2508152723 | X33: 0.07079076767 | Y33: 0.7281581163 | Z33: 0.64275527 | AA33: 0.3587487936 | AB33: 0.6642627716 | AC33: 0.6680389643 | AD33: 0.4893782139 | AE33: 0.467613101 | AF33: 0.04736185074 | AG33: 0.745813489 | AH33: 0.8582942486 | AI33: 0.8083652258 | AJ33: 0.2987012863 | AK33: 0.6690012217 | AL33: 0.1171791553 | AM33: 0.6900871992 | AN33: 0.2000193596 | AO33: 0.4732466936 | AP33: 0.5868337154 | AQ33: 0.9999860525 | AR33: 0.7361793518 | AS33: 0.02231943607 | AT33: 0.0411837101 | AU33: 0.7033938169 | AV33: 0.5951695442 | AW33: 0.5081139803 | AX33: 0.2072799206 | AY33: 0.3437675238 | AZ33: 0.6681032181 | BA33: 0.9506498575 | BB33: 0.2652981281 | BC33: 0.5426892042 | BD33: 0.5492186546 | BE33: 0.698071599 | BF33: 0.348539114 | BG33: 0.4998658895 | BH33: 0.03587913513 | BI33: 0.926648736 | BJ33: 0.04342865944 | BK33: 0.493129611
A34: Entry age / Random numbers | C34: 18 | D34: 0.6506111026 | E34: 0.4581378102 | F34: 0.5669426322 | G34: 0.615766108 | H34: 0.1813980937 | I34: 0.9080722928 | J34: 0.6720170379 | K34: 0.06241232157 | L34: 0.710003078 | M34: 0.2446187139 | N34: 0.9128488898 | O34: 0.1371255517 | P34: 0.5474612117 | Q34: 0.2670934796 | R34: 0.4832858443 | S34: 0.5845347047 | T34: 0.395432651 | U34: 0.2904379964 | V34: 0.2178005576 | W34: 0.9148936868 | X34: 0.8462025523 | Y34: 0.6452186704 | Z34: 0.09149068594 | AA34: 0.9040814042 | AB34: 0.8826810718 | AC34: 0.1776269078 | AD34: 0.7200788856 | AE34: 0.09360176325 | AF34: 0.3784033656 | AG34: 0.749479115 | AH34: 0.8599128127 | AI34: 0.2905836701 | AJ34: 0.5975295901 | AK34: 0.7382166982 | AL34: 0.9079651237 | AM34: 0.06778103113 | AN34: 0.6948449016 | AO34: 0.5369060636 | AP34: 0.4018334746 | AQ34: 0.2635727525 | AR34: 0.2157594562 | AS34: 0.05423861742 | AT34: 0.5197405219 | AU34: 0.4819627404 | AV34: 0.5963084102 | AW34: 0.214530766 | AX34: 0.5805339217 | AY34: 0.5925799012 | AZ34: 0.6631519198 | BA34: 0.4577239156 | BB34: 0.5436863303 | BC34: 0.2306781411 | BD34: 0.1335751414 | BE34: 0.2393844724 | BF34: 0.509295404 | BG34: 0.2971363664 | BH34: 0.1154882312 | BI34: 0.5307038426 | BJ34: 0.2180837989 | BK34: 0.4584584832
A35: Adjust for Real/Dropout/Employment | C35: 0 | D35: 0 | E35: 0 | F35: 0 | G35: 0 | H35: 0 | I35: 0 | J35: 0 | K35: 0 | L35: 0 | M35: 0 | N35: 0 | O35: 0 | P35: 0 | Q35: 0 | R35: 0 | S35: =S30*Global!S20 -> 0 | T35: =T30*Global!T20 -> 0 | U35: =U30*Global!U20 -> 0 | V35: =V30*Global!V20 -> 11405.44718 | W35: =W30*Global!W20 -> 17434.22783 | X35: =X30*Global!X20 -> 29232.87113 | Y35: =Y30*Global!Y20 -> 24057.90252 | Z35: =Z30*Global!Z20 -> 38739.19131 | AA35: =AA30*Global!AA20 -> 47011.10227 | AB35: =AB30*Global!AB20 -> 50920.97275 | AC35: =AC30*Global!AC20 -> 47009.1095 | AD35: =AD30*Global!AD20 -> 110286.1107 | AE35: =AE30*Global!AE20 -> 67366.71071 | AF35: =AF30*Global!AF20 -> 100384.5256 | AG35: =AG30*Global!AG20 -> 101646.0344 | AH35: =AH30*Global!AH20 -> 88983.6132 | AI35: =AI30*Global!AI20 -> 73376.26875 | AJ35: =AJ30*Global!AJ20 -> 81064.70256 | AK35: =AK30*Global!AK20 -> 76863.98283 | AL35: =AL30*Global!AL20 -> 65922.4084 | AM35: =AM30*Global!AM20 -> 82187.07301 | AN35: =AN30*Global!AN20 -> 101381.5145 | AO35: =AO30*Global!AO20 -> 69028.47697 | AP35: =AP30*Global!AP20 -> 116161.1468 | AQ35: =AQ30*Global!AQ20 -> 118447.3607 | AR35: =AR30*Global!AR20 -> 121817.0594 | AS35: =AS30*Global!AS20 -> 103573.0014 | AT35: =AT30*Global!AT20 -> 198999.7457 | AU35: =AU30*Global!AU20 -> 117692.812 | AV35: =AV30*Global!AV20 -> 102916.7572 | AW35: =AW30*Global!AW20 -> 110678.0142 | AX35: =AX30*Global!AX20 -> 144163.5896 | AY35: =AY30*Global!AY20 -> 106056.3402 | AZ35: =AZ30*Global!AZ20 -> 121590.0502 | BA35: =BA30*Global!BA20 -> 130148.6609 | BB35: =BB30*Global!BB20 -> 244967.1145 | BC35: =BC30*Global!BC20 -> 243283.8127 | BD35: =BD30*Global!BD20 -> 0 | BE35: =BE30*Global!BE20 -> 0 | BF35: =BF30*Global!BF20 -> 0 | BG35: =BG30*Global!BG20 -> 0 | BH35: =BH30*Global!BH20 -> 0 | BI35: =BI30*Global!BI20 -> 0 | BJ35: =BJ30*Global!BJ20 -> 0 | BK35: =BK30*Global!BK20 -> 0
A37: Pre-SRDD | C37: =IF(C9<$D$29,0,1) -> 0 | D37: 0 | E37: 0 | F37: 0 | G37: 0 | H37: 0 | I37: 0 | J37: 0 | K37: 0 | L37: 0 | M37: 0 | N37: 0 | O37: 0 | P37: 0 | Q37: 0 | R37: 0 | S37: 0 | T37: 0 | U37: 1 | V37: 1 | W37: 1 | X37: 1 | Y37: 1 | Z37: 1 | AA37: 1 | AB37: 1 | AC37: 1 | AD37: 1 | AE37: 1 | AF37: 1 | AG37: 1 | AH37: 1 | AI37: =IF(AI9<$D$29,0,1) -> 1 | AJ37: 1 | AK37: 1 | AL37: 1 | AM37: 1 | AN37: 1 | AO37: 1 | AP37: 1 | AQ37: 1 | AR37: 1 | AS37: 1 | AT37: 1 | AU37: 1 | AV37: 1 | AW37: 1 | AX37: 1 | AY37: 1 | AZ37: 1 | BA37: 1 | BB37: 1 | BC37: 1 | BD37: 1 | BE37: 1 | BF37: 1 | BG37: 1 | BH37: 1 | BI37: 1 | BJ37: 1 | BK37: 1
A38: Pre Write-Off year? | C38: =IF(C9<gModelYear+$B$7,1,0) -> 1 | D38: 1 | E38: 1 | F38: 1 | G38: 1 | H38: 1 | I38: 1 | J38: 1 | K38: 1 | L38: 1 | M38: 1 | N38: 1 | O38: 1 | P38: 1 | Q38: 1 | R38: 1 | S38: 1 | T38: 1 | U38: 1 | V38: 1 | W38: 1 | X38: 1 | Y38: 1 | Z38: 1 | AA38: 1 | AB38: 1 | AC38: 1 | AD38: 1 | AE38: 1 | AF38: 1 | AG38: 1 | AH38: 1 | AI38: =IF(AI9<gModelYear+$B$7,1,0) -> 1 | AJ38: 1 | AK38: 1 | AL38: 1 | AM38: 1 | AN38: 1 | AO38: 1 | AP38: 1 | AQ38: 1 | AR38: 1 | AS38: 1 | AT38: 1 | AU38: 1 | AV38: 1 | AW38: 1 | AX38: 1 | AY38: 0 | AZ38: 0 | BA38: 0 | BB38: 0 | BC38: 0 | BD38: 0 | BE38: 0 | BF38: 0 | BG38: 0 | BH38: 0 | BI38: 0 | BJ38: 0 | BK38: 0 | BL38: =SUM(C38:BK38) -> 48
A39: Is Borrower Dead? | C39: =IF(C9<=MAX(gModelYear,SRDD),1,IF(C25<$D$27,1,0)) -> 1 | D39: 1 | E39: 1 | F39: 1 | G39: 1 | H39: 1 | I39: 1 | J39: 1 | K39: 1 | L39: 1 | M39: 1 | N39: 1 | O39: 1 | P39: 1 | Q39: 1 | R39: 1 | S39: 1 | T39: 1 | U39: 1 | V39: 1 | W39: 1 | X39: 1 | Y39: 1 | Z39: 1 | AA39: 1 | AB39: 1 | AC39: 1 | AD39: 1 | AE39: 1 | AF39: 1 | AG39: 1 | AH39: 1 | AI39: =IF(AI9<=MAX(gModelYear,SRDD),1,IF(AI25<$D$27,1,0)) -> 1 | AJ39: 1 | AK39: 1 | AL39: 1 | AM39: 1 | AN39: 1 | AO39: 1 | AP39: 1 | AQ39: 1 | AR39: 1 | AS39: 1 | AT39: 1 | AU39: 1 | AV39: 1 | AW39: 1 | AX39: 1 | AY39: 1 | AZ39: 1 | BA39: 1 | BB39: 1 | BC39: 1 | BD39: 1 | BE39: 1 | BF39: 1 | BG39: 1 | BH39: 1 | BI39: 1 | BJ39: 1 | BK39: 1 | BL39: =SUM(C39:BK39) -> 61
A40: Is Borrower Disabled? | C40: =IF(C9<=MAX(gModelYear,SRDD),1,IF(C25<$E$27,1,0)) -> 1 | D40: 1 | E40: 1 | F40: 1 | G40: 1 | H40: 1 | I40: 1 | J40: 1 | K40: 1 | L40: 1 | M40: 1 | N40: 1 | O40: 1 | P40: 1 | Q40: 1 | R40: 1 | S40: 1 | T40: 1 | U40: 1 | V40: 1 | W40: 1 | X40: 1 | Y40: 1 | Z40: 1 | AA40: 1 | AB40: 1 | AC40: 1 | AD40: 1 | AE40: 1 | AF40: 1 | AG40: 1 | AH40: 1 | AI40: =IF(AI9<=MAX(gModelYear,SRDD),1,IF(AI25<$E$27,1,0)) -> 1 | AJ40: 1 | AK40: 1 | AL40: 1 | AM40: 1 | AN40: 1 | AO40: 1 | AP40: 1 | AQ40: 1 | AR40: 1 | AS40: 1 | AT40: 1 | AU40: 1 | AV40: 1 | AW40: 1 | AX40: 1 | AY40: 1 | AZ40: 1 | BA40: 1 | BB40: 1 | BC40: 1 | BD40: 1 | BE40: 1 | BF40: 1 | BG40: 1 | BH40: 1 | BI40: 1 | BJ40: 1 | BK40: 1 | BL40: =SUM(C40:BK40) -> 61
A42: Repayment friction | C42: =Lookups!U6 -> -0.077 | D42: =Lookups!V6 -> -0.077 | E42: =Lookups!W6 -> -0.077 | F42: =Lookups!X6 -> -0.076 | G42: =Lookups!Y6 -> -0.07 | H42: =Lookups!Z6 -> -0.011 | I42: =Lookups!AA6 -> -0.014 | J42: =Lookups!AB6 -> -0.023 | K42: =Lookups!AC6 -> -0.006 | L42: =Lookups!AD6 -> -0.006 | M42: =Lookups!AE6 -> -0.006 | N42: =Lookups!AF6 -> -0.006 | O42: =Lookups!AG6 -> -0.006 | P42: =Lookups!AH6 -> -0.006 | Q42: =Lookups!AI6 -> -0.006 | R42: =Lookups!AJ6 -> -0.006 | S42: =Lookups!AK6 -> -0.006 | T42: =Lookups!AL6 -> -0.006 | U42: =Lookups!AM6 -> -0.006 | V42: =Lookups!AN6 -> -0.006 | W42: =Lookups!AO6 -> -0.006 | X42: =Lookups!AP6 -> -0.006 | Y42: =Lookups!AQ6 -> -0.006 | Z42: =Lookups!AR6 -> -0.006 | AA42: =Lookups!AS6 -> -0.006 | AB42: =Lookups!AT6 -> -0.006 | AC42: =Lookups!AU6 -> -0.006 | AD42: =Lookups!AV6 -> -0.006 | AE42: =Lookups!AW6 -> -0.006 | AF42: =Lookups!AX6 -> -0.006 | AG42: =Lookups!AY6 -> -0.006 | AH42: =Lookups!AZ6 -> -0.006 | AI42: =Lookups!BA6 -> -0.006 | AJ42: =Lookups!BB6 -> -0.006 | AK42: =Lookups!BC6 -> -0.006 | AL42: =Lookups!BD6 -> -0.006 | AM42: =Lookups!BE6 -> -0.006 | AN42: =Lookups!BF6 -> -0.006 | AO42: =Lookups!BG6 -> -0.006 | AP42: =Lookups!BH6 -> -0.006 | AQ42: =Lookups!BI6 -> -0.006 | AR42: =Lookups!BJ6 -> -0.006 | AS42: =Lookups!BK6 -> -0.006 | AT42: =Lookups!BL6 -> -0.006 | AU42: =Lookups!BM6 -> -0.006 | AV42: =Lookups!BN6 -> -0.006 | AW42: =Lookups!BO6 -> -0.006 | AX42: =Lookups!BP6 -> -0.006 | AY42: =Lookups!BQ6 -> -0.006 | AZ42: =Lookups!BR6 -> -0.006 | BA42: =Lookups!BS6 -> -0.006 | BB42: =Lookups!BT6 -> -0.006 | BC42: =Lookups!BU6 -> -0.006 | BD42: =Lookups!BV6 -> -0.006 | BE42: =Lookups!BW6 -> -0.006 | BF42: =Lookups!BX6 -> -0.006 | BG42: =Lookups!BY6 -> -0.006 | BH42: =Lookups!BZ6 -> -0.006 | BI42: =Lookups!CA6 -> -0.006 | BJ42: =Lookups!CB6 -> -0.006 | BK42: =Lookups!CC6 -> -0.006
A43: Friction 1 (dropouts) | B43: =D33 -> 0.4151220322 | C43: =IF($D$29<C$9,MAX(0,B43-1),IF($D$29=C$9,IF($B43<Lookups!U9,Lookups!U10,0),0)) -> 0 | D43: =IF($D$29<D$9,MAX(0,C43-1),IF($D$29=D$9,IF($B43<Lookups!V9,Lookups!V10,0),0)) -> 0 | E43: =IF($D$29<E$9,MAX(0,D43-1),IF($D$29=E$9,IF($B43<Lookups!W9,Lookups!W10,0),0)) -> 0 | F43: =IF($D$29<F$9,MAX(0,E43-1),IF($D$29=F$9,IF($B43<Lookups!X9,Lookups!X10,0),0)) -> 0 | G43: =IF($D$29<G$9,MAX(0,F43-1),IF($D$29=G$9,IF($B43<Lookups!Y9,Lookups!Y10,0),0)) -> 0 | H43: =IF($D$29<H$9,MAX(0,G43-1),IF($D$29=H$9,IF($B43<Lookups!Z9,Lookups!Z10,0),0)) -> 0 | I43: =IF($D$29<I$9,MAX(0,H43-1),IF($D$29=I$9,IF($B43<Lookups!AA9,Lookups!AA10,0),0)) -> 0 | J43: =IF($D$29<J$9,MAX(0,I43-1),IF($D$29=J$9,IF($B43<Lookups!AB9,Lookups!AB10,0),0)) -> 0 | K43: =IF($D$29<K$9,MAX(0,J43-1),IF($D$29=K$9,IF($B43<Lookups!AC9,Lookups!AC10,0),0)) -> 0 | L43: =IF($D$29<L$9,MAX(0,K43-1),IF($D$29=L$9,IF($B43<Lookups!AD9,Lookups!AD10,0),0)) -> 0 | M43: =IF($D$29<M$9,MAX(0,L43-1),IF($D$29=M$9,IF($B43<Lookups!AE9,Lookups!AE10,0),0)) -> 0 | N43: =IF($D$29<N$9,MAX(0,M43-1),IF($D$29=N$9,IF($B43<Lookups!AF9,Lookups!AF10,0),0)) -> 0 | O43: =IF($D$29<O$9,MAX(0,N43-1),IF($D$29=O$9,IF($B43<Lookups!AG9,Lookups!AG10,0),0)) -> 0 | P43: =IF($D$29<P$9,MAX(0,O43-1),IF($D$29=P$9,IF($B43<Lookups!AH9,Lookups!AH10,0),0)) -> 0 | Q43: =IF($D$29<Q$9,MAX(0,P43-1),IF($D$29=Q$9,IF($B43<Lookups!AI9,Lookups!AI10,0),0)) -> 0 | R43: =IF($D$29<R$9,MAX(0,Q43-1),IF($D$29=R$9,IF($B43<Lookups!AJ9,Lookups!AJ10,0),0)) -> 0 | S43: =IF($D$29<S$9,MAX(0,R43-1),IF($D$29=S$9,IF($B43<Lookups!AK9,Lookups!AK10,0),0)) -> 0 | T43: =IF($D$29<T$9,MAX(0,S43-1),IF($D$29=T$9,IF($B43<Lookups!AL9,Lookups!AL10,0),0)) -> 0 | U43: =IF($D$29<U$9,MAX(0,T43-1),IF($D$29=U$9,IF($B43<Lookups!AM9,Lookups!AM10,0),0)) -> 3 | V43: =IF($D$29<V$9,MAX(0,U43-1),IF($D$29=V$9,IF($B43<Lookups!AN9,Lookups!AN10,0),0)) -> 2 | W43: =IF($D$29<W$9,MAX(0,V43-1),IF($D$29=W$9,IF($B43<Lookups!AO9,Lookups!AO10,0),0)) -> 1 | X43: =IF($D$29<X$9,MAX(0,W43-1),IF($D$29=X$9,IF($B43<Lookups!AP9,Lookups!AP10,0),0)) -> 0 | Y43: =IF($D$29<Y$9,MAX(0,X43-1),IF($D$29=Y$9,IF($B43<Lookups!AQ9,Lookups!AQ10,0),0)) -> 0 | Z43: =IF($D$29<Z$9,MAX(0,Y43-1),IF($D$29=Z$9,IF($B43<Lookups!AR9,Lookups!AR10,0),0)) -> 0 | AA43: =IF($D$29<AA$9,MAX(0,Z43-1),IF($D$29=AA$9,IF($B43<Lookups!AS9,Lookups!AS10,0),0)) -> 0 | AB43: =IF($D$29<AB$9,MAX(0,AA43-1),IF($D$29=AB$9,IF($B43<Lookups!AT9,Lookups!AT10,0),0)) -> 0 | AC43: =IF($D$29<AC$9,MAX(0,AB43-1),IF($D$29=AC$9,IF($B43<Lookups!AU9,Lookups!AU10,0),0)) -> 0 | AD43: =IF($D$29<AD$9,MAX(0,AC43-1),IF($D$29=AD$9,IF($B43<Lookups!AV9,Lookups!AV10,0),0)) -> 0 | AE43: =IF($D$29<AE$9,MAX(0,AD43-1),IF($D$29=AE$9,IF($B43<Lookups!AW9,Lookups!AW10,0),0)) -> 0 | AF43: =IF($D$29<AF$9,MAX(0,AE43-1),IF($D$29=AF$9,IF($B43<Lookups!AX9,Lookups!AX10,0),0)) -> 0 | AG43: =IF($D$29<AG$9,MAX(0,AF43-1),IF($D$29=AG$9,IF($B43<Lookups!AY9,Lookups!AY10,0),0)) -> 0 | AH43: =IF($D$29<AH$9,MAX(0,AG43-1),IF($D$29=AH$9,IF($B43<Lookups!AZ9,Lookups!AZ10,0),0)) -> 0 | AI43: =IF($D$29<AI$9,MAX(0,AH43-1),IF($D$29=AI$9,IF($B43<Lookups!BA9,Lookups!BA10,0),0)) -> 0 | AJ43: =IF($D$29<AJ$9,MAX(0,AI43-1),IF($D$29=AJ$9,IF($B43<Lookups!BB9,Lookups!BB10,0),0)) -> 0 | AK43: =IF($D$29<AK$9,MAX(0,AJ43-1),IF($D$29=AK$9,IF($B43<Lookups!BC9,Lookups!BC10,0),0)) -> 0 | AL43: =IF($D$29<AL$9,MAX(0,AK43-1),IF($D$29=AL$9,IF($B43<Lookups!BD9,Lookups!BD10,0),0)) -> 0 | AM43: =IF($D$29<AM$9,MAX(0,AL43-1),IF($D$29=AM$9,IF($B43<Lookups!BE9,Lookups!BE10,0),0)) -> 0 | AN43: =IF($D$29<AN$9,MAX(0,AM43-1),IF($D$29=AN$9,IF($B43<Lookups!BF9,Lookups!BF10,0),0)) -> 0 | AO43: =IF($D$29<AO$9,MAX(0,AN43-1),IF($D$29=AO$9,IF($B43<Lookups!BG9,Lookups!BG10,0),0)) -> 0 | AP43: =IF($D$29<AP$9,MAX(0,AO43-1),IF($D$29=AP$9,IF($B43<Lookups!BH9,Lookups!BH10,0),0)) -> 0 | AQ43: =IF($D$29<AQ$9,MAX(0,AP43-1),IF($D$29=AQ$9,IF($B43<Lookups!BI9,Lookups!BI10,0),0)) -> 0 | AR43: =IF($D$29<AR$9,MAX(0,AQ43-1),IF($D$29=AR$9,IF($B43<Lookups!BJ9,Lookups!BJ10,0),0)) -> 0 | AS43: =IF($D$29<AS$9,MAX(0,AR43-1),IF($D$29=AS$9,IF($B43<Lookups!BK9,Lookups!BK10,0),0)) -> 0 | AT43: =IF($D$29<AT$9,MAX(0,AS43-1),IF($D$29=AT$9,IF($B43<Lookups!BL9,Lookups!BL10,0),0)) -> 0 | AU43: =IF($D$29<AU$9,MAX(0,AT43-1),IF($D$29=AU$9,IF($B43<Lookups!BM9,Lookups!BM10,0),0)) -> 0 | AV43: =IF($D$29<AV$9,MAX(0,AU43-1),IF($D$29=AV$9,IF($B43<Lookups!BN9,Lookups!BN10,0),0)) -> 0 | AW43: =IF($D$29<AW$9,MAX(0,AV43-1),IF($D$29=AW$9,IF($B43<Lookups!BO9,Lookups!BO10,0),0)) -> 0 | AX43: =IF($D$29<AX$9,MAX(0,AW43-1),IF($D$29=AX$9,IF($B43<Lookups!BP9,Lookups!BP10,0),0)) -> 0 | AY43: =IF($D$29<AY$9,MAX(0,AX43-1),IF($D$29=AY$9,IF($B43<Lookups!BQ9,Lookups!BQ10,0),0)) -> 0 | AZ43: =IF($D$29<AZ$9,MAX(0,AY43-1),IF($D$29=AZ$9,IF($B43<Lookups!BR9,Lookups!BR10,0),0)) -> 0 | BA43: =IF($D$29<BA$9,MAX(0,AZ43-1),IF($D$29=BA$9,IF($B43<Lookups!BS9,Lookups!BS10,0),0)) -> 0 | BB43: =IF($D$29<BB$9,MAX(0,BA43-1),IF($D$29=BB$9,IF($B43<Lookups!BT9,Lookups!BT10,0),0)) -> 0 | BC43: =IF($D$29<BC$9,MAX(0,BB43-1),IF($D$29=BC$9,IF($B43<Lookups!BU9,Lookups!BU10,0),0)) -> 0 | BD43: =IF($D$29<BD$9,MAX(0,BC43-1),IF($D$29=BD$9,IF($B43<Lookups!BV9,Lookups!BV10,0),0)) -> 0 | BE43: =IF($D$29<BE$9,MAX(0,BD43-1),IF($D$29=BE$9,IF($B43<Lookups!BW9,Lookups!BW10,0),0)) -> 0 | BF43: =IF($D$29<BF$9,MAX(0,BE43-1),IF($D$29=BF$9,IF($B43<Lookups!BX9,Lookups!BX10,0),0)) -> 0 | BG43: =IF($D$29<BG$9,MAX(0,BF43-1),IF($D$29=BG$9,IF($B43<Lookups!BY9,Lookups!BY10,0),0)) -> 0 | BH43: =IF($D$29<BH$9,MAX(0,BG43-1),IF($D$29=BH$9,IF($B43<Lookups!BZ9,Lookups!BZ10,0),0)) -> 0 | BI43: =IF($D$29<BI$9,MAX(0,BH43-1),IF($D$29=BI$9,IF($B43<Lookups!CA9,Lookups!CA10,0),0)) -> 0 | BJ43: =IF($D$29<BJ$9,MAX(0,BI43-1),IF($D$29=BJ$9,IF($B43<Lookups!CB9,Lookups!CB10,0),0)) -> 0 | BK43: =IF($D$29<BK$9,MAX(0,BJ43-1),IF($D$29=BK$9,IF($B43<Lookups!CC9,Lookups!CC10,0),0)) -> 0
A44: Friction 2 | B44: =E33 -> 0.3027254343 | C44: =IF($D$29<C$9,MAX(0,B44-1),IF($D$29=C$9,IF($B44<Lookups!U12,Lookups!U13,0),0)) -> 0 | D44: =IF($D$29<D$9,MAX(0,C44-1),IF($D$29=D$9,IF($B44<Lookups!V12,Lookups!V13,0),0)) -> 0 | E44: =IF($D$29<E$9,MAX(0,D44-1),IF($D$29=E$9,IF($B44<Lookups!W12,Lookups!W13,0),0)) -> 0 | F44: =IF($D$29<F$9,MAX(0,E44-1),IF($D$29=F$9,IF($B44<Lookups!X12,Lookups!X13,0),0)) -> 0 | G44: =IF($D$29<G$9,MAX(0,F44-1),IF($D$29=G$9,IF($B44<Lookups!Y12,Lookups!Y13,0),0)) -> 0 | H44: =IF($D$29<H$9,MAX(0,G44-1),IF($D$29=H$9,IF($B44<Lookups!Z12,Lookups!Z13,0),0)) -> 0 | I44: =IF($D$29<I$9,MAX(0,H44-1),IF($D$29=I$9,IF($B44<Lookups!AA12,Lookups!AA13,0),0)) -> 0 | J44: =IF($D$29<J$9,MAX(0,I44-1),IF($D$29=J$9,IF($B44<Lookups!AB12,Lookups!AB13,0),0)) -> 0 | K44: =IF($D$29<K$9,MAX(0,J44-1),IF($D$29=K$9,IF($B44<Lookups!AC12,Lookups!AC13,0),0)) -> 0 | L44: =IF($D$29<L$9,MAX(0,K44-1),IF($D$29=L$9,IF($B44<Lookups!AD12,Lookups!AD13,0),0)) -> 0 | M44: =IF($D$29<M$9,MAX(0,L44-1),IF($D$29=M$9,IF($B44<Lookups!AE12,Lookups!AE13,0),0)) -> 0 | N44: =IF($D$29<N$9,MAX(0,M44-1),IF($D$29=N$9,IF($B44<Lookups!AF12,Lookups!AF13,0),0)) -> 0 | O44: =IF($D$29<O$9,MAX(0,N44-1),IF($D$29=O$9,IF($B44<Lookups!AG12,Lookups!AG13,0),0)) -> 0 | P44: =IF($D$29<P$9,MAX(0,O44-1),IF($D$29=P$9,IF($B44<Lookups!AH12,Lookups!AH13,0),0)) -> 0 | Q44: =IF($D$29<Q$9,MAX(0,P44-1),IF($D$29=Q$9,IF($B44<Lookups!AI12,Lookups!AI13,0),0)) -> 0 | R44: =IF($D$29<R$9,MAX(0,Q44-1),IF($D$29=R$9,IF($B44<Lookups!AJ12,Lookups!AJ13,0),0)) -> 0 | S44: =IF($D$29<S$9,MAX(0,R44-1),IF($D$29=S$9,IF($B44<Lookups!AK12,Lookups!AK13,0),0)) -> 0 | T44: =IF($D$29<T$9,MAX(0,S44-1),IF($D$29=T$9,IF($B44<Lookups!AL12,Lookups!AL13,0),0)) -> 0 | U44: =IF($D$29<U$9,MAX(0,T44-1),IF($D$29=U$9,IF($B44<Lookups!AM12,Lookups!AM13,0),0)) -> 0 | V44: =IF($D$29<V$9,MAX(0,U44-1),IF($D$29=V$9,IF($B44<Lookups!AN12,Lookups!AN13,0),0)) -> 0 | W44: =IF($D$29<W$9,MAX(0,V44-1),IF($D$29=W$9,IF($B44<Lookups!AO12,Lookups!AO13,0),0)) -> 0 | X44: =IF($D$29<X$9,MAX(0,W44-1),IF($D$29=X$9,IF($B44<Lookups!AP12,Lookups!AP13,0),0)) -> 0 | Y44: =IF($D$29<Y$9,MAX(0,X44-1),IF($D$29=Y$9,IF($B44<Lookups!AQ12,Lookups!AQ13,0),0)) -> 0 | Z44: =IF($D$29<Z$9,MAX(0,Y44-1),IF($D$29=Z$9,IF($B44<Lookups!AR12,Lookups!AR13,0),0)) -> 0 | AA44: =IF($D$29<AA$9,MAX(0,Z44-1),IF($D$29=AA$9,IF($B44<Lookups!AS12,Lookups!AS13,0),0)) -> 0 | AB44: =IF($D$29<AB$9,MAX(0,AA44-1),IF($D$29=AB$9,IF($B44<Lookups!AT12,Lookups!AT13,0),0)) -> 0 | AC44: =IF($D$29<AC$9,MAX(0,AB44-1),IF($D$29=AC$9,IF($B44<Lookups!AU12,Lookups!AU13,0),0)) -> 0 | AD44: =IF($D$29<AD$9,MAX(0,AC44-1),IF($D$29=AD$9,IF($B44<Lookups!AV12,Lookups!AV13,0),0)) -> 0 | AE44: =IF($D$29<AE$9,MAX(0,AD44-1),IF($D$29=AE$9,IF($B44<Lookups!AW12,Lookups!AW13,0),0)) -> 0 | AF44: =IF($D$29<AF$9,MAX(0,AE44-1),IF($D$29=AF$9,IF($B44<Lookups!AX12,Lookups!AX13,0),0)) -> 0 | AG44: =IF($D$29<AG$9,MAX(0,AF44-1),IF($D$29=AG$9,IF($B44<Lookups!AY12,Lookups!AY13,0),0)) -> 0 | AH44: =IF($D$29<AH$9,MAX(0,AG44-1),IF($D$29=AH$9,IF($B44<Lookups!AZ12,Lookups!AZ13,0),0)) -> 0 | AI44: =IF($D$29<AI$9,MAX(0,AH44-1),IF($D$29=AI$9,IF($B44<Lookups!BA12,Lookups!BA13,0),0)) -> 0 | AJ44: =IF($D$29<AJ$9,MAX(0,AI44-1),IF($D$29=AJ$9,IF($B44<Lookups!BB12,Lookups!BB13,0),0)) -> 0 | AK44: =IF($D$29<AK$9,MAX(0,AJ44-1),IF($D$29=AK$9,IF($B44<Lookups!BC12,Lookups!BC13,0),0)) -> 0 | AL44: =IF($D$29<AL$9,MAX(0,AK44-1),IF($D$29=AL$9,IF($B44<Lookups!BD12,Lookups!BD13,0),0)) -> 0 | AM44: =IF($D$29<AM$9,MAX(0,AL44-1),IF($D$29=AM$9,IF($B44<Lookups!BE12,Lookups!BE13,0),0)) -> 0 | AN44: =IF($D$29<AN$9,MAX(0,AM44-1),IF($D$29=AN$9,IF($B44<Lookups!BF12,Lookups!BF13,0),0)) -> 0 | AO44: =IF($D$29<AO$9,MAX(0,AN44-1),IF($D$29=AO$9,IF($B44<Lookups!BG12,Lookups!BG13,0),0)) -> 0 | AP44: =IF($D$29<AP$9,MAX(0,AO44-1),IF($D$29=AP$9,IF($B44<Lookups!BH12,Lookups!BH13,0),0)) -> 0 | AQ44: =IF($D$29<AQ$9,MAX(0,AP44-1),IF($D$29=AQ$9,IF($B44<Lookups!BI12,Lookups!BI13,0),0)) -> 0 | AR44: =IF($D$29<AR$9,MAX(0,AQ44-1),IF($D$29=AR$9,IF($B44<Lookups!BJ12,Lookups!BJ13,0),0)) -> 0 | AS44: =IF($D$29<AS$9,MAX(0,AR44-1),IF($D$29=AS$9,IF($B44<Lookups!BK12,Lookups!BK13,0),0)) -> 0 | AT44: =IF($D$29<AT$9,MAX(0,AS44-1),IF($D$29=AT$9,IF($B44<Lookups!BL12,Lookups!BL13,0),0)) -> 0 | AU44: =IF($D$29<AU$9,MAX(0,AT44-1),IF($D$29=AU$9,IF($B44<Lookups!BM12,Lookups!BM13,0),0)) -> 0 | AV44: =IF($D$29<AV$9,MAX(0,AU44-1),IF($D$29=AV$9,IF($B44<Lookups!BN12,Lookups!BN13,0),0)) -> 0 | AW44: =IF($D$29<AW$9,MAX(0,AV44-1),IF($D$29=AW$9,IF($B44<Lookups!BO12,Lookups!BO13,0),0)) -> 0 | AX44: =IF($D$29<AX$9,MAX(0,AW44-1),IF($D$29=AX$9,IF($B44<Lookups!BP12,Lookups!BP13,0),0)) -> 0 | AY44: =IF($D$29<AY$9,MAX(0,AX44-1),IF($D$29=AY$9,IF($B44<Lookups!BQ12,Lookups!BQ13,0),0)) -> 0 | AZ44: =IF($D$29<AZ$9,MAX(0,AY44-1),IF($D$29=AZ$9,IF($B44<Lookups!BR12,Lookups!BR13,0),0)) -> 0 | BA44: =IF($D$29<BA$9,MAX(0,AZ44-1),IF($D$29=BA$9,IF($B44<Lookups!BS12,Lookups!BS13,0),0)) -> 0 | BB44: =IF($D$29<BB$9,MAX(0,BA44-1),IF($D$29=BB$9,IF($B44<Lookups!BT12,Lookups!BT13,0),0)) -> 0 | BC44: =IF($D$29<BC$9,MAX(0,BB44-1),IF($D$29=BC$9,IF($B44<Lookups!BU12,Lookups!BU13,0),0)) -> 0 | BD44: =IF($D$29<BD$9,MAX(0,BC44-1),IF($D$29=BD$9,IF($B44<Lookups!BV12,Lookups!BV13,0),0)) -> 0 | BE44: =IF($D$29<BE$9,MAX(0,BD44-1),IF($D$29=BE$9,IF($B44<Lookups!BW12,Lookups!BW13,0),0)) -> 0 | BF44: =IF($D$29<BF$9,MAX(0,BE44-1),IF($D$29=BF$9,IF($B44<Lookups!BX12,Lookups!BX13,0),0)) -> 0 | BG44: =IF($D$29<BG$9,MAX(0,BF44-1),IF($D$29=BG$9,IF($B44<Lookups!BY12,Lookups!BY13,0),0)) -> 0 | BH44: =IF($D$29<BH$9,MAX(0,BG44-1),IF($D$29=BH$9,IF($B44<Lookups!BZ12,Lookups!BZ13,0),0)) -> 0 | BI44: =IF($D$29<BI$9,MAX(0,BH44-1),IF($D$29=BI$9,IF($B44<Lookups!CA12,Lookups!CA13,0),0)) -> 0 | BJ44: =IF($D$29<BJ$9,MAX(0,BI44-1),IF($D$29=BJ$9,IF($B44<Lookups!CB12,Lookups!CB13,0),0)) -> 0 | BK44: =IF($D$29<BK$9,MAX(0,BJ44-1),IF($D$29=BK$9,IF($B44<Lookups!CC12,Lookups!CC13,0),0)) -> 0
A45: Friction 3 | B45: =F33 -> 0.09413456917 | C45: =IF($D$29<C$9,MAX(0,B45-1),IF($D$29=C$9,IF($B45<Lookups!U15,Lookups!U16,0),0)) -> 0 | D45: =IF($D$29<D$9,MAX(0,C45-1),IF($D$29=D$9,IF($B45<Lookups!V15,Lookups!V16,0),0)) -> 0 | E45: =IF($D$29<E$9,MAX(0,D45-1),IF($D$29=E$9,IF($B45<Lookups!W15,Lookups!W16,0),0)) -> 0 | F45: =IF($D$29<F$9,MAX(0,E45-1),IF($D$29=F$9,IF($B45<Lookups!X15,Lookups!X16,0),0)) -> 0 | G45: =IF($D$29<G$9,MAX(0,F45-1),IF($D$29=G$9,IF($B45<Lookups!Y15,Lookups!Y16,0),0)) -> 0 | H45: =IF($D$29<H$9,MAX(0,G45-1),IF($D$29=H$9,IF($B45<Lookups!Z15,Lookups!Z16,0),0)) -> 0 | I45: =IF($D$29<I$9,MAX(0,H45-1),IF($D$29=I$9,IF($B45<Lookups!AA15,Lookups!AA16,0),0)) -> 0 | J45: =IF($D$29<J$9,MAX(0,I45-1),IF($D$29=J$9,IF($B45<Lookups!AB15,Lookups!AB16,0),0)) -> 0 | K45: =IF($D$29<K$9,MAX(0,J45-1),IF($D$29=K$9,IF($B45<Lookups!AC15,Lookups!AC16,0),0)) -> 0 | L45: =IF($D$29<L$9,MAX(0,K45-1),IF($D$29=L$9,IF($B45<Lookups!AD15,Lookups!AD16,0),0)) -> 0 | M45: =IF($D$29<M$9,MAX(0,L45-1),IF($D$29=M$9,IF($B45<Lookups!AE15,Lookups!AE16,0),0)) -> 0 | N45: =IF($D$29<N$9,MAX(0,M45-1),IF($D$29=N$9,IF($B45<Lookups!AF15,Lookups!AF16,0),0)) -> 0 | O45: =IF($D$29<O$9,MAX(0,N45-1),IF($D$29=O$9,IF($B45<Lookups!AG15,Lookups!AG16,0),0)) -> 0 | P45: =IF($D$29<P$9,MAX(0,O45-1),IF($D$29=P$9,IF($B45<Lookups!AH15,Lookups!AH16,0),0)) -> 0 | Q45: =IF($D$29<Q$9,MAX(0,P45-1),IF($D$29=Q$9,IF($B45<Lookups!AI15,Lookups!AI16,0),0)) -> 0 | R45: =IF($D$29<R$9,MAX(0,Q45-1),IF($D$29=R$9,IF($B45<Lookups!AJ15,Lookups!AJ16,0),0)) -> 0 | S45: =IF($D$29<S$9,MAX(0,R45-1),IF($D$29=S$9,IF($B45<Lookups!AK15,Lookups!AK16,0),0)) -> 0 | T45: =IF($D$29<T$9,MAX(0,S45-1),IF($D$29=T$9,IF($B45<Lookups!AL15,Lookups!AL16,0),0)) -> 0 | U45: =IF($D$29<U$9,MAX(0,T45-1),IF($D$29=U$9,IF($B45<Lookups!AM15,Lookups!AM16,0),0)) -> 0 | V45: =IF($D$29<V$9,MAX(0,U45-1),IF($D$29=V$9,IF($B45<Lookups!AN15,Lookups!AN16,0),0)) -> 0 | W45: =IF($D$29<W$9,MAX(0,V45-1),IF($D$29=W$9,IF($B45<Lookups!AO15,Lookups!AO16,0),0)) -> 0 | X45: =IF($D$29<X$9,MAX(0,W45-1),IF($D$29=X$9,IF($B45<Lookups!AP15,Lookups!AP16,0),0)) -> 0 | Y45: =IF($D$29<Y$9,MAX(0,X45-1),IF($D$29=Y$9,IF($B45<Lookups!AQ15,Lookups!AQ16,0),0)) -> 0 | Z45: =IF($D$29<Z$9,MAX(0,Y45-1),IF($D$29=Z$9,IF($B45<Lookups!AR15,Lookups!AR16,0),0)) -> 0 | AA45: =IF($D$29<AA$9,MAX(0,Z45-1),IF($D$29=AA$9,IF($B45<Lookups!AS15,Lookups!AS16,0),0)) -> 0 | AB45: =IF($D$29<AB$9,MAX(0,AA45-1),IF($D$29=AB$9,IF($B45<Lookups!AT15,Lookups!AT16,0),0)) -> 0 | AC45: =IF($D$29<AC$9,MAX(0,AB45-1),IF($D$29=AC$9,IF($B45<Lookups!AU15,Lookups!AU16,0),0)) -> 0 | AD45: =IF($D$29<AD$9,MAX(0,AC45-1),IF($D$29=AD$9,IF($B45<Lookups!AV15,Lookups!AV16,0),0)) -> 0 | AE45: =IF($D$29<AE$9,MAX(0,AD45-1),IF($D$29=AE$9,IF($B45<Lookups!AW15,Lookups!AW16,0),0)) -> 0 | AF45: =IF($D$29<AF$9,MAX(0,AE45-1),IF($D$29=AF$9,IF($B45<Lookups!AX15,Lookups!AX16,0),0)) -> 0 | AG45: =IF($D$29<AG$9,MAX(0,AF45-1),IF($D$29=AG$9,IF($B45<Lookups!AY15,Lookups!AY16,0),0)) -> 0 | AH45: =IF($D$29<AH$9,MAX(0,AG45-1),IF($D$29=AH$9,IF($B45<Lookups!AZ15,Lookups!AZ16,0),0)) -> 0 | AI45: =IF($D$29<AI$9,MAX(0,AH45-1),IF($D$29=AI$9,IF($B45<Lookups!BA15,Lookups!BA16,0),0)) -> 0 | AJ45: =IF($D$29<AJ$9,MAX(0,AI45-1),IF($D$29=AJ$9,IF($B45<Lookups!BB15,Lookups!BB16,0),0)) -> 0 | AK45: =IF($D$29<AK$9,MAX(0,AJ45-1),IF($D$29=AK$9,IF($B45<Lookups!BC15,Lookups!BC16,0),0)) -> 0 | AL45: =IF($D$29<AL$9,MAX(0,AK45-1),IF($D$29=AL$9,IF($B45<Lookups!BD15,Lookups!BD16,0),0)) -> 0 | AM45: =IF($D$29<AM$9,MAX(0,AL45-1),IF($D$29=AM$9,IF($B45<Lookups!BE15,Lookups!BE16,0),0)) -> 0 | AN45: =IF($D$29<AN$9,MAX(0,AM45-1),IF($D$29=AN$9,IF($B45<Lookups!BF15,Lookups!BF16,0),0)) -> 0 | AO45: =IF($D$29<AO$9,MAX(0,AN45-1),IF($D$29=AO$9,IF($B45<Lookups!BG15,Lookups!BG16,0),0)) -> 0 | AP45: =IF($D$29<AP$9,MAX(0,AO45-1),IF($D$29=AP$9,IF($B45<Lookups!BH15,Lookups!BH16,0),0)) -> 0 | AQ45: =IF($D$29<AQ$9,MAX(0,AP45-1),IF($D$29=AQ$9,IF($B45<Lookups!BI15,Lookups!BI16,0),0)) -> 0 | AR45: =IF($D$29<AR$9,MAX(0,AQ45-1),IF($D$29=AR$9,IF($B45<Lookups!BJ15,Lookups!BJ16,0),0)) -> 0 | AS45: =IF($D$29<AS$9,MAX(0,AR45-1),IF($D$29=AS$9,IF($B45<Lookups!BK15,Lookups!BK16,0),0)) -> 0 | AT45: =IF($D$29<AT$9,MAX(0,AS45-1),IF($D$29=AT$9,IF($B45<Lookups!BL15,Lookups!BL16,0),0)) -> 0 | AU45: =IF($D$29<AU$9,MAX(0,AT45-1),IF($D$29=AU$9,IF($B45<Lookups!BM15,Lookups!BM16,0),0)) -> 0 | AV45: =IF($D$29<AV$9,MAX(0,AU45-1),IF($D$29=AV$9,IF($B45<Lookups!BN15,Lookups!BN16,0),0)) -> 0 | AW45: =IF($D$29<AW$9,MAX(0,AV45-1),IF($D$29=AW$9,IF($B45<Lookups!BO15,Lookups!BO16,0),0)) -> 0 | AX45: =IF($D$29<AX$9,MAX(0,AW45-1),IF($D$29=AX$9,IF($B45<Lookups!BP15,Lookups!BP16,0),0)) -> 0 | AY45: =IF($D$29<AY$9,MAX(0,AX45-1),IF($D$29=AY$9,IF($B45<Lookups!BQ15,Lookups!BQ16,0),0)) -> 0 | AZ45: =IF($D$29<AZ$9,MAX(0,AY45-1),IF($D$29=AZ$9,IF($B45<Lookups!BR15,Lookups!BR16,0),0)) -> 0 | BA45: =IF($D$29<BA$9,MAX(0,AZ45-1),IF($D$29=BA$9,IF($B45<Lookups!BS15,Lookups!BS16,0),0)) -> 0 | BB45: =IF($D$29<BB$9,MAX(0,BA45-1),IF($D$29=BB$9,IF($B45<Lookups!BT15,Lookups!BT16,0),0)) -> 0 | BC45: =IF($D$29<BC$9,MAX(0,BB45-1),IF($D$29=BC$9,IF($B45<Lookups!BU15,Lookups!BU16,0),0)) -> 0 | BD45: =IF($D$29<BD$9,MAX(0,BC45-1),IF($D$29=BD$9,IF($B45<Lookups!BV15,Lookups!BV16,0),0)) -> 0 | BE45: =IF($D$29<BE$9,MAX(0,BD45-1),IF($D$29=BE$9,IF($B45<Lookups!BW15,Lookups!BW16,0),0)) -> 0 | BF45: =IF($D$29<BF$9,MAX(0,BE45-1),IF($D$29=BF$9,IF($B45<Lookups!BX15,Lookups!BX16,0),0)) -> 0 | BG45: =IF($D$29<BG$9,MAX(0,BF45-1),IF($D$29=BG$9,IF($B45<Lookups!BY15,Lookups!BY16,0),0)) -> 0 | BH45: =IF($D$29<BH$9,MAX(0,BG45-1),IF($D$29=BH$9,IF($B45<Lookups!BZ15,Lookups!BZ16,0),0)) -> 0 | BI45: =IF($D$29<BI$9,MAX(0,BH45-1),IF($D$29=BI$9,IF($B45<Lookups!CA15,Lookups!CA16,0),0)) -> 0 | BJ45: =IF($D$29<BJ$9,MAX(0,BI45-1),IF($D$29=BJ$9,IF($B45<Lookups!CB15,Lookups!CB16,0),0)) -> 0 | BK45: =IF($D$29<BK$9,MAX(0,BJ45-1),IF($D$29=BK$9,IF($B45<Lookups!CC15,Lookups!CC16,0),0)) -> 0
A46: Friction 4 | B46: =G33 -> 0.9436234236 | C46: =IF($D$29<C$9,MAX(0,B46-1),IF($D$29=C$9,IF($B46<Lookups!U18,Lookups!U19,0),0)) -> 0 | D46: =IF($D$29<D$9,MAX(0,C46-1),IF($D$29=D$9,IF($B46<Lookups!V18,Lookups!V19,0),0)) -> 0 | E46: =IF($D$29<E$9,MAX(0,D46-1),IF($D$29=E$9,IF($B46<Lookups!W18,Lookups!W19,0),0)) -> 0 | F46: =IF($D$29<F$9,MAX(0,E46-1),IF($D$29=F$9,IF($B46<Lookups!X18,Lookups!X19,0),0)) -> 0 | G46: =IF($D$29<G$9,MAX(0,F46-1),IF($D$29=G$9,IF($B46<Lookups!Y18,Lookups!Y19,0),0)) -> 0 | H46: =IF($D$29<H$9,MAX(0,G46-1),IF($D$29=H$9,IF($B46<Lookups!Z18,Lookups!Z19,0),0)) -> 0 | I46: =IF($D$29<I$9,MAX(0,H46-1),IF($D$29=I$9,IF($B46<Lookups!AA18,Lookups!AA19,0),0)) -> 0 | J46: =IF($D$29<J$9,MAX(0,I46-1),IF($D$29=J$9,IF($B46<Lookups!AB18,Lookups!AB19,0),0)) -> 0 | K46: =IF($D$29<K$9,MAX(0,J46-1),IF($D$29=K$9,IF($B46<Lookups!AC18,Lookups!AC19,0),0)) -> 0 | L46: =IF($D$29<L$9,MAX(0,K46-1),IF($D$29=L$9,IF($B46<Lookups!AD18,Lookups!AD19,0),0)) -> 0 | M46: =IF($D$29<M$9,MAX(0,L46-1),IF($D$29=M$9,IF($B46<Lookups!AE18,Lookups!AE19,0),0)) -> 0 | N46: =IF($D$29<N$9,MAX(0,M46-1),IF($D$29=N$9,IF($B46<Lookups!AF18,Lookups!AF19,0),0)) -> 0 | O46: =IF($D$29<O$9,MAX(0,N46-1),IF($D$29=O$9,IF($B46<Lookups!AG18,Lookups!AG19,0),0)) -> 0 | P46: =IF($D$29<P$9,MAX(0,O46-1),IF($D$29=P$9,IF($B46<Lookups!AH18,Lookups!AH19,0),0)) -> 0 | Q46: =IF($D$29<Q$9,MAX(0,P46-1),IF($D$29=Q$9,IF($B46<Lookups!AI18,Lookups!AI19,0),0)) -> 0 | R46: =IF($D$29<R$9,MAX(0,Q46-1),IF($D$29=R$9,IF($B46<Lookups!AJ18,Lookups!AJ19,0),0)) -> 0 | S46: =IF($D$29<S$9,MAX(0,R46-1),IF($D$29=S$9,IF($B46<Lookups!AK18,Lookups!AK19,0),0)) -> 0 | T46: =IF($D$29<T$9,MAX(0,S46-1),IF($D$29=T$9,IF($B46<Lookups!AL18,Lookups!AL19,0),0)) -> 0 | U46: =IF($D$29<U$9,MAX(0,T46-1),IF($D$29=U$9,IF($B46<Lookups!AM18,Lookups!AM19,0),0)) -> 0 | V46: =IF($D$29<V$9,MAX(0,U46-1),IF($D$29=V$9,IF($B46<Lookups!AN18,Lookups!AN19,0),0)) -> 0 | W46: =IF($D$29<W$9,MAX(0,V46-1),IF($D$29=W$9,IF($B46<Lookups!AO18,Lookups!AO19,0),0)) -> 0 | X46: =IF($D$29<X$9,MAX(0,W46-1),IF($D$29=X$9,IF($B46<Lookups!AP18,Lookups!AP19,0),0)) -> 0 | Y46: =IF($D$29<Y$9,MAX(0,X46-1),IF($D$29=Y$9,IF($B46<Lookups!AQ18,Lookups!AQ19,0),0)) -> 0 | Z46: =IF($D$29<Z$9,MAX(0,Y46-1),IF($D$29=Z$9,IF($B46<Lookups!AR18,Lookups!AR19,0),0)) -> 0 | AA46: =IF($D$29<AA$9,MAX(0,Z46-1),IF($D$29=AA$9,IF($B46<Lookups!AS18,Lookups!AS19,0),0)) -> 0 | AB46: =IF($D$29<AB$9,MAX(0,AA46-1),IF($D$29=AB$9,IF($B46<Lookups!AT18,Lookups!AT19,0),0)) -> 0 | AC46: =IF($D$29<AC$9,MAX(0,AB46-1),IF($D$29=AC$9,IF($B46<Lookups!AU18,Lookups!AU19,0),0)) -> 0 | AD46: =IF($D$29<AD$9,MAX(0,AC46-1),IF($D$29=AD$9,IF($B46<Lookups!AV18,Lookups!AV19,0),0)) -> 0 | AE46: =IF($D$29<AE$9,MAX(0,AD46-1),IF($D$29=AE$9,IF($B46<Lookups!AW18,Lookups!AW19,0),0)) -> 0 | AF46: =IF($D$29<AF$9,MAX(0,AE46-1),IF($D$29=AF$9,IF($B46<Lookups!AX18,Lookups!AX19,0),0)) -> 0 | AG46: =IF($D$29<AG$9,MAX(0,AF46-1),IF($D$29=AG$9,IF($B46<Lookups!AY18,Lookups!AY19,0),0)) -> 0 | AH46: =IF($D$29<AH$9,MAX(0,AG46-1),IF($D$29=AH$9,IF($B46<Lookups!AZ18,Lookups!AZ19,0),0)) -> 0 | AI46: =IF($D$29<AI$9,MAX(0,AH46-1),IF($D$29=AI$9,IF($B46<Lookups!BA18,Lookups!BA19,0),0)) -> 0 | AJ46: =IF($D$29<AJ$9,MAX(0,AI46-1),IF($D$29=AJ$9,IF($B46<Lookups!BB18,Lookups!BB19,0),0)) -> 0 | AK46: =IF($D$29<AK$9,MAX(0,AJ46-1),IF($D$29=AK$9,IF($B46<Lookups!BC18,Lookups!BC19,0),0)) -> 0 | AL46: =IF($D$29<AL$9,MAX(0,AK46-1),IF($D$29=AL$9,IF($B46<Lookups!BD18,Lookups!BD19,0),0)) -> 0 | AM46: =IF($D$29<AM$9,MAX(0,AL46-1),IF($D$29=AM$9,IF($B46<Lookups!BE18,Lookups!BE19,0),0)) -> 0 | AN46: =IF($D$29<AN$9,MAX(0,AM46-1),IF($D$29=AN$9,IF($B46<Lookups!BF18,Lookups!BF19,0),0)) -> 0 | AO46: =IF($D$29<AO$9,MAX(0,AN46-1),IF($D$29=AO$9,IF($B46<Lookups!BG18,Lookups!BG19,0),0)) -> 0 | AP46: =IF($D$29<AP$9,MAX(0,AO46-1),IF($D$29=AP$9,IF($B46<Lookups!BH18,Lookups!BH19,0),0)) -> 0 | AQ46: =IF($D$29<AQ$9,MAX(0,AP46-1),IF($D$29=AQ$9,IF($B46<Lookups!BI18,Lookups!BI19,0),0)) -> 0 | AR46: =IF($D$29<AR$9,MAX(0,AQ46-1),IF($D$29=AR$9,IF($B46<Lookups!BJ18,Lookups!BJ19,0),0)) -> 0 | AS46: =IF($D$29<AS$9,MAX(0,AR46-1),IF($D$29=AS$9,IF($B46<Lookups!BK18,Lookups!BK19,0),0)) -> 0 | AT46: =IF($D$29<AT$9,MAX(0,AS46-1),IF($D$29=AT$9,IF($B46<Lookups!BL18,Lookups!BL19,0),0)) -> 0 | AU46: =IF($D$29<AU$9,MAX(0,AT46-1),IF($D$29=AU$9,IF($B46<Lookups!BM18,Lookups!BM19,0),0)) -> 0 | AV46: =IF($D$29<AV$9,MAX(0,AU46-1),IF($D$29=AV$9,IF($B46<Lookups!BN18,Lookups!BN19,0),0)) -> 0 | AW46: =IF($D$29<AW$9,MAX(0,AV46-1),IF($D$29=AW$9,IF($B46<Lookups!BO18,Lookups!BO19,0),0)) -> 0 | AX46: =IF($D$29<AX$9,MAX(0,AW46-1),IF($D$29=AX$9,IF($B46<Lookups!BP18,Lookups!BP19,0),0)) -> 0 | AY46: =IF($D$29<AY$9,MAX(0,AX46-1),IF($D$29=AY$9,IF($B46<Lookups!BQ18,Lookups!BQ19,0),0)) -> 0 | AZ46: =IF($D$29<AZ$9,MAX(0,AY46-1),IF($D$29=AZ$9,IF($B46<Lookups!BR18,Lookups!BR19,0),0)) -> 0 | BA46: =IF($D$29<BA$9,MAX(0,AZ46-1),IF($D$29=BA$9,IF($B46<Lookups!BS18,Lookups!BS19,0),0)) -> 0 | BB46: =IF($D$29<BB$9,MAX(0,BA46-1),IF($D$29=BB$9,IF($B46<Lookups!BT18,Lookups!BT19,0),0)) -> 0 | BC46: =IF($D$29<BC$9,MAX(0,BB46-1),IF($D$29=BC$9,IF($B46<Lookups!BU18,Lookups!BU19,0),0)) -> 0 | BD46: =IF($D$29<BD$9,MAX(0,BC46-1),IF($D$29=BD$9,IF($B46<Lookups!BV18,Lookups!BV19,0),0)) -> 0 | BE46: =IF($D$29<BE$9,MAX(0,BD46-1),IF($D$29=BE$9,IF($B46<Lookups!BW18,Lookups!BW19,0),0)) -> 0 | BF46: =IF($D$29<BF$9,MAX(0,BE46-1),IF($D$29=BF$9,IF($B46<Lookups!BX18,Lookups!BX19,0),0)) -> 0 | BG46: =IF($D$29<BG$9,MAX(0,BF46-1),IF($D$29=BG$9,IF($B46<Lookups!BY18,Lookups!BY19,0),0)) -> 0 | BH46: =IF($D$29<BH$9,MAX(0,BG46-1),IF($D$29=BH$9,IF($B46<Lookups!BZ18,Lookups!BZ19,0),0)) -> 0 | BI46: =IF($D$29<BI$9,MAX(0,BH46-1),IF($D$29=BI$9,IF($B46<Lookups!CA18,Lookups!CA19,0),0)) -> 0 | BJ46: =IF($D$29<BJ$9,MAX(0,BI46-1),IF($D$29=BJ$9,IF($B46<Lookups!CB18,Lookups!CB19,0),0)) -> 0 | BK46: =IF($D$29<BK$9,MAX(0,BJ46-1),IF($D$29=BK$9,IF($B46<Lookups!CC18,Lookups!CC19,0),0)) -> 0
A47: Friction 5 | B47: =H33 -> 0.6302828789 | C47: =IF($D$29<C$9,MAX(0,B47-1),IF($D$29=C$9,IF($B47<Lookups!U21,Lookups!U22,0),0)) -> 0 | D47: =IF($D$29<D$9,MAX(0,C47-1),IF($D$29=D$9,IF($B47<Lookups!V21,Lookups!V22,0),0)) -> 0 | E47: =IF($D$29<E$9,MAX(0,D47-1),IF($D$29=E$9,IF($B47<Lookups!W21,Lookups!W22,0),0)) -> 0 | F47: =IF($D$29<F$9,MAX(0,E47-1),IF($D$29=F$9,IF($B47<Lookups!X21,Lookups!X22,0),0)) -> 0 | G47: =IF($D$29<G$9,MAX(0,F47-1),IF($D$29=G$9,IF($B47<Lookups!Y21,Lookups!Y22,0),0)) -> 0 | H47: =IF($D$29<H$9,MAX(0,G47-1),IF($D$29=H$9,IF($B47<Lookups!Z21,Lookups!Z22,0),0)) -> 0 | I47: =IF($D$29<I$9,MAX(0,H47-1),IF($D$29=I$9,IF($B47<Lookups!AA21,Lookups!AA22,0),0)) -> 0 | J47: =IF($D$29<J$9,MAX(0,I47-1),IF($D$29=J$9,IF($B47<Lookups!AB21,Lookups!AB22,0),0)) -> 0 | K47: =IF($D$29<K$9,MAX(0,J47-1),IF($D$29=K$9,IF($B47<Lookups!AC21,Lookups!AC22,0),0)) -> 0 | L47: =IF($D$29<L$9,MAX(0,K47-1),IF($D$29=L$9,IF($B47<Lookups!AD21,Lookups!AD22,0),0)) -> 0 | M47: =IF($D$29<M$9,MAX(0,L47-1),IF($D$29=M$9,IF($B47<Lookups!AE21,Lookups!AE22,0),0)) -> 0 | N47: =IF($D$29<N$9,MAX(0,M47-1),IF($D$29=N$9,IF($B47<Lookups!AF21,Lookups!AF22,0),0)) -> 0 | O47: =IF($D$29<O$9,MAX(0,N47-1),IF($D$29=O$9,IF($B47<Lookups!AG21,Lookups!AG22,0),0)) -> 0 | P47: =IF($D$29<P$9,MAX(0,O47-1),IF($D$29=P$9,IF($B47<Lookups!AH21,Lookups!AH22,0),0)) -> 0 | Q47: =IF($D$29<Q$9,MAX(0,P47-1),IF($D$29=Q$9,IF($B47<Lookups!AI21,Lookups!AI22,0),0)) -> 0 | R47: =IF($D$29<R$9,MAX(0,Q47-1),IF($D$29=R$9,IF($B47<Lookups!AJ21,Lookups!AJ22,0),0)) -> 0 | S47: =IF($D$29<S$9,MAX(0,R47-1),IF($D$29=S$9,IF($B47<Lookups!AK21,Lookups!AK22,0),0)) -> 0 | T47: =IF($D$29<T$9,MAX(0,S47-1),IF($D$29=T$9,IF($B47<Lookups!AL21,Lookups!AL22,0),0)) -> 0 | U47: =IF($D$29<U$9,MAX(0,T47-1),IF($D$29=U$9,IF($B47<Lookups!AM21,Lookups!AM22,0),0)) -> 0 | V47: =IF($D$29<V$9,MAX(0,U47-1),IF($D$29=V$9,IF($B47<Lookups!AN21,Lookups!AN22,0),0)) -> 0 | W47: =IF($D$29<W$9,MAX(0,V47-1),IF($D$29=W$9,IF($B47<Lookups!AO21,Lookups!AO22,0),0)) -> 0 | X47: =IF($D$29<X$9,MAX(0,W47-1),IF($D$29=X$9,IF($B47<Lookups!AP21,Lookups!AP22,0),0)) -> 0 | Y47: =IF($D$29<Y$9,MAX(0,X47-1),IF($D$29=Y$9,IF($B47<Lookups!AQ21,Lookups!AQ22,0),0)) -> 0 | Z47: =IF($D$29<Z$9,MAX(0,Y47-1),IF($D$29=Z$9,IF($B47<Lookups!AR21,Lookups!AR22,0),0)) -> 0 | AA47: =IF($D$29<AA$9,MAX(0,Z47-1),IF($D$29=AA$9,IF($B47<Lookups!AS21,Lookups!AS22,0),0)) -> 0 | AB47: =IF($D$29<AB$9,MAX(0,AA47-1),IF($D$29=AB$9,IF($B47<Lookups!AT21,Lookups!AT22,0),0)) -> 0 | AC47: =IF($D$29<AC$9,MAX(0,AB47-1),IF($D$29=AC$9,IF($B47<Lookups!AU21,Lookups!AU22,0),0)) -> 0 | AD47: =IF($D$29<AD$9,MAX(0,AC47-1),IF($D$29=AD$9,IF($B47<Lookups!AV21,Lookups!AV22,0),0)) -> 0 | AE47: =IF($D$29<AE$9,MAX(0,AD47-1),IF($D$29=AE$9,IF($B47<Lookups!AW21,Lookups!AW22,0),0)) -> 0 | AF47: =IF($D$29<AF$9,MAX(0,AE47-1),IF($D$29=AF$9,IF($B47<Lookups!AX21,Lookups!AX22,0),0)) -> 0 | AG47: =IF($D$29<AG$9,MAX(0,AF47-1),IF($D$29=AG$9,IF($B47<Lookups!AY21,Lookups!AY22,0),0)) -> 0 | AH47: =IF($D$29<AH$9,MAX(0,AG47-1),IF($D$29=AH$9,IF($B47<Lookups!AZ21,Lookups!AZ22,0),0)) -> 0 | AI47: =IF($D$29<AI$9,MAX(0,AH47-1),IF($D$29=AI$9,IF($B47<Lookups!BA21,Lookups!BA22,0),0)) -> 0 | AJ47: =IF($D$29<AJ$9,MAX(0,AI47-1),IF($D$29=AJ$9,IF($B47<Lookups!BB21,Lookups!BB22,0),0)) -> 0 | AK47: =IF($D$29<AK$9,MAX(0,AJ47-1),IF($D$29=AK$9,IF($B47<Lookups!BC21,Lookups!BC22,0),0)) -> 0 | AL47: =IF($D$29<AL$9,MAX(0,AK47-1),IF($D$29=AL$9,IF($B47<Lookups!BD21,Lookups!BD22,0),0)) -> 0 | AM47: =IF($D$29<AM$9,MAX(0,AL47-1),IF($D$29=AM$9,IF($B47<Lookups!BE21,Lookups!BE22,0),0)) -> 0 | AN47: =IF($D$29<AN$9,MAX(0,AM47-1),IF($D$29=AN$9,IF($B47<Lookups!BF21,Lookups!BF22,0),0)) -> 0 | AO47: =IF($D$29<AO$9,MAX(0,AN47-1),IF($D$29=AO$9,IF($B47<Lookups!BG21,Lookups!BG22,0),0)) -> 0 | AP47: =IF($D$29<AP$9,MAX(0,AO47-1),IF($D$29=AP$9,IF($B47<Lookups!BH21,Lookups!BH22,0),0)) -> 0 | AQ47: =IF($D$29<AQ$9,MAX(0,AP47-1),IF($D$29=AQ$9,IF($B47<Lookups!BI21,Lookups!BI22,0),0)) -> 0 | AR47: =IF($D$29<AR$9,MAX(0,AQ47-1),IF($D$29=AR$9,IF($B47<Lookups!BJ21,Lookups!BJ22,0),0)) -> 0 | AS47: =IF($D$29<AS$9,MAX(0,AR47-1),IF($D$29=AS$9,IF($B47<Lookups!BK21,Lookups!BK22,0),0)) -> 0 | AT47: =IF($D$29<AT$9,MAX(0,AS47-1),IF($D$29=AT$9,IF($B47<Lookups!BL21,Lookups!BL22,0),0)) -> 0 | AU47: =IF($D$29<AU$9,MAX(0,AT47-1),IF($D$29=AU$9,IF($B47<Lookups!BM21,Lookups!BM22,0),0)) -> 0 | AV47: =IF($D$29<AV$9,MAX(0,AU47-1),IF($D$29=AV$9,IF($B47<Lookups!BN21,Lookups!BN22,0),0)) -> 0 | AW47: =IF($D$29<AW$9,MAX(0,AV47-1),IF($D$29=AW$9,IF($B47<Lookups!BO21,Lookups!BO22,0),0)) -> 0 | AX47: =IF($D$29<AX$9,MAX(0,AW47-1),IF($D$29=AX$9,IF($B47<Lookups!BP21,Lookups!BP22,0),0)) -> 0 | AY47: =IF($D$29<AY$9,MAX(0,AX47-1),IF($D$29=AY$9,IF($B47<Lookups!BQ21,Lookups!BQ22,0),0)) -> 0 | AZ47: =IF($D$29<AZ$9,MAX(0,AY47-1),IF($D$29=AZ$9,IF($B47<Lookups!BR21,Lookups!BR22,0),0)) -> 0 | BA47: =IF($D$29<BA$9,MAX(0,AZ47-1),IF($D$29=BA$9,IF($B47<Lookups!BS21,Lookups!BS22,0),0)) -> 0 | BB47: =IF($D$29<BB$9,MAX(0,BA47-1),IF($D$29=BB$9,IF($B47<Lookups!BT21,Lookups!BT22,0),0)) -> 0 | BC47: =IF($D$29<BC$9,MAX(0,BB47-1),IF($D$29=BC$9,IF($B47<Lookups!BU21,Lookups!BU22,0),0)) -> 0 | BD47: =IF($D$29<BD$9,MAX(0,BC47-1),IF($D$29=BD$9,IF($B47<Lookups!BV21,Lookups!BV22,0),0)) -> 0 | BE47: =IF($D$29<BE$9,MAX(0,BD47-1),IF($D$29=BE$9,IF($B47<Lookups!BW21,Lookups!BW22,0),0)) -> 0 | BF47: =IF($D$29<BF$9,MAX(0,BE47-1),IF($D$29=BF$9,IF($B47<Lookups!BX21,Lookups!BX22,0),0)) -> 0 | BG47: =IF($D$29<BG$9,MAX(0,BF47-1),IF($D$29=BG$9,IF($B47<Lookups!BY21,Lookups!BY22,0),0)) -> 0 | BH47: =IF($D$29<BH$9,MAX(0,BG47-1),IF($D$29=BH$9,IF($B47<Lookups!BZ21,Lookups!BZ22,0),0)) -> 0 | BI47: =IF($D$29<BI$9,MAX(0,BH47-1),IF($D$29=BI$9,IF($B47<Lookups!CA21,Lookups!CA22,0),0)) -> 0 | BJ47: =IF($D$29<BJ$9,MAX(0,BI47-1),IF($D$29=BJ$9,IF($B47<Lookups!CB21,Lookups!CB22,0),0)) -> 0 | BK47: =IF($D$29<BK$9,MAX(0,BJ47-1),IF($D$29=BK$9,IF($B47<Lookups!CC21,Lookups!CC22,0),0)) -> 0
A48: Friction 6 | B48: =I33 -> 0.6815558672 | C48: =IF($D$29<C$9,MAX(0,B48-1),IF($D$29=C$9,IF($B48<Lookups!U24,Lookups!U25,0),0)) -> 0 | D48: =IF($D$29<D$9,MAX(0,C48-1),IF($D$29=D$9,IF($B48<Lookups!V24,Lookups!V25,0),0)) -> 0 | E48: =IF($D$29<E$9,MAX(0,D48-1),IF($D$29=E$9,IF($B48<Lookups!W24,Lookups!W25,0),0)) -> 0 | F48: =IF($D$29<F$9,MAX(0,E48-1),IF($D$29=F$9,IF($B48<Lookups!X24,Lookups!X25,0),0)) -> 0 | G48: =IF($D$29<G$9,MAX(0,F48-1),IF($D$29=G$9,IF($B48<Lookups!Y24,Lookups!Y25,0),0)) -> 0 | H48: =IF($D$29<H$9,MAX(0,G48-1),IF($D$29=H$9,IF($B48<Lookups!Z24,Lookups!Z25,0),0)) -> 0 | I48: =IF($D$29<I$9,MAX(0,H48-1),IF($D$29=I$9,IF($B48<Lookups!AA24,Lookups!AA25,0),0)) -> 0 | J48: =IF($D$29<J$9,MAX(0,I48-1),IF($D$29=J$9,IF($B48<Lookups!AB24,Lookups!AB25,0),0)) -> 0 | K48: =IF($D$29<K$9,MAX(0,J48-1),IF($D$29=K$9,IF($B48<Lookups!AC24,Lookups!AC25,0),0)) -> 0 | L48: =IF($D$29<L$9,MAX(0,K48-1),IF($D$29=L$9,IF($B48<Lookups!AD24,Lookups!AD25,0),0)) -> 0 | M48: =IF($D$29<M$9,MAX(0,L48-1),IF($D$29=M$9,IF($B48<Lookups!AE24,Lookups!AE25,0),0)) -> 0 | N48: =IF($D$29<N$9,MAX(0,M48-1),IF($D$29=N$9,IF($B48<Lookups!AF24,Lookups!AF25,0),0)) -> 0 | O48: =IF($D$29<O$9,MAX(0,N48-1),IF($D$29=O$9,IF($B48<Lookups!AG24,Lookups!AG25,0),0)) -> 0 | P48: =IF($D$29<P$9,MAX(0,O48-1),IF($D$29=P$9,IF($B48<Lookups!AH24,Lookups!AH25,0),0)) -> 0 | Q48: =IF($D$29<Q$9,MAX(0,P48-1),IF($D$29=Q$9,IF($B48<Lookups!AI24,Lookups!AI25,0),0)) -> 0 | R48: =IF($D$29<R$9,MAX(0,Q48-1),IF($D$29=R$9,IF($B48<Lookups!AJ24,Lookups!AJ25,0),0)) -> 0 | S48: =IF($D$29<S$9,MAX(0,R48-1),IF($D$29=S$9,IF($B48<Lookups!AK24,Lookups!AK25,0),0)) -> 0 | T48: =IF($D$29<T$9,MAX(0,S48-1),IF($D$29=T$9,IF($B48<Lookups!AL24,Lookups!AL25,0),0)) -> 0 | U48: =IF($D$29<U$9,MAX(0,T48-1),IF($D$29=U$9,IF($B48<Lookups!AM24,Lookups!AM25,0),0)) -> 0 | V48: =IF($D$29<V$9,MAX(0,U48-1),IF($D$29=V$9,IF($B48<Lookups!AN24,Lookups!AN25,0),0)) -> 0 | W48: =IF($D$29<W$9,MAX(0,V48-1),IF($D$29=W$9,IF($B48<Lookups!AO24,Lookups!AO25,0),0)) -> 0 | X48: =IF($D$29<X$9,MAX(0,W48-1),IF($D$29=X$9,IF($B48<Lookups!AP24,Lookups!AP25,0),0)) -> 0 | Y48: =IF($D$29<Y$9,MAX(0,X48-1),IF($D$29=Y$9,IF($B48<Lookups!AQ24,Lookups!AQ25,0),0)) -> 0 | Z48: =IF($D$29<Z$9,MAX(0,Y48-1),IF($D$29=Z$9,IF($B48<Lookups!AR24,Lookups!AR25,0),0)) -> 0 | AA48: =IF($D$29<AA$9,MAX(0,Z48-1),IF($D$29=AA$9,IF($B48<Lookups!AS24,Lookups!AS25,0),0)) -> 0 | AB48: =IF($D$29<AB$9,MAX(0,AA48-1),IF($D$29=AB$9,IF($B48<Lookups!AT24,Lookups!AT25,0),0)) -> 0 | AC48: =IF($D$29<AC$9,MAX(0,AB48-1),IF($D$29=AC$9,IF($B48<Lookups!AU24,Lookups!AU25,0),0)) -> 0 | AD48: =IF($D$29<AD$9,MAX(0,AC48-1),IF($D$29=AD$9,IF($B48<Lookups!AV24,Lookups!AV25,0),0)) -> 0 | AE48: =IF($D$29<AE$9,MAX(0,AD48-1),IF($D$29=AE$9,IF($B48<Lookups!AW24,Lookups!AW25,0),0)) -> 0 | AF48: =IF($D$29<AF$9,MAX(0,AE48-1),IF($D$29=AF$9,IF($B48<Lookups!AX24,Lookups!AX25,0),0)) -> 0 | AG48: =IF($D$29<AG$9,MAX(0,AF48-1),IF($D$29=AG$9,IF($B48<Lookups!AY24,Lookups!AY25,0),0)) -> 0 | AH48: =IF($D$29<AH$9,MAX(0,AG48-1),IF($D$29=AH$9,IF($B48<Lookups!AZ24,Lookups!AZ25,0),0)) -> 0 | AI48: =IF($D$29<AI$9,MAX(0,AH48-1),IF($D$29=AI$9,IF($B48<Lookups!BA24,Lookups!BA25,0),0)) -> 0 | AJ48: =IF($D$29<AJ$9,MAX(0,AI48-1),IF($D$29=AJ$9,IF($B48<Lookups!BB24,Lookups!BB25,0),0)) -> 0 | AK48: =IF($D$29<AK$9,MAX(0,AJ48-1),IF($D$29=AK$9,IF($B48<Lookups!BC24,Lookups!BC25,0),0)) -> 0 | AL48: =IF($D$29<AL$9,MAX(0,AK48-1),IF($D$29=AL$9,IF($B48<Lookups!BD24,Lookups!BD25,0),0)) -> 0 | AM48: =IF($D$29<AM$9,MAX(0,AL48-1),IF($D$29=AM$9,IF($B48<Lookups!BE24,Lookups!BE25,0),0)) -> 0 | AN48: =IF($D$29<AN$9,MAX(0,AM48-1),IF($D$29=AN$9,IF($B48<Lookups!BF24,Lookups!BF25,0),0)) -> 0 | AO48: =IF($D$29<AO$9,MAX(0,AN48-1),IF($D$29=AO$9,IF($B48<Lookups!BG24,Lookups!BG25,0),0)) -> 0 | AP48: =IF($D$29<AP$9,MAX(0,AO48-1),IF($D$29=AP$9,IF($B48<Lookups!BH24,Lookups!BH25,0),0)) -> 0 | AQ48: =IF($D$29<AQ$9,MAX(0,AP48-1),IF($D$29=AQ$9,IF($B48<Lookups!BI24,Lookups!BI25,0),0)) -> 0 | AR48: =IF($D$29<AR$9,MAX(0,AQ48-1),IF($D$29=AR$9,IF($B48<Lookups!BJ24,Lookups!BJ25,0),0)) -> 0 | AS48: =IF($D$29<AS$9,MAX(0,AR48-1),IF($D$29=AS$9,IF($B48<Lookups!BK24,Lookups!BK25,0),0)) -> 0 | AT48: =IF($D$29<AT$9,MAX(0,AS48-1),IF($D$29=AT$9,IF($B48<Lookups!BL24,Lookups!BL25,0),0)) -> 0 | AU48: =IF($D$29<AU$9,MAX(0,AT48-1),IF($D$29=AU$9,IF($B48<Lookups!BM24,Lookups!BM25,0),0)) -> 0 | AV48: =IF($D$29<AV$9,MAX(0,AU48-1),IF($D$29=AV$9,IF($B48<Lookups!BN24,Lookups!BN25,0),0)) -> 0 | AW48: =IF($D$29<AW$9,MAX(0,AV48-1),IF($D$29=AW$9,IF($B48<Lookups!BO24,Lookups!BO25,0),0)) -> 0 | AX48: =IF($D$29<AX$9,MAX(0,AW48-1),IF($D$29=AX$9,IF($B48<Lookups!BP24,Lookups!BP25,0),0)) -> 0 | AY48: =IF($D$29<AY$9,MAX(0,AX48-1),IF($D$29=AY$9,IF($B48<Lookups!BQ24,Lookups!BQ25,0),0)) -> 0 | AZ48: =IF($D$29<AZ$9,MAX(0,AY48-1),IF($D$29=AZ$9,IF($B48<Lookups!BR24,Lookups!BR25,0),0)) -> 0 | BA48: =IF($D$29<BA$9,MAX(0,AZ48-1),IF($D$29=BA$9,IF($B48<Lookups!BS24,Lookups!BS25,0),0)) -> 0 | BB48: =IF($D$29<BB$9,MAX(0,BA48-1),IF($D$29=BB$9,IF($B48<Lookups!BT24,Lookups!BT25,0),0)) -> 0 | BC48: =IF($D$29<BC$9,MAX(0,BB48-1),IF($D$29=BC$9,IF($B48<Lookups!BU24,Lookups!BU25,0),0)) -> 0 | BD48: =IF($D$29<BD$9,MAX(0,BC48-1),IF($D$29=BD$9,IF($B48<Lookups!BV24,Lookups!BV25,0),0)) -> 0 | BE48: =IF($D$29<BE$9,MAX(0,BD48-1),IF($D$29=BE$9,IF($B48<Lookups!BW24,Lookups!BW25,0),0)) -> 0 | BF48: =IF($D$29<BF$9,MAX(0,BE48-1),IF($D$29=BF$9,IF($B48<Lookups!BX24,Lookups!BX25,0),0)) -> 0 | BG48: =IF($D$29<BG$9,MAX(0,BF48-1),IF($D$29=BG$9,IF($B48<Lookups!BY24,Lookups!BY25,0),0)) -> 0 | BH48: =IF($D$29<BH$9,MAX(0,BG48-1),IF($D$29=BH$9,IF($B48<Lookups!BZ24,Lookups!BZ25,0),0)) -> 0 | BI48: =IF($D$29<BI$9,MAX(0,BH48-1),IF($D$29=BI$9,IF($B48<Lookups!CA24,Lookups!CA25,0),0)) -> 0 | BJ48: =IF($D$29<BJ$9,MAX(0,BI48-1),IF($D$29=BJ$9,IF($B48<Lookups!CB24,Lookups!CB25,0),0)) -> 0 | BK48: =IF($D$29<BK$9,MAX(0,BJ48-1),IF($D$29=BK$9,IF($B48<Lookups!CC24,Lookups!CC25,0),0)) -> 0
A49: Friction (1/0) | C49: =IF(MAX(C44:C48)>=1,0,IF(MAX(C44:C48)>0,MAX(C44:C48),1)) -> 1 | D49: 1 | E49: 1 | F49: =IF(MAX(F44:F48)>=1,0,IF(MAX(F44:F48)>0,MAX(F44:F48),1)) -> 1 | G49: 1 | H49: 1 | I49: 1 | J49: 1 | K49: 1 | L49: 1 | M49: 1 | N49: 1 | O49: 1 | P49: 1 | Q49: =IF(MAX(Q44:Q48)>=1,0,IF(MAX(Q44:Q48)>0,MAX(Q44:Q48),1)) -> 1 | R49: =IF(MAX(R44:R48)>=1,0,IF(MAX(R44:R48)>0,MAX(R44:R48),1)) -> 1 | S49: 1 | T49: 1 | U49: 1 | V49: 1 | W49: 1 | X49: 1 | Y49: 1 | Z49: 1 | AA49: 1 | AB49: 1 | AC49: 1 | AD49: 1 | AE49: 1 | AF49: 1 | AG49: 1 | AH49: 1 | AI49: 1 | AJ49: 1 | AK49: 1 | AL49: 1 | AM49: 1 | AN49: 1 | AO49: 1 | AP49: 1 | AQ49: 1 | AR49: 1 | AS49: 1 | AT49: 1 | AU49: 1 | AV49: 1 | AW49: 1 | AX49: 1 | AY49: 1 | AZ49: 1 | BA49: 1 | BB49: 1 | BC49: 1 | BD49: 1 | BE49: 1 | BF49: 1 | BG49: 1 | BH49: 1 | BI49: 1 | BJ49: 1 | BK49: 1
A51: Due to repay in year? | C51: =PRODUCT(C37:C40) -> 0 | D51: =PRODUCT(D37:D40) -> 0 | E51: 0 | F51: 0 | G51: 0 | H51: 0 | I51: 0 | J51: 0 | K51: 0 | L51: 0 | M51: 0 | N51: 0 | O51: 0 | P51: 0 | Q51: 0 | R51: 0 | S51: 0 | T51: 0 | U51: 1 | V51: 1 | W51: 1 | X51: 1 | Y51: 1 | Z51: 1 | AA51: 1 | AB51: 1 | AC51: 1 | AD51: 1 | AE51: 1 | AF51: 1 | AG51: 1 | AH51: 1 | AI51: 1 | AJ51: 1 | AK51: 1 | AL51: 1 | AM51: 1 | AN51: 1 | AO51: 1 | AP51: 1 | AQ51: 1 | AR51: 1 | AS51: 1 | AT51: 1 | AU51: 1 | AV51: 1 | AW51: 1 | AX51: 1 | AY51: 0 | AZ51: 0 | BA51: 0 | BB51: 0 | BC51: 0 | BD51: 0 | BE51: 0 | BF51: 0 | BG51: 0 | BH51: 0 | BI51: 0 | BJ51: 0 | BK51: 0
A53: Migration | B53: Probability | Q53: =INDEX(Lookups!$H$8:$M$55,MATCH(RABcalc!Q$25,Lookups!$G$8:$G$55),IF(rGender="M",1,2)+IF(rDomicile="EU",4,0)) -> 0.004962374268 | R53: =INDEX(Lookups!$H$8:$M$55,MATCH(RABcalc!R$25,Lookups!$G$8:$G$55),IF(rGender="M",1,2)+IF(rDomicile="EU",4,0)) -> 0.005002755783 | S53: =INDEX(Lookups!$H$8:$M$55,MATCH(RABcalc!S$25,Lookups!$G$8:$G$55),IF(rGender="M",1,2)+IF(rDomicile="EU",4,0)) -> 0.005043137298 | T53: =INDEX(Lookups!$H$8:$M$55,MATCH(RABcalc!T$25,Lookups!$G$8:$G$55),IF(rGender="M",1,2)+IF(rDomicile="EU",4,0)) -> 0.005083518814 | U53: =INDEX(Lookups!$H$8:$M$55,MATCH(RABcalc!U$25,Lookups!$G$8:$G$55),IF(rGender="M",1,2)+IF(rDomicile="EU",4,0)) -> 0.005123900329 | V53: =INDEX(Lookups!$H$8:$M$55,MATCH(RABcalc!V$25,Lookups!$G$8:$G$55),IF(rGender="M",1,2)+IF(rDomicile="EU",4,0)) -> 0.005164281845 | W53: =INDEX(Lookups!$H$8:$M$55,MATCH(RABcalc!W$25,Lookups!$G$8:$G$55),IF(rGender="M",1,2)+IF(rDomicile="EU",4,0)) -> 0.00520466336 | X53: =INDEX(Lookups!$H$8:$M$55,MATCH(RABcalc!X$25,Lookups!$G$8:$G$55),IF(rGender="M",1,2)+IF(rDomicile="EU",4,0)) -> 0.005245044875 | Y53: =INDEX(Lookups!$H$8:$M$55,MATCH(RABcalc!Y$25,Lookups!$G$8:$G$55),IF(rGender="M",1,2)+IF(rDomicile="EU",4,0)) -> 0.005285426391 | Z53: =INDEX(Lookups!$H$8:$M$55,MATCH(RABcalc!Z$25,Lookups!$G$8:$G$55),IF(rGender="M",1,2)+IF(rDomicile="EU",4,0)) -> 0.005325807906 | AA53: =INDEX(Lookups!$H$8:$M$55,MATCH(RABcalc!AA$25,Lookups!$G$8:$G$55),IF(rGender="M",1,2)+IF(rDomicile="EU",4,0)) -> 0.005040625102 | AB53: =INDEX(Lookups!$H$8:$M$55,MATCH(RABcalc!AB$25,Lookups!$G$8:$G$55),IF(rGender="M",1,2)+IF(rDomicile="EU",4,0)) -> 0.004755442298 | AC53: =INDEX(Lookups!$H$8:$M$55,MATCH(RABcalc!AC$25,Lookups!$G$8:$G$55),IF(rGender="M",1,2)+IF(rDomicile="EU",4,0)) -> 0.004470259494 | AD53: =INDEX(Lookups!$H$8:$M$55,MATCH(RABcalc!AD$25,Lookups!$G$8:$G$55),IF(rGender="M",1,2)+IF(rDomicile="EU",4,0)) -> 0.00418507669 | AE53: =INDEX(Lookups!$H$8:$M$55,MATCH(RABcalc!AE$25,Lookups!$G$8:$G$55),IF(rGender="M",1,2)+IF(rDomicile="EU",4,0)) -> 0.003899893886 | AF53: =INDEX(Lookups!$H$8:$M$55,MATCH(RABcalc!AF$25,Lookups!$G$8:$G$55),IF(rGender="M",1,2)+IF(rDomicile="EU",4,0)) -> 0.003991883298 | AG53: =INDEX(Lookups!$H$8:$M$55,MATCH(RABcalc!AG$25,Lookups!$G$8:$G$55),IF(rGender="M",1,2)+IF(rDomicile="EU",4,0)) -> 0.004083872709 | AH53: =INDEX(Lookups!$H$8:$M$55,MATCH(RABcalc!AH$25,Lookups!$G$8:$G$55),IF(rGender="M",1,2)+IF(rDomicile="EU",4,0)) -> 0.004175862121 | AI53: =INDEX(Lookups!$H$8:$M$55,MATCH(RABcalc!AI$25,Lookups!$G$8:$G$55),IF(rGender="M",1,2)+IF(rDomicile="EU",4,0)) -> 0.004267851532 | AJ53: =INDEX(Lookups!$H$8:$M$55,MATCH(RABcalc!AJ$25,Lookups!$G$8:$G$55),IF(rGender="M",1,2)+IF(rDomicile="EU",4,0)) -> 0.004359840944 | AK53: =INDEX(Lookups!$H$8:$M$55,MATCH(RABcalc!AK$25,Lookups!$G$8:$G$55),IF(rGender="M",1,2)+IF(rDomicile="EU",4,0)) -> 0.003881104334 | AL53: =INDEX(Lookups!$H$8:$M$55,MATCH(RABcalc!AL$25,Lookups!$G$8:$G$55),IF(rGender="M",1,2)+IF(rDomicile="EU",4,0)) -> 0.003402367725 | AM53: =INDEX(Lookups!$H$8:$M$55,MATCH(RABcalc!AM$25,Lookups!$G$8:$G$55),IF(rGender="M",1,2)+IF(rDomicile="EU",4,0)) -> 0.002923631115 | AN53: =INDEX(Lookups!$H$8:$M$55,MATCH(RABcalc!AN$25,Lookups!$G$8:$G$55),IF(rGender="M",1,2)+IF(rDomicile="EU",4,0)) -> 0.002444894505 | AO53: =INDEX(Lookups!$H$8:$M$55,MATCH(RABcalc!AO$25,Lookups!$G$8:$G$55),IF(rGender="M",1,2)+IF(rDomicile="EU",4,0)) -> 0.001966157895 | AP53: =INDEX(Lookups!$H$8:$M$55,MATCH(RABcalc!AP$25,Lookups!$G$8:$G$55),IF(rGender="M",1,2)+IF(rDomicile="EU",4,0)) -> 0.001964861973 | AQ53: =INDEX(Lookups!$H$8:$M$55,MATCH(RABcalc!AQ$25,Lookups!$G$8:$G$55),IF(rGender="M",1,2)+IF(rDomicile="EU",4,0)) -> 0.001963566051 | AR53: =INDEX(Lookups!$H$8:$M$55,MATCH(RABcalc!AR$25,Lookups!$G$8:$G$55),IF(rGender="M",1,2)+IF(rDomicile="EU",4,0)) -> 0.001962270129 | AS53: =INDEX(Lookups!$H$8:$M$55,MATCH(RABcalc!AS$25,Lookups!$G$8:$G$55),IF(rGender="M",1,2)+IF(rDomicile="EU",4,0)) -> 0.001960974207 | AT53: =INDEX(Lookups!$H$8:$M$55,MATCH(RABcalc!AT$25,Lookups!$G$8:$G$55),IF(rGender="M",1,2)+IF(rDomicile="EU",4,0)) -> 0.001959678285 | AU53: =INDEX(Lookups!$H$8:$M$55,MATCH(RABcalc!AU$25,Lookups!$G$8:$G$55),IF(rGender="M",1,2)+IF(rDomicile="EU",4,0)) -> 0.001790627257 | AV53: =INDEX(Lookups!$H$8:$M$55,MATCH(RABcalc!AV$25,Lookups!$G$8:$G$55),IF(rGender="M",1,2)+IF(rDomicile="EU",4,0)) -> 0.00162157623 | AW53: =INDEX(Lookups!$H$8:$M$55,MATCH(RABcalc!AW$25,Lookups!$G$8:$G$55),IF(rGender="M",1,2)+IF(rDomicile="EU",4,0)) -> 0.001452525202 | AX53: =INDEX(Lookups!$H$8:$M$55,MATCH(RABcalc!AX$25,Lookups!$G$8:$G$55),IF(rGender="M",1,2)+IF(rDomicile="EU",4,0)) -> 0.001283474174 | AY53: =INDEX(Lookups!$H$8:$M$55,MATCH(RABcalc!AY$25,Lookups!$G$8:$G$55),IF(rGender="M",1,2)+IF(rDomicile="EU",4,0)) -> 0.001114423146 | AZ53: =INDEX(Lookups!$H$8:$M$55,MATCH(RABcalc!AZ$25,Lookups!$G$8:$G$55),IF(rGender="M",1,2)+IF(rDomicile="EU",4,0)) -> 0.001269252599 | BA53: =INDEX(Lookups!$H$8:$M$55,MATCH(RABcalc!BA$25,Lookups!$G$8:$G$55),IF(rGender="M",1,2)+IF(rDomicile="EU",4,0)) -> 0.001424082051 | BB53: =INDEX(Lookups!$H$8:$M$55,MATCH(RABcalc!BB$25,Lookups!$G$8:$G$55),IF(rGender="M",1,2)+IF(rDomicile="EU",4,0)) -> 0.001578911504 | BC53: =INDEX(Lookups!$H$8:$M$55,MATCH(RABcalc!BC$25,Lookups!$G$8:$G$55),IF(rGender="M",1,2)+IF(rDomicile="EU",4,0)) -> 0.001733740957 | BD53: =INDEX(Lookups!$H$8:$M$55,MATCH(RABcalc!BD$25,Lookups!$G$8:$G$55),IF(rGender="M",1,2)+IF(rDomicile="EU",4,0)) -> 0.00188857041 | BE53: =INDEX(Lookups!$H$8:$M$55,MATCH(RABcalc!BE$25,Lookups!$G$8:$G$55),IF(rGender="M",1,2)+IF(rDomicile="EU",4,0)) -> 0.001629050938 | BF53: =INDEX(Lookups!$H$8:$M$55,MATCH(RABcalc!BF$25,Lookups!$G$8:$G$55),IF(rGender="M",1,2)+IF(rDomicile="EU",4,0)) -> 0.001369531466 | BG53: =INDEX(Lookups!$H$8:$M$55,MATCH(RABcalc!BG$25,Lookups!$G$8:$G$55),IF(rGender="M",1,2)+IF(rDomicile="EU",4,0)) -> 0.001110011994 | BH53: =INDEX(Lookups!$H$8:$M$55,MATCH(RABcalc!BH$25,Lookups!$G$8:$G$55),IF(rGender="M",1,2)+IF(rDomicile="EU",4,0)) -> 0.0008504925226 | BI53: =INDEX(Lookups!$H$8:$M$55,MATCH(RABcalc!BI$25,Lookups!$G$8:$G$55),IF(rGender="M",1,2)+IF(rDomicile="EU",4,0)) -> 0.0005909730508 | BJ53: =INDEX(Lookups!$H$8:$M$55,MATCH(RABcalc!BJ$25,Lookups!$G$8:$G$55),IF(rGender="M",1,2)+IF(rDomicile="EU",4,0)) -> 0.000331453579 | BK53: =INDEX(Lookups!$H$8:$M$55,MATCH(RABcalc!BK$25,Lookups!$G$8:$G$55),IF(rGender="M",1,2)+IF(rDomicile="EU",4,0)) -> 7.193410725e-05
B54: Number of years (Eng) | Q54: =IF(rDomicile="EU",INDEX(Lookups!$L$3:$L$6,MATCH(Q33,Lookups!$M$3:$M$6,1)),INDEX(Lookups!$H$3:$H$6,MATCH(Q33,Lookups!$I$3:$I$6,1))) -> 1 | R54: =IF(rDomicile="EU",INDEX(Lookups!$L$3:$L$6,MATCH(R33,Lookups!$M$3:$M$6,1)),INDEX(Lookups!$H$3:$H$6,MATCH(R33,Lookups!$I$3:$I$6,1))) -> 15 | S54: =IF(rDomicile="EU",INDEX(Lookups!$L$3:$L$6,MATCH(S33,Lookups!$M$3:$M$6,1)),INDEX(Lookups!$H$3:$H$6,MATCH(S33,Lookups!$I$3:$I$6,1))) -> 3 | T54: =IF(rDomicile="EU",INDEX(Lookups!$L$3:$L$6,MATCH(T33,Lookups!$M$3:$M$6,1)),INDEX(Lookups!$H$3:$H$6,MATCH(T33,Lookups!$I$3:$I$6,1))) -> 3 | U54: =IF(rDomicile="EU",INDEX(Lookups!$L$3:$L$6,MATCH(U33,Lookups!$M$3:$M$6,1)),INDEX(Lookups!$H$3:$H$6,MATCH(U33,Lookups!$I$3:$I$6,1))) -> 1 | V54: =IF(rDomicile="EU",INDEX(Lookups!$L$3:$L$6,MATCH(V33,Lookups!$M$3:$M$6,1)),INDEX(Lookups!$H$3:$H$6,MATCH(V33,Lookups!$I$3:$I$6,1))) -> 3 | W54: =IF(rDomicile="EU",INDEX(Lookups!$L$3:$L$6,MATCH(W33,Lookups!$M$3:$M$6,1)),INDEX(Lookups!$H$3:$H$6,MATCH(W33,Lookups!$I$3:$I$6,1))) -> 1 | X54: =IF(rDomicile="EU",INDEX(Lookups!$L$3:$L$6,MATCH(X33,Lookups!$M$3:$M$6,1)),INDEX(Lookups!$H$3:$H$6,MATCH(X33,Lookups!$I$3:$I$6,1))) -> 1 | Y54: =IF(rDomicile="EU",INDEX(Lookups!$L$3:$L$6,MATCH(Y33,Lookups!$M$3:$M$6,1)),INDEX(Lookups!$H$3:$H$6,MATCH(Y33,Lookups!$I$3:$I$6,1))) -> 7 | Z54: =IF(rDomicile="EU",INDEX(Lookups!$L$3:$L$6,MATCH(Z33,Lookups!$M$3:$M$6,1)),INDEX(Lookups!$H$3:$H$6,MATCH(Z33,Lookups!$I$3:$I$6,1))) -> 7 | AA54: =IF(rDomicile="EU",INDEX(Lookups!$L$3:$L$6,MATCH(AA33,Lookups!$M$3:$M$6,1)),INDEX(Lookups!$H$3:$H$6,MATCH(AA33,Lookups!$I$3:$I$6,1))) -> 3 | AB54: =IF(rDomicile="EU",INDEX(Lookups!$L$3:$L$6,MATCH(AB33,Lookups!$M$3:$M$6,1)),INDEX(Lookups!$H$3:$H$6,MATCH(AB33,Lookups!$I$3:$I$6,1))) -> 7 | AC54: =IF(rDomicile="EU",INDEX(Lookups!$L$3:$L$6,MATCH(AC33,Lookups!$M$3:$M$6,1)),INDEX(Lookups!$H$3:$H$6,MATCH(AC33,Lookups!$I$3:$I$6,1))) -> 7 | AD54: =IF(rDomicile="EU",INDEX(Lookups!$L$3:$L$6,MATCH(AD33,Lookups!$M$3:$M$6,1)),INDEX(Lookups!$H$3:$H$6,MATCH(AD33,Lookups!$I$3:$I$6,1))) -> 3 | AE54: =IF(rDomicile="EU",INDEX(Lookups!$L$3:$L$6,MATCH(AE33,Lookups!$M$3:$M$6,1)),INDEX(Lookups!$H$3:$H$6,MATCH(AE33,Lookups!$I$3:$I$6,1))) -> 3 | AF54: =IF(rDomicile="EU",INDEX(Lookups!$L$3:$L$6,MATCH(AF33,Lookups!$M$3:$M$6,1)),INDEX(Lookups!$H$3:$H$6,MATCH(AF33,Lookups!$I$3:$I$6,1))) -> 1 | AG54: =IF(rDomicile="EU",INDEX(Lookups!$L$3:$L$6,MATCH(AG33,Lookups!$M$3:$M$6,1)),INDEX(Lookups!$H$3:$H$6,MATCH(AG33,Lookups!$I$3:$I$6,1))) -> 7 | AH54: =IF(rDomicile="EU",INDEX(Lookups!$L$3:$L$6,MATCH(AH33,Lookups!$M$3:$M$6,1)),INDEX(Lookups!$H$3:$H$6,MATCH(AH33,Lookups!$I$3:$I$6,1))) -> 15 | AI54: =IF(rDomicile="EU",INDEX(Lookups!$L$3:$L$6,MATCH(AI33,Lookups!$M$3:$M$6,1)),INDEX(Lookups!$H$3:$H$6,MATCH(AI33,Lookups!$I$3:$I$6,1))) -> 15 | AJ54: =IF(rDomicile="EU",INDEX(Lookups!$L$3:$L$6,MATCH(AJ33,Lookups!$M$3:$M$6,1)),INDEX(Lookups!$H$3:$H$6,MATCH(AJ33,Lookups!$I$3:$I$6,1))) -> 1 | AK54: =IF(rDomicile="EU",INDEX(Lookups!$L$3:$L$6,MATCH(AK33,Lookups!$M$3:$M$6,1)),INDEX(Lookups!$H$3:$H$6,MATCH(AK33,Lookups!$I$3:$I$6,1))) -> 7 | AL54: =IF(rDomicile="EU",INDEX(Lookups!$L$3:$L$6,MATCH(AL33,Lookups!$M$3:$M$6,1)),INDEX(Lookups!$H$3:$H$6,MATCH(AL33,Lookups!$I$3:$I$6,1))) -> 1 | AM54: =IF(rDomicile="EU",INDEX(Lookups!$L$3:$L$6,MATCH(AM33,Lookups!$M$3:$M$6,1)),INDEX(Lookups!$H$3:$H$6,MATCH(AM33,Lookups!$I$3:$I$6,1))) -> 7 | AN54: =IF(rDomicile="EU",INDEX(Lookups!$L$3:$L$6,MATCH(AN33,Lookups!$M$3:$M$6,1)),INDEX(Lookups!$H$3:$H$6,MATCH(AN33,Lookups!$I$3:$I$6,1))) -> 1 | AO54: =IF(rDomicile="EU",INDEX(Lookups!$L$3:$L$6,MATCH(AO33,Lookups!$M$3:$M$6,1)),INDEX(Lookups!$H$3:$H$6,MATCH(AO33,Lookups!$I$3:$I$6,1))) -> 3 | AP54: =IF(rDomicile="EU",INDEX(Lookups!$L$3:$L$6,MATCH(AP33,Lookups!$M$3:$M$6,1)),INDEX(Lookups!$H$3:$H$6,MATCH(AP33,Lookups!$I$3:$I$6,1))) -> 7 | AQ54: =IF(rDomicile="EU",INDEX(Lookups!$L$3:$L$6,MATCH(AQ33,Lookups!$M$3:$M$6,1)),INDEX(Lookups!$H$3:$H$6,MATCH(AQ33,Lookups!$I$3:$I$6,1))) -> 15 | AR54: =IF(rDomicile="EU",INDEX(Lookups!$L$3:$L$6,MATCH(AR33,Lookups!$M$3:$M$6,1)),INDEX(Lookups!$H$3:$H$6,MATCH(AR33,Lookups!$I$3:$I$6,1))) -> 7 | AS54: =IF(rDomicile="EU",INDEX(Lookups!$L$3:$L$6,MATCH(AS33,Lookups!$M$3:$M$6,1)),INDEX(Lookups!$H$3:$H$6,MATCH(AS33,Lookups!$I$3:$I$6,1))) -> 1 | AT54: =IF(rDomicile="EU",INDEX(Lookups!$L$3:$L$6,MATCH(AT33,Lookups!$M$3:$M$6,1)),INDEX(Lookups!$H$3:$H$6,MATCH(AT33,Lookups!$I$3:$I$6,1))) -> 1 | AU54: =IF(rDomicile="EU",INDEX(Lookups!$L$3:$L$6,MATCH(AU33,Lookups!$M$3:$M$6,1)),INDEX(Lookups!$H$3:$H$6,MATCH(AU33,Lookups!$I$3:$I$6,1))) -> 7 | AV54: =IF(rDomicile="EU",INDEX(Lookups!$L$3:$L$6,MATCH(AV33,Lookups!$M$3:$M$6,1)),INDEX(Lookups!$H$3:$H$6,MATCH(AV33,Lookups!$I$3:$I$6,1))) -> 7 | AW54: =IF(rDomicile="EU",INDEX(Lookups!$L$3:$L$6,MATCH(AW33,Lookups!$M$3:$M$6,1)),INDEX(Lookups!$H$3:$H$6,MATCH(AW33,Lookups!$I$3:$I$6,1))) -> 3 | AX54: =IF(rDomicile="EU",INDEX(Lookups!$L$3:$L$6,MATCH(AX33,Lookups!$M$3:$M$6,1)),INDEX(Lookups!$H$3:$H$6,MATCH(AX33,Lookups!$I$3:$I$6,1))) -> 1 | AY54: =IF(rDomicile="EU",INDEX(Lookups!$L$3:$L$6,MATCH(AY33,Lookups!$M$3:$M$6,1)),INDEX(Lookups!$H$3:$H$6,MATCH(AY33,Lookups!$I$3:$I$6,1))) -> 3 | AZ54: =IF(rDomicile="EU",INDEX(Lookups!$L$3:$L$6,MATCH(AZ33,Lookups!$M$3:$M$6,1)),INDEX(Lookups!$H$3:$H$6,MATCH(AZ33,Lookups!$I$3:$I$6,1))) -> 7 | BA54: =IF(rDomicile="EU",INDEX(Lookups!$L$3:$L$6,MATCH(BA33,Lookups!$M$3:$M$6,1)),INDEX(Lookups!$H$3:$H$6,MATCH(BA33,Lookups!$I$3:$I$6,1))) -> 15 | BB54: =IF(rDomicile="EU",INDEX(Lookups!$L$3:$L$6,MATCH(BB33,Lookups!$M$3:$M$6,1)),INDEX(Lookups!$H$3:$H$6,MATCH(BB33,Lookups!$I$3:$I$6,1))) -> 1 | BC54: =IF(rDomicile="EU",INDEX(Lookups!$L$3:$L$6,MATCH(BC33,Lookups!$M$3:$M$6,1)),INDEX(Lookups!$H$3:$H$6,MATCH(BC33,Lookups!$I$3:$I$6,1))) -> 3 | BD54: =IF(rDomicile="EU",INDEX(Lookups!$L$3:$L$6,MATCH(BD33,Lookups!$M$3:$M$6,1)),INDEX(Lookups!$H$3:$H$6,MATCH(BD33,Lookups!$I$3:$I$6,1))) -> 3 | BE54: =IF(rDomicile="EU",INDEX(Lookups!$L$3:$L$6,MATCH(BE33,Lookups!$M$3:$M$6,1)),INDEX(Lookups!$H$3:$H$6,MATCH(BE33,Lookups!$I$3:$I$6,1))) -> 7 | BF54: =IF(rDomicile="EU",INDEX(Lookups!$L$3:$L$6,MATCH(BF33,Lookups!$M$3:$M$6,1)),INDEX(Lookups!$H$3:$H$6,MATCH(BF33,Lookups!$I$3:$I$6,1))) -> 3 | BG54: =IF(rDomicile="EU",INDEX(Lookups!$L$3:$L$6,MATCH(BG33,Lookups!$M$3:$M$6,1)),INDEX(Lookups!$H$3:$H$6,MATCH(BG33,Lookups!$I$3:$I$6,1))) -> 3 | BH54: =IF(rDomicile="EU",INDEX(Lookups!$L$3:$L$6,MATCH(BH33,Lookups!$M$3:$M$6,1)),INDEX(Lookups!$H$3:$H$6,MATCH(BH33,Lookups!$I$3:$I$6,1))) -> 1 | BI54: =IF(rDomicile="EU",INDEX(Lookups!$L$3:$L$6,MATCH(BI33,Lookups!$M$3:$M$6,1)),INDEX(Lookups!$H$3:$H$6,MATCH(BI33,Lookups!$I$3:$I$6,1))) -> 15 | BJ54: =IF(rDomicile="EU",INDEX(Lookups!$L$3:$L$6,MATCH(BJ33,Lookups!$M$3:$M$6,1)),INDEX(Lookups!$H$3:$H$6,MATCH(BJ33,Lookups!$I$3:$I$6,1))) -> 1 | BK54: =IF(rDomicile="EU",INDEX(Lookups!$L$3:$L$6,MATCH(BK33,Lookups!$M$3:$M$6,1)),INDEX(Lookups!$H$3:$H$6,MATCH(BK33,Lookups!$I$3:$I$6,1))) -> 3
B55: Number of years left | Q55: =IF(Q9<SRDD,0,IF(P55>0,P55-1,IF(Q34<Q53,Q54,0))) -> 0 | R55: 0 | S55: 0 | T55: 0 | U55: 0 | V55: 0 | W55: 0 | X55: 0 | Y55: 0 | Z55: 0 | AA55: 0 | AB55: 0 | AC55: 0 | AD55: 0 | AE55: 0 | AF55: 0 | AG55: 0 | AH55: 0 | AI55: 0 | AJ55: 0 | AK55: 0 | AL55: 0 | AM55: 0 | AN55: 0 | AO55: 0 | AP55: 0 | AQ55: 0 | AR55: 0 | AS55: 0 | AT55: 0 | AU55: 0 | AV55: 0 | AW55: 0 | AX55: 0 | AY55: 0 | AZ55: 0 | BA55: 0 | BB55: 0 | BC55: 0 | BD55: 0 | BE55: 0 | BF55: 0 | BG55: 0 | BH55: 0 | BI55: 0 | BJ55: 0 | BK55: 0
B57: Real Income adjusted for frictions | C57: =C51*C39*C40*(C55<=0)*C49*SUM(C30,C32) -> 0 | D57: =D51*D39*D40*(D55<=0)*D49*SUM(D30,D32) -> 0 | E57: 0 | F57: 0 | G57: 0 | H57: 0 | I57: 0 | J57: 0 | K57: 0 | L57: 0 | M57: 0 | N57: 0 | O57: 0 | P57: 0 | Q57: 0 | R57: 0 | S57: 0 | T57: 0 | U57: 0 | V57: 8846 | W57: 12952 | X57: 20802 | Y57: 16398 | Z57: 25292 | AA57: 29399 | AB57: 30502 | AC57: 26972 | AD57: 60611 | AE57: 35463 | AF57: 50617 | AG57: 49093 | AH57: 41166 | AI57: 32515 | AJ57: 34408 | AK57: 31250 | AL57: 25672 | AM57: 30657 | AN57: 36223 | AO57: 23624 | AP57: 38079 | AQ57: 37192 | AR57: 36638 | AS57: 29838 | AT57: 71613 | AU57: 31108 | AV57: 26056 | AW57: 26840 | AX57: 33487 | AY57: 0 | AZ57: 0 | BA57: 0 | BB57: 0 | BC57: 0 | BD57: 0 | BE57: 0 | BF57: 0 | BG57: 0 | BH57: 0 | BI57: 0 | BJ57: 0 | BK57: 0
A59: Repayments summary
A60: Debt at year start | C60: =IF(C9<gModelYear,0,B65-B68) -> 0 | D60: 0 | E60: 0 | F60: 0 | G60: 0 | H60: 0 | I60: 0 | J60: 0 | K60: 0 | L60: 0 | M60: 0 | N60: 0 | O60: 0 | P60: 0 | Q60: 0 | R60: 12000 | S60: 24656 | T60: 38058.58933 | U60: 40047.15063 | V60: 41205.18073 | W60: 42482.54133 | X60: 43799.50012 | Y60: 45012.7816 | Z60: 46408.17783 | AA60: 47418.31902 | AB60: 48163.18953 | AC60: 48767.6681 | AD60: 49566.62873 | AE60: 45397.80411 | AF60: 45065.02008 | AG60: 41809.79043 | AH60: 38388.121 | AI60: =IF(AI9<gModelYear,0,AH65-AH68) -> 36078.47173 | AJ60: 35068.23072 | AK60: 33570.5765 | AL60: 32365.65565 | AM60: 31971.98371 | AN60: 30527.33661 | AO60: 27661.95777 | AP60: 27266.21702 | AQ60: 23261.59214 | AR60: 19029.01211 | AS60: 14464.67654 | AT60: 11432.25183 | AU60: 0 | AV60: 0 | AW60: 0 | AX60: 0 | AY60: 0 | AZ60: 0 | BA60: 0 | BB60: 0 | BC60: 0 | BD60: 0 | BE60: 0 | BF60: 0 | BG60: 0 | BH60: 0 | BI60: 0 | BJ60: 0 | BK60: 0
A61: Interest - first half year | C61: =C60*(((1+C14)^0.5)-1) -> 0 | D61: 0 | E61: 0 | F61: 0 | G61: 0 | H61: 0 | I61: 0 | J61: 0 | K61: 0 | L61: 0 | M61: 0 | N61: 0 | O61: 0 | P61: 0 | Q61: 0 | R61: 270.9412842 | S61: 532.5708872 | T61: 981.621471 | U61: 574.888704 | V61: 633.8057955 | W61: 653.4537752 | X61: 780.3344232 | Y61: 692.373176 | Z61: 1005.740095 | AA61: 1194.328255 | AB61: 1244.757929 | AC61: 1103.05161 | AD61: 1465.338944 | AE61: 1342.095923 | AF61: 1332.257824 | AG61: 1236.023424 | AH61: 1134.868562 | AI61: =AI60*(((1+AI14)^0.5)-1) -> 986.878048 | AJ61: 1015.79943 | AK61: 881.9559216 | AL61: 695.6905193 | AM61: 823.7214419 | AN61: 902.4800825 | AO61: 545.8624472 | AP61: 806.0715581 | AQ61: 687.6827765 | AR61: 562.5549533 | AS61: 362.4807678 | AT61: 337.9718221 | AU61: 0 | AV61: 0 | AW61: 0 | AX61: 0 | AY61: 0 | AZ61: 0 | BA61: 0 | BB61: 0 | BC61: 0 | BD61: 0 | BE61: 0 | BF61: 0 | BG61: 0 | BH61: 0 | BI61: 0 | BJ61: 0 | BK61: 0
A62: Repayment | C62: =MIN(((MAX((C35+C32-C19),0)*$B$5+C31)*(1+C42))*C51,SUM(C60:C61))*C49*(C55<=0) -> 0 | D62: 0 | E62: 0 | F62: 0 | G62: 0 | H62: 0 | I62: 0 | J62: 0 | K62: 0 | L62: 0 | M62: 0 | N62: 0 | O62: 0 | P62: 0 | Q62: 0 | R62: 0 | S62: 0 | T62: 0 | U62: 0 | V62: 0 | W62: 0 | X62: 354.9657515 | Y62: 0 | Z62: 1001.432355 | AA62: 1632.743609 | AB62: 1868.906422 | AC62: 1400.416636 | AD62: 6937.722363 | AE62: 2968.88314 | AF62: 5788.01956 | AG62: 5759.974642 | AH62: 4480.480037 | AI62: =MIN(((MAX((AI35+AI32-AI19),0)*$B$5+AI31)*(1+AI42))*AI51,SUM(AI60:AI61))*AI49*(AI55<=0) -> 2930.823102 | AJ62: 3458.496991 | AK62: 2915.410404 | AL62: 1762.130156 | AM62: 3035.115952 | AN62: 4562.148184 | AO62: 1469.24425 | AP62: 5478.632989 | AQ62: 5466.664484 | AR62: 5542.231234 | AS62: 3674.390704 | AT62: 11770.22365 | AU62: 0 | AV62: 0 | AW62: 0 | AX62: 0 | AY62: 0 | AZ62: 0 | BA62: 0 | BB62: 0 | BC62: 0 | BD62: 0 | BE62: 0 | BF62: 0 | BG62: 0 | BH62: 0 | BI62: 0 | BJ62: 0 | BK62: 0
A63: Debt for second half | C63: =C60+C61-C62 -> 0 | D63: 0 | E63: 0 | F63: =F60+F61-F62 -> 0 | G63: 0 | H63: 0 | I63: 0 | J63: 0 | K63: 0 | L63: 0 | M63: 0 | N63: 0 | O63: 0 | P63: 0 | Q63: 0 | R63: 12270.94128 | S63: 25188.57089 | T63: 39040.2108 | U63: 40622.03933 | V63: 41838.98653 | W63: 43135.99511 | X63: 44224.86879 | Y63: 45705.15478 | Z63: 46412.48557 | AA63: 46979.90367 | AB63: 47539.04104 | AC63: 48470.30308 | AD63: 44094.24532 | AE63: 43771.01689 | AF63: 40609.25835 | AG63: 37285.83921 | AH63: 35042.50952 | AI63: 34134.52667 | AJ63: 32625.53316 | AK63: 31537.12202 | AL63: =AL60+AL61-AL62 -> 31299.21601 | AM63: 29760.5892 | AN63: 26867.6685 | AO63: 26738.57596 | AP63: 22593.65559 | AQ63: 18482.61044 | AR63: 14049.33583 | AS63: 11152.76661 | AT63: 0 | AU63: 0 | AV63: 0 | AW63: 0 | AX63: 0 | AY63: 0 | AZ63: 0 | BA63: 0 | BB63: 0 | BC63: 0 | BD63: 0 | BE63: 0 | BF63: 0 | BG63: 0 | BH63: 0 | BI63: 0 | BJ63: 0 | BK63: 0
A64: Interest - second half year | C64: =C63*(((1+C14)^0.5)-1) -> 0 | D64: 0 | E64: 0 | F64: 0 | G64: 0 | H64: 0 | I64: 0 | J64: 0 | K64: 0 | L64: 0 | M64: 0 | N64: 0 | O64: 0 | P64: 0 | Q64: 0 | R64: 277.0587158 | S64: 544.0744461 | T64: 1006.939822 | U64: 583.1414016 | V64: 643.5548072 | W64: 663.5050062 | X64: 787.912816 | Y64: 703.0230537 | Z64: 1005.83345 | AA64: 1183.285859 | AB64: 1228.627067 | AC64: 1096.325658 | AD64: 1303.558796 | AE64: 1294.00319 | AF64: 1200.532077 | AG64: 1102.28179 | AH64: 1035.962203 | AI64: =AI63*(((1+AI14)^0.5)-1) -> 933.7040467 | AJ64: 945.0433428 | AK64: 828.5336272 | AL64: 672.767704 | AM64: 766.7474021 | AN64: 794.2892628 | AO64: 527.6410525 | AP64: 667.9365586 | AQ64: 546.4016729 | AR64: 415.3407132 | AS64: 279.4852266 | AT64: 0 | AU64: 0 | AV64: 0 | AW64: 0 | AX64: 0 | AY64: 0 | AZ64: 0 | BA64: 0 | BB64: 0 | BC64: 0 | BD64: 0 | BE64: 0 | BF64: 0 | BG64: 0 | BH64: 0 | BI64: 0 | BJ64: 0 | BK64: 0
A65: Debt at year end plus loan outlay | C65: =C63+C64 -> 0 | D65: =D63+D64 -> 0 | E65: =E63+E64 -> 0 | F65: =F63+F64 -> 0 | G65: 0 | H65: 0 | I65: =I63+I64+I28 -> 0 | J65: 0 | K65: 0 | L65: 0 | M65: 0 | N65: 0 | O65: 0 | P65: 0 | Q65: 12000 | R65: 24656 | S65: 38058.58933 | T65: 40047.15063 | U65: 41205.18073 | V65: 42482.54133 | W65: 43799.50012 | X65: 45012.7816 | Y65: 46408.17783 | Z65: 47418.31902 | AA65: 48163.18953 | AB65: 48767.6681 | AC65: 49566.62873 | AD65: 45397.80411 | AE65: 45065.02008 | AF65: 41809.79043 | AG65: 38388.121 | AH65: 36078.47173 | AI65: 35068.23072 | AJ65: 33570.5765 | AK65: 32365.65565 | AL65: 31971.98371 | AM65: 30527.33661 | AN65: 27661.95777 | AO65: =AO63+AO64+AO28 -> 27266.21702 | AP65: 23261.59214 | AQ65: 19029.01211 | AR65: 14464.67654 | AS65: 11432.25183 | AT65: 0 | AU65: 0 | AV65: 0 | AW65: 0 | AX65: 0 | AY65: 0 | AZ65: 0 | BA65: 0 | BB65: 0 | BC65: 0 | BD65: 0 | BE65: 0 | BF65: 0 | BG65: 0 | BH65: 0 | BI65: 0 | BJ65: 0 | BK65: 0
A66: Repaid in full? | C66: =IF(AND(C51=1,C65=0,C60<>0),1,0) -> 0 | D66: 0 | E66: 0 | F66: 0 | G66: 0 | H66: 0 | I66: 0 | J66: 0 | K66: 0 | L66: 0 | M66: 0 | N66: 0 | O66: 0 | P66: 0 | Q66: 0 | R66: 0 | S66: 0 | T66: 0 | U66: 0 | V66: 0 | W66: 0 | X66: 0 | Y66: 0 | Z66: 0 | AA66: 0 | AB66: 0 | AC66: 0 | AD66: 0 | AE66: 0 | AF66: 0 | AG66: 0 | AH66: 0 | AI66: =IF(AND(AI51=1,AI65=0,AI60<>0),1,0) -> 0 | AJ66: 0 | AK66: 0 | AL66: 0 | AM66: 0 | AN66: 0 | AO66: 0 | AP66: 0 | AQ66: 0 | AR66: 0 | AS66: 0 | AT66: 1 | AU66: 0 | AV66: 0 | AW66: 0 | AX66: 0 | AY66: 0 | AZ66: 0 | BA66: 0 | BB66: 0 | BC66: 0 | BD66: 0 | BE66: 0 | BF66: 0 | BG66: 0 | BH66: 0 | BI66: 0 | BJ66: 0 | BK66: 0
A67: Year to consider write-offs? | C67: =IF(AND(C51=1,D51=0),1,0) -> 0 | D67: 0 | E67: 0 | F67: 0 | G67: 0 | H67: 0 | I67: 0 | J67: 0 | K67: 0 | L67: 0 | M67: 0 | N67: 0 | O67: 0 | P67: 0 | Q67: 0 | R67: 0 | S67: 0 | T67: 0 | U67: 0 | V67: 0 | W67: 0 | X67: 0 | Y67: 0 | Z67: 0 | AA67: 0 | AB67: 0 | AC67: 0 | AD67: 0 | AE67: 0 | AF67: 0 | AG67: 0 | AH67: 0 | AI67: =IF(AND(AI51=1,AJ51=0),1,0) -> 0 | AJ67: 0 | AK67: 0 | AL67: 0 | AM67: 0 | AN67: 0 | AO67: 0 | AP67: 0 | AQ67: 0 | AR67: 0 | AS67: 0 | AT67: 0 | AU67: 0 | AV67: 0 | AW67: 0 | AX67: 1 | AY67: 0 | AZ67: 0 | BA67: 0 | BB67: 0 | BC67: 0 | BD67: 0 | BE67: 0 | BF67: 0 | BG67: 0 | BH67: 0 | BI67: 0 | BJ67: 0 | BK67: 0
A68: Amount written off | C68: =C67*C65 -> 0 | D68: =D67*D65 -> 0 | E68: 0 | F68: 0 | G68: 0 | H68: 0 | I68: =I67*I65 -> 0 | J68: 0 | K68: 0 | L68: 0 | M68: 0 | N68: 0 | O68: 0 | P68: 0 | Q68: 0 | R68: 0 | S68: 0 | T68: 0 | U68: 0 | V68: 0 | W68: 0 | X68: 0 | Y68: 0 | Z68: 0 | AA68: 0 | AB68: 0 | AC68: 0 | AD68: 0 | AE68: 0 | AF68: 0 | AG68: 0 | AH68: 0 | AI68: 0 | AJ68: 0 | AK68: 0 | AL68: 0 | AM68: 0 | AN68: 0 | AO68: 0 | AP68: 0 | AQ68: 0 | AR68: 0 | AS68: 0 | AT68: 0 | AU68: 0 | AV68: 0 | AW68: 0 | AX68: 0 | AY68: 0 | AZ68: 0 | BA68: 0 | BB68: 0 | BC68: 0 | BD68: 0 | BE68: 0 | BF68: 0 | BG68: 0 | BH68: 0 | BI68: 0 | BJ68: 0 | BK68: 0
A70: NPV of outlay | B70: =INDEX(C70:BK70,0,MATCH(gModelYear,C9:BK9)) -> 35099.96091 | C70: =D70/(((1+C11)*(1+$B$6))^0.5*((1+D11)*(1+$B$6))^0.5) -> 17264.97128 | D70: =E70/(((1+D11)*(1+$B$6))^0.5*((1+E11)*(1+$B$6))^0.5) -> 17962.1904 | E70: =F70/(((1+E11)*(1+$B$6))^0.5*((1+F11)*(1+$B$6))^0.5) -> 18760.49299 | F70: =G70/(((1+F11)*(1+$B$6))^0.5*((1+G11)*(1+$B$6))^0.5) -> 19719.60246 | G70: =G28+H70/(((1+G11)*(1+$B$6))^0.5*((1+H11)*(1+$B$6))^0.5) -> 20737.79516 | H70: 21787.29446 | I70: 23066.66554 | J70: 24587.53733 | K70: 25601.45245 | L70: 26644.3346 | M70: 28455.04905 | N70: 30374.16149 | O70: 32113.32184 | P70: 33771.3344 | Q70: 35099.96091 | R70: 23914.87968 | S70: 12325.944 | T70: 0 | U70: 0 | V70: 0 | W70: 0 | X70: 0 | Y70: 0 | Z70: 0 | AA70: 0 | AB70: 0 | AC70: 0 | AD70: 0 | AE70: 0 | AF70: 0 | AG70: 0 | AH70: 0 | AI70: 0 | AJ70: 0 | AK70: 0 | AL70: 0 | AM70: =AM28+AN70/(((1+AM11)*(1+$B$6))^0.5*((1+AN11)*(1+$B$6))^0.5) -> 0 | AN70: 0 | AO70: 0 | AP70: 0 | AQ70: 0 | AR70: 0 | AS70: 0 | AT70: 0 | AU70: 0 | AV70: 0 | AW70: 0 | AX70: 0 | AY70: 0 | AZ70: 0 | BA70: 0 | BB70: 0 | BC70: 0 | BD70: 0 | BE70: 0 | BF70: 0 | BG70: 0 | BH70: 0 | BI70: 0 | BJ70: 0 | BK70: 0
A71: NPV of repayments - HMT rate | B71: =INDEX(C71:BK71,0,MATCH(gModelYear,C9:BK9)) -> 31190.33178 | C71: =C62+D71/(((1+C11)*(1+$B$6))^0.5*((1+D11)*(1+$B$6))^0.5) -> 15341.90263 | D71: 15961.4616 | E71: 16670.8448 | F71: 17523.12332 | G71: 18427.90404 | H71: 19360.50427 | I71: 20497.37187 | J71: 21848.8405 | K71: 22749.8201 | L71: 23676.54023 | M71: 25285.56721 | N71: 26990.91823 | O71: 28536.36121 | P71: 30009.6951 | Q71: 31190.33178 | R71: 32290.66209 | S71: 33710.25227 | T71: 35433.65166 | U71: 37335.80095 | V71: 39340.06141 | W71: 41451.91459 | X71: 43677.13627 | Y71: 45647.79128 | Z71: 48098.25601 | AA71: 49601.00303 | AB71: 50494.26796 | AC71: 51185.97307 | AD71: 52407.26384 | AE71: 47863.96753 | AF71: 47259.25953 | AG71: 43655.11547 | AH71: 39890.69895 | AI71: =AI62+AJ71/(((1+AI11)*(1+$B$6))^0.5*((1+AJ11)*(1+$B$6))^0.5) -> 37274.92104 | AJ71: 36152.65813 | AK71: 34415.83567 | AL71: 33159.23766 | AM71: 33050.47918 | AN71: 31595.97226 | AO71: 28457.42525 | AP71: 28409.37861 | AQ71: 24138.27869 | AR71: 19654.86141 | AS71: 14855.80128 | AT71: 11770.22365 | AU71: 0 | AV71: 0 | AW71: 0 | AX71: 0 | AY71: 0 | AZ71: 0 | BA71: 0 | BB71: 0 | BC71: 0 | BD71: 0 | BE71: 0 | BF71: 0 | BG71: 0 | BH71: 0 | BI71: 0 | BJ71: 0 | BK71: 0
A72: NPV of repayments - Interest rate | B72: =INDEX(C72:BK72,0,MATCH(gModelYear,C9:BK9)) -> 33898.95984 | C72: =C62+D72/((1+C14)^0.5*(1+D14)^0.5) -> 15441.33308 | D72: 15854.64769 | E72: 16658.51581 | F72: 17496.91492 | G72: 18473.05345 | H72: 19559.11067 | I72: 20701.67787 | J72: 21998.70596 | K72: 23540.40399 | L72: 24927.36093 | M72: 26141.4329 | N72: 27811.51399 | O72: 29889.23168 | P72: 31941.35279 | Q72: 33898.95984 | R72: 35661.05949 | S72: 37253.90308 | T72: 39040.2108 | U72: 40622.03933 | V72: 41838.98653 | W72: 43135.99511 | X72: 44579.83454 | Y72: 45705.15478 | Z72: 47413.91793 | AA72: 48612.64728 | AB72: 49407.94746 | AC72: 49870.71971 | AD72: 51031.96768 | AE72: 46739.90003 | AF72: 46397.27791 | AG72: 43045.81385 | AH72: 39522.98956 | AI72: =AI62+AJ72/((1+AI14)^0.5*(1+AJ14)^0.5) -> 37065.34977 | AJ72: 36084.03015 | AK72: 34452.53242 | AL72: 33061.34616 | AM72: 32795.70516 | AN72: 31429.81669 | AO72: 28207.82021 | AP72: 28072.28857 | AQ72: 23949.27492 | AR72: 19591.56706 | AS72: 14827.15731 | AT72: 11770.22365 | AU72: 0 | AV72: 0 | AW72: 0 | AX72: 0 | AY72: 0 | AZ72: 0 | BA72: 0 | BB72: 0 | BC72: 0 | BD72: 0 | BE72: 0 | BF72: 0 | BG72: 0 | BH72: 0 | BI72: 0 | BJ72: 0 | BK72: 0
A74: Repayments | C74: =C62 -> 0 | D74: 0 | E74: 0 | F74: =F62 -> 0 | G74: =G62 -> 0 | H74: 0 | I74: 0 | J74: 0 | K74: 0 | L74: 0 | M74: 0 | N74: 0 | O74: 0 | P74: 0 | Q74: 0 | R74: 0 | S74: 0 | T74: 0 | U74: 0 | V74: 0 | W74: 0 | X74: 354.9657515 | Y74: 0 | Z74: 1001.432355 | AA74: 1632.743609 | AB74: 1868.906422 | AC74: 1400.416636 | AD74: 6937.722363 | AE74: 2968.88314 | AF74: 5788.01956 | AG74: 5759.974642 | AH74: 4480.480037 | AI74: 2930.823102 | AJ74: 3458.496991 | AK74: 2915.410404 | AL74: 1762.130156 | AM74: 3035.115952 | AN74: 4562.148184 | AO74: 1469.24425 | AP74: 5478.632989 | AQ74: 5466.664484 | AR74: 5542.231234 | AS74: 3674.390704 | AT74: 11770.22365 | AU74: 0 | AV74: 0 | AW74: 0 | AX74: 0 | AY74: 0 | AZ74: 0 | BA74: 0 | BB74: 0 | BC74: 0 | BD74: 0 | BE74: 0 | BF74: 0 | BG74: 0 | BH74: 0 | BI74: 0 | BJ74: 0 | BK74: 0
A75: Total income (real terms) | B75: =SUM(C57:BK57) -> 953313
A76: RAB | B76: =IFERROR(1-B71/B70,0) -> 0.1113855691
A77: WriteOff | B77: =SUMPRODUCT(C65:BK65,C67:BK67) -> 0
A78: YearsWithBal | B78: =COUNTIF(C60:BK60,">0")-3 -> 26

Sheet Lookups
B1: Death | D1: Disability | G1: Migration | H1: Home Students | L1: EU Students | S1: Frictions | U1: 2000-01 | V1: 2001-02 | W1: 2002-03 | X1: 2003-04 | Y1: 2004-05 | Z1: 2005-06 | AA1: 2006-07 | AB1: 2007-08 | AC1: 2008-09 | AD1: 2009-10 | AE1: 2010-11 | AF1: 2011-12 | AG1: 2012-13 | AH1: 2013-14 | AI1: 2014-15 | AJ1: 2015-16 | AK1: 2016-17 | AL1: 2017-18 | AM1: 2018-19 | AN1: 2019-20 | AO1: 2020-21 | AP1: 2021-22 | AQ1: 2022-23 | AR1: 2023-24 | AS1: 2024-25 | AT1: 2025-26 | AU1: 2026-27 | AV1: 2027-28 | AW1: 2028-29 | AX1: 2029-30 | AY1: 2030-31 | AZ1: 2031-32 | BA1: 2032-33 | BB1: 2033-34 | BC1: 2034-35 | BD1: 2035-36 | BE1: 2036-37 | BF1: 2037-38 | BG1: 2038-39 | BH1: 2039-40 | BI1: 2040-41 | BJ1: 2041-42 | BK1: 2042-43 | BL1: 2043-44 | BM1: 2044-45 | BN1: 2045-46 | BO1: 2046-47 | BP1: 2047-48 | BQ1: 2048-49 | BR1: 2049-50 | BS1: 2050-51 | BT1: 2051-52 | BU1: 2052-53 | BV1: 2053-54 | BW1: 2054-55 | BX1: 2055-56 | BY1: 2056-57 | BZ1: 2057-58 | CA1: 2058-59 | CB1: 2059-60 | CC1: 2060-61
A2: Age | B2: Cumulative probability | D2: Cumulative probability | H2: Length of stay away from UK (years) | L2: Length of stay away from UK (years)
A3: Years | B3: Male | C3: Female | D3: Male | E3: Female | H3: 1 | I3: 0 | L3: 1 | M3: 0
A4: 20 | B4: 0 | C4: 0 | D4: 0 | E4: 0 | G4: Emigration | H4: 3 | I4: 0.3142857143 | K4: Emigration | L4: 3 | M4: 0.52 | S4: Under-Payments Friction | U4: -0.158 | V4: -0.158 | W4: -0.158 | X4: -0.142 | Y4: -0.132 | Z4: -0.094 | AA4: -0.09 | AB4: -0.095 | AC4: -0.075 | AD4: -0.075 | AE4: -0.075 | AF4: -0.075 | AG4: -0.075 | AH4: -0.075 | AI4: -0.075 | AJ4: -0.075 | AK4: -0.075 | AL4: -0.075 | AM4: -0.075 | AN4: -0.075 | AO4: -0.075 | AP4: -0.075 | AQ4: -0.075 | AR4: -0.075 | AS4: -0.075 | AT4: -0.075 | AU4: -0.075 | AV4: -0.075 | AW4: -0.075 | AX4: -0.075 | AY4: -0.075 | AZ4: -0.075 | BA4: -0.075 | BB4: -0.075 | BC4: -0.075 | BD4: -0.075 | BE4: -0.075 | BF4: -0.075 | BG4: -0.075 | BH4: -0.075 | BI4: -0.075 | BJ4: -0.075 | BK4: -0.075 | BL4: -0.075 | BM4: -0.075 | BN4: -0.075 | BO4: -0.075 | BP4: -0.075 | BQ4: -0.075 | BR4: -0.075 | BS4: -0.075 | BT4: -0.075 | BU4: -0.075 | BV4: -0.075 | BW4: -0.075 | BX4: -0.075 | BY4: -0.075 | BZ4: -0.075 | CA4: -0.075 | CB4: -0.075 | CC4: -0.075
A5: 21 | B5: 0.000523 | C5: 0.000213 | D5: 0.001795025619 | E5: 0.002047441823 | H5: 7 | I5: 0.5571428571 | L5: 7 | M5: 0.64 | S5: Over-Payments Friction | U5: 0.081 | V5: 0.081 | W5: 0.081 | X5: 0.066 | Y5: 0.062 | Z5: 0.083 | AA5: 0.076 | AB5: 0.072 | AC5: 0.069 | AD5: 0.069 | AE5: 0.069 | AF5: 0.069 | AG5: 0.069 | AH5: 0.069 | AI5: 0.069 | AJ5: 0.069 | AK5: 0.069 | AL5: 0.069 | AM5: 0.069 | AN5: 0.069 | AO5: 0.069 | AP5: 0.069 | AQ5: 0.069 | AR5: 0.069 | AS5: 0.069 | AT5: 0.069 | AU5: 0.069 | AV5: 0.069 | AW5: 0.069 | AX5: 0.069 | AY5: 0.069 | AZ5: 0.069 | BA5: 0.069 | BB5: 0.069 | BC5: 0.069 | BD5: 0.069 | BE5: 0.069 | BF5: 0.069 | BG5: 0.069 | BH5: 0.069 | BI5: 0.069 | BJ5: 0.069 | BK5: 0.069 | BL5: 0.069 | BM5: 0.069 | BN5: 0.069 | BO5: 0.069 | BP5: 0.069 | BQ5: 0.069 | BR5: 0.069 | BS5: 0.069 | BT5: 0.069 | BU5: 0.069 | BV5: 0.069 | BW5: 0.069 | BX5: 0.069 | BY5: 0.069 | BZ5: 0.069 | CA5: 0.069 | CB5: 0.069 | CC5: 0.069
A6: 22 | B6: 0.001101 | C6: 0.000424 | D6: 0.003588449945 | E6: 0.004076150782 | H6: 15 | I6: 0.8 | L6: 40 | M6: 0.88 | S6: Total friction applied | U6: =U4+U5 -> -0.077 | V6: =V4+V5 -> -0.077 | W6: -0.077 | X6: -0.076 | Y6: -0.07 | Z6: -0.011 | AA6: -0.014 | AB6: -0.023 | AC6: -0.006 | AD6: -0.006 | AE6: -0.006 | AF6: -0.006 | AG6: -0.006 | AH6: -0.006 | AI6: -0.006 | AJ6: -0.006 | AK6: -0.006 | AL6: -0.006 | AM6: -0.006 | AN6: -0.006 | AO6: -0.006 | AP6: -0.006 | AQ6: -0.006 | AR6: -0.006 | AS6: -0.006 | AT6: -0.006 | AU6: -0.006 | AV6: -0.006 | AW6: -0.006 | AX6: -0.006 | AY6: -0.006 | AZ6: -0.006 | BA6: -0.006 | BB6: -0.006 | BC6: -0.006 | BD6: -0.006 | BE6: -0.006 | BF6: -0.006 | BG6: -0.006 | BH6: -0.006 | BI6: -0.006 | BJ6: -0.006 | BK6: -0.006 | BL6: -0.006 | BM6: -0.006 | BN6: -0.006 | BO6: -0.006 | BP6: -0.006 | BQ6: -0.006 | BR6: -0.006 | BS6: -0.006 | BT6: -0.006 | BU6: -0.006 | BV6: -0.006 | BW6: -0.006 | BX6: -0.006 | BY6: -0.006 | BZ6: -0.006 | CA6: -0.006 | CB6: -0.006 | CC6: -0.006
A7: 23 | B7: 0.001661 | C7: 0.000632 | D7: 0.005451513986 | E7: 0.006160169161 | G7: Age | H7: Male | I7: Female | K7: Age | L7: Male | M7: Female | P7: Frictions
A8: 24 | B8: 0.002233 | C8: 0.00088 | D8: 0.007403838386 | E8: 0.008318461264 | G8: 18 | H8: 0.004887317139 | I8: 0.004962374268 | K8: 18 | L8: 0.02767508707 | M8: 0.1221409248 | P8: Friction 1 - Drop out students
A9: 25 | B9: 0.00279 | C9: 0.001117 | D9: 0.009356142028 | E9: 0.01045394768 | G9: 19 | H9: 0.005179044942 | I9: 0.005002755783 | K9: 19 | L9: 0.03884395035 | M9: 0.120349965 | P9: % of dropouts in repayment SRDD Group affected | T9: % | U9: 0.75 | V9: 0.75 | W9: 0.75 | X9: 0.75 | Y9: 0.75 | Z9: 0.62 | AA9: 0.4577 | AB9: 0.4577 | AC9: 0.4577 | AD9: 0.4577 | AE9: 0.4577 | AF9: 0.4577 | AG9: 0.4577 | AH9: 0.4577 | AI9: 0.4577 | AJ9: 0.4577 | AK9: 0.4577 | AL9: 0.4577 | AM9: 0.4577 | AN9: 0.4577 | AO9: 0.4577 | AP9: 0.4577 | AQ9: 0.4577 | AR9: 0.4577 | AS9: 0.4577 | AT9: 0.4577 | AU9: 0.4577 | AV9: 0.4577 | AW9: 0.4577 | AX9: 0.4577 | AY9: 0.4577 | AZ9: 0.4577 | BA9: 0.4577 | BB9: 0.4577 | BC9: 0.4577 | BD9: 0.4577 | BE9: 0.4577 | BF9: 0.4577 | BG9: 0.4577 | BH9: 0.4577 | BI9: 0.4577 | BJ9: 0.4577 | BK9: 0.4577 | BL9: 0.4577 | BM9: 0.4577 | BN9: 0.4577 | BO9: 0.4577 | BP9: 0.4577 | BQ9: 0.4577 | BR9: 0.4577 | BS9: 0.4577 | BT9: 0.4577 | BU9: 0.4577 | BV9: 0.4577 | BW9: 0.4577 | BX9: 0.4577 | BY9: 0.4577 | BZ9: 0.4577 | CA9: 0.4577 | CB9: 0.4577 | CC9: 0.4577
A10: 26 | B10: 0.003401 | C10: 0.001384 | D10: 0.01126264696 | E10: 0.01252762929 | G10: 20 | H10: 0.005470772746 | I10: 0.005043137298 | K10: 20 | L10: 0.05001281364 | M10: 0.1185590052 | P10: Average no. Years of lost repayments | T10: Years | U10: 0 | V10: 0 | W10: 0 | X10: 0 | Y10: 0 | Z10: 0 | AA10: 0 | AB10: 1 | AC10: 2 | AD10: 3 | AE10: 3 | AF10: 3 | AG10: 3 | AH10: 3 | AI10: 3 | AJ10: 3 | AK10: 3 | AL10: 3 | AM10: 3 | AN10: 3 | AO10: 3 | AP10: 3 | AQ10: 3 | AR10: 3 | AS10: 3 | AT10: 3 | AU10: 3 | AV10: 3 | AW10: 3 | AX10: 3 | AY10: 3 | AZ10: 3 | BA10: 3 | BB10: 3 | BC10: 3 | BD10: 3 | BE10: 3 | BF10: 3 | BG10: 3 | BH10: 3 | BI10: 3 | BJ10: 3 | BK10: 3 | BL10: 3 | BM10: 3 | BN10: 3 | BO10: 3 | BP10: 3 | BQ10: 3 | BR10: 3 | BS10: 3 | BT10: 3 | BU10: 3 | BV10: 3 | BW10: 3 | BX10: 3 | BY10: 3 | BZ10: 3 | CA10: 3 | CB10: 3 | CC10: 3
A11: 27 | B11: 0.00403 | C11: 0.001658 | D11: 0.01308763348 | E11: 0.01451127009 | G11: 21 | H11: 0.005762500549 | I11: 0.005083518814 | K11: 21 | L11: 0.06118167692 | M11: 0.1167680454 | P11: Friction 2 - Borrowers with no NINO - Long Term
A12: 28 | B12: 0.004641 | C12: 0.001977 | D12: 0.01484228579 | E12: 0.01641232904 | G12: 22 | H12: 0.006054228353 | I12: 0.005123900329 | K12: 22 | L12: 0.07235054021 | M12: 0.1149770856 | P12: % of repayment SRDD Group affected | T12: % | U12: 0.0002121520706 | V12: 0.0007044268827 | W12: 0.0007298496011 | X12: 0.001442393525 | Y12: 0.001317431878 | Z12: 0.001868313698 | AA12: 0.001744220869 | AB12: 0.001046064157 | AC12: 0.001039340052 | AD12: 0.0005255561482 | AE12: 0.0002912144995 | AF12: 0.0001373359102 | AG12: 7.97673112e-05 | AH12: 7.97673112e-05 | AI12: 7.97673112e-05 | AJ12: 7.97673112e-05 | AK12: 7.97673112e-05 | AL12: 7.97673112e-05 | AM12: 7.97673112e-05 | AN12: 7.97673112e-05 | AO12: 7.97673112e-05 | AP12: 7.97673112e-05 | AQ12: 7.97673112e-05 | AR12: 7.97673112e-05 | AS12: 7.97673112e-05 | AT12: 7.97673112e-05 | AU12: 7.97673112e-05 | AV12: 7.97673112e-05 | AW12: 7.97673112e-05 | AX12: 7.97673112e-05 | AY12: 7.97673112e-05 | AZ12: 7.97673112e-05 | BA12: 7.97673112e-05 | BB12: 7.97673112e-05 | BC12: 7.97673112e-05 | BD12: 7.97673112e-05 | BE12: 7.97673112e-05 | BF12: 7.97673112e-05 | BG12: 7.97673112e-05 | BH12: 7.97673112e-05 | BI12: 7.97673112e-05 | BJ12: 7.97673112e-05 | BK12: 7.97673112e-05 | BL12: 7.97673112e-05 | BM12: 7.97673112e-05 | BN12: 7.97673112e-05 | BO12: 7.97673112e-05 | BP12: 7.97673112e-05 | BQ12: 7.97673112e-05 | BR12: 7.97673112e-05 | BS12: 7.97673112e-05 | BT12: 7.97673112e-05 | BU12: 7.97673112e-05 | BV12: 7.97673112e-05 | BW12: 7.97673112e-05 | BX12: 7.97673112e-05 | BY12: 7.97673112e-05 | BZ12: 7.97673112e-05 | CA12: 7.97673112e-05 | CB12: 7.97673112e-05 | CC12: 7.97673112e-05
A13: 29 | B13: 0.005322 | C13: 0.002305 | D13: 0.01648239476 | E13: 0.01819947122 | G13: 23 | H13: 0.006345956156 | I13: 0.005164281845 | K13: 23 | L13: 0.08351940349 | M13: 0.1131861258 | P13: Average no. Years of lost repayments | T13: Years | U13: 47.08333333 | V13: 47.08333333 | W13: 47.08333333 | X13: 47.08333333 | Y13: 47.08333333 | Z13: 47.08333333 | AA13: 47.08333333 | AB13: 47.08333333 | AC13: 47.08333333 | AD13: 47.08333333 | AE13: 47.08333333 | AF13: 47.08333333 | AG13: 47.08333333 | AH13: 47.08333333 | AI13: 47.08333333 | AJ13: 47.08333333 | AK13: 47.08333333 | AL13: 47.08333333 | AM13: 47.08333333 | AN13: 47.08333333 | AO13: 47.08333333 | AP13: 47.08333333 | AQ13: 47.08333333 | AR13: 47.08333333 | AS13: 47.08333333 | AT13: 47.08333333 | AU13: 47.08333333 | AV13: 47.08333333 | AW13: 47.08333333 | AX13: 47.08333333 | AY13: 47.08333333 | AZ13: 47.08333333 | BA13: 47.08333333 | BB13: 47.08333333 | BC13: 47.08333333 | BD13: 47.08333333 | BE13: 47.08333333 | BF13: 47.08333333 | BG13: 47.08333333 | BH13: 47.08333333 | BI13: 47.08333333 | BJ13: 47.08333333 | BK13: 47.08333333 | BL13: 47.08333333 | BM13: 47.08333333 | BN13: 47.08333333 | BO13: 47.08333333 | BP13: 47.08333333 | BQ13: 47.08333333 | BR13: 47.08333333 | BS13: 47.08333333 | BT13: 47.08333333 | BU13: 47.08333333 | BV13: 47.08333333 | BW13: 47.08333333 | BX13: 47.08333333 | BY13: 47.08333333 | BZ13: 47.08333333 | CA13: 47.08333333 | CB13: 47.08333333 | CC13: 47.08333333
A14: 30 | B14: 0.006036 | C14: 0.002625 | D14: 0.01803260099 | E14: 0.01988304874 | G14: 24 | H14: 0.00663768396 | I14: 0.00520466336 | K14: 24 | L14: 0.09468826678 | M14: 0.111395166 | P14: Friction 3 - Borrowers with no NINO - Short Term
A15: 31 | B15: 0.00682 | C15: 0.003002 | D15: 0.01908461114 | E15: 0.02101997026 | G15: 25 | H15: 0.006929411764 | I15: 0.005245044875 | K15: 25 | L15: 0.1058571301 | M15: 0.1096042062 | P15: % of repayment SRDD Group affected | T15: % | U15: 0 | V15: 0 | W15: 0 | X15: 0.0002095785463 | Y15: 0.0001978013868 | Z15: 0.0003049176659 | AA15: 0.0001607898997 | AB15: 0.000129600869 | AC15: 8.375634121e-05 | AD15: 9.020739858e-05 | AE15: 3.569726123e-05 | AF15: 3.716148159e-05 | AG15: 3.054918301e-05 | AH15: 3.054918301e-05 | AI15: 3.054918301e-05 | AJ15: 3.054918301e-05 | AK15: 3.054918301e-05 | AL15: 3.054918301e-05 | AM15: 3.054918301e-05 | AN15: 3.054918301e-05 | AO15: 3.054918301e-05 | AP15: 3.054918301e-05 | AQ15: 3.054918301e-05 | AR15: 3.054918301e-05 | AS15: 3.054918301e-05 | AT15: 3.054918301e-05 | AU15: 3.054918301e-05 | AV15: 3.054918301e-05 | AW15: 3.054918301e-05 | AX15: 3.054918301e-05 | AY15: 3.054918301e-05 | AZ15: 3.054918301e-05 | BA15: 3.054918301e-05 | BB15: 3.054918301e-05 | BC15: 3.054918301e-05 | BD15: 3.054918301e-05 | BE15: 3.054918301e-05 | BF15: 3.054918301e-05 | BG15: 3.054918301e-05 | BH15: 3.054918301e-05 | BI15: 3.054918301e-05 | BJ15: 3.054918301e-05 | BK15: 3.054918301e-05 | BL15: 3.054918301e-05 | BM15: 3.054918301e-05 | BN15: 3.054918301e-05 | BO15: 3.054918301e-05 | BP15: 3.054918301e-05 | BQ15: 3.054918301e-05 | BR15: 3.054918301e-05 | BS15: 3.054918301e-05 | BT15: 3.054918301e-05 | BU15: 3.054918301e-05 | BV15: 3.054918301e-05 | BW15: 3.054918301e-05 | BX15: 3.054918301e-05 | BY15: 3.054918301e-05 | BZ15: 3.054918301e-05 | CA15: 3.054918301e-05 | CB15: 3.054918301e-05 | CC15: 3.054918301e-05
A16: 32 | B16: 0.007578 | C16: 0.003395 | D16: 0.02014116516 | E16: 0.02216794784 | G16: 26 | H16: 0.007221139567 | I16: 0.005285426391 | K16: 26 | L16: 0.1170259933 | M16: 0.1078132464 | P16: Average no. Years of lost repayments | T16: Years | U16: 1 | V16: 1 | W16: 1 | X16: 1 | Y16: 1 | Z16: 1 | AA16: 1 | AB16: 1 | AC16: 1 | AD16: 1 | AE16: 1 | AF16: 0 | AG16: 0 | AH16: 0 | AI16: 0 | AJ16: 0 | AK16: 0 | AL16: 0 | AM16: 0 | AN16: 0 | AO16: 0 | AP16: 0 | AQ16: 0 | AR16: 0 | AS16: 0 | AT16: 0 | AU16: 0 | AV16: 0 | AW16: 0 | AX16: 0 | AY16: 0 | AZ16: 0 | BA16: 0 | BB16: 0 | BC16: 0 | BD16: 0 | BE16: 0 | BF16: 0 | BG16: 0 | BH16: 0 | BI16: 0 | BJ16: 0 | BK16: 0 | BL16: 0 | BM16: 0 | BN16: 0 | BO16: 0 | BP16: 0 | BQ16: 0 | BR16: 0 | BS16: 0 | BT16: 0 | BU16: 0 | BV16: 0 | BW16: 0 | BX16: 0 | BY16: 0 | BZ16: 0 | CA16: 0 | CB16: 0 | CC16: 0
A17: 33 | B17: 0.008412 | C17: 0.003846 | D17: 0.0211700019 | E17: 0.02328247586 | G17: 27 | H17: 0.007512867371 | I17: 0.005325807906 | K17: 27 | L17: 0.1281948566 | M17: 0.1060222866 | P17: Friction 4 - Borrowers with NINO not matched by IR - Long Term
A18: 34 | B18: 0.009261 | C18: 0.004306 | D18: 0.02218704577 | E18: 0.02438692876 | G18: 28 | H18: 0.007240035306 | I18: 0.005040625102 | K18: 28 | L18: 0.1248111509 | M18: 0.1003450761 | P18: % of repayment SRDD Group affected | T18: % | U18: 0.002567040054 | V18: 0.001144693684 | W18: 0.0005863748932 | X18: 0.0009850994927 | Y18: 0.0006811805331 | Z18: 0.001474226086 | AA18: 0.001797537816 | AB18: 0.002708766671 | AC18: 0.003767401708 | AD18: 0.001316939457 | AE18: 0.001480717975 | AF18: 0.001381951063 | AG18: 0.001381951063 | AH18: 0.001381951063 | AI18: 0.001381951063 | AJ18: 0.001381951063 | AK18: 0.001381951063 | AL18: 0.001381951063 | AM18: 0.001381951063 | AN18: 0.001381951063 | AO18: 0.001381951063 | AP18: 0.001381951063 | AQ18: 0.001381951063 | AR18: 0.001381951063 | AS18: 0.001381951063 | AT18: 0.001381951063 | AU18: 0.001381951063 | AV18: 0.001381951063 | AW18: 0.001381951063 | AX18: 0.001381951063 | AY18: 0.001381951063 | AZ18: 0.001381951063 | BA18: 0.001381951063 | BB18: 0.001381951063 | BC18: 0.001381951063 | BD18: 0.001381951063 | BE18: 0.001381951063 | BF18: 0.001381951063 | BG18: 0.001381951063 | BH18: 0.001381951063 | BI18: 0.001381951063 | BJ18: 0.001381951063 | BK18: 0.001381951063 | BL18: 0.001381951063 | BM18: 0.001381951063 | BN18: 0.001381951063 | BO18: 0.001381951063 | BP18: 0.001381951063 | BQ18: 0.001381951063 | BR18: 0.001381951063 | BS18: 0.001381951063 | BT18: 0.001381951063 | BU18: 0.001381951063 | BV18: 0.001381951063 | BW18: 0.001381951063 | BX18: 0.001381951063 | BY18: 0.001381951063 | BZ18: 0.001381951063 | CA18: 0.001381951063 | CB18: 0.001381951063 | CC18: 0.001381951063
A19: 35 | B19: 0.010241 | C19: 0.004815 | D19: 0.02317511428 | E19: 0.02546671274 | G19: 29 | H19: 0.006967203241 | I19: 0.004755442298 | K19: 29 | L19: 0.1214274451 | M19: 0.09466786547 | P19: Average no. Years of lost repayments | T19: Years | U19: 47.08333333 | V19: 47.08333333 | W19: 47.08333333 | X19: 47.08333333 | Y19: 47.08333333 | Z19: 47.08333333 | AA19: 47.08333333 | AB19: 47.08333333 | AC19: 47.08333333 | AD19: 47.08333333 | AE19: 47.08333333 | AF19: 47.08333333 | AG19: 47.08333333 | AH19: 47.08333333 | AI19: 47.08333333 | AJ19: 47.08333333 | AK19: 47.08333333 | AL19: 47.08333333 | AM19: 47.08333333 | AN19: 47.08333333 | AO19: 47.08333333 | AP19: 47.08333333 | AQ19: 47.08333333 | AR19: 47.08333333 | AS19: 47.08333333 | AT19: 47.08333333 | AU19: 47.08333333 | AV19: 47.08333333 | AW19: 47.08333333 | AX19: 47.08333333 | AY19: 47.08333333 | AZ19: 47.08333333 | BA19: 47.08333333 | BB19: 47.08333333 | BC19: 47.08333333 | BD19: 47.08333333 | BE19: 47.08333333 | BF19: 47.08333333 | BG19: 47.08333333 | BH19: 47.08333333 | BI19: 47.08333333 | BJ19: 47.08333333 | BK19: 47.08333333 | BL19: 47.08333333 | BM19: 47.08333333 | BN19: 47.08333333 | BO19: 47.08333333 | BP19: 47.08333333 | BQ19: 47.08333333 | BR19: 47.08333333 | BS19: 47.08333333 | BT19: 47.08333333 | BU19: 47.08333333 | BV19: 47.08333333 | BW19: 47.08333333 | BX19: 47.08333333 | BY19: 47.08333333 | BZ19: 47.08333333 | CA19: 47.08333333 | CB19: 47.08333333 | CC19: 47.08333333
A20: 36 | B20: 0.011281 | C20: 0.005397 | D20: 0.02416226971 | E20: 0.02654462554 | G20: 30 | H20: 0.006694371176 | I20: 0.004470259494 | K20: 30 | L20: 0.1180437393 | M20: 0.0889906549 | P20: Friction 5 - Borrowers with NINO not matched by IR - Short Term
A21: 37 | B21: 0.01239 | C21: 0.006003 | D21: 0.02514201719 | E21: 0.02761807495 | G21: 31 | H21: 0.006421539112 | I21: 0.00418507669 | K21: 31 | L21: 0.1146600336 | M21: 0.08331344432 | P21: % of repayment SRDD Group affected | T21: % | U21: 0.009782306406 | V21: 0.004469078771 | W21: 0.002775609114 | X21: 0.004972546465 | Y21: 0.002925307548 | Z21: 0.005982836999 | AA21: 0.007745219131 | AB21: 0.008880829825 | AC21: 0.008956076378 | AD21: 0.002715174444 | AE21: 0.002840995946 | AF21: 0.0005956764178 | AG21: 0.0005956764178 | AH21: 0.0005956764178 | AI21: 0.0005956764178 | AJ21: 0.0005956764178 | AK21: 0.0005956764178 | AL21: 0.0005956764178 | AM21: 0.0005956764178 | AN21: 0.0005956764178 | AO21: 0.0005956764178 | AP21: 0.0005956764178 | AQ21: 0.0005956764178 | AR21: 0.0005956764178 | AS21: 0.0005956764178 | AT21: 0.0005956764178 | AU21: 0.0005956764178 | AV21: 0.0005956764178 | AW21: 0.0005956764178 | AX21: 0.0005956764178 | AY21: 0.0005956764178 | AZ21: 0.0005956764178 | BA21: 0.0005956764178 | BB21: 0.0005956764178 | BC21: 0.0005956764178 | BD21: 0.0005956764178 | BE21: 0.0005956764178 | BF21: 0.0005956764178 | BG21: 0.0005956764178 | BH21: 0.0005956764178 | BI21: 0.0005956764178 | BJ21: 0.0005956764178 | BK21: 0.0005956764178 | BL21: 0.0005956764178 | BM21: 0.0005956764178 | BN21: 0.0005956764178 | BO21: 0.0005956764178 | BP21: 0.0005956764178 | BQ21: 0.0005956764178 | BR21: 0.0005956764178 | BS21: 0.0005956764178 | BT21: 0.0005956764178 | BU21: 0.0005956764178 | BV21: 0.0005956764178 | BW21: 0.0005956764178 | BX21: 0.0005956764178 | BY21: 0.0005956764178 | BZ21: 0.0005956764178 | CA21: 0.0005956764178 | CB21: 0.0005956764178 | CC21: 0.0005956764178
A22: 38 | B22: 0.013626 | C22: 0.006693 | D22: 0.02612655531 | E22: 0.02869962773 | G22: 32 | H22: 0.006148707047 | I22: 0.003899893886 | K22: 32 | L22: 0.1112763278 | M22: 0.07763623374 | P22: Average no. Years of lost repayments | T22: Years | U22: 1 | V22: 1 | W22: 1 | X22: 1 | Y22: 1 | Z22: 1 | AA22: 1 | AB22: 1 | AC22: 1 | AD22: 1 | AE22: 1 | AF22: 1 | AG22: 1 | AH22: 1 | AI22: 1 | AJ22: 1 | AK22: 1 | AL22: 1 | AM22: 1 | AN22: 1 | AO22: 1 | AP22: 1 | AQ22: 1 | AR22: 1 | AS22: 1 | AT22: 1 | AU22: 1 | AV22: 1 | AW22: 1 | AX22: 1 | AY22: 1 | AZ22: 1 | BA22: 1 | BB22: 1 | BC22: 1 | BD22: 1 | BE22: 1 | BF22: 1 | BG22: 1 | BH22: 1 | BI22: 1 | BJ22: 1 | BK22: 1 | BL22: 1 | BM22: 1 | BN22: 1 | BO22: 1 | BP22: 1 | BQ22: 1 | BR22: 1 | BS22: 1 | BT22: 1 | BU22: 1 | BV22: 1 | BW22: 1 | BX22: 1 | BY22: 1 | BZ22: 1 | CA22: 1 | CB22: 1 | CC22: 1
A23: 39 | B23: 0.014976 | C23: 0.007427 | D23: 0.02712383794 | E23: 0.02979901266 | G23: 33 | H23: 0.006135115566 | I23: 0.003991883298 | K23: 33 | L23: 0.09562385029 | M23: 0.07295805239 | P23: Friction 6 - Other Frictions
A24: 40 | B24: 0.016392 | C24: 0.008185 | D24: 0.02814327702 | E24: 0.03092548747 | G24: 34 | H24: 0.006121524085 | I24: 0.004083872709 | K24: 34 | L24: 0.07997137278 | M24: 0.06827987104 | P24: % of repayment SRDD Group affected | T24: % | U24: 0 | V24: 0 | W24: 0 | X24: 0 | Y24: 0 | Z24: 0 | AA24: 0 | AB24: 0 | AC24: 0 | AD24: 0 | AE24: 0 | AF24: 0.001176409801 | AG24: 0.001176409801 | AH24: 0.001176409801 | AI24: 0.001176409801 | AJ24: 0.001176409801 | AK24: 0.001176409801 | AL24: 0.001176409801 | AM24: 0.001176409801 | AN24: 0.001176409801 | AO24: 0.001176409801 | AP24: 0.001176409801 | AQ24: 0.001176409801 | AR24: 0.001176409801 | AS24: 0.001176409801 | AT24: 0.001176409801 | AU24: 0.001176409801 | AV24: 0.001176409801 | AW24: 0.001176409801 | AX24: 0.001176409801 | AY24: 0.001176409801 | AZ24: 0.001176409801 | BA24: 0.001176409801 | BB24: 0.001176409801 | BC24: 0.001176409801 | BD24: 0.001176409801 | BE24: 0.001176409801 | BF24: 0.001176409801 | BG24: 0.001176409801 | BH24: 0.001176409801 | BI24: 0.001176409801 | BJ24: 0.001176409801 | BK24: 0.001176409801 | BL24: 0.001176409801 | BM24: 0.001176409801 | BN24: 0.001176409801 | BO24: 0.001176409801 | BP24: 0.001176409801 | BQ24: 0.001176409801 | BR24: 0.001176409801 | BS24: 0.001176409801 | BT24: 0.001176409801 | BU24: 0.001176409801 | BV24: 0.001176409801 | BW24: 0.001176409801 | BX24: 0.001176409801 | BY24: 0.001176409801 | BZ24: 0.001176409801 | CA24: 0.001176409801 | CB24: 0.001176409801 | CC24: 0.001176409801
A25: 41 | B25: 0.017945 | C25: 0.009092 | D25: 0.02895882991 | E25: 0.03182898869 | G25: 35 | H25: 0.006107932604 | I25: 0.004175862121 | K25: 35 | L25: 0.06431889527 | M25: 0.0636016897 | P25: Average no. Years of lost repayments | T25: Years | U25: 0 | V25: 0 | W25: 0 | X25: 0 | Y25: 0 | Z25: 0 | AA25: 0 | AB25: 0 | AC25: 0 | AD25: 0 | AE25: 0.5 | AF25: 0.5 | AG25: 0.5 | AH25: 0.5 | AI25: 0.5 | AJ25: 0.5 | AK25: 0.5 | AL25: 0.5 | AM25: 0.5 | AN25: 0.5 | AO25: 0.5 | AP25: 0.5 | AQ25: 0.5 | AR25: 0.5 | AS25: 0.5 | AT25: 0.5 | AU25: 0.5 | AV25: 0.5 | AW25: 0.5 | AX25: 0.5 | AY25: 0.5 | AZ25: 0.5 | BA25: 0.5 | BB25: 0.5 | BC25: 0.5 | BD25: 0.5 | BE25: 0.5 | BF25: 0.5 | BG25: 0.5 | BH25: 0.5 | BI25: 0.5 | BJ25: 0.5 | BK25: 0.5 | BL25: 0.5 | BM25: 0.5 | BN25: 0.5 | BO25: 0.5 | BP25: 0.5 | BQ25: 0.5 | BR25: 0.5 | BS25: 0.5 | BT25: 0.5 | BU25: 0.5 | BV25: 0.5 | BW25: 0.5 | BX25: 0.5 | BY25: 0.5 | BZ25: 0.5 | CA25: 0.5 | CB25: 0.5 | CC25: 0.5
A26: 42 | B26: 0.019565 | C26: 0.010094 | D26: 0.02980467511 | E26: 0.03276965297 | G26: 36 | H26: 0.006094341123 | I26: 0.004267851532 | K26: 36 | L26: 0.04866641777 | M26: 0.05892350835
A27: 43 | B27: 0.021347 | C27: 0.011132 | D27: 0.03066661521 | E27: 0.0337295481 | G27: 37 | H27: 0.006080749642 | I27: 0.004359840944 | K27: 37 | L27: 0.03301394026 | M27: 0.054245327
A28: 44 | B28: 0.023185 | C28: 0.012308 | D28: 0.03153852298 | E28: 0.03470271612 | G28: 38 | H28: 0.005973407809 | I28: 0.003881104334 | K28: 38 | L28: 0.03243115408 | M28: 0.04731034486
A29: 45 | B29: 0.02531 | C29: 0.013572 | D29: 0.03244021257 | E29: 0.03570671852 | G29: 39 | H29: 0.005866065975 | I29: 0.003402367725 | K29: 39 | L29: 0.03184836789 | M29: 0.04037536273
A30: 46 | B30: 0.027556 | C30: 0.014965 | D30: 0.03337708422 | E30: 0.0367475179 | G30: 40 | H30: 0.005758724142 | I30: 0.002923631115 | K30: 40 | L30: 0.03126558171 | M30: 0.03344038059
A31: 47 | B31: 0.029905 | C31: 0.01647 | D31: 0.0343396529 | E31: 0.03781270531 | G31: 41 | H31: 0.005651382308 | I31: 0.002444894505 | K31: 41 | L31: 0.03068279552 | M31: 0.02650539846
A32: 48 | B32: 0.032297 | C32: 0.018043 | D32: 0.03529653889 | E32: 0.03887090982 | G32: 42 | H32: 0.005544040474 | I32: 0.001966157895 | K32: 42 | L32: 0.03010000934 | M32: 0.01957041632
A33: 49 | B33: 0.035006 | C33: 0.019788 | D33: 0.03626298092 | E33: 0.03994143204 | G33: 43 | H33: 0.004937106481 | I33: 0.001964861973 | K33: 43 | L33: 0.02807638442 | M33: 0.01760692512
A34: 50 | B34: 0.037911 | C34: 0.02176 | D34: 0.03723895979 | E34: 0.04102009919 | G34: 44 | H34: 0.004330172488 | I34: 0.001963566051 | K34: 44 | L34: 0.0260527595 | M34: 0.01564343392
A35: 51 | B35: 0.041018 | C35: 0.023919 | D35: 0.03876648377 | E35: 0.04271176337 | G35: 45 | H35: 0.003723238495 | I35: 0.001962270129 | K35: 45 | L35: 0.02402913458 | M35: 0.01367994273
A36: 52 | B36: 0.044579 | C36: 0.02623 | D36: 0.04025128416 | E36: 0.04434945691 | G36: 46 | H36: 0.003116304501 | I36: 0.001960974207 | K36: 46 | L36: 0.02200550966 | M36: 0.01171645153
A37: 53 | B37: 0.048586 | C37: 0.028892 | D37: 0.04168492123 | E37: 0.04593830746 | G37: 47 | H37: 0.002509370508 | I37: 0.001959678285 | K37: 47 | L37: 0.01998188474 | M37: 0.009752960327
A38: 54 | B38: 0.05291 | C38: 0.031758 | D38: 0.04301654827 | E38: 0.0474141935 | G38: 48 | H38: 0.002234448934 | I38: 0.001790627257 | K38: 48 | L38: 0.01824451021 | M38: 0.007802368262
A39: 55 | B39: 0.057514 | C39: 0.035025 | D39: 0.04427506453 | E39: 0.04881447599 | G39: 49 | H39: 0.00195952736 | I39: 0.00162157623 | K39: 49 | L39: 0.01650713569 | M39: 0.005851776196
A40: 56 | B40: 0.062735 | C40: 0.038435 | D40: 0.04582489091 | E40: 0.05053209737 | G40: 50 | H40: 0.001684605786 | I40: 0.001452525202 | K40: 50 | L40: 0.01476976117 | M40: 0.003901184131
A41: 57 | B41: 0.068627 | C41: 0.04224 | D41: 0.04741086695 | E41: 0.05228962748 | G41: 51 | H41: 0.001409684212 | I41: 0.001283474174 | K41: 51 | L41: 0.01303238665 | M41: 0.001950592065
A42: 58 | B42: 0.074886 | C42: 0.046381 | D42: 0.04903442518 | E42: 0.05409116169 | G42: 52 | H42: 0.001134762638 | I42: 0.001114423146 | K42: 52 | L42: 0.01129501212 | M42: 0
A43: 59 | B43: 0.081871 | C43: 0.0508 | D43: 0.05073749911 | E43: 0.05597604083 | G43: 53 | H43: 0.001165667236 | I43: 0.001269252599 | K43: 53 | L43: 0.01160262518 | M43: 0
A44: 60 | B44: 0.089329 | C44: 0.055717 | D44: 0.05263942911 | E44: 0.05806182866 | G44: 54 | H44: 0.001196571833 | I44: 0.001424082051 | K44: 54 | L44: 0.01191023823 | M44: 0
A45: 61 | B45: 0.097638 | C45: 0.06105 | D45: 0.0567039772 | E45: 0.06250102927 | G45: 55 | H45: 0.001227476431 | I45: 0.001578911504 | K45: 55 | L45: 0.01221785129 | M45: 0
A46: 62 | B46: 0.106492 | C46: 0.066812 | D46: 0.06060710809 | E46: 0.06674808171 | G46: 56 | H46: 0.001258381028 | I46: 0.001733740957 | K46: 56 | L46: 0.01252546435 | M46: 0
A47: 63 | B47: 0.11596 | C47: 0.072916 | D47: 0.06450633708 | E47: 0.07098077917 | G47: 57 | H47: 0.001289285626 | I47: 0.00188857041 | K47: 57 | L47: 0.0128330774 | M47: 0
A48: 64 | B48: 0.126422 | C48: 0.07969 | D48: 0.06844518936 | E48: 0.07526417486 | G48: 58 | H48: 0.001767255782 | I48: 0.001629050938 | K48: 58 | L48: 0.01026646192 | M48: 0
A49: 65 | B49: 0.137931 | C49: 0.087123 | D49: 0.07249904387 | E49: 0.0796465678 | G49: 59 | H49: 0.002245225938 | I49: 0.001369531466 | K49: 59 | L49: 0.007699846441 | M49: 0
A50: 66 | B50: 0.150577 | C50: 0.095293 | G50: 60 | H50: 0.002723196094 | I50: 0.001110011994 | K50: 60 | L50: 0.005133230961 | M50: 0
A51: 67 | B51: 0.164734 | C51: 0.104355 | G51: 61 | H51: 0.00320116625 | I51: 0.0008504925226 | K51: 61 | L51: 0.00256661548 | M51: 0
A52: 68 | B52: 0.180028 | C52: 0.114042 | G52: 62 | H52: 0.003679136407 | I52: 0.0005909730508 | K52: 62 | L52: 0 | M52: 0
A53: 69 | B53: 0.197233 | C53: 0.124888 | G53: 63 | H53: 0.004157106563 | I53: 0.000331453579 | K53: 63 | L53: 0 | M53: 0
A54: 70 | B54: 0.216254 | C54: 0.137023 | G54: 64 | H54: 0.004635076719 | I54: 7.193410725e-05 | K54: 64 | L54: 0 | M54: 0
A55: 71 | B55: 0.237259 | C55: 0.150815 | G55: 65 | H55: 0.005113046875 | I55: 0 | K55: 65 | L55: 0 | M55: 0
A56: 72 | B56: 0.260338 | C56: 0.165539
A57: 73 | B57: 0.285859 | C57: 0.181893
A58: 74 | B58: 0.313751 | C58: 0.199713
A59: 75 | B59: 0.344651 | C59: 0.220123 | P59: 0.38 | Q59: 0.39 | R59: 0.4 | S59: 0.41 | T59: 0.42 | U59: 0.43 | V59: 0.44 | W59: 0.45 | X59: 0.46 | Y59: 0.47 | Z59: 0.48 | AA59: 0.49 | AB59: 0.5 | AC59: 0.51 | AD59: 0.52 | AE59: 0.53 | AF59: 0.54 | AG59: 0.55 | AH59: 0.56 | AI59: 0.57 | AJ59: 0.58 | AK59: 0.59 | AL59: 0.6 | AM59: 0.61 | AN59: 0.62 | AO59: 0.63 | AP59: 0.64 | AQ59: 0.65 | AR59: 0.66 | AS59: 0.67 | AT59: 0.68 | AU59: 0.69 | AV59: 0.7 | AW59: 0.71 | AX59: 0.72 | AY59: 0.73 | AZ59: 0.74 | BA59: 0.75 | BB59: 0.76 | BC59: 0.77 | BD59: 0.78 | BE59: 0.79 | BF59: 0.8 | BG59: 0.81 | BH59: 0.82 | BI59: 0.83 | BJ59: 0.84 | BK59: 0.85 | BL59: 0.86 | BM59: 0.87 | BN59: 0.88 | BO59: 0.89 | BP59: 0.9 | BQ59: 0.91 | BR59: 0.92 | BS59: 0.93 | BT59: 0.94 | BU59: 0.95 | BV59: 0.96 | BW59: 0.97 | BX59: 0.98 | BY59: 0.99 | BZ59: 1
P60: 0.09589041096 | Q60: 0.09589041096 | R60: 0.102739726 | S60: 0.1095890411 | T60: 0.1164383562 | U60: 0.1164383562 | V60: 0.1232876712 | W60: 0.1369863014 | X60: 0.1369863014 | Y60: 0.1506849315 | Z60: 0.1506849315 | AA60: 0.1506849315 | AB60: 0.1506849315 | AC60: 0.1575342466 | AD60: 0.1643835616 | AE60: 0.1712328767 | AF60: 0.1712328767 | AG60: 0.1712328767 | AH60: 0.1780821918 | AI60: 0.1917808219 | AJ60: 0.198630137 | AK60: 0.2123287671 | AL60: 0.2397260274 | AM60: 0.2465753425 | AN60: 0.2602739726 | AO60: 0.2602739726 | AP60: 0.2671232877 | AQ60: 0.2739726027 | AR60: 0.2739726027 | AS60: 0.2808219178 | AT60: 0.2945205479 | AU60: 0.2945205479 | AV60: 0.2945205479 | AW60: 0.301369863 | AX60: 0.301369863 | AY60: 0.3082191781 | AZ60: 0.3150684932 | BA60: 0.3219178082 | BB60: 0.3219178082 | BC60: 0.3219178082 | BD60: 0.3287671233 | BE60: 0.3356164384 | BF60: 0.3356164384 | BG60: 0.3356164384 | BH60: 0.3356164384 | BI60: 0.3424657534 | BJ60: 0.3424657534 | BK60: 0.3698630137 | BL60: 0.3767123288 | BM60: 0.397260274 | BN60: 0.4178082192 | BO60: 0.4589041096 | BP60: 0.4726027397 | BQ60: 0.4931506849 | BR60: 0.4931506849 | BS60: 0.5136986301 | BT60: 0.5136986301 | BU60: 0.5136986301 | BV60: 0.5205479452 | BW60: 0.5205479452 | BX60: 0.5205479452 | BY60: 0.5205479452 | BZ60: 1
P61: 0.4347826087 | Q61: 0.4673913043 | R61: 0.4836956522 | S61: 0.5054347826 | T61: 0.5108695652 | U61: 0.5217391304 | V61: 0.5380434783 | W61: 0.5434782609 | X61: 0.5489130435 | Y61: 0.5543478261 | Z61: 0.5706521739 | AA61: 0.5706521739 | AB61: 0.5706521739 | AC61: 0.5815217391 | AD61: 0.5923913043 | AE61: 0.5923913043 | AF61: 0.5923913043 | AG61: 0.5923913043 | AH61: 0.6032608696 | AI61: 0.6086956522 | AJ61: 0.6141304348 | AK61: 0.6195652174 | AL61: 0.6195652174 | AM61: 0.625 | AN61: 0.625 | AO61: 0.6304347826 | AP61: 0.6358695652 | AQ61: 0.6413043478 | AR61: 0.6467391304 | AS61: 0.6467391304 | AT61: 0.6467391304 | AU61: 0.6467391304 | AV61: 0.6467391304 | AW61: 0.6467391304 | AX61: 0.6467391304 | AY61: 0.6576086957 | AZ61: 0.6576086957 | BA61: 0.6630434783 | BB61: 0.6630434783 | BC61: 0.6684782609 | BD61: 0.6739130435 | BE61: 0.6793478261 | BF61: 0.6793478261 | BG61: 0.6793478261 | BH61: 0.6847826087 | BI61: 0.6847826087 | BJ61: 0.6902173913 | BK61: 0.6956521739 | BL61: 0.7065217391 | BM61: 0.722826087 | BN61: 0.7282608696 | BO61: 0.7391304348 | BP61: 0.7445652174 | BQ61: 0.7445652174 | BR61: 0.75 | BS61: 0.75 | BT61: 0.7608695652 | BU61: 0.7663043478 | BV61: 0.7663043478 | BW61: 0.7663043478 | BX61: 0.7663043478 | BY61: 0.7663043478 | BZ61: 1
P62: 0.6381322957 | Q62: 0.6420233463 | R62: 0.6498054475 | S62: 0.6575875486 | T62: 0.6614785992 | U62: 0.6770428016 | V62: 0.6848249027 | W62: 0.6887159533 | X62: 0.6887159533 | Y62: 0.6887159533 | Z62: 0.6926070039 | AA62: 0.6964980545 | AB62: 0.7003891051 | AC62: 0.7003891051 | AD62: 0.7081712062 | AE62: 0.719844358 | AF62: 0.7237354086 | AG62: 0.7237354086 | AH62: 0.7276264591 | AI62: 0.7315175097 | AJ62: 0.7392996109 | AK62: 0.7431906615 | AL62: 0.7548638132 | AM62: 0.7704280156 | AN62: 0.7704280156 | AO62: 0.7782101167 | AP62: 0.7898832685 | AQ62: 0.7976653696 | AR62: 0.8015564202 | AS62: 0.8015564202 | AT62: 0.8015564202 | AU62: 0.8015564202 | AV62: 0.8054474708 | AW62: 0.8093385214 | AX62: 0.8093385214 | AY62: 0.8093385214 | AZ62: 0.813229572 | BA62: 0.813229572 | BB62: 0.8171206226 | BC62: 0.8210116732 | BD62: 0.8210116732 | BE62: 0.8249027237 | BF62: 0.8326848249 | BG62: 0.8404669261 | BH62: 0.8482490272 | BI62: 0.8521400778 | BJ62: 0.8521400778 | BK62: 0.8521400778 | BL62: 0.8521400778 | BM62: 0.8560311284 | BN62: 0.859922179 | BO62: 0.859922179 | BP62: 0.859922179 | BQ62: 0.859922179 | BR62: 0.859922179 | BS62: 0.859922179 | BT62: 0.859922179 | BU62: 0.859922179 | BV62: 0.859922179 | BW62: 0.859922179 | BX62: 0.859922179 | BY62: 0.859922179 | BZ62: 1
P63: 0.7816091954 | Q63: 0.7902298851 | R63: 0.7959770115 | S63: 0.8045977011 | T63: 0.8074712644 | U63: 0.8132183908 | V63: 0.816091954 | W63: 0.8189655172 | X63: 0.8218390805 | Y63: 0.8247126437 | Z63: 0.8333333333 | AA63: 0.8390804598 | AB63: 0.841954023 | AC63: 0.841954023 | AD63: 0.8505747126 | AE63: 0.8591954023 | AF63: 0.8620689655 | AG63: 0.8620689655 | AH63: 0.8620689655 | AI63: 0.8620689655 | AJ63: 0.867816092 | AK63: 0.8706896552 | AL63: 0.8793103448 | AM63: 0.882183908 | AN63: 0.882183908 | AO63: 0.8850574713 | AP63: 0.8879310345 | AQ63: 0.8879310345 | AR63: 0.8908045977 | AS63: 0.8908045977 | AT63: 0.8965517241 | AU63: 0.8965517241 | AV63: 0.8994252874 | AW63: 0.9022988506 | AX63: 0.9022988506 | AY63: 0.9022988506 | AZ63: 0.9022988506 | BA63: 0.9022988506 | BB63: 0.9022988506 | BC63: 0.9022988506 | BD63: 0.9022988506 | BE63: 0.9022988506 | BF63: 0.9051724138 | BG63: 0.9051724138 | BH63: 0.9051724138 | BI63: 0.9051724138 | BJ63: 0.9051724138 | BK63: 0.9051724138 | BL63: 0.908045977 | BM63: 0.908045977 | BN63: 0.908045977 | BO63: 0.908045977 | BP63: 0.908045977 | BQ63: 0.908045977 | BR63: 0.908045977 | BS63: 0.908045977 | BT63: 0.908045977 | BU63: 0.9109195402 | BV63: 0.9109195402 | BW63: 0.9109195402 | BX63: 0.9137931034 | BY63: 0.9137931034 | BZ63: 1
P64: 0.8630952381 | Q64: 0.8660714286 | R64: 0.8720238095 | S64: 0.875 | T64: 0.880952381 | U64: 0.880952381 | V64: 0.8869047619 | W64: 0.8869047619 | X64: 0.8898809524 | Y64: 0.8958333333 | Z64: 0.8958333333 | AA64: 0.8958333333 | AB64: 0.8988095238 | AC64: 0.9017857143 | AD64: 0.9077380952 | AE64: 0.9107142857 | AF64: 0.9136904762 | AG64: 0.9166666667 | AH64: 0.9166666667 | AI64: 0.9226190476 | AJ64: 0.9226190476 | AK64: 0.9255952381 | AL64: 0.9255952381 | AM64: 0.9255952381 | AN64: 0.9255952381 | AO64: 0.9285714286 | AP64: 0.9345238095 | AQ64: 0.9345238095 | AR64: 0.9375 | AS64: 0.9404761905 | AT64: 0.9404761905 | AU64: 0.943452381 | AV64: 0.943452381 | AW64: 0.9464285714 | AX64: 0.9464285714 | AY64: 0.9464285714 | AZ64: 0.9494047619 | BA64: 0.9523809524 | BB64: 0.9553571429 | BC64: 0.9553571429 | BD64: 0.9553571429 | BE64: 0.9553571429 | BF64: 0.9553571429 | BG64: 0.9583333333 | BH64: 0.9583333333 | BI64: 0.9583333333 | BJ64: 0.9583333333 | BK64: 0.9613095238 | BL64: 0.9613095238 | BM64: 0.9613095238 | BN64: 0.9613095238 | BO64: 0.9613095238 | BP64: 0.9613095238 | BQ64: 0.9613095238 | BR64: 0.9613095238 | BS64: 0.9642857143 | BT64: 0.9642857143 | BU64: 0.9642857143 | BV64: 0.9642857143 | BW64: 0.9672619048 | BX64: 0.9702380952 | BY64: 0.9702380952 | BZ64: 1
P65: 0.9365482234 | Q65: 0.9390862944 | R65: 0.9441624365 | S65: 0.9441624365 | T65: 0.9467005076 | U65: 0.9517766497 | V65: 0.9517766497 | W65: 0.9543147208 | X65: 0.9568527919 | Y65: 0.9568527919 | Z65: 0.9568527919 | AA65: 0.9593908629 | AB65: 0.9593908629 | AC65: 0.9593908629 | AD65: 0.961928934 | AE65: 0.961928934 | AF65: 0.9644670051 | AG65: 0.9644670051 | AH65: 0.9644670051 | AI65: 0.9644670051 | AJ65: 0.9644670051 | AK65: 0.9644670051 | AL65: 0.9644670051 | AM65: 0.9644670051 | AN65: 0.9644670051 | AO65: 0.9644670051 | AP65: 0.9644670051 | AQ65: 0.9670050761 | AR65: 0.9670050761 | AS65: 0.9695431472 | AT65: 0.9695431472 | AU65: 0.9695431472 | AV65: 0.9695431472 | AW65: 0.9695431472 | AX65: 0.9695431472 | AY65: 0.9695431472 | AZ65: 0.9695431472 | BA65: 0.9695431472 | BB65: 0.9695431472 | BC65: 0.9695431472 | BD65: 0.9746192893 | BE65: 0.9746192893 | BF65: 0.9746192893 | BG65: 0.9746192893 | BH65: 0.9771573604 | BI65: 0.9771573604 | BJ65: 0.9771573604 | BK65: 0.9771573604 | BL65: 0.9771573604 | BM65: 0.9771573604 | BN65: 0.9771573604 | BO65: 0.9771573604 | BP65: 0.9771573604 | BQ65: 0.9771573604 | BR65: 0.9771573604 | BS65: 0.9796954315 | BT65: 0.9796954315 | BU65: 0.9796954315 | BV65: 0.9796954315 | BW65: 0.9822335025 | BX65: 0.9847715736 | BY65: 0.9847715736 | BZ65: 1
P66: 0.9723577236 | Q66: 0.9723577236 | R66: 0.9723577236 | S66: 0.9739837398 | T66: 0.9739837398 | U66: 0.9756097561 | V66: 0.9772357724 | W66: 0.9772357724 | X66: 0.9788617886 | Y66: 0.9788617886 | Z66: 0.9788617886 | AA66: 0.9788617886 | AB66: 0.9788617886 | AC66: 0.9821138211 | AD66: 0.9821138211 | AE66: 0.9821138211 | AF66: 0.9821138211 | AG66: 0.9837398374 | AH66: 0.9837398374 | AI66: 0.9837398374 | AJ66: 0.9837398374 | AK66: 0.9837398374 | AL66: 0.9853658537 | AM66: 0.9853658537 | AN66: 0.9853658537 | AO66: 0.9853658537 | AP66: 0.9853658537 | AQ66: 0.9869918699 | AR66: 0.9869918699 | AS66: 0.9869918699 | AT66: 0.9886178862 | AU66: 0.9886178862 | AV66: 0.9886178862 | AW66: 0.9886178862 | AX66: 0.9886178862 | AY66: 0.9886178862 | AZ66: 0.9886178862 | BA66: 0.9902439024 | BB66: 0.9902439024 | BC66: 0.9902439024 | BD66: 0.9902439024 | BE66: 0.9902439024 | BF66: 0.9902439024 | BG66: 0.9902439024 | BH66: 0.9902439024 | BI66: 0.9902439024 | BJ66: 0.9918699187 | BK66: 0.9951219512 | BL66: 0.9951219512 | BM66: 0.9967479675 | BN66: 0.9967479675 | BO66: 0.9967479675 | BP66: 0.9983739837 | BQ66: 0.9983739837 | BR66: 0.9983739837 | BS66: 0.9983739837 | BT66: 0.9983739837 | BU66: 0.9983739837 | BV66: 0.9983739837 | BW66: 0.9983739837 | BX66: 0.9983739837 | BY66: 0.9983739837 | BZ66: 1
P67: 0.9793103448 | Q67: 0.9810344828 | R67: 0.9810344828 | S67: 0.9827586207 | T67: 0.9844827586 | U67: 0.9862068966 | V67: 0.9862068966 | W67: 0.9862068966 | X67: 0.9862068966 | Y67: 0.9862068966 | Z67: 0.9862068966 | AA67: 0.9862068966 | AB67: 0.9879310345 | AC67: 0.9879310345 | AD67: 0.9879310345 | AE67: 0.9896551724 | AF67: 0.9896551724 | AG67: 0.9896551724 | AH67: 0.9913793103 | AI67: 0.9931034483 | AJ67: 0.9931034483 | AK67: 0.9931034483 | AL67: 0.9931034483 | AM67: 0.9948275862 | AN67: 0.9948275862 | AO67: 0.9948275862 | AP67: 0.9948275862 | AQ67: 0.9948275862 | AR67: 0.9948275862 | AS67: 0.9948275862 | AT67: 0.9948275862 | AU67: 0.9965517241 | AV67: 0.9965517241 | AW67: 0.9965517241 | AX67: 0.9965517241 | AY67: 0.9965517241 | AZ67: 0.9965517241 | BA67: 0.9982758621 | BB67: 0.9982758621 | BC67: 0.9982758621 | BD67: 0.9982758621 | BE67: 0.9982758621 | BF67: 0.9982758621 | BG67: 0.9982758621 | BH67: 0.9982758621 | BI67: 0.9982758621 | BJ67: 0.9982758621 | BK67: 0.9982758621 | BL67: 0.9982758621 | BM67: 0.9982758621 | BN67: 1 | BO67: 1 | BP67: 1 | BQ67: 1 | BR67: 1 | BS67: 1 | BT67: 1 | BU67: 1 | BV67: 1 | BW67: 1 | BX67: 1 | BY67: 1 | BZ67: 1
P68: 0.9899569584 | Q68: 0.9913916786 | R68: 0.9928263989 | S68: 0.9928263989 | T68: 0.9928263989 | U68: 0.9928263989 | V68: 0.9928263989 | W68: 0.9928263989 | X68: 0.9928263989 | Y68: 0.9928263989 | Z68: 0.9928263989 | AA68: 0.9928263989 | AB68: 0.9942611191 | AC68: 0.9942611191 | AD68: 0.9942611191 | AE68: 0.9942611191 | AF68: 0.9942611191 | AG68: 0.9956958393 | AH68: 0.9956958393 | AI68: 0.9956958393 | AJ68: 0.9971305595 | AK68: 0.9971305595 | AL68: 0.9971305595 | AM68: 0.9971305595 | AN68: 0.9971305595 | AO68: 0.9971305595 | AP68: 0.9985652798 | AQ68: 0.9985652798 | AR68: 0.9985652798 | AS68: 0.9985652798 | AT68: 0.9985652798 | AU68: 0.9985652798 | AV68: 0.9985652798 | AW68: 0.9985652798 | AX68: 0.9985652798 | AY68: 1 | AZ68: 1 | BA68: 1 | BB68: 1 | BC68: 1 | BD68: 1 | BE68: 1 | BF68: 1 | BG68: 1 | BH68: 1 | BI68: 1 | BJ68: 1 | BK68: 1 | BL68: 1 | BM68: 1 | BN68: 1 | BO68: 1 | BP68: 1 | BQ68: 1 | BR68: 1 | BS68: 1 | BT68: 1 | BU68: 1 | BV68: 1 | BW68: 1 | BX68: 1 | BY68: 1 | BZ68: 1
P69: 0.9980861244 | Q69: 0.9980861244 | R69: 0.9980861244 | S69: 0.9990430622 | T69: 0.9990430622 | U69: 0.9990430622 | V69: 0.9990430622 | W69: 0.9990430622 | X69: 0.9990430622 | Y69: 1 | Z69: 1 | AA69: 1 | AB69: 1 | AC69: 1 | AD69: 1 | AE69: 1 | AF69: 1 | AG69: 1 | AH69: 1 | AI69: 1 | AJ69: 1 | AK69: 1 | AL69: 1 | AM69: 1 | AN69: 1 | AO69: 1 | AP69: 1 | AQ69: 1 | AR69: 1 | AS69: 1 | AT69: 1 | AU69: 1 | AV69: 1 | AW69: 1 | AX69: 1 | AY69: 1 | AZ69: 1 | BA69: 1 | BB69: 1 | BC69: 1 | BD69: 1 | BE69: 1 | BF69: 1 | BG69: 1 | BH69: 1 | BI69: 1 | BJ69: 1 | BK69: 1 | BL69: 1 | BM69: 1 | BN69: 1 | BO69: 1 | BP69: 1 | BQ69: 1 | BR69: 1 | BS69: 1 | BT69: 1 | BU69: 1 | BV69: 1 | BW69: 1 | BX69: 1 | BY69: 1 | BZ69: 1
P72: 0.38 | Q72: 0.39 | R72: 0.4 | S72: 0.41 | T72: 0.42 | U72: 0.43 | V72: 0.44 | W72: 0.45 | X72: 0.46 | Y72: 0.47 | Z72: 0.48 | AA72: 0.49 | AB72: 0.5 | AC72: 0.51 | AD72: 0.52 | AE72: 0.53 | AF72: 0.54 | AG72: 0.55 | AH72: 0.56 | AI72: 0.57 | AJ72: 0.58 | AK72: 0.59 | AL72: 0.6 | AM72: 0.61 | AN72: 0.62 | AO72: 0.63 | AP72: 0.64 | AQ72: 0.65 | AR72: 0.66 | AS72: 0.67 | AT72: 0.68 | AU72: 0.69 | AV72: 0.7 | AW72: 0.71 | AX72: 0.72 | AY72: 0.73 | AZ72: 0.74 | BA72: 0.75 | BB72: 0.76 | BC72: 0.77 | BD72: 0.78 | BE72: 0.79 | BF72: 0.8 | BG72: 0.81 | BH72: 0.82 | BI72: 0.83 | BJ72: 0.84 | BK72: 0.85 | BL72: 0.86 | BM72: 0.87 | BN72: 0.88 | BO72: 0.89 | BP72: 0.9 | BQ72: 0.91 | BR72: 0.92 | BS72: 0.93 | BT72: 0.94 | BU72: 0.95 | BV72: 0.96 | BW72: 0.97 | BX72: 0.98 | BY72: 0.99 | BZ72: 1
P73: 0.1556122449 | Q73: 0.1581632653 | R73: 0.1683673469 | S73: 0.1785714286 | T73: 0.1785714286 | U73: 0.1836734694 | V73: 0.1913265306 | W73: 0.1964285714 | X73: 0.2066326531 | Y73: 0.2117346939 | Z73: 0.2117346939 | AA73: 0.2219387755 | AB73: 0.2244897959 | AC73: 0.2321428571 | AD73: 0.2321428571 | AE73: 0.2346938776 | AF73: 0.2423469388 | AG73: 0.25 | AH73: 0.2602040816 | AI73: 0.262755102 | AJ73: 0.2678571429 | AK73: 0.2678571429 | AL73: 0.2729591837 | AM73: 0.2755102041 | AN73: 0.2806122449 | AO73: 0.2806122449 | AP73: 0.2806122449 | AQ73: 0.2831632653 | AR73: 0.2882653061 | AS73: 0.2933673469 | AT73: 0.2959183673 | AU73: 0.3010204082 | AV73: 0.3035714286 | AW73: 0.306122449 | AX73: 0.306122449 | AY73: 0.306122449 | AZ73: 0.3086734694 | BA73: 0.3086734694 | BB73: 0.3112244898 | BC73: 0.3112244898 | BD73: 0.318877551 | BE73: 0.3214285714 | BF73: 0.3290816327 | BG73: 0.3290816327 | BH73: 0.3341836735 | BI73: 0.3341836735 | BJ73: 0.3443877551 | BK73: 0.3571428571 | BL73: 0.362244898 | BM73: 0.375 | BN73: 0.387755102 | BO73: 0.4132653061 | BP73: 0.4387755102 | BQ73: 0.4642857143 | BR73: 0.5025510204 | BS73: 0.512755102 | BT73: 0.5178571429 | BU73: 0.5178571429 | BV73: 0.5280612245 | BW73: 0.5306122449 | BX73: 0.5306122449 | BY73: 0.5331632653 | BZ73: 1
P74: 0.4052631579 | Q74: 0.4184210526 | R74: 0.4184210526 | S74: 0.4210526316 | T74: 0.4421052632 | U74: 0.4552631579 | V74: 0.4815789474 | W74: 0.4921052632 | X74: 0.4947368421 | Y74: 0.5236842105 | Z74: 0.5315789474 | AA74: 0.5368421053 | AB74: 0.5447368421 | AC74: 0.5473684211 | AD74: 0.55 | AE74: 0.5526315789 | AF74: 0.5552631579 | AG74: 0.5552631579 | AH74: 0.5631578947 | AI74: 0.5631578947 | AJ74: 0.5657894737 | AK74: 0.5684210526 | AL74: 0.5763157895 | AM74: 0.5842105263 | AN74: 0.5947368421 | AO74: 0.6 | AP74: 0.6026315789 | AQ74: 0.6184210526 | AR74: 0.6210526316 | AS74: 0.6263157895 | AT74: 0.6289473684 | AU74: 0.6289473684 | AV74: 0.6315789474 | AW74: 0.6394736842 | AX74: 0.6394736842 | AY74: 0.6394736842 | AZ74: 0.6394736842 | BA74: 0.6421052632 | BB74: 0.6447368421 | BC74: 0.6526315789 | BD74: 0.6552631579 | BE74: 0.6631578947 | BF74: 0.6657894737 | BG74: 0.6710526316 | BH74: 0.6736842105 | BI74: 0.6736842105 | BJ74: 0.6763157895 | BK74: 0.6763157895 | BL74: 0.6842105263 | BM74: 0.6842105263 | BN74: 0.6842105263 | BO74: 0.6842105263 | BP74: 0.6894736842 | BQ74: 0.6973684211 | BR74: 0.7026315789 | BS74: 0.7105263158 | BT74: 0.7131578947 | BU74: 0.7157894737 | BV74: 0.7157894737 | BW74: 0.7210526316 | BX74: 0.7236842105 | BY74: 0.7263157895 | BZ74: 1
P75: 0.5360169492 | Q75: 0.5444915254 | R75: 0.5550847458 | S75: 0.5656779661 | T75: 0.5783898305 | U75: 0.5826271186 | V75: 0.5911016949 | W75: 0.6016949153 | X75: 0.6080508475 | Y75: 0.6101694915 | Z75: 0.6186440678 | AA75: 0.6292372881 | AB75: 0.6313559322 | AC75: 0.6440677966 | AD75: 0.6440677966 | AE75: 0.6440677966 | AF75: 0.6461864407 | AG75: 0.6461864407 | AH75: 0.6525423729 | AI75: 0.6610169492 | AJ75: 0.6673728814 | AK75: 0.6758474576 | AL75: 0.6843220339 | AM75: 0.6927966102 | AN75: 0.6991525424 | AO75: 0.7055084746 | AP75: 0.7118644068 | AQ75: 0.7161016949 | AR75: 0.7161016949 | AS75: 0.7224576271 | AT75: 0.7288135593 | AU75: 0.7330508475 | AV75: 0.7394067797 | AW75: 0.7457627119 | AX75: 0.7521186441 | AY75: 0.7563559322 | AZ75: 0.7563559322 | BA75: 0.7584745763 | BB75: 0.7669491525 | BC75: 0.7775423729 | BD75: 0.781779661 | BE75: 0.7860169492 | BF75: 0.7902542373 | BG75: 0.7987288136 | BH75: 0.8008474576 | BI75: 0.8072033898 | BJ75: 0.8093220339 | BK75: 0.813559322 | BL75: 0.8177966102 | BM75: 0.8199152542 | BN75: 0.8262711864 | BO75: 0.8283898305 | BP75: 0.8347457627 | BQ75: 0.8347457627 | BR75: 0.8368644068 | BS75: 0.8411016949 | BT75: 0.8453389831 | BU75: 0.8516949153 | BV75: 0.8538135593 | BW75: 0.8580508475 | BX75: 0.8580508475 | BY75: 0.8580508475 | BZ75: 1
P76: 0.6840077071 | Q76: 0.6878612717 | R76: 0.6897880539 | S76: 0.6936416185 | T76: 0.6955684008 | U76: 0.6994219653 | V76: 0.7090558767 | W76: 0.7167630058 | X76: 0.732177264 | Y76: 0.7418111753 | Z76: 0.7552986513 | AA76: 0.7610789981 | AB76: 0.7649325626 | AC76: 0.7687861272 | AD76: 0.774566474 | AE76: 0.7803468208 | AF76: 0.7861271676 | AG76: 0.7976878613 | AH76: 0.7996146435 | AI76: 0.7996146435 | AJ76: 0.8034682081 | AK76: 0.8034682081 | AL76: 0.8111753372 | AM76: 0.816955684 | AN76: 0.8188824663 | AO76: 0.8208092486 | AP76: 0.8246628131 | AQ76: 0.8265895954 | AR76: 0.8265895954 | AS76: 0.8265895954 | AT76: 0.8265895954 | AU76: 0.8285163776 | AV76: 0.8285163776 | AW76: 0.8304431599 | AX76: 0.8362235067 | AY76: 0.8400770713 | AZ76: 0.8420038536 | BA76: 0.8477842004 | BB76: 0.8516377649 | BC76: 0.8535645472 | BD76: 0.8554913295 | BE76: 0.8554913295 | BF76: 0.8574181118 | BG76: 0.859344894 | BH76: 0.8612716763 | BI76: 0.8631984586 | BJ76: 0.8651252408 | BK76: 0.8670520231 | BL76: 0.8670520231 | BM76: 0.8709055877 | BN76: 0.8709055877 | BO76: 0.8709055877 | BP76: 0.8728323699 | BQ76: 0.8747591522 | BR76: 0.8786127168 | BS76: 0.880539499 | BT76: 0.8824662813 | BU76: 0.8863198459 | BV76: 0.8901734104 | BW76: 0.8921001927 | BX76: 0.894026975 | BY76: 0.8959537572 | BZ76: 1
P77: 0.8236658933 | Q77: 0.8329466357 | R77: 0.837587007 | S77: 0.8538283063 | T77: 0.8654292343 | U77: 0.8770301624 | V77: 0.879350348 | W77: 0.8863109049 | X77: 0.8909512761 | Y77: 0.8909512761 | Z77: 0.8955916473 | AA77: 0.9048723898 | AB77: 0.909512761 | AC77: 0.909512761 | AD77: 0.9118329466 | AE77: 0.9141531323 | AF77: 0.9141531323 | AG77: 0.9164733179 | AH77: 0.9211136891 | AI77: 0.9211136891 | AJ77: 0.9211136891 | AK77: 0.9211136891 | AL77: 0.9234338747 | AM77: 0.9234338747 | AN77: 0.9234338747 | AO77: 0.9234338747 | AP77: 0.9234338747 | AQ77: 0.9234338747 | AR77: 0.9234338747 | AS77: 0.9257540603 | AT77: 0.9257540603 | AU77: 0.9280742459 | AV77: 0.9280742459 | AW77: 0.9280742459 | AX77: 0.9280742459 | AY77: 0.9303944316 | AZ77: 0.9303944316 | BA77: 0.9303944316 | BB77: 0.9303944316 | BC77: 0.9303944316 | BD77: 0.9303944316 | BE77: 0.9303944316 | BF77: 0.9303944316 | BG77: 0.9327146172 | BH77: 0.9327146172 | BI77: 0.9373549884 | BJ77: 0.9373549884 | BK77: 0.939675174 | BL77: 0.939675174 | BM77: 0.939675174 | BN77: 0.939675174 | BO77: 0.9419953596 | BP77: 0.9443155452 | BQ77: 0.9443155452 | BR77: 0.9489559165 | BS77: 0.9512761021 | BT77: 0.9535962877 | BU77: 0.9582366589 | BV77: 0.9582366589 | BW77: 0.9582366589 | BX77: 0.9582366589 | BY77: 0.9605568445 | BZ77: 1
P78: 0.9074074074 | Q78: 0.9094650206 | R78: 0.9135802469 | S78: 0.9197530864 | T78: 0.9197530864 | U78: 0.9218106996 | V78: 0.9238683128 | W78: 0.9300411523 | X78: 0.9320987654 | Y78: 0.9362139918 | Z78: 0.9362139918 | AA78: 0.9362139918 | AB78: 0.9362139918 | AC78: 0.9362139918 | AD78: 0.9382716049 | AE78: 0.9403292181 | AF78: 0.9444444444 | AG78: 0.9444444444 | AH78: 0.9465020576 | AI78: 0.9485596708 | AJ78: 0.9485596708 | AK78: 0.950617284 | AL78: 0.9547325103 | AM78: 0.9547325103 | AN78: 0.9547325103 | AO78: 0.9567901235 | AP78: 0.9609053498 | AQ78: 0.9609053498 | AR78: 0.962962963 | AS78: 0.962962963 | AT78: 0.9650205761 | AU78: 0.9650205761 | AV78: 0.9650205761 | AW78: 0.9650205761 | AX78: 0.9650205761 | AY78: 0.9650205761 | AZ78: 0.9670781893 | BA78: 0.9670781893 | BB78: 0.9670781893 | BC78: 0.9691358025 | BD78: 0.9711934156 | BE78: 0.9711934156 | BF78: 0.9711934156 | BG78: 0.9711934156 | BH78: 0.9711934156 | BI78: 0.9711934156 | BJ78: 0.9732510288 | BK78: 0.975308642 | BL78: 0.975308642 | BM78: 0.975308642 | BN78: 0.975308642 | BO78: 0.9773662551 | BP78: 0.9773662551 | BQ78: 0.9794238683 | BR78: 0.9794238683 | BS78: 0.9814814815 | BT78: 0.9814814815 | BU78: 0.9835390947 | BV78: 0.9835390947 | BW78: 0.9835390947 | BX78: 0.9855967078 | BY78: 0.9855967078 | BZ78: 1
P79: 0.9350649351 | Q79: 0.9350649351 | R79: 0.9437229437 | S79: 0.9502164502 | T79: 0.9502164502 | U79: 0.9545454545 | V79: 0.9567099567 | W79: 0.961038961 | X79: 0.9675324675 | Y79: 0.9675324675 | Z79: 0.9675324675 | AA79: 0.9718614719 | AB79: 0.974025974 | AC79: 0.974025974 | AD79: 0.9761904762 | AE79: 0.9761904762 | AF79: 0.9761904762 | AG79: 0.9761904762 | AH79: 0.9761904762 | AI79: 0.9783549784 | AJ79: 0.9783549784 | AK79: 0.9826839827 | AL79: 0.9826839827 | AM79: 0.9848484848 | AN79: 0.9848484848 | AO79: 0.9848484848 | AP79: 0.987012987 | AQ79: 0.987012987 | AR79: 0.987012987 | AS79: 0.9891774892 | AT79: 0.9891774892 | AU79: 0.9891774892 | AV79: 0.9891774892 | AW79: 0.9913419913 | AX79: 0.9913419913 | AY79: 0.9913419913 | AZ79: 0.9913419913 | BA79: 0.9913419913 | BB79: 0.9913419913 | BC79: 0.9913419913 | BD79: 0.9913419913 | BE79: 0.9913419913 | BF79: 0.9913419913 | BG79: 0.9913419913 | BH79: 0.9913419913 | BI79: 0.9913419913 | BJ79: 0.9913419913 | BK79: 0.9913419913 | BL79: 0.9913419913 | BM79: 0.9913419913 | BN79: 0.9913419913 | BO79: 0.9913419913 | BP79: 0.9913419913 | BQ79: 0.9913419913 | BR79: 0.9935064935 | BS79: 0.9935064935 | BT79: 0.9935064935 | BU79: 0.9935064935 | BV79: 0.9935064935 | BW79: 0.9935064935 | BX79: 0.9935064935 | BY79: 0.9956709957 | BZ79: 1
P80: 0.9672447013 | Q80: 0.9691714836 | R80: 0.9710982659 | S80: 0.9749518304 | T80: 0.9749518304 | U80: 0.9749518304 | V80: 0.9749518304 | W80: 0.9768786127 | X80: 0.978805395 | Y80: 0.978805395 | Z80: 0.9807321773 | AA80: 0.9807321773 | AB80: 0.9807321773 | AC80: 0.9807321773 | AD80: 0.9865125241 | AE80: 0.9865125241 | AF80: 0.9865125241 | AG80: 0.9865125241 | AH80: 0.9865125241 | AI80: 0.9865125241 | AJ80: 0.9884393064 | AK80: 0.9884393064 | AL80: 0.9903660886 | AM80: 0.9922928709 | AN80: 0.9922928709 | AO80: 0.9942196532 | AP80: 0.9942196532 | AQ80: 0.9942196532 | AR80: 0.9942196532 | AS80: 0.9942196532 | AT80: 0.9942196532 | AU80: 0.9942196532 | AV80: 0.9942196532 | AW80: 0.9942196532 | AX80: 0.9942196532 | AY80: 0.9942196532 | AZ80: 0.9942196532 | BA80: 0.9961464355 | BB80: 0.9961464355 | BC80: 0.9961464355 | BD80: 0.9961464355 | BE80: 0.9961464355 | BF80: 0.9961464355 | BG80: 0.9961464355 | BH80: 0.9961464355 | BI80: 0.9961464355 | BJ80: 0.9961464355 | BK80: 0.9961464355 | BL80: 0.9961464355 | BM80: 0.9961464355 | BN80: 0.9961464355 | BO80: 0.9961464355 | BP80: 0.9980732177 | BQ80: 0.9980732177 | BR80: 0.9980732177 | BS80: 0.9980732177 | BT80: 0.9980732177 | BU80: 0.9980732177 | BV80: 0.9980732177 | BW80: 0.9980732177 | BX80: 0.9980732177 | BY80: 0.9980732177 | BZ80: 1
P81: 0.9819944598 | Q81: 0.9819944598 | R81: 0.9819944598 | S81: 0.9833795014 | T81: 0.9833795014 | U81: 0.9833795014 | V81: 0.9833795014 | W81: 0.9833795014 | X81: 0.9861495845 | Y81: 0.987534626 | Z81: 0.9889196676 | AA81: 0.9903047091 | AB81: 0.9903047091 | AC81: 0.9916897507 | AD81: 0.9916897507 | AE81: 0.9916897507 | AF81: 0.9944598338 | AG81: 0.9944598338 | AH81: 0.9958448753 | AI81: 0.9958448753 | AJ81: 0.9958448753 | AK81: 0.9958448753 | AL81: 0.9958448753 | AM81: 0.9958448753 | AN81: 0.9958448753 | AO81: 0.9958448753 | AP81: 0.9958448753 | AQ81: 0.9958448753 | AR81: 0.9958448753 | AS81: 0.9958448753 | AT81: 0.9958448753 | AU81: 0.9958448753 | AV81: 0.9958448753 | AW81: 0.9958448753 | AX81: 0.9958448753 | AY81: 0.9958448753 | AZ81: 0.9958448753 | BA81: 0.9958448753 | BB81: 0.9958448753 | BC81: 0.9958448753 | BD81: 0.9972299169 | BE81: 0.9972299169 | BF81: 0.9972299169 | BG81: 0.9972299169 | BH81: 0.9972299169 | BI81: 0.9972299169 | BJ81: 0.9972299169 | BK81: 0.9972299169 | BL81: 0.9972299169 | BM81: 0.9972299169 | BN81: 0.9972299169 | BO81: 0.9972299169 | BP81: 0.9972299169 | BQ81: 0.9972299169 | BR81: 0.9972299169 | BS81: 0.9972299169 | BT81: 0.9972299169 | BU81: 0.9972299169 | BV81: 0.9972299169 | BW81: 0.9972299169 | BX81: 0.9972299169 | BY81: 0.9986149584 | BZ81: 1
P82: 0.9946666667 | Q82: 0.9955555556 | R82: 0.9955555556 | S82: 0.9955555556 | T82: 0.9964444444 | U82: 0.9964444444 | V82: 0.9964444444 | W82: 0.9964444444 | X82: 0.9973333333 | Y82: 0.9973333333 | Z82: 0.9973333333 | AA82: 0.9973333333 | AB82: 0.9973333333 | AC82: 0.9973333333 | AD82: 0.9982222222 | AE82: 0.9982222222 | AF82: 0.9982222222 | AG82: 0.9991111111 | AH82: 0.9991111111 | AI82: 0.9991111111 | AJ82: 0.9991111111 | AK82: 0.9991111111 | AL82: 1 | AM82: 1 | AN82: 1 | AO82: 1 | AP82: 1 | AQ82: 1 | AR82: 1 | AS82: 1 | AT82: 1 | AU82: 1 | AV82: 1 | AW82: 1 | AX82: 1 | AY82: 1 | AZ82: 1 | BA82: 1 | BB82: 1 | BC82: 1 | BD82: 1 | BE82: 1 | BF82: 1 | BG82: 1 | BH82: 1 | BI82: 1 | BJ82: 1 | BK82: 1 | BL82: 1 | BM82: 1 | BN82: 1 | BO82: 1 | BP82: 1 | BQ82: 1 | BR82: 1 | BS82: 1 | BT82: 1 | BU82: 1 | BV82: 1 | BW82: 1 | BX82: 1 | BY82: 1 | BZ82: 1
P85: 0.38 | Q85: 0.39 | R85: 0.4 | S85: 0.41 | T85: 0.42 | U85: 0.43 | V85: 0.44 | W85: 0.45 | X85: 0.46 | Y85: 0.47 | Z85: 0.48 | AA85: 0.49 | AB85: 0.5 | AC85: 0.51 | AD85: 0.52 | AE85: 0.53 | AF85: 0.54 | AG85: 0.55 | AH85: 0.56 | AI85: 0.57 | AJ85: 0.58 | AK85: 0.59 | AL85: 0.6 | AM85: 0.61 | AN85: 0.62 | AO85: 0.63 | AP85: 0.64 | AQ85: 0.65 | AR85: 0.66 | AS85: 0.67 | AT85: 0.68 | AU85: 0.69 | AV85: 0.7 | AW85: 0.71 | AX85: 0.72 | AY85: 0.73 | AZ85: 0.74 | BA85: 0.75 | BB85: 0.76 | BC85: 0.77 | BD85: 0.78 | BE85: 0.79 | BF85: 0.8 | BG85: 0.81 | BH85: 0.82 | BI85: 0.83 | BJ85: 0.84 | BK85: 0.85 | BL85: 0.86 | BM85: 0.87 | BN85: 0.88 | BO85: 0.89 | BP85: 0.9 | BQ85: 0.91 | BR85: 0.92 | BS85: 0.93 | BT85: 0.94 | BU85: 0.95 | BV85: 0.96 | BW85: 0.97 | BX85: 0.98 | BY85: 0.99 | BZ85: 1
P86: 0.1623529412 | Q86: 0.1647058824 | R86: 0.1670588235 | S86: 0.1717647059 | T86: 0.1752941176 | U86: 0.1823529412 | V86: 0.1870588235 | W86: 0.1929411765 | X86: 0.1988235294 | Y86: 0.2129411765 | Z86: 0.2247058824 | AA86: 0.2258823529 | AB86: 0.2294117647 | AC86: 0.2329411765 | AD86: 0.2376470588 | AE86: 0.24 | AF86: 0.2423529412 | AG86: 0.2447058824 | AH86: 0.2458823529 | AI86: 0.2482352941 | AJ86: 0.2541176471 | AK86: 0.26 | AL86: 0.2635294118 | AM86: 0.2682352941 | AN86: 0.2717647059 | AO86: 0.2764705882 | AP86: 0.2823529412 | AQ86: 0.2847058824 | AR86: 0.2870588235 | AS86: 0.2917647059 | AT86: 0.2941176471 | AU86: 0.2941176471 | AV86: 0.2976470588 | AW86: 0.3 | AX86: 0.3047058824 | AY86: 0.3070588235 | AZ86: 0.3082352941 | BA86: 0.3082352941 | BB86: 0.3105882353 | BC86: 0.3117647059 | BD86: 0.3117647059 | BE86: 0.3152941176 | BF86: 0.3152941176 | BG86: 0.3164705882 | BH86: 0.3164705882 | BI86: 0.32 | BJ86: 0.3211764706 | BK86: 0.3223529412 | BL86: 0.3282352941 | BM86: 0.3294117647 | BN86: 0.3329411765 | BO86: 0.3352941176 | BP86: 0.3447058824 | BQ86: 0.3517647059 | BR86: 0.3623529412 | BS86: 0.3694117647 | BT86: 0.3776470588 | BU86: 0.3858823529 | BV86: 0.3894117647 | BW86: 0.3941176471 | BX86: 0.3964705882 | BY86: 0.4 | BZ86: 1
P87: 0.2985274431 | Q87: 0.3025435074 | R87: 0.313253012 | S87: 0.3186077644 | T87: 0.3199464525 | U87: 0.3226238286 | V87: 0.3293172691 | W87: 0.3427041499 | X87: 0.3547523427 | Y87: 0.3721552878 | Z87: 0.3815261044 | AA87: 0.3935742972 | AB87: 0.3975903614 | AC87: 0.4042838019 | AD87: 0.4082998661 | AE87: 0.4109772423 | AF87: 0.4176706827 | AG87: 0.421686747 | AH87: 0.4243641232 | AI87: 0.4270414993 | AJ87: 0.4283801874 | AK87: 0.4323962517 | AL87: 0.4390896921 | AM87: 0.4444444444 | AN87: 0.4471218206 | AO87: 0.452476573 | AP87: 0.4551539491 | AQ87: 0.4564926372 | AR87: 0.4591700134 | AS87: 0.4672021419 | AT87: 0.4712182062 | AU87: 0.4725568942 | AV87: 0.4805890228 | AW87: 0.4859437751 | AX87: 0.4926372155 | AY87: 0.4966532798 | AZ87: 0.499330656 | BA87: 0.500669344 | BB87: 0.5020080321 | BC87: 0.5060240964 | BD87: 0.515394913 | BE87: 0.5207496653 | BF87: 0.5247657296 | BG87: 0.5301204819 | BH87: 0.5327978581 | BI87: 0.5341365462 | BJ87: 0.5394912985 | BK87: 0.5408299866 | BL87: 0.5435073628 | BM87: 0.5488621151 | BN87: 0.5502008032 | BO87: 0.5502008032 | BP87: 0.5515394913 | BQ87: 0.5515394913 | BR87: 0.5582329317 | BS87: 0.5635876841 | BT87: 0.5702811245 | BU87: 0.5863453815 | BV87: 0.593038822 | BW87: 0.5970548862 | BX87: 0.6024096386 | BY87: 0.6104417671 | BZ87: 1
P88: 0.4883462819 | Q88: 0.4905660377 | R88: 0.4950055494 | S88: 0.500554939 | T88: 0.5083240844 | U88: 0.5116537181 | V88: 0.5160932297 | W88: 0.5205327414 | X88: 0.5249722531 | Y88: 0.5416204218 | Z88: 0.5504994451 | AA88: 0.5549389567 | AB88: 0.5560488346 | AC88: 0.5615982242 | AD88: 0.5671476138 | AE88: 0.5693673696 | AF88: 0.5738068812 | AG88: 0.5749167592 | AH88: 0.5793562708 | AI88: 0.5837957825 | AJ88: 0.5849056604 | AK88: 0.5915649279 | AL88: 0.6015538291 | AM88: 0.6104328524 | AN88: 0.6182019978 | AO88: 0.6237513873 | AP88: 0.6304106548 | AQ88: 0.6326304107 | AR88: 0.6426193119 | AS88: 0.6459489456 | AT88: 0.6526082131 | AU88: 0.653718091 | AV88: 0.6559378468 | AW88: 0.6603773585 | AX88: 0.6648168701 | AY88: 0.6703662597 | AZ88: 0.6748057714 | BA88: 0.6814650388 | BB88: 0.6847946726 | BC88: 0.692563818 | BD88: 0.6981132075 | BE88: 0.7025527192 | BF88: 0.7069922309 | BG88: 0.7103218646 | BH88: 0.7136514983 | BI88: 0.7214206437 | BJ88: 0.7247502775 | BK88: 0.730299667 | BL88: 0.7336293008 | BM88: 0.7402885683 | BN88: 0.7447280799 | BO88: 0.7469478357 | BP88: 0.7491675916 | BQ88: 0.755826859 | BR88: 0.7602663707 | BS88: 0.7624861265 | BT88: 0.7647058824 | BU88: 0.7647058824 | BV88: 0.7669256382 | BW88: 0.7702552719 | BX88: 0.7780244173 | BY88: 0.7857935627 | BZ88: 1
P89: 0.593676815 | Q89: 0.5995316159 | R89: 0.6088992974 | S89: 0.6135831382 | T89: 0.6182669789 | U89: 0.62529274 | V89: 0.631147541 | W89: 0.6405152225 | X89: 0.6592505855 | Y89: 0.6662763466 | Z89: 0.6768149883 | AA89: 0.6885245902 | AB89: 0.7014051522 | AC89: 0.7084309133 | AD89: 0.7119437939 | AE89: 0.7201405152 | AF89: 0.7306791569 | AG89: 0.7412177986 | AH89: 0.7459016393 | AI89: 0.7494145199 | AJ89: 0.7529274005 | AK89: 0.7576112412 | AL89: 0.7658079625 | AM89: 0.7681498829 | AN89: 0.7693208431 | AO89: 0.7704918033 | AP89: 0.7740046838 | AQ89: 0.7763466042 | AR89: 0.7775175644 | AS89: 0.7786885246 | AT89: 0.7857142857 | AU89: 0.7868852459 | AV89: 0.7903981265 | AW89: 0.7950819672 | AX89: 0.8032786885 | AY89: 0.8044496487 | AZ89: 0.8067915691 | BA89: 0.8103044496 | BB89: 0.8138173302 | BC89: 0.8161592506 | BD89: 0.8173302108 | BE89: 0.818501171 | BF89: 0.8220140515 | BG89: 0.8231850117 | BH89: 0.8255269321 | BI89: 0.8266978923 | BJ89: 0.8290398126 | BK89: 0.8302107728 | BL89: 0.8325526932 | BM89: 0.8384074941 | BN89: 0.8384074941 | BO89: 0.8395784543 | BP89: 0.8430913349 | BQ89: 0.8454332553 | BR89: 0.8489461358 | BS89: 0.8548009368 | BT89: 0.855971897 | BU89: 0.8571428571 | BV89: 0.8594847775 | BW89: 0.8629976581 | BX89: 0.8665105386 | BY89: 0.868852459 | BZ89: 1
P90: 0.7103347889 | Q90: 0.7292576419 | R90: 0.7409024745 | S90: 0.7525473071 | T90: 0.7671033479 | U90: 0.7772925764 | V90: 0.7802037846 | W90: 0.7831149927 | X90: 0.788937409 | Y90: 0.7903930131 | Z90: 0.7962154294 | AA90: 0.8093158661 | AB90: 0.8165938865 | AC90: 0.8238719068 | AD90: 0.8238719068 | AE90: 0.8282387191 | AF90: 0.8282387191 | AG90: 0.8326055313 | AH90: 0.8340611354 | AI90: 0.8355167394 | AJ90: 0.8384279476 | AK90: 0.8413391557 | AL90: 0.8442503639 | AM90: 0.8486171761 | AN90: 0.8515283843 | AO90: 0.8544395924 | AP90: 0.8573508006 | AQ90: 0.8617176128 | AR90: 0.8631732169 | AS90: 0.864628821 | AT90: 0.8675400291 | AU90: 0.8704512373 | AV90: 0.8733624454 | AW90: 0.8748180495 | AX90: 0.8777292576 | AY90: 0.8791848617 | AZ90: 0.8820960699 | BA90: 0.8893740902 | BB90: 0.8908296943 | BC90: 0.8995633188 | BD90: 0.9024745269 | BE90: 0.9082969432 | BF90: 0.9097525473 | BG90: 0.9126637555 | BH90: 0.9155749636 | BI90: 0.9170305677 | BJ90: 0.9213973799 | BK90: 0.922852984 | BL90: 0.922852984 | BM90: 0.9257641921 | BN90: 0.9272197962 | BO90: 0.9301310044 | BP90: 0.9315866084 | BQ90: 0.9344978166 | BR90: 0.9344978166 | BS90: 0.9359534207 | BT90: 0.9388646288 | BU90: 0.941775837 | BV90: 0.941775837 | BW90: 0.941775837 | BX90: 0.943231441 | BY90: 0.943231441 | BZ90: 1
P91: 0.84359401 | Q91: 0.8485856905 | R91: 0.8485856905 | S91: 0.850249584 | T91: 0.853577371 | U91: 0.8585690516 | V91: 0.8635607321 | W91: 0.8685524126 | X91: 0.8718801997 | Y91: 0.8768718802 | Z91: 0.8801996672 | AA91: 0.8868552413 | AB91: 0.8885191348 | AC91: 0.8901830283 | AD91: 0.8918469218 | AE91: 0.8951747088 | AF91: 0.8968386023 | AG91: 0.9001663894 | AH91: 0.9018302829 | AI91: 0.9068219634 | AJ91: 0.9084858569 | AK91: 0.9118136439 | AL91: 0.9134775374 | AM91: 0.9151414309 | AN91: 0.918469218 | AO91: 0.9201331115 | AP91: 0.9201331115 | AQ91: 0.9201331115 | AR91: 0.9267886855 | AS91: 0.9317803661 | AT91: 0.9351081531 | AU91: 0.9400998336 | AV91: 0.9434276206 | AW91: 0.9450915141 | AX91: 0.9450915141 | AY91: 0.9450915141 | AZ91: 0.9467554077 | BA91: 0.9484193012 | BB91: 0.9484193012 | BC91: 0.9500831947 | BD91: 0.9517470882 | BE91: 0.9534109817 | BF91: 0.9584026622 | BG91: 0.9584026622 | BH91: 0.9584026622 | BI91: 0.9584026622 | BJ91: 0.9584026622 | BK91: 0.9584026622 | BL91: 0.9600665557 | BM91: 0.9633943428 | BN91: 0.9667221298 | BO91: 0.9667221298 | BP91: 0.9667221298 | BQ91: 0.9683860233 | BR91: 0.9717138103 | BS91: 0.9717138103 | BT91: 0.9717138103 | BU91: 0.9733777038 | BV91: 0.9733777038 | BW91: 0.9733777038 | BX91: 0.9733777038 | BY91: 0.9750415973 | BZ91: 1
P92: 0.8647482014 | Q92: 0.873381295 | R92: 0.8776978417 | S92: 0.8776978417 | T92: 0.8776978417 | U92: 0.8776978417 | V92: 0.8848920863 | W92: 0.8935251799 | X92: 0.9007194245 | Y92: 0.9035971223 | Z92: 0.9035971223 | AA92: 0.9122302158 | AB92: 0.9136690647 | AC92: 0.9136690647 | AD92: 0.9165467626 | AE92: 0.9194244604 | AF92: 0.9194244604 | AG92: 0.9223021583 | AH92: 0.926618705 | AI92: 0.928057554 | AJ92: 0.9309352518 | AK92: 0.9352517986 | AL92: 0.9438848921 | AM92: 0.945323741 | AN92: 0.9467625899 | AO92: 0.9482014388 | AP92: 0.9539568345 | AQ92: 0.9568345324 | AR92: 0.9597122302 | AS92: 0.9611510791 | AT92: 0.9625899281 | AU92: 0.9625899281 | AV92: 0.964028777 | AW92: 0.9654676259 | AX92: 0.9654676259 | AY92: 0.9669064748 | AZ92: 0.9697841727 | BA92: 0.9697841727 | BB92: 0.9697841727 | BC92: 0.9697841727 | BD92: 0.9697841727 | BE92: 0.9712230216 | BF92: 0.9755395683 | BG92: 0.9784172662 | BH92: 0.9798561151 | BI92: 0.9798561151 | BJ92: 0.9798561151 | BK92: 0.9798561151 | BL92: 0.9798561151 | BM92: 0.981294964 | BN92: 0.9827338129 | BO92: 0.9841726619 | BP92: 0.9841726619 | BQ92: 0.9841726619 | BR92: 0.9856115108 | BS92: 0.9870503597 | BT92: 0.9870503597 | BU92: 0.9870503597 | BV92: 0.9870503597 | BW92: 0.9870503597 | BX92: 0.9913669065 | BY92: 0.9913669065 | BZ92: 1
P93: 0.880484115 | Q93: 0.8865355522 | R93: 0.8880484115 | S93: 0.8880484115 | T93: 0.8940998487 | U93: 0.8971255673 | V93: 0.9016641452 | W93: 0.9016641452 | X93: 0.9062027231 | Y93: 0.9062027231 | Z93: 0.9137670197 | AA93: 0.9213313162 | AB93: 0.9319213313 | AC93: 0.9349470499 | AD93: 0.9394856278 | AE93: 0.9440242057 | AF93: 0.950075643 | AG93: 0.950075643 | AH93: 0.9531013616 | AI93: 0.9531013616 | AJ93: 0.9561270802 | AK93: 0.9621785174 | AL93: 0.9636913767 | AM93: 0.9636913767 | AN93: 0.965204236 | AO93: 0.9697428139 | AP93: 0.9788199697 | AQ93: 0.9833585477 | AR93: 0.984871407 | AS93: 0.984871407 | AT93: 0.9863842663 | AU93: 0.9863842663 | AV93: 0.9863842663 | AW93: 0.9863842663 | AX93: 0.9863842663 | AY93: 0.9863842663 | AZ93: 0.9863842663 | BA93: 0.9863842663 | BB93: 0.9894099849 | BC93: 0.9894099849 | BD93: 0.9894099849 | BE93: 0.9894099849 | BF93: 0.9909228442 | BG93: 0.9924357035 | BH93: 0.9924357035 | BI93: 0.9924357035 | BJ93: 0.9924357035 | BK93: 0.9924357035 | BL93: 0.9954614221 | BM93: 0.9969742814 | BN93: 0.9984871407 | BO93: 0.9984871407 | BP93: 0.9984871407 | BQ93: 0.9984871407 | BR93: 0.9984871407 | BS93: 0.9984871407 | BT93: 0.9984871407 | BU93: 0.9984871407 | BV93: 0.9984871407 | BW93: 0.9984871407 | BX93: 0.9984871407 | BY93: 0.9984871407 | BZ93: 1
P94: 0.9274553571 | Q94: 0.9285714286 | R94: 0.9285714286 | S94: 0.9330357143 | T94: 0.9419642857 | U94: 0.9475446429 | V94: 0.9508928571 | W94: 0.9553571429 | X94: 0.9609375 | Y94: 0.9631696429 | Z94: 0.96875 | AA94: 0.9754464286 | AB94: 0.9765625 | AC94: 0.9787946429 | AD94: 0.9799107143 | AE94: 0.9810267857 | AF94: 0.9810267857 | AG94: 0.9821428571 | AH94: 0.9821428571 | AI94: 0.984375 | AJ94: 0.9866071429 | AK94: 0.9866071429 | AL94: 0.9866071429 | AM94: 0.9877232143 | AN94: 0.9877232143 | AO94: 0.9899553571 | AP94: 0.9899553571 | AQ94: 0.9899553571 | AR94: 0.9899553571 | AS94: 0.9910714286 | AT94: 0.9910714286 | AU94: 0.9921875 | AV94: 0.9921875 | AW94: 0.9921875 | AX94: 0.9921875 | AY94: 0.9921875 | AZ94: 0.9933035714 | BA94: 0.9933035714 | BB94: 0.9944196429 | BC94: 0.9944196429 | BD94: 0.9944196429 | BE94: 0.9944196429 | BF94: 0.9955357143 | BG94: 0.9955357143 | BH94: 0.9955357143 | BI94: 0.9955357143 | BJ94: 0.9955357143 | BK94: 0.9955357143 | BL94: 0.9955357143 | BM94: 0.9955357143 | BN94: 0.9955357143 | BO94: 0.9955357143 | BP94: 0.9955357143 | BQ94: 0.9955357143 | BR94: 0.9966517857 | BS94: 0.9977678571 | BT94: 0.9977678571 | BU94: 0.9988839286 | BV94: 0.9988839286 | BW94: 0.9988839286 | BX94: 1 | BY94: 1 | BZ94: 1
P95: 0.9859894921 | Q95: 0.9859894921 | R95: 0.9877408056 | S95: 0.9877408056 | T95: 0.9894921191 | U95: 0.9894921191 | V95: 0.9912434326 | W95: 0.9912434326 | X95: 0.9921190893 | Y95: 0.9921190893 | Z95: 0.9929947461 | AA95: 0.9929947461 | AB95: 0.9947460595 | AC95: 0.9956217163 | AD95: 0.9956217163 | AE95: 0.9956217163 | AF95: 0.9956217163 | AG95: 0.9956217163 | AH95: 0.9956217163 | AI95: 0.9956217163 | AJ95: 0.9982486865 | AK95: 0.9982486865 | AL95: 0.9991243433 | AM95: 0.9991243433 | AN95: 0.9991243433 | AO95: 0.9991243433 | AP95: 0.9991243433 | AQ95: 0.9991243433 | AR95: 0.9991243433 | AS95: 0.9991243433 | AT95: 0.9991243433 | AU95: 0.9991243433 | AV95: 0.9991243433 | AW95: 0.9991243433 | AX95: 0.9991243433 | AY95: 0.9991243433 | AZ95: 0.9991243433 | BA95: 0.9991243433 | BB95: 0.9991243433 | BC95: 0.9991243433 | BD95: 0.9991243433 | BE95: 0.9991243433 | BF95: 0.9991243433 | BG95: 0.9991243433 | BH95: 0.9991243433 | BI95: 0.9991243433 | BJ95: 0.9991243433 | BK95: 0.9991243433 | BL95: 1 | BM95: 1 | BN95: 1 | BO95: 1 | BP95: 1 | BQ95: 1 | BR95: 1 | BS95: 1 | BT95: 1 | BU95: 1 | BV95: 1 | BW95: 1 | BX95: 1 | BY95: 1 | BZ95: 1
P98: 0.38 | Q98: 0.39 | R98: 0.4 | S98: 0.41 | T98: 0.42 | U98: 0.43 | V98: 0.44 | W98: 0.45 | X98: 0.46 | Y98: 0.47 | Z98: 0.48 | AA98: 0.49 | AB98: 0.5 | AC98: 0.51 | AD98: 0.52 | AE98: 0.53 | AF98: 0.54 | AG98: 0.55 | AH98: 0.56 | AI98: 0.57 | AJ98: 0.58 | AK98: 0.59 | AL98: 0.6 | AM98: 0.61 | AN98: 0.62 | AO98: 0.63 | AP98: 0.64 | AQ98: 0.65 | AR98: 0.66 | AS98: 0.67 | AT98: 0.68 | AU98: 0.69 | AV98: 0.7 | AW98: 0.71 | AX98: 0.72 | AY98: 0.73 | AZ98: 0.74 | BA98: 0.75 | BB98: 0.76 | BC98: 0.77 | BD98: 0.78 | BE98: 0.79 | BF98: 0.8 | BG98: 0.81 | BH98: 0.82 | BI98: 0.83 | BJ98: 0.84 | BK98: 0.85 | BL98: 0.86 | BM98: 0.87 | BN98: 0.88 | BO98: 0.89 | BP98: 0.9 | BQ98: 0.91 | BR98: 0.92 | BS98: 0.93 | BT98: 0.94 | BU98: 0.95 | BV98: 0.96 | BW98: 0.97 | BX98: 0.98 | BY98: 0.99 | BZ98: 1
P99: 0.1723484848 | Q99: 0.1748737374 | R99: 0.1824494949 | S99: 0.1843434343 | T99: 0.1887626263 | U99: 0.1919191919 | V99: 0.1963383838 | W99: 0.2013888889 | X99: 0.2083333333 | Y99: 0.216540404 | Z99: 0.2241161616 | AA99: 0.2323232323 | AB99: 0.2392676768 | AC99: 0.2424242424 | AD99: 0.2436868687 | AE99: 0.2468434343 | AF99: 0.25 | AG99: 0.2550505051 | AH99: 0.2575757576 | AI99: 0.2607323232 | AJ99: 0.2626262626 | AK99: 0.2702020202 | AL99: 0.2727272727 | AM99: 0.279040404 | AN99: 0.2803030303 | AO99: 0.2859848485 | AP99: 0.2872474747 | AQ99: 0.2910353535 | AR99: 0.2954545455 | AS99: 0.2992424242 | AT99: 0.3042929293 | AU99: 0.3118686869 | AV99: 0.3162878788 | AW99: 0.3207070707 | AX99: 0.321969697 | AY99: 0.3232323232 | AZ99: 0.3251262626 | BA99: 0.3289141414 | BB99: 0.3314393939 | BC99: 0.3352272727 | BD99: 0.336489899 | BE99: 0.3396464646 | BF99: 0.3428030303 | BG99: 0.345959596 | BH99: 0.3497474747 | BI99: 0.3554292929 | BJ99: 0.3592171717 | BK99: 0.3617424242 | BL99: 0.3630050505 | BM99: 0.3661616162 | BN99: 0.3705808081 | BO99: 0.3737373737 | BP99: 0.3781565657 | BQ99: 0.3794191919 | BR99: 0.3851010101 | BS99: 0.3920454545 | BT99: 0.398989899 | BU99: 0.4071969697 | BV99: 0.4198232323 | BW99: 0.4311868687 | BX99: 0.4387626263 | BY99: 0.4482323232 | BZ99: 1
P100: 0.375 | Q100: 0.3817567568 | R100: 0.3902027027 | S100: 0.3918918919 | T100: 0.3978040541 | U100: 0.4037162162 | V100: 0.4087837838 | W100: 0.4138513514 | X100: 0.4248310811 | Y100: 0.4383445946 | Z100: 0.4493243243 | AA100: 0.4577702703 | AB100: 0.4636824324 | AC100: 0.46875 | AD100: 0.4712837838 | AE100: 0.4755067568 | AF100: 0.4805743243 | AG100: 0.4847972973 | AH100: 0.4881756757 | AI100: 0.4907094595 | AJ100: 0.4932432432 | AK100: 0.4974662162 | AL100: 0.5016891892 | AM100: 0.5059121622 | AN100: 0.5092905405 | AO100: 0.5118243243 | AP100: 0.5143581081 | AQ100: 0.5236486486 | AR100: 0.5244932432 | AS100: 0.527027027 | AT100: 0.5304054054 | AU100: 0.5346283784 | AV100: 0.5405405405 | AW100: 0.5447635135 | AX100: 0.5464527027 | AY100: 0.5489864865 | AZ100: 0.5515202703 | BA100: 0.5565878378 | BB100: 0.5574324324 | BC100: 0.5591216216 | BD100: 0.5641891892 | BE100: 0.5675675676 | BF100: 0.5734797297 | BG100: 0.5760135135 | BH100: 0.5768581081 | BI100: 0.5810810811 | BJ100: 0.5819256757 | BK100: 0.5844594595 | BL100: 0.5869932432 | BM100: 0.5912162162 | BN100: 0.5945945946 | BO100: 0.5971283784 | BP100: 0.5988175676 | BQ100: 0.6013513514 | BR100: 0.6072635135 | BS100: 0.6089527027 | BT100: 0.6131756757 | BU100: 0.6190878378 | BV100: 0.6216216216 | BW100: 0.625 | BX100: 0.6283783784 | BY100: 0.6359797297 | BZ100: 1
P101: 0.5407407407 | Q101: 0.5466666667 | R101: 0.5525925926 | S101: 0.557037037 | T101: 0.5622222222 | U101: 0.5644444444 | V101: 0.5718518519 | W101: 0.577037037 | X101: 0.582962963 | Y101: 0.5881481481 | Z101: 0.5955555556 | AA101: 0.6 | AB101: 0.6044444444 | AC101: 0.6088888889 | AD101: 0.6155555556 | AE101: 0.6185185185 | AF101: 0.6266666667 | AG101: 0.6303703704 | AH101: 0.6355555556 | AI101: 0.6444444444 | AJ101: 0.6518518519 | AK101: 0.6555555556 | AL101: 0.6585185185 | AM101: 0.6622222222 | AN101: 0.6681481481 | AO101: 0.6718518519 | AP101: 0.6777777778 | AQ101: 0.682962963 | AR101: 0.6881481481 | AS101: 0.6911111111 | AT101: 0.6948148148 | AU101: 0.6977777778 | AV101: 0.7007407407 | AW101: 0.7051851852 | AX101: 0.7111111111 | AY101: 0.7125925926 | AZ101: 0.7133333333 | BA101: 0.7192592593 | BB101: 0.7244444444 | BC101: 0.7281481481 | BD101: 0.7288888889 | BE101: 0.7340740741 | BF101: 0.7355555556 | BG101: 0.7392592593 | BH101: 0.7422222222 | BI101: 0.7459259259 | BJ101: 0.7474074074 | BK101: 0.7518518519 | BL101: 0.7533333333 | BM101: 0.7548148148 | BN101: 0.76 | BO101: 0.7614814815 | BP101: 0.762962963 | BQ101: 0.7644444444 | BR101: 0.7659259259 | BS101: 0.7703703704 | BT101: 0.7740740741 | BU101: 0.7777777778 | BV101: 0.78 | BW101: 0.7822222222 | BX101: 0.782962963 | BY101: 0.7925925926 | BZ101: 1
P102: 0.6359530262 | Q102: 0.6386630533 | R102: 0.6431797651 | S102: 0.6495031617 | T102: 0.6540198735 | U102: 0.6585365854 | V102: 0.6639566396 | W102: 0.6729900632 | X102: 0.6811201445 | Y102: 0.6874435411 | Z102: 0.6955736224 | AA102: 0.701897019 | AB102: 0.7046070461 | AC102: 0.7127371274 | AD102: 0.7199638663 | AE102: 0.7253839205 | AF102: 0.72899729 | AG102: 0.7317073171 | AH102: 0.7353206865 | AI102: 0.738934056 | AJ102: 0.7434507678 | AK102: 0.7443541102 | AL102: 0.7497741644 | AM102: 0.756097561 | AN102: 0.7606142728 | AO102: 0.766034327 | AP102: 0.7678410117 | AQ102: 0.7696476965 | AR102: 0.7696476965 | AS102: 0.7705510388 | AT102: 0.7732610659 | AU102: 0.7768744354 | AV102: 0.7777777778 | AW102: 0.7813911472 | AX102: 0.783197832 | AY102: 0.7868112014 | AZ102: 0.7895212285 | BA102: 0.7913279133 | BB102: 0.7922312556 | BC102: 0.7967479675 | BD102: 0.7985546522 | BE102: 0.8003613369 | BF102: 0.803071364 | BG102: 0.8048780488 | BH102: 0.8075880759 | BI102: 0.8121047877 | BJ102: 0.8139114724 | BK102: 0.8175248419 | BL102: 0.820234869 | BM102: 0.8220415537 | BN102: 0.8265582656 | BO102: 0.830171635 | BP102: 0.8337850045 | BQ102: 0.837398374 | BR102: 0.8401084011 | BS102: 0.8419150858 | BT102: 0.8464317977 | BU102: 0.8482384824 | BV102: 0.8518518519 | BW102: 0.854561879 | BX102: 0.8572719061 | BY102: 0.8581752484 | BZ102: 1
P103: 0.7562862669 | Q103: 0.7620889749 | R103: 0.7669245648 | S103: 0.7756286267 | T103: 0.7833655706 | U103: 0.7872340426 | V103: 0.7901353965 | W103: 0.7930367505 | X103: 0.7949709865 | Y103: 0.7978723404 | Z103: 0.8056092843 | AA103: 0.8094777563 | AB103: 0.8133462282 | AC103: 0.8162475822 | AD103: 0.8191489362 | AE103: 0.8259187621 | AF103: 0.8278529981 | AG103: 0.83172147 | AH103: 0.832688588 | AI103: 0.835589942 | AJ103: 0.8394584139 | AK103: 0.8442940039 | AL103: 0.8471953578 | AM103: 0.8471953578 | AN103: 0.8481624758 | AO103: 0.8510638298 | AP103: 0.8529980658 | AQ103: 0.8588007737 | AR103: 0.8607350097 | AS103: 0.8665377176 | AT103: 0.8684719536 | AU103: 0.8742746615 | AV103: 0.8771760155 | AW103: 0.8800773694 | AX103: 0.8820116054 | AY103: 0.8878143133 | AZ103: 0.8887814313 | BA103: 0.8916827853 | BB103: 0.8945841393 | BC103: 0.8945841393 | BD103: 0.8965183752 | BE103: 0.8984526112 | BF103: 0.9013539652 | BG103: 0.9032882012 | BH103: 0.9032882012 | BI103: 0.9071566731 | BJ103: 0.9100580271 | BK103: 0.9110251451 | BL103: 0.9119922631 | BM103: 0.913926499 | BN103: 0.915860735 | BO103: 0.919729207 | BP103: 0.9216634429 | BQ103: 0.9226305609 | BR103: 0.9255319149 | BS103: 0.9274661509 | BT103: 0.9274661509 | BU103: 0.9294003868 | BV103: 0.9294003868 | BW103: 0.9323017408 | BX103: 0.9342359768 | BY103: 0.9342359768 | BZ103: 1
P104: 0.7877947295 | Q104: 0.7919556172 | R104: 0.7919556172 | S104: 0.7933425798 | T104: 0.8058252427 | U104: 0.814147018 | V104: 0.8169209431 | W104: 0.8224687933 | X104: 0.8252427184 | Y104: 0.8252427184 | Z104: 0.8252427184 | AA104: 0.8280166436 | AB104: 0.8321775312 | AC104: 0.8377253814 | AD104: 0.8418862691 | AE104: 0.8488210818 | AF104: 0.8529819695 | AG104: 0.8585298197 | AH104: 0.8654646325 | AI104: 0.866851595 | AJ104: 0.8682385576 | AK104: 0.8682385576 | AL104: 0.8710124827 | AM104: 0.8765603329 | AN104: 0.8765603329 | AO104: 0.8779472954 | AP104: 0.8807212205 | AQ104: 0.8848821082 | AR104: 0.8848821082 | AS104: 0.8918169209 | AT104: 0.8959778086 | AU104: 0.8973647712 | AV104: 0.9029126214 | AW104: 0.907073509 | AX104: 0.9112343967 | AY104: 0.9126213592 | AZ104: 0.9140083218 | BA104: 0.9181692094 | BB104: 0.919556172 | BC104: 0.9209431345 | BD104: 0.9209431345 | BE104: 0.9209431345 | BF104: 0.9209431345 | BG104: 0.9251040222 | BH104: 0.9264909847 | BI104: 0.9264909847 | BJ104: 0.9264909847 | BK104: 0.9278779473 | BL104: 0.9278779473 | BM104: 0.9278779473 | BN104: 0.9292649098 | BO104: 0.9292649098 | BP104: 0.9292649098 | BQ104: 0.9292649098 | BR104: 0.9306518724 | BS104: 0.932038835 | BT104: 0.9348127601 | BU104: 0.9389736477 | BV104: 0.9389736477 | BW104: 0.9403606103 | BX104: 0.9403606103 | BY104: 0.9431345354 | BZ104: 1
P105: 0.8100436681 | Q105: 0.8176855895 | R105: 0.8231441048 | S105: 0.826419214 | T105: 0.8286026201 | U105: 0.8307860262 | V105: 0.8362445415 | W105: 0.8406113537 | X105: 0.8482532751 | Y105: 0.8526200873 | Z105: 0.8537117904 | AA105: 0.8591703057 | AB105: 0.8635371179 | AC105: 0.865720524 | AD105: 0.8668122271 | AE105: 0.8689956332 | AF105: 0.8711790393 | AG105: 0.8733624454 | AH105: 0.8799126638 | AI105: 0.8886462882 | AJ105: 0.8930131004 | AK105: 0.8984716157 | AL105: 0.9050218341 | AM105: 0.9104803493 | AN105: 0.9115720524 | AO105: 0.9159388646 | AP105: 0.9203056769 | AQ105: 0.922489083 | AR105: 0.922489083 | AS105: 0.923580786 | AT105: 0.9246724891 | AU105: 0.9257641921 | AV105: 0.9279475983 | AW105: 0.9279475983 | AX105: 0.9290393013 | AY105: 0.9290393013 | AZ105: 0.9301310044 | BA105: 0.9312227074 | BB105: 0.9323144105 | BC105: 0.9323144105 | BD105: 0.9334061135 | BE105: 0.9344978166 | BF105: 0.9355895197 | BG105: 0.9388646288 | BH105: 0.9443231441 | BI105: 0.9541484716 | BJ105: 0.9541484716 | BK105: 0.9563318777 | BL105: 0.9574235808 | BM105: 0.96069869 | BN105: 0.9639737991 | BO105: 0.9705240175 | BP105: 0.9727074236 | BQ105: 0.9748908297 | BR105: 0.9770742358 | BS105: 0.9770742358 | BT105: 0.980349345 | BU105: 0.9825327511 | BV105: 0.9825327511 | BW105: 0.9836244541 | BX105: 0.9858078603 | BY105: 0.9901746725 | BZ105: 1
P106: 0.8981595092 | Q106: 0.9018404908 | R106: 0.9042944785 | S106: 0.9067484663 | T106: 0.9153374233 | U106: 0.917791411 | V106: 0.9202453988 | W106: 0.9226993865 | X106: 0.9251533742 | Y106: 0.9263803681 | Z106: 0.9288343558 | AA106: 0.9337423313 | AB106: 0.9386503067 | AC106: 0.9398773006 | AD106: 0.9411042945 | AE106: 0.9435582822 | AF106: 0.9460122699 | AG106: 0.9509202454 | AH106: 0.9521472393 | AI106: 0.9533742331 | AJ106: 0.9570552147 | AK106: 0.9570552147 | AL106: 0.9619631902 | AM106: 0.9619631902 | AN106: 0.9619631902 | AO106: 0.9656441718 | AP106: 0.9668711656 | AQ106: 0.9693251534 | AR106: 0.973006135 | AS106: 0.9779141104 | AT106: 0.9791411043 | AU106: 0.9803680982 | AV106: 0.981595092 | AW106: 0.9840490798 | AX106: 0.9840490798 | AY106: 0.9840490798 | AZ106: 0.9852760736 | BA106: 0.9865030675 | BB106: 0.9865030675 | BC106: 0.9877300613 | BD106: 0.9889570552 | BE106: 0.9901840491 | BF106: 0.9914110429 | BG106: 0.9914110429 | BH106: 0.9926380368 | BI106: 0.9926380368 | BJ106: 0.9926380368 | BK106: 0.9926380368 | BL106: 0.9926380368 | BM106: 0.9938650307 | BN106: 0.9950920245 | BO106: 0.9950920245 | BP106: 0.9950920245 | BQ106: 0.9950920245 | BR106: 0.9950920245 | BS106: 0.9950920245 | BT106: 0.9950920245 | BU106: 0.9963190184 | BV106: 0.9963190184 | BW106: 0.9975460123 | BX106: 0.9975460123 | BY106: 0.9975460123 | BZ106: 1
P107: 0.914893617 | Q107: 0.919729207 | R107: 0.920696325 | S107: 0.9245647969 | T107: 0.9264990329 | U107: 0.9400386847 | V107: 0.9506769826 | W107: 0.9535783366 | X107: 0.9555125725 | Y107: 0.9603481625 | Z107: 0.9622823985 | AA107: 0.9661508704 | AB107: 0.9700193424 | AC107: 0.9709864603 | AD107: 0.9719535783 | AE107: 0.9729206963 | AF107: 0.9738878143 | AG107: 0.9738878143 | AH107: 0.9738878143 | AI107: 0.9748549323 | AJ107: 0.9748549323 | AK107: 0.9758220503 | AL107: 0.9796905222 | AM107: 0.9816247582 | AN107: 0.9825918762 | AO107: 0.9825918762 | AP107: 0.9835589942 | AQ107: 0.9835589942 | AR107: 0.9835589942 | AS107: 0.9835589942 | AT107: 0.9845261122 | AU107: 0.9874274662 | AV107: 0.9883945841 | AW107: 0.9883945841 | AX107: 0.9922630561 | AY107: 0.9932301741 | AZ107: 0.9941972921 | BA107: 0.9941972921 | BB107: 0.9941972921 | BC107: 0.9951644101 | BD107: 0.9951644101 | BE107: 0.9951644101 | BF107: 0.9951644101 | BG107: 0.9951644101 | BH107: 0.9951644101 | BI107: 0.9951644101 | BJ107: 0.9951644101 | BK107: 0.9951644101 | BL107: 0.9951644101 | BM107: 0.9951644101 | BN107: 0.996131528 | BO107: 0.996131528 | BP107: 0.996131528 | BQ107: 0.997098646 | BR107: 0.997098646 | BS107: 0.997098646 | BT107: 0.997098646 | BU107: 0.997098646 | BV107: 0.997098646 | BW107: 0.997098646 | BX107: 0.997098646 | BY107: 0.997098646 | BZ107: 1
P108: 0.9900722022 | Q108: 0.9900722022 | R108: 0.9900722022 | S108: 0.9918772563 | T108: 0.9927797834 | U108: 0.9927797834 | V108: 0.9927797834 | W108: 0.9927797834 | X108: 0.9927797834 | Y108: 0.9927797834 | Z108: 0.9927797834 | AA108: 0.9945848375 | AB108: 0.9945848375 | AC108: 0.9963898917 | AD108: 0.9963898917 | AE108: 0.9972924188 | AF108: 0.9972924188 | AG108: 0.9972924188 | AH108: 0.9972924188 | AI108: 0.9972924188 | AJ108: 0.9972924188 | AK108: 1 | AL108: 1 | AM108: 1 | AN108: 1 | AO108: 1 | AP108: 1 | AQ108: 1 | AR108: 1 | AS108: 1 | AT108: 1 | AU108: 1 | AV108: 1 | AW108: 1 | AX108: 1 | AY108: 1 | AZ108: 1 | BA108: 1 | BB108: 1 | BC108: 1 | BD108: 1 | BE108: 1 | BF108: 1 | BG108: 1 | BH108: 1 | BI108: 1 | BJ108: 1 | BK108: 1 | BL108: 1 | BM108: 1 | BN108: 1 | BO108: 1 | BP108: 1 | BQ108: 1 | BR108: 1 | BS108: 1 | BT108: 1 | BU108: 1 | BV108: 1 | BW108: 1 | BX108: 1 | BY108: 1 | BZ108: 1
P111: 0.38 | Q111: 0.39 | R111: 0.4 | S111: 0.41 | T111: 0.42 | U111: 0.43 | V111: 0.44 | W111: 0.45 | X111: 0.46 | Y111: 0.47 | Z111: 0.48 | AA111: 0.49 | AB111: 0.5 | AC111: 0.51 | AD111: 0.52 | AE111: 0.53 | AF111: 0.54 | AG111: 0.55 | AH111: 0.56 | AI111: 0.57 | AJ111: 0.58 | AK111: 0.59 | AL111: 0.6 | AM111: 0.61 | AN111: 0.62 | AO111: 0.63 | AP111: 0.64 | AQ111: 0.65 | AR111: 0.66 | AS111: 0.67 | AT111: 0.68 | AU111: 0.69 | AV111: 0.7 | AW111: 0.71 | AX111: 0.72 | AY111: 0.73 | AZ111: 0.74 | BA111: 0.75 | BB111: 0.76 | BC111: 0.77 | BD111: 0.78 | BE111: 0.79 | BF111: 0.8 | BG111: 0.81 | BH111: 0.82 | BI111: 0.83 | BJ111: 0.84 | BK111: 0.85 | BL111: 0.86 | BM111: 0.87 | BN111: 0.88 | BO111: 0.89 | BP111: 0.9 | BQ111: 0.91 | BR111: 0.92 | BS111: 0.93 | BT111: 0.94 | BU111: 0.95 | BV111: 0.96 | BW111: 0.97 | BX111: 0.98 | BY111: 0.99 | BZ111: 1
P112: 0.1505723906 | Q112: 0.1525925926 | R112: 0.1546127946 | S112: 0.1573063973 | T112: 0.16 | U112: 0.1630976431 | V112: 0.1676767677 | W112: 0.1709090909 | X112: 0.1745454545 | Y112: 0.1781818182 | Z112: 0.1838383838 | AA112: 0.1924579125 | AB112: 0.2013468013 | AC112: 0.2048484848 | AD112: 0.20996633 | AE112: 0.2144107744 | AF112: 0.2179124579 | AG112: 0.2216835017 | AH112: 0.2238383838 | AI112: 0.2266666667 | AJ112: 0.2296296296 | AK112: 0.2335353535 | AL112: 0.2366329966 | AM112: 0.2383838384 | AN112: 0.2416161616 | AO112: 0.2436363636 | AP112: 0.2460606061 | AQ112: 0.2482154882 | AR112: 0.2515824916 | AS112: 0.2534680135 | AT112: 0.2567003367 | AU112: 0.2595286195 | AV112: 0.2607407407 | AW112: 0.2626262626 | AX112: 0.2653198653 | AY112: 0.2669360269 | AZ112: 0.2698989899 | BA112: 0.2721885522 | BB112: 0.2743434343 | BC112: 0.2767676768 | BD112: 0.2786531987 | BE112: 0.2805387205 | BF112: 0.2828282828 | BG112: 0.2855218855 | BH112: 0.2883501684 | BI112: 0.2902356902 | BJ112: 0.2923905724 | BK112: 0.2945454545 | BL112: 0.2971043771 | BM112: 0.3000673401 | BN112: 0.303030303 | BO112: 0.3058585859 | BP112: 0.308013468 | BQ112: 0.3117845118 | BR112: 0.3155555556 | BS112: 0.3186531987 | BT112: 0.3245791246 | BU112: 0.3288888889 | BV112: 0.3341414141 | BW112: 0.3455892256 | BX112: 0.3667340067 | BY112: 0.390976431 | BZ112: 1
P113: 0.373046875 | Q113: 0.3805803571 | R113: 0.38671875 | S113: 0.3939732143 | T113: 0.4029017857 | U113: 0.4093191964 | V113: 0.4148995536 | W113: 0.419921875 | X113: 0.4241071429 | Y113: 0.431640625 | Z113: 0.4380580357 | AA113: 0.4464285714 | AB113: 0.45703125 | AC113: 0.46484375 | AD113: 0.4684709821 | AE113: 0.4720982143 | AF113: 0.4762834821 | AG113: 0.4801897321 | AH113: 0.4835379464 | AI113: 0.4874441964 | AJ113: 0.4919084821 | AK113: 0.4966517857 | AL113: 0.5016741071 | AM113: 0.5083705357 | AN113: 0.5106026786 | AO113: 0.5145089286 | AP113: 0.5186941964 | AQ113: 0.5220424107 | AR113: 0.5259486607 | AS113: 0.5287388393 | AT113: 0.5309709821 | AU113: 0.5320870536 | AV113: 0.5348772321 | AW113: 0.537109375 | AX113: 0.5407366071 | AY113: 0.5443638393 | AZ113: 0.548828125 | BA113: 0.5521763393 | BB113: 0.5555245536 | BC113: 0.55859375 | BD113: 0.5597098214 | BE113: 0.5613839286 | BF113: 0.5636160714 | BG113: 0.5652901786 | BH113: 0.5675223214 | BI113: 0.5686383929 | BJ113: 0.5697544643 | BK113: 0.5739397321 | BL113: 0.5786830357 | BM113: 0.5828683036 | BN113: 0.5859375 | BO113: 0.5884486607 | BP113: 0.5929129464 | BQ113: 0.5959821429 | BR113: 0.5979352679 | BS113: 0.6015625 | BT113: 0.6037946429 | BU113: 0.6060267857 | BV113: 0.609375 | BW113: 0.6118861607 | BX113: 0.6146763393 | BY113: 0.6183035714 | BZ113: 1
P114: 0.4535073409 | Q114: 0.4594208809 | R114: 0.464314845 | S114: 0.469004894 | T114: 0.4732871126 | U114: 0.4787928222 | V114: 0.484502447 | W114: 0.4883768352 | X114: 0.4924551387 | Y114: 0.4965334421 | Z114: 0.5008156607 | AA114: 0.5030587276 | AB114: 0.5075448613 | AC114: 0.5118270799 | AD114: 0.5177406199 | AE114: 0.5210032626 | AF114: 0.5234502447 | AG114: 0.5261011419 | AH114: 0.5314029364 | AI114: 0.5375203915 | AJ114: 0.5432300163 | AK114: 0.5456769984 | AL114: 0.5493474715 | AM114: 0.5530179445 | AN114: 0.5554649266 | AO114: 0.5593393148 | AP114: 0.5628058728 | AQ114: 0.5664763458 | AR114: 0.5701468189 | AS114: 0.5734094617 | AT114: 0.5776916803 | AU114: 0.5811582382 | AV114: 0.5838091354 | AW114: 0.5872756933 | AX114: 0.5887030995 | AY114: 0.5925774878 | AZ114: 0.5950244698 | BA114: 0.5982871126 | BB114: 0.6015497553 | BC114: 0.6062398042 | BD114: 0.6113376835 | BE114: 0.6160277325 | BF114: 0.6205138662 | BG114: 0.6233686786 | BH114: 0.6292822186 | BI114: 0.633360522 | BJ114: 0.6376427406 | BK114: 0.6415171289 | BL114: 0.6466150082 | BM114: 0.6490619902 | BN114: 0.6521207178 | BO114: 0.6551794454 | BP114: 0.6572185971 | BQ114: 0.6617047308 | BR114: 0.6639477977 | BS114: 0.6686378467 | BT114: 0.6757748777 | BU114: 0.682096248 | BV114: 0.6863784666 | BW114: 0.6912724307 | BX114: 0.6959624796 | BY114: 0.7026916803 | BZ114: 1
P115: 0.5889626746 | Q115: 0.5930844974 | R115: 0.5988092512 | S115: 0.6036180444 | T115: 0.6091138081 | U115: 0.6152965422 | V115: 0.6233111976 | W115: 0.6288069613 | X115: 0.6379665674 | Y115: 0.6464392031 | Z115: 0.6530799176 | AA115: 0.6624685139 | AB115: 0.6709411495 | AC115: 0.6791847951 | AD115: 0.6858255095 | AE115: 0.6931531944 | AF115: 0.7004808793 | AG115: 0.7048316922 | AH115: 0.7071215938 | AI115: 0.7128463476 | AJ115: 0.7169681704 | AK115: 0.7213189833 | AL115: 0.7256697962 | AM115: 0.7300206091 | AN115: 0.7352873826 | AO115: 0.7380352645 | AP115: 0.7426150676 | AQ115: 0.74627891 | AR115: 0.7497137623 | AS115: 0.752232654 | AT115: 0.7542935654 | AU115: 0.7568124571 | AV115: 0.7588733684 | AW115: 0.7645981223 | AX115: 0.768719945 | AY115: 0.774673689 | AZ115: 0.7778795512 | BA115: 0.7817723838 | BB115: 0.7856652164 | BC115: 0.7904740096 | BD115: 0.7959697733 | BE115: 0.7996336158 | BF115: 0.8023814976 | BG115: 0.8051293794 | BH115: 0.8078772613 | BI115: 0.8110831234 | BJ115: 0.8136020151 | BK115: 0.816349897 | BL115: 0.8204717197 | BM115: 0.8255095031 | BN115: 0.8300893062 | BO115: 0.8348980994 | BP115: 0.8408518434 | BQ115: 0.8468055874 | BR115: 0.8495534692 | BS115: 0.8509274101 | BT115: 0.8525303412 | BU115: 0.855278223 | BV115: 0.8577971147 | BW115: 0.861231967 | BX115: 0.8648958095 | BY115: 0.8694756125 | BZ115: 1
P116: 0.7344913151 | Q116: 0.7404466501 | R116: 0.7503722084 | S116: 0.7598014888 | T116: 0.7679900744 | U116: 0.7714640199 | V116: 0.7754342432 | W116: 0.7789081886 | X116: 0.7851116625 | Y116: 0.7893300248 | Z116: 0.7928039702 | AA116: 0.7960297767 | AB116: 0.800248139 | AC116: 0.8054590571 | AD116: 0.8084367246 | AE116: 0.8124069479 | AF116: 0.817866005 | AG116: 0.8228287841 | AH116: 0.8275434243 | AI116: 0.8332506203 | AJ116: 0.8377171216 | AK116: 0.8421836228 | AL116: 0.8446650124 | AM116: 0.8491315136 | AN116: 0.8521091811 | AO116: 0.8558312655 | AP116: 0.8622828784 | AQ116: 0.8674937965 | AR116: 0.8709677419 | AS116: 0.8741935484 | AT116: 0.8771712159 | AU116: 0.8808933002 | AV116: 0.8848635236 | AW116: 0.8875930521 | AX116: 0.8890818859 | AY116: 0.8908188586 | AZ116: 0.8930521092 | BA116: 0.8950372208 | BB116: 0.8970223325 | BC116: 0.899751861 | BD116: 0.9039702233 | BE116: 0.9062034739 | BF116: 0.9104218362 | BG116: 0.9131513648 | BH116: 0.9156327543 | BI116: 0.9186104218 | BJ116: 0.9200992556 | BK116: 0.9220843672 | BL116: 0.9230769231 | BM116: 0.9250620347 | BN116: 0.9263027295 | BO116: 0.9282878412 | BP116: 0.9305210918 | BQ116: 0.9322580645 | BR116: 0.9344913151 | BS116: 0.935483871 | BT116: 0.9379652605 | BU116: 0.9389578164 | BV116: 0.9406947891 | BW116: 0.9424317618 | BX116: 0.9429280397 | BY116: 0.9436724566 | BZ116: 1
P117: 0.7786561265 | Q117: 0.7800934244 | R117: 0.7851239669 | S117: 0.7912324829 | T117: 0.7969816745 | U117: 0.8009342436 | V117: 0.8048868128 | W117: 0.8156665469 | X117: 0.8181818182 | Y117: 0.8214157384 | Z117: 0.8235716852 | AA117: 0.8278835789 | AB117: 0.8339920949 | AC117: 0.8404599353 | AD117: 0.8476464247 | AE117: 0.8555515631 | AF117: 0.8609414301 | AG117: 0.8641753503 | AH117: 0.8692058929 | AI117: 0.8724398132 | AJ117: 0.873877111 | AK117: 0.8756737334 | AL117: 0.8767517068 | AM117: 0.8785483291 | AN117: 0.8803449515 | AO117: 0.8821415738 | AP117: 0.8850161696 | AQ117: 0.8871721164 | AR117: 0.8882500898 | AS117: 0.8900467122 | AT117: 0.8911246856 | AU117: 0.8929213079 | AV117: 0.8936399569 | AW117: 0.8961552282 | AX117: 0.8968738771 | AY117: 0.8979518505 | AZ117: 0.8993891484 | BA117: 0.9004671218 | BB117: 0.9015450952 | BC117: 0.9019044197 | BD117: 0.9051383399 | BE117: 0.9072942867 | BF117: 0.9080129357 | BG117: 0.9094502336 | BH117: 0.9116061804 | BI117: 0.9126841538 | BJ117: 0.9137621272 | BK117: 0.9151994251 | BL117: 0.9155587496 | BM117: 0.9162773985 | BN117: 0.9184333453 | BO117: 0.9187926698 | BP117: 0.9195113187 | BQ117: 0.9209486166 | BR117: 0.9213079411 | BS117: 0.922745239 | BT117: 0.9241825368 | BU117: 0.9252605102 | BV117: 0.9256198347 | BW117: 0.9263384837 | BX117: 0.9284944305 | BY117: 0.9292130794 | BZ117: 1
P118: 0.8040435459 | Q118: 0.8090202177 | R118: 0.8111975117 | S118: 0.8127527216 | T118: 0.8146189736 | U118: 0.8171073095 | V118: 0.8245723173 | W118: 0.8301710731 | X118: 0.834525661 | Y118: 0.8395023328 | Z118: 0.8416796267 | AA118: 0.8457231726 | AB118: 0.8494556765 | AC118: 0.8506998445 | AD118: 0.8519440124 | AE118: 0.8538102644 | AF118: 0.8553654743 | AG118: 0.8590979782 | AH118: 0.8612752722 | AI118: 0.8628304821 | AJ118: 0.8640746501 | AK118: 0.866251944 | AL118: 0.866562986 | AM118: 0.868118196 | AN118: 0.8693623639 | AO118: 0.8706065319 | AP118: 0.8730948678 | AQ118: 0.8743390358 | AR118: 0.8752721617 | AS118: 0.8768273717 | AT118: 0.8783825816 | AU118: 0.8796267496 | AV118: 0.8808709176 | AW118: 0.8818040435 | AX118: 0.8827371695 | AY118: 0.8830482115 | AZ118: 0.8855365474 | BA118: 0.8874027994 | BB118: 0.8895800933 | BC118: 0.8908242613 | BD118: 0.8914463453 | BE118: 0.8920684292 | BF118: 0.8945567652 | BG118: 0.8982892691 | BH118: 0.9023328149 | BI118: 0.9066874028 | BJ118: 0.9091757387 | BK118: 0.9122861586 | BL118: 0.9153965785 | BM118: 0.9194401244 | BN118: 0.9219284603 | BO118: 0.9272161742 | BP118: 0.93437014 | BQ118: 0.9405909798 | BR118: 0.9455676516 | BS118: 0.9502332815 | BT118: 0.9539657854 | BU118: 0.9567651633 | BV118: 0.9611197512 | BW118: 0.9629860031 | BX118: 0.968273717 | BY118: 0.9850699844 | BZ118: 1
P119: 0.8997165131 | Q119: 0.9021970234 | R119: 0.9043231751 | S119: 0.9060949681 | T119: 0.9128277817 | U119: 0.917080085 | V119: 0.9177888023 | W119: 0.9202693125 | X119: 0.921686747 | Y119: 0.92345854 | Z119: 0.9241672573 | AA119: 0.9266477675 | AB119: 0.928065202 | AC119: 0.9291282778 | AD119: 0.9319631467 | AE119: 0.9337349398 | AF119: 0.9379872431 | AG119: 0.9401133948 | AH119: 0.9418851878 | AI119: 0.9436569809 | AJ119: 0.9447200567 | AK119: 0.9457831325 | AL119: 0.9479092842 | AM119: 0.9493267186 | AN119: 0.9507441531 | AO119: 0.9514528703 | AP119: 0.9542877392 | AQ119: 0.9557051736 | AR119: 0.9578313253 | AS119: 0.9596031184 | AT119: 0.9606661942 | AU119: 0.9631467045 | AV119: 0.9638554217 | AW119: 0.9645641389 | AX119: 0.9659815734 | AY119: 0.9684620836 | AZ119: 0.9705882353 | BA119: 0.9720056697 | BB119: 0.9730687456 | BC119: 0.9734231042 | BD119: 0.9762579731 | BE119: 0.9766123317 | BF119: 0.9780297661 | BG119: 0.9798015592 | BH119: 0.980864635 | BI119: 0.9826364281 | BJ119: 0.985471297 | BK119: 0.9858256556 | BL119: 0.9865343728 | BM119: 0.98724309 | BN119: 0.9875974486 | BO119: 0.9875974486 | BP119: 0.9879518072 | BQ119: 0.9886605245 | BR119: 0.9890148831 | BS119: 0.9890148831 | BT119: 0.9890148831 | BU119: 0.9893692417 | BV119: 0.9897236003 | BW119: 0.9904323175 | BX119: 0.9914953933 | BY119: 0.9922041106 | BZ119: 1
P120: 0.9281786942 | Q120: 0.9298969072 | R120: 0.9319587629 | S120: 0.9340206186 | T120: 0.9371134021 | U120: 0.9405498282 | V120: 0.9453608247 | W120: 0.9501718213 | X120: 0.9515463918 | Y120: 0.9529209622 | Z120: 0.9560137457 | AA120: 0.9567010309 | AB120: 0.9580756014 | AC120: 0.9594501718 | AD120: 0.9604810997 | AE120: 0.9608247423 | AF120: 0.9625429553 | AG120: 0.9635738832 | AH120: 0.9642611684 | AI120: 0.9656357388 | AJ120: 0.9683848797 | AK120: 0.9697594502 | AL120: 0.9714776632 | AM120: 0.9731958763 | AN120: 0.975257732 | AO120: 0.9776632302 | AP120: 0.9783505155 | AQ120: 0.9793814433 | AR120: 0.9807560137 | AS120: 0.9821305842 | AT120: 0.9821305842 | AU120: 0.9835051546 | AV120: 0.9852233677 | AW120: 0.9865979381 | AX120: 0.9890034364 | AY120: 0.9900343643 | AZ120: 0.9907216495 | BA120: 0.9910652921 | BB120: 0.9914089347 | BC120: 0.9927835052 | BD120: 0.9927835052 | BE120: 0.9934707904 | BF120: 0.9948453608 | BG120: 0.9948453608 | BH120: 0.9948453608 | BI120: 0.9951890034 | BJ120: 0.9951890034 | BK120: 0.995532646 | BL120: 0.9958762887 | BM120: 0.9958762887 | BN120: 0.9958762887 | BO120: 0.9962199313 | BP120: 0.9962199313 | BQ120: 0.9965635739 | BR120: 0.9965635739 | BS120: 0.9975945017 | BT120: 0.9975945017 | BU120: 0.9975945017 | BV120: 0.9975945017 | BW120: 0.9975945017 | BX120: 0.9979381443 | BY120: 0.9982817869 | BZ120: 1
P121: 0.9832201358 | Q121: 0.9844186976 | R121: 0.986815821 | S121: 0.9876148622 | T121: 0.9884139033 | U121: 0.9892129445 | V121: 0.989612465 | W121: 0.989612465 | X121: 0.9900119856 | Y121: 0.9900119856 | Z121: 0.9904115062 | AA121: 0.9904115062 | AB121: 0.9912105473 | AC121: 0.9916100679 | AD121: 0.9920095885 | AE121: 0.9920095885 | AF121: 0.9940071914 | AG121: 0.9956052737 | AH121: 0.9960047942 | AI121: 0.9968038354 | AJ121: 0.997203356 | AK121: 0.9976028765 | AL121: 0.9976028765 | AM121: 0.9976028765 | AN121: 0.9980023971 | AO121: 0.9980023971 | AP121: 0.9984019177 | AQ121: 0.9984019177 | AR121: 0.9984019177 | AS121: 0.9984019177 | AT121: 0.9984019177 | AU121: 0.9984019177 | AV121: 0.9984019177 | AW121: 0.9988014383 | AX121: 1 | AY121: 1 | AZ121: 1 | BA121: 1 | BB121: 1 | BC121: 1 | BD121: 1 | BE121: 1 | BF121: 1 | BG121: 1 | BH121: 1 | BI121: 1 | BJ121: 1 | BK121: 1 | BL121: 1 | BM121: 1 | BN121: 1 | BO121: 1 | BP121: 1 | BQ121: 1 | BR121: 1 | BS121: 1 | BT121: 1 | BU121: 1 | BV121: 1 | BW121: 1 | BX121: 1 | BY121: 1 | BZ121: 1
P124: 0.38 | Q124: 0.39 | R124: 0.4 | S124: 0.41 | T124: 0.42 | U124: 0.43 | V124: 0.44 | W124: 0.45 | X124: 0.46 | Y124: 0.47 | Z124: 0.48 | AA124: 0.49 | AB124: 0.5 | AC124: 0.51 | AD124: 0.52 | AE124: 0.53 | AF124: 0.54 | AG124: 0.55 | AH124: 0.56 | AI124: 0.57 | AJ124: 0.58 | AK124: 0.59 | AL124: 0.6 | AM124: 0.61 | AN124: 0.62 | AO124: 0.63 | AP124: 0.64 | AQ124: 0.65 | AR124: 0.66 | AS124: 0.67 | AT124: 0.68 | AU124: 0.69 | AV124: 0.7 | AW124: 0.71 | AX124: 0.72 | AY124: 0.73 | AZ124: 0.74 | BA124: 0.75 | BB124: 0.76 | BC124: 0.77 | BD124: 0.78 | BE124: 0.79 | BF124: 0.8 | BG124: 0.81 | BH124: 0.82 | BI124: 0.83 | BJ124: 0.84 | BK124: 0.85 | BL124: 0.86 | BM124: 0.87 | BN124: 0.88 | BO124: 0.89 | BP124: 0.9 | BQ124: 0.91 | BR124: 0.92 | BS124: 0.93 | BT124: 0.94 | BU124: 0.95 | BV124: 0.96 | BW124: 0.97 | BX124: 0.98 | BY124: 0.99 | BZ124: 1
P125: 0.2288762146 | Q125: 0.2314110689 | R125: 0.2336290663 | S125: 0.2362695395 | T125: 0.2395437262 | U125: 0.2433460076 | V125: 0.2489438107 | W125: 0.2524292353 | X125: 0.2560202788 | Y125: 0.2614068441 | Z125: 0.2666877905 | AA125: 0.2719687368 | AB125: 0.2799957752 | AC125: 0.284643008 | AD125: 0.2886565272 | AE125: 0.2922475708 | AF125: 0.2948880439 | AG125: 0.2989015632 | AH125: 0.3022813688 | AI125: 0.3065061259 | AJ125: 0.3099915505 | AK125: 0.3132657372 | AL125: 0.3163286861 | AM125: 0.3201309675 | AN125: 0.3228770596 | AO125: 0.3266793409 | AP125: 0.3286861005 | AQ125: 0.3307984791 | AR125: 0.333861428 | AS125: 0.3369243768 | AT125: 0.3401985636 | AU125: 0.3423109421 | AV125: 0.3450570342 | AW125: 0.348225602 | AX125: 0.3514997888 | AY125: 0.3543514998 | AZ125: 0.3570975919 | BA125: 0.3603717786 | BB125: 0.3636459654 | BC125: 0.3663920575 | BD125: 0.3692437685 | BE125: 0.3715673849 | BF125: 0.374207858 | BG125: 0.3779045205 | BH125: 0.3804393747 | BI125: 0.3835023236 | BJ125: 0.3869877482 | BK125: 0.3895226025 | BL125: 0.3925855513 | BM125: 0.3955428813 | BN125: 0.3994507816 | BO125: 0.4032530629 | BP125: 0.4058935361 | BQ125: 0.4107520068 | BR125: 0.4148711449 | BS125: 0.4198352345 | BT125: 0.4241656105 | BU125: 0.4290240811 | BV125: 0.4348331221 | BW125: 0.4404309252 | BX125: 0.4482467258 | BY125: 0.4597591888 | BZ125: 1
P126: 0.3204648813 | Q126: 0.3243052046 | R126: 0.3291561395 | S126: 0.3328954017 | T126: 0.3370389085 | U126: 0.3419909045 | V126: 0.3456291056 | W126: 0.3485598787 | X126: 0.352299141 | Y126: 0.3569479535 | Z126: 0.3607882769 | AA126: 0.3643254169 | AB126: 0.370085902 | AC126: 0.3736230419 | AD126: 0.3760485093 | AE126: 0.3781707933 | AF126: 0.3797877716 | AG126: 0.3821121779 | AH126: 0.3838302173 | AI126: 0.385750379 | AJ126: 0.3889843355 | AK126: 0.3911066195 | AL126: 0.3949469429 | AM126: 0.3979787772 | AN126: 0.4016169783 | AO126: 0.4050530571 | AP126: 0.4075795856 | AQ126: 0.4102071753 | AR126: 0.4134411319 | AS126: 0.4174835776 | AT126: 0.4207175341 | AU126: 0.4236483072 | AV126: 0.4263769581 | AW126: 0.4279939363 | AX126: 0.4301162203 | AY126: 0.432036382 | AZ126: 0.4343607883 | BA126: 0.4371905003 | BB126: 0.4405255179 | BC126: 0.4437594745 | BD126: 0.4467913087 | BE126: 0.4503284487 | BF126: 0.4528549773 | BG126: 0.4558868115 | BH126: 0.4581101566 | BI126: 0.4608388075 | BJ126: 0.4637695806 | BK126: 0.4675088428 | BL126: 0.4707427994 | BM126: 0.4751894896 | BN126: 0.4781202628 | BO126: 0.4819605862 | BP126: 0.4852956038 | BQ126: 0.4893380495 | BR126: 0.4936836786 | BS126: 0.4987367357 | BT126: 0.5034866094 | BU126: 0.5090449722 | BV126: 0.5152097019 | BW126: 0.5244062658 | BX126: 0.5321879737 | BY126: 0.5441131885 | BZ126: 1
P127: 0.4715789474 | Q127: 0.4758947368 | R127: 0.4805263158 | S127: 0.4846315789 | T127: 0.4882105263 | U127: 0.4938947368 | V127: 0.4970526316 | W127: 0.5016842105 | X127: 0.5061052632 | Y127: 0.5118947368 | Z127: 0.5155789474 | AA127: 0.5195789474 | AB127: 0.5229473684 | AC127: 0.5273684211 | AD127: 0.5314736842 | AE127: 0.5345263158 | AF127: 0.5390526316 | AG127: 0.5413684211 | AH127: 0.5463157895 | AI127: 0.5518947368 | AJ127: 0.554 | AK127: 0.5571578947 | AL127: 0.5607368421 | AM127: 0.5636842105 | AN127: 0.5658947368 | AO127: 0.5684210526 | AP127: 0.5709473684 | AQ127: 0.5735789474 | AR127: 0.576 | AS127: 0.5793684211 | AT127: 0.5823157895 | AU127: 0.5848421053 | AV127: 0.5883157895 | AW127: 0.5902105263 | AX127: 0.5921052632 | AY127: 0.5943157895 | AZ127: 0.5965263158 | BA127: 0.5990526316 | BB127: 0.6011578947 | BC127: 0.6031578947 | BD127: 0.6056842105 | BE127: 0.6087368421 | BF127: 0.6115789474 | BG127: 0.6143157895 | BH127: 0.6167368421 | BI127: 0.6191578947 | BJ127: 0.6214736842 | BK127: 0.6242105263 | BL127: 0.6268421053 | BM127: 0.6302105263 | BN127: 0.6333684211 | BO127: 0.6368421053 | BP127: 0.6412631579 | BQ127: 0.6449473684 | BR127: 0.65 | BS127: 0.6535789474 | BT127: 0.6574736842 | BU127: 0.6625263158 | BV127: 0.6676842105 | BW127: 0.6753684211 | BX127: 0.6829473684 | BY127: 0.6946315789 | BZ127: 1
P128: 0.5184424124 | Q128: 0.521627453 | R128: 0.5250179801 | S128: 0.5271755882 | T128: 0.5311825747 | U128: 0.5365252235 | V128: 0.540943183 | W128: 0.5452583993 | X128: 0.5486489263 | Y128: 0.5534778588 | Z128: 0.5571766156 | AA128: 0.5607726292 | AB128: 0.5661152779 | AC128: 0.5709442104 | AD128: 0.5751566834 | AE128: 0.5789581835 | AF128: 0.5831706565 | AG128: 0.5854310079 | AH128: 0.5876913593 | AI128: 0.5898489674 | AJ128: 0.5923148053 | AK128: 0.5945751567 | AL128: 0.5971437378 | AM128: 0.598890373 | AN128: 0.6007397514 | AO128: 0.6033083325 | AP128: 0.6057741703 | AQ128: 0.6080345217 | AR128: 0.6107058461 | AS128: 0.6132744272 | AT128: 0.6148155759 | AU128: 0.6168704408 | AV128: 0.6189253057 | AW128: 0.6212884003 | AX128: 0.6236514949 | AY128: 0.6255008733 | AZ128: 0.6280694544 | BA128: 0.6297133463 | BB128: 0.6310490085 | BC128: 0.632487414 | BD128: 0.6345422788 | BE128: 0.6370081167 | BF128: 0.6389602384 | BG128: 0.640501387 | BH128: 0.6422480222 | BI128: 0.6448166033 | BJ128: 0.6466659817 | BK128: 0.6502619953 | BL128: 0.6540634953 | BM128: 0.6561183602 | BN128: 0.6585841981 | BO128: 0.6608445495 | BP128: 0.6642350765 | BQ128: 0.6670091441 | BR128: 0.670296928 | BS128: 0.674098428 | BT128: 0.6783109011 | BU128: 0.6835508065 | BV128: 0.6899208877 | BW128: 0.6977293743 | BX128: 0.7057433474 | BY128: 0.7160176718 | BZ128: 1
P129: 0.5908289242 | Q129: 0.594874987 | R129: 0.5993360307 | S129: 0.6040045648 | T129: 0.6076356469 | U129: 0.6099180413 | V129: 0.6123041809 | W129: 0.6144828302 | X129: 0.6191513642 | Y129: 0.6237161531 | Z129: 0.6273472352 | AA129: 0.62983712 | AB129: 0.6330532213 | AC129: 0.6366843034 | AD129: 0.6396929142 | AE129: 0.6439464675 | AF129: 0.6473700591 | AG129: 0.649859944 | AH129: 0.652453574 | AI129: 0.6546322233 | AJ129: 0.6588857765 | AK129: 0.6624131134 | AL129: 0.6665629215 | AM129: 0.6695715323 | AN129: 0.672476398 | AO129: 0.6756924992 | AP129: 0.6792198361 | AQ129: 0.6806722689 | AR129: 0.6831621538 | AS129: 0.6845108414 | AT129: 0.6870007262 | AU129: 0.6883494138 | AV129: 0.6913580247 | AW129: 0.6924992219 | AX129: 0.6942628903 | AY129: 0.6969602656 | AZ129: 0.6990351696 | BA129: 0.7006950929 | BB129: 0.7028737421 | BC129: 0.7042224297 | BD129: 0.7061935885 | BE129: 0.7076460214 | BF129: 0.7103433966 | BG129: 0.7117958294 | BH129: 0.7143894595 | BI129: 0.7165681087 | BJ129: 0.7186430128 | BK129: 0.7200954456 | BL129: 0.7210291524 | BM129: 0.7226890756 | BN129: 0.7248677249 | BO129: 0.7272538645 | BP129: 0.7295362589 | BQ129: 0.7318186534 | BR129: 0.7333748314 | BS129: 0.7355534807 | BT129: 0.7386658367 | BU129: 0.7426081544 | BV129: 0.7467579624 | BW129: 0.7515302417 | BX129: 0.7558875402 | BY129: 0.7630459591 | BZ129: 1
P130: 0.5995891003 | Q130: 0.6022923875 | R130: 0.6047794118 | S130: 0.6071583045 | T130: 0.6121323529 | U130: 0.6150519031 | V130: 0.6198096886 | W130: 0.6257569204 | X130: 0.6275951557 | Y130: 0.6297577855 | Z130: 0.6319204152 | AA130: 0.6334342561 | AB130: 0.6368944637 | AC130: 0.6410034602 | AD130: 0.6458693772 | AE130: 0.6506271626 | AF130: 0.6545198962 | AG130: 0.6607915225 | AH130: 0.665333045 | AI130: 0.6673875433 | AJ130: 0.6689013841 | AK130: 0.6698745675 | AL130: 0.6721453287 | AM130: 0.6751730104 | AN130: 0.6769031142 | AO130: 0.6791738754 | AP130: 0.6816608997 | AQ130: 0.6837153979 | AR130: 0.6859861592 | AS130: 0.6881487889 | AT130: 0.6927984429 | AU130: 0.6945285467 | AV130: 0.6962586505 | AW130: 0.6974480969 | AX130: 0.6986375433 | AY130: 0.70058391 | AZ130: 0.7020977509 | BA130: 0.7032871972 | BB130: 0.7046929066 | BC130: 0.7059904844 | BD130: 0.7068555363 | BE130: 0.7085856401 | BF130: 0.709666955 | BG130: 0.7109645329 | BH130: 0.7124783737 | BI130: 0.713884083 | BJ130: 0.7152897924 | BK130: 0.7160467128 | BL130: 0.7174524221 | BM130: 0.71875 | BN130: 0.7205882353 | BO130: 0.7222102076 | BP130: 0.7246972318 | BQ130: 0.7277249135 | BR130: 0.7293468858 | BS130: 0.7314013841 | BT130: 0.7328070934 | BU130: 0.7358347751 | BV130: 0.7390787197 | BW130: 0.7439446367 | BX130: 0.7479455017 | BY130: 0.7543252595 | BZ130: 1
P131: 0.6101314851 | Q131: 0.6160432168 | R131: 0.6189990827 | S131: 0.6210376108 | T131: 0.622566507 | U131: 0.6244011823 | V131: 0.6309244725 | W131: 0.6350015289 | X131: 0.6394862909 | Y131: 0.6438691265 | Z131: 0.649475079 | AA131: 0.6587503822 | AB131: 0.6627255122 | AC131: 0.6642544083 | AD131: 0.6668025685 | AE131: 0.6707776985 | AF131: 0.673631638 | AG131: 0.6755682397 | AH131: 0.6777086943 | AI131: 0.6807664866 | AJ131: 0.6845377637 | AK131: 0.687595556 | AL131: 0.6897360106 | AM131: 0.6917745388 | AN131: 0.6929976557 | AO131: 0.6945265518 | AP131: 0.6968708592 | AQ131: 0.6983997554 | AR131: 0.7002344307 | AS131: 0.7023748853 | AT131: 0.7051268984 | AU131: 0.7071654266 | AV131: 0.709509734 | AW131: 0.7115482622 | AX131: 0.7134848639 | AY131: 0.7154214657 | AZ131: 0.7169503618 | BA131: 0.7182754052 | BB131: 0.7194985221 | BC131: 0.7205177862 | BD131: 0.7221486087 | BE131: 0.7241871369 | BF131: 0.7255121802 | BG131: 0.7266333707 | BH131: 0.7276526348 | BI131: 0.7289776781 | BJ131: 0.7304046478 | BK131: 0.7313219855 | BL131: 0.7320354704 | BM131: 0.7347874834 | BN131: 0.7376414229 | BO131: 0.7394760983 | BP131: 0.7420242585 | BQ131: 0.7448781979 | BR131: 0.7477321374 | BS131: 0.7497706656 | BT131: 0.7523188258 | BU131: 0.7554785445 | BV131: 0.7597594537 | BW131: 0.7648557741 | BX131: 0.7720925492 | BY131: 0.7841198655 | BZ131: 1
P132: 0.6798451192 | Q132: 0.6855512533 | R132: 0.6885062156 | S132: 0.6933971877 | T132: 0.698390055 | U132: 0.7035867129 | V132: 0.7051151416 | W132: 0.7065416752 | X132: 0.7099042185 | Y132: 0.7139800285 | Z132: 0.7174444671 | AA132: 0.7213164867 | AB132: 0.726309354 | AC132: 0.7293662115 | AD132: 0.7330344406 | AE132: 0.7343590789 | AF132: 0.7358875076 | AG132: 0.7378235174 | AH132: 0.7401671082 | AI132: 0.7415936417 | AJ132: 0.744141023 | AK132: 0.7464846138 | AL132: 0.7482168331 | AM132: 0.7499490524 | AN132: 0.7514774811 | AO132: 0.7524964337 | AP132: 0.7547381292 | AQ132: 0.7560627675 | AR132: 0.7576930915 | AS132: 0.7590177298 | AT132: 0.7607499491 | AU132: 0.7627878541 | AV132: 0.7649276544 | AW132: 0.7660485021 | AX132: 0.7673731404 | AY132: 0.7685958834 | AZ132: 0.7697167312 | BA132: 0.7725697982 | BB132: 0.774505808 | BC132: 0.7774607703 | BD132: 0.7787854086 | BE132: 0.7805176279 | BF132: 0.7819441614 | BG132: 0.7837782759 | BH132: 0.7853067047 | BI132: 0.7868351335 | BJ132: 0.7888730385 | BK132: 0.7904014673 | BL132: 0.7924393723 | BM132: 0.7936621153 | BN132: 0.7942734869 | BO132: 0.7944772774 | BP132: 0.7959038109 | BQ132: 0.7973303444 | BR132: 0.7993682494 | BS132: 0.8011004687 | BT132: 0.802425107 | BU132: 0.8058895455 | BV132: 0.8083350316 | BW132: 0.8113918891 | BX132: 0.8159771755 | BY132: 0.8240269003 | BZ132: 1
P133: 0.7021343707 | Q133: 0.7041320576 | R133: 0.7070760172 | S133: 0.7094942698 | T133: 0.7125433708 | U133: 0.7168541689 | V133: 0.7211649669 | W133: 0.7223215224 | X133: 0.7243192093 | Y133: 0.7264220376 | Z133: 0.7292608559 | AA133: 0.7317842498 | AB133: 0.7350436337 | AC133: 0.7378824519 | AD133: 0.7408264115 | AE133: 0.7422983913 | AF133: 0.7437703711 | AG133: 0.7459783409 | AH133: 0.7474503207 | AI133: 0.7494480076 | AJ133: 0.7523919672 | AK133: 0.7540742298 | AL133: 0.7553359268 | AM133: 0.7582798864 | AN133: 0.7613289875 | AO133: 0.7645883714 | AP133: 0.7665860582 | AQ133: 0.7686888866 | AR133: 0.7714225633 | AS133: 0.7735253917 | AT133: 0.7764693513 | AU133: 0.7788876038 | AV133: 0.7809904321 | AW133: 0.7824624119 | AX133: 0.7841446746 | AY133: 0.7871937756 | AZ133: 0.7892966039 | BA133: 0.7908737252 | BB133: 0.7921354221 | BC133: 0.7932919777 | BD133: 0.7945536747 | BE133: 0.7956050888 | BF133: 0.7967616444 | BG133: 0.7980233414 | BH133: 0.7987593313 | BI133: 0.8003364525 | BJ133: 0.8010724424 | BK133: 0.8020187152 | BL133: 0.8032804122 | BM133: 0.8046472506 | BN133: 0.8062243718 | BO133: 0.8075912102 | BP133: 0.8089580486 | BQ133: 0.8104300284 | BR133: 0.8124277153 | BS133: 0.8144254022 | BT133: 0.8160025234 | BU133: 0.8193670487 | BV133: 0.8231521396 | BW133: 0.8274629377 | BX133: 0.8340868468 | BY133: 0.8422878772 | BZ133: 1
P134: 0.7208006603 | Q134: 0.7234832852 | R134: 0.7270945109 | S134: 0.7297771358 | T134: 0.7326661164 | U134: 0.7354519191 | V134: 0.7391663227 | W134: 0.7441188609 | X134: 0.7490713991 | Y134: 0.7543334709 | Z134: 0.7591828312 | AA134: 0.7657862154 | AB134: 0.7777548494 | AC134: 0.7823978539 | AD134: 0.7866281469 | AE134: 0.7900330169 | AF134: 0.7926124639 | AG134: 0.7963268675 | AH134: 0.7999380933 | AI134: 0.8020016508 | AJ134: 0.803549319 | AK134: 0.806128766 | AL134: 0.8083986793 | AM134: 0.8093272802 | AN134: 0.8108749484 | AO134: 0.8120099051 | AP134: 0.8138671069 | AQ134: 0.8156211308 | AR134: 0.8165497317 | AS134: 0.8175815105 | AT134: 0.8183037557 | AU134: 0.8191291787 | AV134: 0.8204704911 | AW134: 0.8218118035 | AX134: 0.8222245151 | AY134: 0.8228435823 | AZ134: 0.8238753611 | BA134: 0.8256293851 | BB134: 0.8270738754 | BC134: 0.828208832 | BD134: 0.8291374329 | BE134: 0.8298596781 | BF134: 0.8315105241 | BG134: 0.8323359472 | BH134: 0.833367726 | BI134: 0.835018572 | BJ134: 0.8364630623 | BK134: 0.8377011969 | BL134: 0.8388361535 | BM134: 0.8398679323 | BN134: 0.8406933553 | BO134: 0.8419314899 | BP134: 0.8427569129 | BQ134: 0.8436855138 | BR134: 0.8447172926 | BS134: 0.8465744944 | BT134: 0.8490507635 | BU134: 0.8504952538 | BV134: 0.8525588114 | BW134: 0.855447792 | BX134: 0.8620511762 | BY134: 0.8720594305 | BZ134: 1
P137: 0.38 | Q137: 0.39 | R137: 0.4 | S137: 0.41 | T137: 0.42 | U137: 0.43 | V137: 0.44 | W137: 0.45 | X137: 0.46 | Y137: 0.47 | Z137: 0.48 | AA137: 0.49 | AB137: 0.5 | AC137: 0.51 | AD137: 0.52 | AE137: 0.53 | AF137: 0.54 | AG137: 0.55 | AH137: 0.56 | AI137: 0.57 | AJ137: 0.58 | AK137: 0.59 | AL137: 0.6 | AM137: 0.61 | AN137: 0.62 | AO137: 0.63 | AP137: 0.64 | AQ137: 0.65 | AR137: 0.66 | AS137: 0.67 | AT137: 0.68 | AU137: 0.69 | AV137: 0.7 | AW137: 0.71 | AX137: 0.72 | AY137: 0.73 | AZ137: 0.74 | BA137: 0.75 | BB137: 0.76 | BC137: 0.77 | BD137: 0.78 | BE137: 0.79 | BF137: 0.8 | BG137: 0.81 | BH137: 0.82 | BI137: 0.83 | BJ137: 0.84 | BK137: 0.85 | BL137: 0.86 | BM137: 0.87 | BN137: 0.88 | BO137: 0.89 | BP137: 0.9 | BQ137: 0.91 | BR137: 0.92 | BS137: 0.93 | BT137: 0.94 | BU137: 0.95 | BV137: 0.96 | BW137: 0.97 | BX137: 0.98 | BY137: 0.99 | BZ137: 1
P138: 0.2829554996 | Q138: 0.2893926672 | R138: 0.2961097117 | S138: 0.2998880493 | T138: 0.3054855863 | U138: 0.309963616 | V138: 0.3155611531 | W138: 0.3205989365 | X138: 0.3264763504 | Y138: 0.3327735796 | Z138: 0.3375314861 | AA138: 0.3435488385 | AB138: 0.3481668066 | AC138: 0.3547439127 | AD138: 0.3613210188 | AE138: 0.3667786174 | AF138: 0.3712566471 | AG138: 0.3776938147 | AH138: 0.3825916597 | AI138: 0.3883291352 | AJ138: 0.3943464875 | AK138: 0.3985446404 | AL138: 0.4027427932 | AM138: 0.4055415617 | AN138: 0.4112790372 | AO138: 0.4156171285 | AP138: 0.4209347887 | AQ138: 0.4255527568 | AR138: 0.4304506017 | AS138: 0.4350685698 | AT138: 0.4408060453 | AU138: 0.445284075 | AV138: 0.4497621047 | AW138: 0.4542401343 | AX138: 0.4598376714 | AY138: 0.4634760705 | AZ138: 0.4683739155 | BA138: 0.472152253 | BB138: 0.4769101595 | BC138: 0.4809683739 | BD138: 0.4848866499 | BE138: 0.4893646795 | BF138: 0.4938427092 | BG138: 0.4976210467 | BH138: 0.5016792611 | BI138: 0.5069969214 | BJ138: 0.5121746432 | BK138: 0.5170724881 | BL138: 0.5219703331 | BM138: 0.5253288553 | BN138: 0.5313462077 | BO138: 0.5376434369 | BP138: 0.5435208508 | BQ138: 0.5496781416 | BR138: 0.5552756787 | BS138: 0.5621326616 | BT138: 0.5673103834 | BU138: 0.5738874895 | BV138: 0.5822837951 | BW138: 0.5873215785 | BX138: 0.5968373915 | BY138: 0.6067730199 | BZ138: 1
P139: 0.3969153289 | Q139: 0.4017941454 | R139: 0.4057286749 | S139: 0.4110796349 | T139: 0.4150141643 | U139: 0.4191060749 | V139: 0.4222536985 | W139: 0.4257160844 | X139: 0.428076802 | Y139: 0.4320113314 | Z139: 0.435158955 | AA139: 0.4384639597 | AB139: 0.442241108 | AC139: 0.4460182562 | AD139: 0.4486937362 | AE139: 0.450267548 | AF139: 0.4535725527 | AG139: 0.455618508 | AH139: 0.4576644633 | AI139: 0.4606547057 | AJ139: 0.4639597104 | AK139: 0.4678942398 | AL139: 0.4711992446 | AM139: 0.4756059175 | AN139: 0.4784387787 | AO139: 0.4828454517 | AP139: 0.4877242682 | AQ139: 0.4907145105 | AR139: 0.4922883223 | AS139: 0.4957507082 | AT139: 0.5003147624 | AU139: 0.5045640541 | AV139: 0.5088133459 | AW139: 0.5116462071 | AX139: 0.5160528801 | AY139: 0.5199874095 | AZ139: 0.5245514636 | BA139: 0.5273843248 | BB139: 0.5308467107 | BC139: 0.5354107649 | BD139: 0.5395026755 | BE139: 0.5437519673 | BF139: 0.5484734026 | BG139: 0.552407932 | BH139: 0.5564998426 | BI139: 0.5612212779 | BJ139: 0.5654705697 | BK139: 0.5708215297 | BL139: 0.5752282027 | BM139: 0.5813660686 | BN139: 0.587031791 | BO139: 0.5934844193 | BP139: 0.5999370475 | BQ139: 0.6059175323 | BR139: 0.6123701605 | BS139: 0.6191375511 | BT139: 0.6266918477 | BU139: 0.6342461442 | BV139: 0.6403840101 | BW139: 0.6496694995 | BX139: 0.6606861819 | BY139: 0.672332389 | BZ139: 1
P140: 0.5375178317 | Q140: 0.5406562054 | R140: 0.5440798859 | S140: 0.5475035663 | T140: 0.5510699001 | U140: 0.5554921541 | V140: 0.5587731812 | W140: 0.5621968616 | X140: 0.5656205421 | Y140: 0.5683309558 | Z140: 0.5711840228 | AA140: 0.5757489301 | AB140: 0.5803138374 | AC140: 0.5830242511 | AD140: 0.5873038516 | AE140: 0.5912981455 | AF140: 0.5938659058 | AG140: 0.5961483595 | AH140: 0.5980028531 | AI140: 0.6019971469 | AJ140: 0.6044222539 | AK140: 0.6075606277 | AL140: 0.610128388 | AM140: 0.6131241084 | AN140: 0.6158345221 | AO140: 0.617831669 | AP140: 0.620256776 | AQ140: 0.6242510699 | AR140: 0.6263908702 | AS140: 0.6292439372 | AT140: 0.6330955777 | AU140: 0.6362339515 | AV140: 0.6385164051 | AW140: 0.6415121255 | AX140: 0.6439372325 | AY140: 0.6465049929 | AZ140: 0.65021398 | BA140: 0.6529243937 | BB140: 0.654636234 | BC140: 0.6584878745 | BD140: 0.6607703281 | BE140: 0.6643366619 | BF140: 0.6684736091 | BG140: 0.6717546362 | BH140: 0.6758915835 | BI140: 0.6807417974 | BJ140: 0.6848787447 | BK140: 0.6890156919 | BL140: 0.6930099857 | BM140: 0.6974322397 | BN140: 0.7025677603 | BO140: 0.7074179743 | BP140: 0.7131241084 | BQ140: 0.7185449358 | BR140: 0.7233951498 | BS140: 0.7300998573 | BT140: 0.7379457917 | BU140: 0.744935806 | BV140: 0.7519258203 | BW140: 0.7604850214 | BX140: 0.7706134094 | BY140: 0.7815977175 | BZ140: 1
P141: 0.6126607891 | Q141: 0.6158404394 | R141: 0.6193091487 | S141: 0.6223442694 | T141: 0.6265356265 | U141: 0.6320277497 | V141: 0.6357855181 | W141: 0.6398323457 | X141: 0.645613528 | Y141: 0.6485041191 | Z141: 0.6531290649 | AA141: 0.6567423038 | AB141: 0.6605000723 | AC141: 0.6665703136 | AD141: 0.6703280821 | AE141: 0.6737967914 | AF141: 0.6776990895 | AG141: 0.6810232693 | AH141: 0.6827576239 | AI141: 0.6856482151 | AJ141: 0.6888278653 | AK141: 0.6908512791 | AL141: 0.6935973407 | AM141: 0.6960543431 | AN141: 0.6982222865 | AO141: 0.6993785229 | AP141: 0.7021245845 | AQ141: 0.7053042347 | AR141: 0.7077612372 | AS141: 0.7096401214 | AT141: 0.7116635352 | AU141: 0.7135424194 | AV141: 0.7145541263 | AW141: 0.7181673652 | AX141: 0.7212024859 | AY141: 0.7226477815 | AZ141: 0.7251047839 | BA141: 0.726694609 | BB141: 0.7287180228 | BC141: 0.7307414366 | BD141: 0.7326203209 | BE141: 0.7346437346 | BF141: 0.7362335598 | BG141: 0.7398467987 | BH141: 0.7418702125 | BI141: 0.7444717445 | BJ141: 0.7466396878 | BK141: 0.7480849834 | BL141: 0.7501083972 | BM141: 0.7544442839 | BN141: 0.7580575228 | BO141: 0.7609481139 | BP141: 0.7654285301 | BQ141: 0.7688972395 | BR141: 0.7749674808 | BS141: 0.7793033675 | BT141: 0.784361902 | BU141: 0.7905766729 | BV141: 0.7950570892 | BW141: 0.8050296286 | BX141: 0.8106662813 | BY141: 0.8194825842 | BZ141: 1
P142: 0.7256809339 | Q142: 0.7300907912 | R142: 0.733463035 | S142: 0.7390402075 | T142: 0.7431906615 | U142: 0.7447470817 | V142: 0.7465629053 | W142: 0.748767834 | X142: 0.7518806744 | Y142: 0.7551232166 | Z142: 0.7592736706 | AA142: 0.7626459144 | AB142: 0.7649805447 | AC142: 0.76692607 | AD142: 0.7684824903 | AE142: 0.7701686122 | AF142: 0.7723735409 | AG142: 0.7749675746 | AH142: 0.7761348898 | AI142: 0.778080415 | AJ142: 0.7805447471 | AK142: 0.7823605707 | AL142: 0.7836575875 | AM142: 0.7850843061 | AN142: 0.786770428 | AO142: 0.7884565499 | AP142: 0.7898832685 | AQ142: 0.7916990921 | AR142: 0.793385214 | AS142: 0.7945525292 | AT142: 0.7963683528 | AU142: 0.7985732815 | AV142: 0.8007782101 | AW142: 0.802464332 | AX142: 0.8037613489 | AY142: 0.8051880674 | AZ142: 0.8064850843 | BA142: 0.8079118029 | BB142: 0.8093385214 | BC142: 0.8108949416 | BD142: 0.8124513619 | BE142: 0.8138780804 | BF142: 0.8147859922 | BG142: 0.817769131 | BH142: 0.8206225681 | BI142: 0.8217898833 | BJ142: 0.8234760052 | BK142: 0.824773022 | BL142: 0.8267185473 | BM142: 0.8284046693 | BN142: 0.8308690013 | BO142: 0.8342412451 | BP142: 0.8372243839 | BQ142: 0.839688716 | BR142: 0.8435797665 | BS142: 0.8473411154 | BT142: 0.8507133593 | BU142: 0.8548638132 | BV142: 0.8596627756 | BW142: 0.8661478599 | BX142: 0.8722438392 | BY142: 0.8798962387 | BZ142: 1
P143: 0.7171127563 | Q143: 0.7192482916 | R143: 0.7218109339 | S143: 0.7250854214 | T143: 0.729214123 | U143: 0.7309225513 | V143: 0.7346241458 | W143: 0.7370444191 | X143: 0.7377562642 | Y143: 0.7397494305 | Z143: 0.7414578588 | AA143: 0.7425968109 | AB143: 0.7460136674 | AC143: 0.749715262 | AD143: 0.7522779043 | AE143: 0.7562642369 | AF143: 0.7588268793 | AG143: 0.7623861048 | AH143: 0.7645216401 | AI143: 0.7655182232 | AJ143: 0.7665148064 | AK143: 0.7669419134 | AL143: 0.7683656036 | AM143: 0.771070615 | AN143: 0.7733485194 | AO143: 0.7757687927 | AP143: 0.777904328 | AQ143: 0.7793280182 | AR143: 0.7810364465 | AS143: 0.7826025057 | AT143: 0.7841685649 | AU143: 0.7851651481 | AV143: 0.7867312073 | AW143: 0.7877277904 | AX143: 0.7887243736 | AY143: 0.7908599089 | AZ143: 0.7921412301 | BA143: 0.7927107062 | BB143: 0.7944191344 | BC143: 0.7951309795 | BD143: 0.7962699317 | BE143: 0.7969817768 | BF143: 0.7975512528 | BG143: 0.7992596811 | BH143: 0.8003986333 | BI143: 0.8009681093 | BJ143: 0.8021070615 | BK143: 0.8039578588 | BL143: 0.8045273349 | BM143: 0.80523918 | BN143: 0.8069476082 | BO143: 0.8092255125 | BP143: 0.812215262 | BQ143: 0.8147779043 | BR143: 0.8171981777 | BS143: 0.8216116173 | BT143: 0.8241742597 | BU143: 0.8278758542 | BV143: 0.833428246 | BW143: 0.840546697 | BX143: 0.8485193622 | BY143: 0.8580580866 | BZ143: 1
P144: 0.7547169811 | Q144: 0.7585187271 | R144: 0.7606308082 | S144: 0.7617572515 | T144: 0.7628836947 | U144: 0.7642917488 | V144: 0.7682343002 | W144: 0.7727400732 | X144: 0.7762602084 | Y144: 0.779921149 | Z144: 0.7831596733 | AA144: 0.7866798085 | AB144: 0.7886510842 | AC144: 0.7897775275 | AD144: 0.7913263869 | AE144: 0.7945649113 | AF144: 0.7975218248 | AG144: 0.7986482681 | AH144: 0.8001971276 | AI144: 0.8023092087 | AJ144: 0.8044212898 | AK144: 0.805547733 | AL144: 0.8070965925 | AM144: 0.8082230358 | AN144: 0.8096310898 | AO144: 0.8110391439 | AP144: 0.8123063926 | AQ144: 0.8137144466 | AR144: 0.8155449169 | AS144: 0.8161081386 | AT144: 0.817656998 | AU144: 0.8187834413 | AV144: 0.8194874683 | AW144: 0.8204731062 | AX144: 0.8211771332 | AY144: 0.8217403548 | AZ144: 0.8230076035 | BA144: 0.8239932413 | BB144: 0.82526049 | BC144: 0.8256829062 | BD144: 0.8268093495 | BE144: 0.8282174035 | BF144: 0.8296254576 | BG144: 0.8306110955 | BH144: 0.8307519009 | BI144: 0.8321599549 | BJ144: 0.8331455928 | BK144: 0.8341312306 | BL144: 0.8346944523 | BM144: 0.8369473388 | BN144: 0.8384961983 | BO144: 0.840467474 | BP144: 0.8425795551 | BQ144: 0.8451140524 | BR144: 0.8470853281 | BS144: 0.8479301605 | BT144: 0.8517319065 | BU144: 0.8549704309 | BV144: 0.8600394255 | BW144: 0.8655308364 | BX144: 0.8721486905 | BY144: 0.8810194311 | BZ144: 1
P145: 0.7831021438 | Q145: 0.7868852459 | R145: 0.7897856242 | S145: 0.7928121059 | T145: 0.795334174 | U145: 0.7986128625 | V145: 0.7998738966 | W145: 0.801261034 | X145: 0.8036569987 | Y145: 0.8061790668 | Z145: 0.8085750315 | AA145: 0.809962169 | AB145: 0.8122320303 | AC145: 0.8150063052 | AD145: 0.8167717528 | AE145: 0.8182849937 | AF145: 0.8196721311 | AG145: 0.8206809584 | AH145: 0.8230769231 | AI145: 0.8239596469 | AJ145: 0.8255989912 | AK145: 0.8267339218 | AL145: 0.8286254729 | AM145: 0.8303909206 | AN145: 0.8315258512 | AO145: 0.8332912989 | AP145: 0.8341740227 | AQ145: 0.8349306431 | AR145: 0.835813367 | AS145: 0.836443884 | AT145: 0.8375788146 | AU145: 0.8383354351 | AV145: 0.8389659521 | AW145: 0.8394703657 | AX145: 0.8406052963 | AY145: 0.8412358134 | AZ145: 0.8427490542 | BA145: 0.8436317781 | BB145: 0.8460277427 | BC145: 0.8467843632 | BD145: 0.8477931904 | BE145: 0.8485498108 | BF145: 0.8496847415 | BG145: 0.8513240858 | BH145: 0.852332913 | BI145: 0.8538461538 | BJ145: 0.8547288777 | BK145: 0.8558638083 | BL145: 0.856998739 | BM145: 0.8578814628 | BN145: 0.8593947037 | BO145: 0.8604035309 | BP145: 0.8615384615 | BQ145: 0.8625472888 | BR145: 0.8645649433 | BS145: 0.8678436318 | BT145: 0.8702395965 | BU145: 0.8725094578 | BV145: 0.8767969735 | BW145: 0.8810844893 | BX145: 0.888776797 | BY145: 0.8974779319 | BZ145: 1
P146: 0.8139073786 | Q146: 0.8163149696 | R146: 0.8178728225 | S146: 0.8191474295 | T146: 0.8205636595 | U146: 0.8224047585 | V146: 0.8250955955 | W146: 0.8258037105 | X146: 0.8277864325 | Y146: 0.8289194165 | Z146: 0.8310437615 | AA146: 0.8334513525 | AB146: 0.8348675825 | AC146: 0.8361421895 | AD146: 0.8377000425 | AE146: 0.8382665345 | AF146: 0.8389746495 | AG146: 0.8399660105 | AH146: 0.8410989945 | AI146: 0.8419487325 | AJ146: 0.8425152245 | AK146: 0.8435065855 | AL146: 0.8449228155 | AM146: 0.8456309305 | AN146: 0.8470471605 | AO146: 0.8481801445 | AP146: 0.8487466365 | AQ146: 0.8500212434 | AR146: 0.8508709814 | AS146: 0.8525704574 | AT146: 0.8538450644 | AU146: 0.8548364254 | AV146: 0.8563942784 | AW146: 0.8585186234 | AX146: 0.8597932304 | AY146: 0.8619175754 | AZ146: 0.8626256904 | BA146: 0.8637586744 | BB146: 0.8644667894 | BC146: 0.8654581504 | BD146: 0.8663078884 | BE146: 0.8674408724 | BF146: 0.8678657414 | BG146: 0.8687154794 | BH146: 0.8691403484 | BI146: 0.8699900864 | BJ146: 0.8706982014 | BK146: 0.8715479394 | BL146: 0.8725393004 | BM146: 0.8729641694 | BN146: 0.8746636454 | BO146: 0.8755133834 | BP146: 0.8765047444 | BQ146: 0.8779209744 | BR146: 0.8806118114 | BS146: 0.8831610254 | BT146: 0.8859934853 | BU146: 0.8898173063 | BV146: 0.8929330123 | BW146: 0.8980314403 | BX146: 0.9041212293 | BY146: 0.9113440023 | BZ146: 1
P147: 0.860318034 | Q147: 0.8621250452 | R147: 0.863389953 | S147: 0.8644741597 | T147: 0.8655583665 | U147: 0.8673653777 | V147: 0.8682688833 | W147: 0.8695337911 | X147: 0.8718829057 | Y147: 0.8740513191 | Z147: 0.8756776292 | AA147: 0.878388146 | AB147: 0.8820021684 | AC147: 0.884351283 | AD147: 0.8852547886 | AE147: 0.8865196964 | AF147: 0.8879653054 | AG147: 0.888868811 | AH147: 0.8906758222 | AI147: 0.8923021323 | AJ147: 0.8939284424 | AK147: 0.8950126491 | AL147: 0.8959161547 | AM147: 0.8966389592 | AN147: 0.8973617636 | AO147: 0.8980845681 | AP147: 0.8989880737 | AQ147: 0.8997108782 | AR147: 0.9006143838 | AS147: 0.9007950849 | AT147: 0.9016985905 | AU147: 0.902421395 | AV147: 0.9027827973 | AW147: 0.9035056017 | AX147: 0.9035056017 | AY147: 0.9047705096 | AZ147: 0.9053126129 | BA147: 0.9060354174 | BB147: 0.9063968197 | BC147: 0.906938923 | BD147: 0.9082038309 | BE147: 0.908384532 | BF147: 0.908384532 | BG147: 0.9096494398 | BH147: 0.9109143477 | BI147: 0.9116371522 | BJ147: 0.9121792555 | BK147: 0.9121792555 | BL147: 0.9127213589 | BM147: 0.9132634622 | BN147: 0.9141669678 | BO147: 0.9147090712 | BP147: 0.9163353813 | BQ147: 0.9172388869 | BR147: 0.9186844958 | BS147: 0.9201301048 | BT147: 0.9210336104 | BU147: 0.9228406216 | BV147: 0.9257318395 | BW147: 0.9295265631 | BX147: 0.9327791832 | BY147: 0.9378388146 | BZ147: 1
P150: 0.38 | Q150: 0.39 | R150: 0.4 | S150: 0.41 | T150: 0.42 | U150: 0.43 | V150: 0.44 | W150: 0.45 | X150: 0.46 | Y150: 0.47 | Z150: 0.48 | AA150: 0.49 | AB150: 0.5 | AC150: 0.51 | AD150: 0.52 | AE150: 0.53 | AF150: 0.54 | AG150: 0.55 | AH150: 0.56 | AI150: 0.57 | AJ150: 0.58 | AK150: 0.59 | AL150: 0.6 | AM150: 0.61 | AN150: 0.62 | AO150: 0.63 | AP150: 0.64 | AQ150: 0.65 | AR150: 0.66 | AS150: 0.67 | AT150: 0.68 | AU150: 0.69 | AV150: 0.7 | AW150: 0.71 | AX150: 0.72 | AY150: 0.73 | AZ150: 0.74 | BA150: 0.75 | BB150: 0.76 | BC150: 0.77 | BD150: 0.78 | BE150: 0.79 | BF150: 0.8 | BG150: 0.81 | BH150: 0.82 | BI150: 0.83 | BJ150: 0.84 | BK150: 0.85 | BL150: 0.86 | BM150: 0.87 | BN150: 0.88 | BO150: 0.89 | BP150: 0.9 | BQ150: 0.91 | BR150: 0.92 | BS150: 0.93 | BT150: 0.94 | BU150: 0.95 | BV150: 0.96 | BW150: 0.97 | BX150: 0.98 | BY150: 0.99 | BZ150: 1
P151: 0.2951469583 | Q151: 0.3026657553 | R151: 0.3096377307 | S151: 0.3134654819 | T151: 0.3190704033 | U151: 0.3241285031 | V151: 0.3290498975 | W151: 0.3357484621 | X151: 0.3416267943 | Y151: 0.3462747779 | Z151: 0.3518796992 | AA151: 0.3566643882 | AB151: 0.3615857826 | AC151: 0.367190704 | AD151: 0.3721120984 | AE151: 0.3777170198 | AF151: 0.382228298 | AG151: 0.3872863978 | AH151: 0.39316473 | AI151: 0.3983595352 | AJ151: 0.402734108 | AK151: 0.4086124402 | AL151: 0.4135338346 | AM151: 0.4185919344 | AN151: 0.4226930964 | AO151: 0.4276144908 | AP151: 0.4330827068 | AQ151: 0.4380041012 | AR151: 0.4445659604 | AS151: 0.4489405332 | AT151: 0.4546821599 | AU151: 0.4612440191 | AV151: 0.4658920027 | AW151: 0.4691729323 | AX151: 0.4757347915 | AY151: 0.4807928913 | AZ151: 0.4865345181 | BA151: 0.4902255639 | BB151: 0.4954203691 | BC151: 0.4999316473 | BD151: 0.5044429255 | BE151: 0.5096377307 | BF151: 0.5155160629 | BG151: 0.5212576897 | BH151: 0.5267259057 | BI151: 0.5304169515 | BJ151: 0.5356117567 | BK151: 0.5402597403 | BL151: 0.5443609023 | BM151: 0.5488721805 | BN151: 0.5554340396 | BO151: 0.5602187286 | BP151: 0.5650034176 | BQ151: 0.569924812 | BR151: 0.5771701982 | BS151: 0.5830485304 | BT151: 0.5893369788 | BU151: 0.5950786056 | BV151: 0.6016404648 | BW151: 0.6099794942 | BX151: 0.6187286398 | BY151: 0.6276144908 | BZ151: 1
P152: 0.4374880337 | Q152: 0.4432318591 | R152: 0.4487842236 | S152: 0.4552938924 | T152: 0.4606547961 | U152: 0.464484013 | V152: 0.4704192993 | W152: 0.4748228987 | X152: 0.4778862723 | Y152: 0.4809496458 | Z152: 0.4845874019 | AA152: 0.4884166188 | AB152: 0.4910970706 | AC152: 0.495692131 | AD152: 0.499329887 | AE152: 0.5023932606 | AF152: 0.5046907907 | AG152: 0.508137086 | AH152: 0.5100516944 | AI152: 0.5125406854 | AJ152: 0.5182845108 | AK152: 0.5223051886 | AL152: 0.5251771013 | AM152: 0.5295807007 | AN152: 0.5334099177 | AO152: 0.5362818304 | AP152: 0.5401110473 | AQ152: 0.5424085774 | AR152: 0.5473865594 | AS152: 0.550449933 | AT152: 0.5527474631 | AU152: 0.5569596018 | AV152: 0.5630863488 | AW152: 0.5672984875 | AX152: 0.5707447827 | AY152: 0.5743825388 | AZ152: 0.5782117557 | BA152: 0.5829982769 | BB152: 0.5866360329 | BC152: 0.5906567107 | BD152: 0.595251771 | BE152: 0.5988895271 | BF152: 0.6038675091 | BG152: 0.6090369519 | BH152: 0.6149722382 | BI152: 0.6193758376 | BJ152: 0.625119663 | BK152: 0.6308634884 | BL152: 0.6337354011 | BM152: 0.638904844 | BN152: 0.6431169826 | BO152: 0.648860808 | BP152: 0.6544131725 | BQ152: 0.661305763 | BR152: 0.6668581275 | BS152: 0.6727934137 | BT152: 0.6798774651 | BU152: 0.6875358989 | BV152: 0.6942370285 | BW152: 0.7020869232 | BX152: 0.7124258089 | BY152: 0.7212330078 | BZ152: 1
P153: 0.5524118738 | Q153: 0.5568954855 | R153: 0.5598330241 | S153: 0.563388992 | T153: 0.5672541744 | U153: 0.5703463203 | V153: 0.5739022882 | W153: 0.5782312925 | X153: 0.5827149041 | Y153: 0.586270872 | Z153: 0.5909090909 | AA153: 0.5966295609 | AB153: 0.6001855288 | AC153: 0.606524428 | AD153: 0.6099257885 | AE153: 0.6142547928 | AF153: 0.6182745826 | AG153: 0.6219851577 | AH153: 0.6267779839 | AI153: 0.6307977737 | AJ153: 0.6355905999 | AK153: 0.6386827458 | AL153: 0.6411564626 | AM153: 0.6437847866 | AN153: 0.646567718 | AO153: 0.6496598639 | AP153: 0.6533704391 | AQ153: 0.6556895485 | AR153: 0.6590909091 | AS153: 0.662183055 | AT153: 0.6657390229 | AU153: 0.6685219542 | AV153: 0.6706864564 | AW153: 0.6739332096 | AX153: 0.6768707483 | AY153: 0.6807359307 | AZ153: 0.6850649351 | BA153: 0.6889301175 | BB153: 0.6918676562 | BC153: 0.6958874459 | BD153: 0.7003710575 | BE153: 0.7036178108 | BF153: 0.7087198516 | BG153: 0.712585034 | BH153: 0.7147495362 | BI153: 0.7189239332 | BJ153: 0.7234075448 | BK153: 0.7282003711 | BL153: 0.7317563389 | BM153: 0.7360853432 | BN153: 0.7404143476 | BO153: 0.745825603 | BP153: 0.7520098949 | BQ153: 0.7563388992 | BR153: 0.7617501546 | BS153: 0.7683982684 | BT153: 0.7758194187 | BU153: 0.7812306741 | BV153: 0.7854050711 | BW153: 0.7940630798 | BX153: 0.8044217687 | BY153: 0.8163265306 | BZ153: 1
P154: 0.6488976637 | Q154: 0.652846331 | R154: 0.6566304705 | S154: 0.659591971 | T154: 0.663047055 | U154: 0.6699572228 | V154: 0.6752221125 | W154: 0.6783481408 | X154: 0.6826258638 | Y154: 0.6862454755 | Z154: 0.6890424482 | AA154: 0.6941428101 | AB154: 0.6962816716 | AC154: 0.6999012833 | AD154: 0.7043435341 | AE154: 0.7082922014 | AF154: 0.7107601185 | AG154: 0.7143797302 | AH154: 0.7163540638 | AI154: 0.7178348141 | AJ154: 0.7199736756 | AK154: 0.722112537 | AL154: 0.7249095097 | AM154: 0.7267193156 | AN154: 0.728035538 | AO154: 0.7298453439 | AP154: 0.7316551497 | AQ154: 0.733958539 | AR154: 0.7364264561 | AS154: 0.7375781507 | AT154: 0.7395524844 | AU154: 0.741526818 | AV154: 0.7435011517 | AW154: 0.7454754854 | AX154: 0.7492596249 | AY154: 0.7515630141 | AZ154: 0.7538664034 | BA154: 0.7560052649 | BB154: 0.7581441264 | BC154: 0.7604475156 | BD154: 0.7627509049 | BE154: 0.7655478776 | BF154: 0.7686739059 | BG154: 0.7708127674 | BH154: 0.7721289898 | BI154: 0.7747614347 | BJ154: 0.7775584074 | BK154: 0.7808489635 | BL154: 0.7844685752 | BM154: 0.7885817703 | BN154: 0.7933530767 | BO154: 0.797301744 | BP154: 0.8020730503 | BQ154: 0.8071734123 | BR154: 0.8124383021 | BS154: 0.8163869694 | BT154: 0.8219809148 | BU154: 0.8288910826 | BV154: 0.8359657782 | BW154: 0.8436985851 | BX154: 0.8520895031 | BY154: 0.8599868378 | BZ154: 1
P155: 0.7583416158 | Q155: 0.7611813148 | R155: 0.7648729235 | S155: 0.7675706375 | T155: 0.7711202613 | U155: 0.7731080505 | V155: 0.7741019452 | W155: 0.7753798097 | X155: 0.7799233281 | Y155: 0.7826210422 | Z155: 0.7846088315 | AA155: 0.7867386057 | AB155: 0.7883004402 | AC155: 0.7898622746 | AD155: 0.7924180037 | AE155: 0.7931279284 | AF155: 0.7955416726 | AG155: 0.7966775522 | AH155: 0.7992332813 | AI155: 0.8002271759 | AJ155: 0.80292489 | AK155: 0.8046287094 | AL155: 0.8064745137 | AM155: 0.8074684083 | AN155: 0.8088882578 | AO155: 0.8117279568 | AP155: 0.8128638364 | AQ155: 0.8151355956 | AR155: 0.8159875053 | AS155: 0.8184012495 | AT155: 0.8205310237 | AU155: 0.8218088883 | AV155: 0.8240806475 | AW155: 0.8259264518 | AX155: 0.8272043163 | AY155: 0.8287661508 | AZ155: 0.8301860003 | BA155: 0.8325997444 | BB155: 0.8343035638 | BC155: 0.8355814284 | BD155: 0.8375692177 | BE155: 0.8384211274 | BF155: 0.8402669317 | BG155: 0.8423967059 | BH155: 0.8441005253 | BI155: 0.8465142695 | BJ155: 0.8470822093 | BK155: 0.8482180889 | BL155: 0.8511997728 | BM155: 0.8548913815 | BN155: 0.8582990203 | BO155: 0.8607127644 | BP155: 0.8632684935 | BQ155: 0.8673860571 | BR155: 0.8700837711 | BS155: 0.873349425 | BT155: 0.8776089734 | BU155: 0.8827204316 | BV155: 0.887405935 | BW155: 0.8935112878 | BX155: 0.8991906858 | BY155: 0.9067158881 | BZ155: 1
P156: 0.7424216179 | Q156: 0.7438073792 | R156: 0.7453663606 | S156: 0.7488307639 | T156: 0.7514290663 | U156: 0.7536809285 | V156: 0.7567988914 | W156: 0.7593971938 | X156: 0.7597436342 | Y156: 0.7604365148 | Z156: 0.7613026156 | AA156: 0.7621687164 | AB156: 0.7658063399 | AC156: 0.7692707431 | AD156: 0.7718690456 | AE156: 0.7751602287 | AF156: 0.7775853109 | AG156: 0.7796639529 | AH156: 0.7852069981 | AI156: 0.7869391997 | AJ156: 0.78728564 | AK156: 0.7890178417 | AL156: 0.790403603 | AM156: 0.7912697038 | AN156: 0.7916161441 | AO156: 0.7921358046 | AP156: 0.7936947861 | AQ156: 0.7950805474 | AR156: 0.7964663087 | AS156: 0.798891391 | AT156: 0.7999307119 | AU156: 0.8002771523 | AV156: 0.8014896934 | AW156: 0.8016629136 | AX156: 0.803221895 | AY156: 0.8047808765 | AZ156: 0.8070327386 | BA156: 0.8080720596 | BB156: 0.8101507015 | BC156: 0.8110168024 | BD156: 0.8118829032 | BE156: 0.8130954443 | BF156: 0.8139615451 | BG156: 0.8150008661 | BH156: 0.8162134072 | BI156: 0.8177723887 | BJ156: 0.8186384895 | BK156: 0.8214100121 | BL156: 0.8233154339 | BM156: 0.8253940759 | BN156: 0.8279923783 | BO156: 0.8295513598 | BP156: 0.8328425429 | BQ156: 0.8356140655 | BR156: 0.8385588082 | BS156: 0.8420232115 | BT156: 0.8465269357 | BU156: 0.85103066 | BV156: 0.8581326866 | BW156: 0.8661008141 | BX156: 0.8758011433 | BY156: 0.8860211329 | BZ156: 1
P157: 0.7766456413 | Q157: 0.7790716481 | R157: 0.7818211224 | S157: 0.7827915251 | T157: 0.7840853954 | U157: 0.7857027333 | V157: 0.7887756752 | W157: 0.7908782145 | X157: 0.793465955 | Y157: 0.7970240983 | Z157: 0.8002587741 | AA157: 0.8026847809 | AB157: 0.8073750607 | AC157: 0.8089923985 | AD157: 0.8102862688 | AE157: 0.8128740094 | AF157: 0.8138444121 | AG157: 0.8157852175 | AH157: 0.8172408216 | AI157: 0.817726023 | AJ157: 0.8190198933 | AK157: 0.8207989649 | AL157: 0.8211224325 | AM157: 0.8219311014 | AN157: 0.8229015041 | AO157: 0.8238719068 | AP157: 0.8246805758 | AQ157: 0.8251657771 | AR157: 0.8259744461 | AS157: 0.8266213812 | AT157: 0.8275917839 | AU157: 0.8287239204 | AV157: 0.8301795245 | AW157: 0.8314733948 | AX157: 0.8321203299 | AY157: 0.8326055313 | AZ157: 0.8330907327 | BA157: 0.8340611354 | BB157: 0.8356784732 | BC157: 0.8371340773 | BD157: 0.8382662138 | BE157: 0.8398835517 | BF157: 0.8402070192 | BG157: 0.8413391557 | BH157: 0.8423095585 | BI157: 0.8429564936 | BJ157: 0.8439268963 | BK157: 0.8445738315 | BL157: 0.845705968 | BM157: 0.8487789099 | BN157: 0.8510431829 | BO157: 0.8549247938 | BP157: 0.8573508006 | BQ157: 0.8609089439 | BR157: 0.8651140223 | BS157: 0.8686721656 | BT157: 0.8746563157 | BU157: 0.8777292576 | BV157: 0.8837134077 | BW157: 0.8896975578 | BX157: 0.8955199741 | BY157: 0.9055474689 | BZ157: 1
P158: 0.8121749771 | Q158: 0.8140104007 | R158: 0.8161517284 | S158: 0.8198225757 | T158: 0.8231875191 | U158: 0.8254817987 | V158: 0.8268583665 | W158: 0.8282349342 | X158: 0.829611502 | Y158: 0.8320587336 | Z158: 0.8342000612 | AA158: 0.8357295809 | AB158: 0.8371061487 | AC158: 0.8392474763 | AD158: 0.8413888039 | AE158: 0.8426124197 | AF158: 0.8429183236 | AG158: 0.8442948914 | AH158: 0.8450596513 | AI158: 0.8462832671 | AJ158: 0.846742123 | AK158: 0.8487304986 | AL158: 0.8501070664 | AM158: 0.8508718262 | AN158: 0.852095442 | AO158: 0.8533190578 | AP158: 0.8542367697 | AQ158: 0.8546956256 | AR158: 0.8559192414 | AS158: 0.8565310493 | AT158: 0.8574487611 | AU158: 0.8583664729 | AV158: 0.8592841848 | AW158: 0.8594371367 | AX158: 0.8598959927 | AY158: 0.8606607525 | AZ158: 0.8609666565 | BA158: 0.8624961762 | BB158: 0.8641786479 | BC158: 0.8654022637 | BD158: 0.8670847354 | BE158: 0.8676965433 | BF158: 0.8689201591 | BG158: 0.8698378709 | BH158: 0.8707555827 | BI158: 0.8722851025 | BJ158: 0.8744264301 | BK158: 0.8758029979 | BL158: 0.8768736617 | BM158: 0.8782502294 | BN158: 0.8790149893 | BO158: 0.880544509 | BP158: 0.8829917406 | BQ158: 0.8845212603 | BR158: 0.886356684 | BS158: 0.8889568675 | BT158: 0.8914040991 | BU158: 0.8933924748 | BV158: 0.8970633221 | BW158: 0.9018048333 | BX158: 0.9085347201 | BY158: 0.9152646069 | BZ158: 1
P159: 0.8384930996 | Q159: 0.8399850802 | R159: 0.8412905632 | S159: 0.8425960463 | T159: 0.8439015293 | U159: 0.8453935099 | V159: 0.8483774711 | W159: 0.8489369638 | X159: 0.8496829541 | Y159: 0.850615442 | Z159: 0.8521074226 | AA159: 0.8528534129 | AB159: 0.8539723984 | AC159: 0.8562103693 | AD159: 0.8571428571 | AE159: 0.8577023499 | AF159: 0.8586348377 | AG159: 0.859380828 | AH159: 0.8612458038 | AI159: 0.8625512868 | AJ159: 0.8634837747 | AK159: 0.8653487505 | AL159: 0.8660947408 | AM159: 0.8668407311 | AN159: 0.8670272286 | AO159: 0.8679597165 | AP159: 0.8688922044 | AQ159: 0.8698246923 | AR159: 0.8707571802 | AS159: 0.8720626632 | AT159: 0.8737411414 | AU159: 0.875233122 | AV159: 0.8761656098 | AW159: 0.8776575905 | AX159: 0.8782170832 | AY159: 0.8791495711 | AZ159: 0.8802685565 | BA159: 0.8804550541 | BB159: 0.8812010444 | BC159: 0.8817605371 | BD159: 0.8825065274 | BE159: 0.8834390153 | BF159: 0.8841850056 | BG159: 0.8841850056 | BH159: 0.8847444983 | BI159: 0.8856769862 | BJ159: 0.8862364789 | BK159: 0.8873554644 | BL159: 0.8881014547 | BM159: 0.8895934353 | BN159: 0.8912719135 | BO159: 0.8920179038 | BP159: 0.8920179038 | BQ159: 0.8927638941 | BR159: 0.8935098844 | BS159: 0.8957478553 | BT159: 0.8985453189 | BU159: 0.9013427825 | BV159: 0.9048862365 | BW159: 0.9106676613 | BX159: 0.9149571056 | BY159: 0.9205520328 | BZ159: 1
P160: 0.8789769183 | Q160: 0.8796007486 | R160: 0.8796007486 | S160: 0.8808484092 | T160: 0.882407985 | U160: 0.8827199002 | V160: 0.8836556457 | W160: 0.8839675608 | X160: 0.8852152215 | Y160: 0.8861509669 | Z160: 0.8870867124 | AA160: 0.8886462882 | AB160: 0.8895820337 | AC160: 0.8898939488 | AD160: 0.8905177792 | AE160: 0.892077355 | AF160: 0.8936369308 | AG160: 0.8955084217 | AH160: 0.8986275733 | AI160: 0.8995633188 | AJ160: 0.9008109794 | AK160: 0.9029943855 | AL160: 0.9048658765 | AM160: 0.9061135371 | AN160: 0.9067373674 | AO160: 0.9070492826 | AP160: 0.9076731129 | AQ160: 0.9082969432 | AR160: 0.9092326887 | AS160: 0.909856519 | AT160: 0.9101684342 | AU160: 0.9107922645 | AV160: 0.9114160948 | AW160: 0.91172801 | AX160: 0.9120399251 | AY160: 0.9123518403 | AZ160: 0.9123518403 | BA160: 0.9126637555 | BB160: 0.9129756706 | BC160: 0.9139114161 | BD160: 0.9145352464 | BE160: 0.9151590767 | BF160: 0.9151590767 | BG160: 0.9154709919 | BH160: 0.9160948222 | BI160: 0.9164067374 | BJ160: 0.9170305677 | BK160: 0.9170305677 | BL160: 0.9173424828 | BM160: 0.9182782283 | BN160: 0.919525889 | BO160: 0.9201497193 | BP160: 0.9217092951 | BQ160: 0.9238927012 | BR160: 0.9263880225 | BS160: 0.9298190892 | BT160: 0.9310667498 | BU160: 0.9323144105 | BV160: 0.9351216469 | BW160: 0.9382407985 | BX160: 0.9407361198 | BY160: 0.9454148472 | BZ160: 1

Sheet Data
A2: Earnings paths in 2009 prices derived from the new Earnings model
A8: Male (10,000)
B10: Year from SRDD >>
A11: Case | B11: 1 | C11: 2 | D11: 3 | E11: 4 | F11: 5 | G11: 6 | H11: 7 | I11: 8 | J11: 9 | K11: 10 | L11: 11 | M11: 12 | N11: 13 | O11: 14 | P11: 15 | Q11: 16 | R11: 17 | S11: 18 | T11: 19 | U11: 20 | V11: 21 | W11: 22 | X11: 23 | Y11: 24 | Z11: 25 | AA11: 26 | AB11: 27 | AC11: 28 | AD11: 29 | AE11: 30 | AF11: 31 | AG11: 32 | AH11: 33 | AI11: 34 | AJ11: 35 | AK11: Entry Age | AL11: Borrower order | AM11: Random number
A12: 1 | B12: 15929 | C12: 16465 | D12: 25961 | E12: 21616 | F12: 16126 | G12: 19162 | H12: 14731 | I12: 11922 | J12: 2321 | K12: 0 | L12: 0 | M12: 0 | N12: 0 | O12: 0 | P12: 0 | Q12: 0 | R12: 0 | S12: 0 | T12: 0 | U12: 0 | V12: 0 | W12: 0 | X12: 0 | Y12: 0 | Z12: 0 | AA12: 0 | AB12: 0 | AC12: 0 | AD12: 0 | AE12: 0 | AF12: 0 | AG12: 0 | AH12: 0 | AI12: 0 | AJ12: 0 | AK12: 46 | AL12: 9329 | AM12: 6.854534149e-06
A13: 2 | B13: 37385 | C13: 41723 | D13: 23205 | E13: 24385 | F13: 31976 | G13: 31843 | H13: 27710 | I13: 19821 | J13: 18140 | K13: 24837 | L13: 20555 | M13: 29309 | N13: 33892 | O13: 30732 | P13: 41637 | Q13: 30388 | R13: 21999 | S13: 28011 | T13: 32306 | U13: 16662 | V13: 19849 | W13: 14901 | X13: 20188 | Y13: 19494 | Z13: 28504 | AA13: 0 | AB13: 0 | AC13: 0 | AD13: 0 | AE13: 0 | AF13: 0 | AG13: 0 | AH13: 0 | AI13: 0 | AJ13: 0 | AK13: 34 | AL13: 2806 | AM13: 3.701448441e-05
A14: 3 | B14: 0 | C14: 17843 | D14: 13192 | E14: 17264 | F14: 17306 | G14: 20359 | H14: 12056 | I14: 17082 | J14: 18010 | K14: 14375 | L14: 24692 | M14: 16201 | N14: 7769 | O14: 16204 | P14: 29560 | Q14: 23679 | R14: 28447 | S14: 27210 | T14: 51847 | U14: 43963 | V14: 35480 | W14: 51733 | X14: 25998 | Y14: 38705 | Z14: 33605 | AA14: 32025 | AB14: 21734 | AC14: 28074 | AD14: 0 | AE14: 0 | AF14: 0 | AG14: 0 | AH14: 0 | AI14: 0 | AJ14: 0 | AK14: 35 | AL14: 4937 | AM14: 0.0001966357231
A15: 4 | B15: 50678 | C15: 67308 | D15: 57332 | E15: 45721 | F15: 70318 | G15: 80575 | H15: 99646 | I15: 95728 | J15: 77336 | K15: 90887 | L15: 64437 | M15: 80129 | N15: 98465 | O15: 52264 | P15: 36517 | Q15: 42197 | R15: 39202 | S15: 32162 | T15: 32025 | U15: 18083 | V15: 45640 | W15: 0 | X15: 0 | Y15: 0 | Z15: 0 | AA15: 0 | AB15: 0 | AC15: 0 | AD15: 0 | AE15: 0 | AF15: 0 | AG15: 0 | AH15: 0 | AI15: 0 | AJ15: 0 | AK15: 37 | AL15: 2127 | AM15: 0.0002860426903
A16: 5 | B16: 0 | C16: 2258 | D16: 0 | E16: 0 | F16: 0 | G16: 0 | H16: 0 | I16: 0 | J16: 0 | K16: 0 | L16: 0 | M16: 0 | N16: 0 | O16: 0 | P16: 0 | Q16: 0 | R16: 0 | S16: 0 | T16: 0 | U16: 0 | V16: 0 | W16: 0 | X16: 0 | Y16: 0 | Z16: 0 | AA16: 0 | AB16: 0 | AC16: 0 | AD16: 0 | AE16: 0 | AF16: 0 | AG16: 0 | AH16: 0 | AI16: 0 | AJ16: 0 | AK16: 56 | AL16: 2572 | AM16: 0.0003553032875
A17: 6 | B17: 0 | C17: 0 | D17: 3916 | E17: 17742 | F17: 23475 | G17: 17317 | H17: 20935 | I17: 23736 | J17: 36716 | K17: 30774 | L17: 18799 | M17: 12066 | N17: 4366 | O17: 0 | P17: 13827 | Q17: 8657 | R17: 3224 | S17: 2139 | T17: 0 | U17: 0 | V17: 0 | W17: 0 | X17: 0 | Y17: 0 | Z17: 0 | AA17: 0 | AB17: 0 | AC17: 0 | AD17: 0 | AE17: 0 | AF17: 0 | AG17: 0 | AH17: 0 | AI17: 0 | AJ17: 0 | AK17: 45 | AL17: 6499 | AM17: 0.0003742575645
A18: 7 | B18: 3712 | C18: 6191 | D18: 0 | E18: 18239 | F18: 21320 | G18: 25262 | H18: 12836 | I18: 27369 | J18: 29743 | K18: 28625 | L18: 33843 | M18: 34082 | N18: 44092 | O18: 62268 | P18: 71731 | Q18: 73677 | R18: 48286 | S18: 58530 | T18: 58520 | U18: 45101 | V18: 51544 | W18: 59433 | X18: 45911 | Y18: 0 | Z18: 0 | AA18: 0 | AB18: 0 | AC18: 0 | AD18: 0 | AE18: 0 | AF18: 0 | AG18: 0 | AH18: 0 | AI18: 0 | AJ18: 0 | AK18: 36 | AL18: 1968 | AM18: 0.0005331635475
A19: 8 | B19: 0 | C19: 0 | D19: 0 | E19: 0 | F19: 0 | G19: 0 | H19: 0 | I19: 0 | J19: 19922 | K19: 18179 | L19: 17263 | M19: 23771 | N19: 24409 | O19: 14847 | P19: 0 | Q19: 0 | R19: 0 | S19: 0 | T19: 0 | U19: 0 | V19: 0 | W19: 0 | X19: 0 | Y19: 0 | Z19: 0 | AA19: 0 | AB19: 0 | AC19: 0 | AD19: 0 | AE19: 0 | AF19: 0 | AG19: 0 | AH19: 0 | AI19: 0 | AJ19: 0 | AK19: 44 | AL19: 6324 | AM19: 0.0009055733681
A20: 9 | B20: 0 | C20: 0 | D20: 0 | E20: 0 | F20: 0 | G20: 0 | H20: 22112 | I20: 21957 | J20: 14856 | K20: 13086 | L20: 2969 | M20: 12129 | N20: 15558 | O20: 2451 | P20: 0 | Q20: 0 | R20: 0 | S20: 0 | T20: 0 | U20: 0 | V20: 0 | W20: 0 | X20: 0 | Y20: 0 | Z20: 0 | AA20: 0 | AB20: 0 | AC20: 0 | AD20: 0 | AE20: 0 | AF20: 0 | AG20: 0 | AH20: 0 | AI20: 0 | AJ20: 0 | AK20: 42 | AL20: 431 | AM20: 0.0009230971336
A21: 10 | B21: 0 | C21: 0 | D21: 7592 | E21: 4445 | F21: 7769 | G21: 17867 | H21: 9860 | I21: 3502 | J21: 13810 | K21: 16126 | L21: 18179 | M21: 0 | N21: 0 | O21: 6384 | P21: 0 | Q21: 0 | R21: 0 | S21: 0 | T21: 0 | U21: 0 | V21: 0 | W21: 0 | X21: 0 | Y21: 0 | Z21: 0 | AA21: 0 | AB21: 0 | AC21: 0 | AD21: 0 | AE21: 0 | AF21: 0 | AG21: 0 | AH21: 0 | AI21: 0 | AJ21: 0 | AK21: 40 | AL21: 4057 | AM21: 0.001197993755
A22: 11 | B22: 0 | C22: 0 | D22: 0 | E22: 0 | F22: 0 | G22: 0 | H22: 0 | I22: 0 | J22: 0 | K22: 0 | L22: 0 | M22: 0 | N22: 0 | O22: 0 | P22: 0 | Q22: 0 | R22: 0 | S22: 0 | T22: 0 | U22: 0 | V22: 0 | W22: 0 | X22: 0 | Y22: 0 | Z22: 0 | AA22: 0 | AB22: 0 | AC22: 0 | AD22: 0 | AE22: 0 | AF22: 0 | AG22: 0 | AH22: 0 | AI22: 0 | AJ22: 0 | AK22: 57 | AL22: 1877 | AM22: 0.001203238964
A23: 12 | B23: 0 | C23: 0 | D23: 0 | E23: 0 | F23: 0 | G23: 31148 | H23: 34373 | I23: 26852 | J23: 13168 | K23: 15150 | L23: 13827 | M23: 6759 | N23: 0 | O23: 0 | P23: 0 | Q23: 0 | R23: 0 | S23: 0 | T23: 0 | U23: 0 | V23: 0 | W23: 0 | X23: 0 | Y23: 0 | Z23: 0 | AA23: 0 | AB23: 0 | AC23: 0 | AD23: 0 | AE23: 0 | AF23: 0 | AG23: 0 | AH23: 0 | AI23: 0 | AJ23: 0 | AK23: 47 | AL23: 8704 | AM23: 0.001298010349
A24: 13 | B24: 0 | C24: 23307 | D24: 28651 | E24: 21029 | F24: 22073 | G24: 0 | H24: 22112 | I24: 88624 | J24: 85136 | K24: 47763 | L24: 46017 | M24: 72503 | N24: 0 | O24: 0 | P24: 0 | Q24: 0 | R24: 28032 | S24: 9139 | T24: 0 | U24: 0 | V24: 0 | W24: 0 | X24: 0 | Y24: 0 | Z24: 0 | AA24: 0 | AB24: 0 | AC24: 0 | AD24: 0 | AE24: 0 | AF24: 0 | AG24: 0 | AH24: 0 | AI24: 0 | AJ24: 0 | AK24: 42 | AL24: 7145 | AM24: 0.001390635967
A25: 14 | B25: 0 | C25: 20081 | D25: 0 | E25: 0 | F25: 20211 | G25: 20382 | H25: 19846 | I25: 15232 | J25: 16392 | K25: 0 | L25: 0 | M25: 0 | N25: 0 | O25: 0 | P25: 0 | Q25: 3502 | R25: 3935 | S25: 2969 | T25: 0 | U25: 0 | V25: 0 | W25: 0 | X25: 0 | Y25: 0 | Z25: 0 | AA25: 4517 | AB25: 1895 | AC25: 0 | AD25: 0 | AE25: 0 | AF25: 0 | AG25: 0 | AH25: 0 | AI25: 0 | AJ25: 0 | AK25: 33 | AL25: 1044 | AM25: 0.001451075077
A26: 15 | B26: 18660 | C26: 16880 | D26: 14560 | E26: 16721 | F26: 12085 | G26: 20211 | H26: 17778 | I26: 9923 | J26: 24898 | K26: 27054 | L26: 28141 | M26: 28551 | N26: 35587 | O26: 36988 | P26: 30605 | Q26: 44832 | R26: 42228 | S26: 37249 | T26: 26693 | U26: 35573 | V26: 25503 | W26: 31442 | X26: 52932 | Y26: 40865 | Z26: 0 | AA26: 0 | AB26: 0 | AC26: 0 | AD26: 0 | AE26: 0 | AF26: 0 | AG26: 0 | AH26: 0 | AI26: 0 | AJ26: 0 | AK26: 33 | AL26: 949 | AM26: 0.001870810986
A27: 16 | B27: 0 | C27: 0 | D27: 0 | E27: 0 | F27: 0 | G27: 0 | H27: 16718 | I27: 3828 | J27: 3995 | K27: 18635 | L27: 7050 | M27: 5791 | N27: 7216 | O27: 14133 | P27: 21733 | Q27: 18964 | R27: 19413 | S27: 34150 | T27: 19174 | U27: 18179 | V27: 19212 | W27: 5472 | X27: 0 | Y27: 0 | Z27: 0 | AA27: 5697 | AB27: 0 | AC27: 0 | AD27: 40491 | AE27: 0 | AF27: 0 | AG27: 0 | AH27: 0 | AI27: 0 | AJ27: 0 | AK27: 32 | AL27: 4962 | AM27: 0.002180397511
A28: 17 | B28: 17315 | C28: 20116 | D28: 17548 | E28: 0 | F28: 4883 | G28: 16718 | H28: 0 | I28: 11998 | J28: 31069 | K28: 30907 | L28: 21029 | M28: 18724 | N28: 16877 | O28: 17337 | P28: 23131 | Q28: 18142 | R28: 26885 | S28: 16879 | T28: 21782 | U28: 17971 | V28: 29663 | W28: 27302 | X28: 21578 | Y28: 25258 | Z28: 18316 | AA28: 14319 | AB28: 15014 | AC28: 16426 | AD28: 0 | AE28: 0 | AF28: 0 | AG28: 0 | AH28: 0 | AI28: 0 | AJ28: 0 | AK28: 32 | AL28: 6650 | AM28: 0.00220233202
A29: 18 | B29: 0 | C29: 1065 | D29: 0 | E29: 20945 | F29: 26041 | G29: 21267 | H29: 17082 | I29: 10709 | J29: 20397 | K29: 16172 | L29: 17913 | M29: 28625 | N29: 34155 | O29: 32473 | P29: 38507 | Q29: 53321 | R29: 40647 | S29: 41694 | T29: 45464 | U29: 50606 | V29: 66473 | W29: 45101 | X29: 53646 | Y29: 54088 | Z29: 42823 | AA29: 42247 | AB29: 27127 | AC29: 0 | AD29: 0 | AE29: 0 | AF29: 0 | AG29: 0 | AH29: 0 | AI29: 0 | AJ29: 0 | AK29: 34 | AL29: 6540 | AM29: 0.002354204655
A30: 19 | B30: 17074 | C30: 5151 | D30: 3793 | E30: 0 | F30: 14182 | G30: 4883 | H30: 7752 | I30: 17326 | J30: 0 | K30: 32599 | L30: 17076 | M30: 8135 | N30: 13404 | O30: 7769 | P30: 21354 | Q30: 18964 | R30: 21244 | S30: 24102 | T30: 19174 | U30: 28005 | V30: 34260 | W30: 22344 | X30: 19947 | Y30: 0 | Z30: 0 | AA30: 0 | AB30: 0 | AC30: 0 | AD30: 0 | AE30: 0 | AF30: 0 | AG30: 0 | AH30: 0 | AI30: 0 | AJ30: 0 | AK30: 33 | AL30: 4741 | AM30: 0.00242203474
A31: 20 | B31: 29429 | C31: 21964 | D31: 16269 | E31: 14535 | F31: 17306 | G31: 24949 | H31: 16408 | I31: 11998 | J31: 4441 | K31: 4419 | L31: 28257 | M31: 31917 | N31: 32267 | O31: 33277 | P31: 29368 | Q31: 29934 | R31: 27515 | S31: 21958 | T31: 16662 | U31: 0 | V31: 0 | W31: 0 | X31: 0 | Y31: 0 | Z31: 0 | AA31: 0 | AB31: 0 | AC31: 0 | AD31: 0 | AE31: 0 | AF31: 0 | AG31: 0 | AH31: 0 | AI31: 0 | AJ31: 0 | AK31: 33 | AL31: 3227 | AM31: 0.002681195736
A32: 21 | B32: 1000 | C32: 4786 | D32: 4117 | E32: 17058 | F32: 15789 | G32: 16718 | H32: 13145 | I32: 24898 | J32: 27479 | K32: 28141 | L32: 21029 | M32: 33892 | N32: 28050 | O32: 17867 | P32: 26303 | Q32: 27864 | R32: 25298 | S32: 30618 | T32: 24890 | U32: 23442 | V32: 29663 | W32: 17566 | X32: 0 | Y32: 0 | Z32: 0 | AA32: 0 | AB32: 0 | AC32: 0 | AD32: 0 | AE32: 0 | AF32: 0 | AG32: 0 | AH32: 0 | AI32: 0 | AJ32: 0 | AK32: 33 | AL32: 1737 | AM32: 0.00268381834
A33: 22 | B33: 0 | C33: 0 | D33: 0 | E33: 0 | F33: 0 | G33: 0 | H33: 13258 | I33: 4441 | J33: 18361 | K33: 16457 | L33: 0 | M33: 0 | N33: 0 | O33: 0 | P33: 0 | Q33: 0 | R33: 0 | S33: 0 | T33: 0 | U33: 9855 | V33: 0 | W33: 0 | X33: 0 | Y33: 0 | Z33: 0 | AA33: 0 | AB33: 0 | AC33: 0 | AD33: 0 | AE33: 0 | AF33: 0 | AG33: 0 | AH33: 0 | AI33: 0 | AJ33: 0 | AK33: 32 | AL33: 5605 | AM33: 0.002692878246
A34: 23 | B34: 0 | C34: 1191 | D34: 0 | E34: 7752 | F34: 22818 | G34: 19091 | H34: 16392 | I34: 15877 | J34: 20959 | K34: 16953 | L34: 12332 | M34: 20683 | N34: 28076 | O34: 19413 | P34: 23457 | Q34: 15155 | R34: 19954 | S34: 13077 | T34: 0 | U34: 2321 | V34: 0 | W34: 0 | X34: 0 | Y34: 0 | Z34: 0 | AA34: 0 | AB34: 0 | AC34: 0 | AD34: 0 | AE34: 0 | AF34: 0 | AG34: 0 | AH34: 0 | AI34: 0 | AJ34: 0 | AK34: 34 | AL34: 5368 | AM34: 0.002826750278
A35: 24 | B35: 0 | C35: 0 | D35: 0 | E35: 0 | F35: 0 | G35: 0 | H35: 0 | I35: 0 | J35: 0 | K35: 0 | L35: 20488 | M35: 1895 | N35: 5943 | O35: 0 | P35: 0 | Q35: 0 | R35: 0 | S35: 0 | T35: 0 | U35: 0 | V35: 0 | W35: 0 | X35: 0 | Y35: 0 | Z35: 0 | AA35: 0 | AB35: 0 | AC35: 0 | AD35: 0 | AE35: 0 | AF35: 0 | AG35: 0 | AH35: 0 | AI35: 0 | AJ35: 0 | AK35: 47 | AL35: 9775 | AM35: 0.002830445766
A36: 25 | B36: 0 | C36: 6324 | D36: 2944 | E36: 4303 | F36: 18122 | G36: 18529 | H36: 22161 | I36: 23669 | J36: 16392 | K36: 21956 | L36: 17942 | M36: 16201 | N36: 14133 | O36: 18803 | P36: 17667 | Q36: 16742 | R36: 23457 | S36: 25880 | T36: 23199 | U36: 16585 | V36: 19408 | W36: 19947 | X36: 13669 | Y36: 16420 | Z36: 12243 | AA36: 9455 | AB36: 14372 | AC36: 15577 | AD36: 0 | AE36: 0 | AF36: 0 | AG36: 0 | AH36: 0 | AI36: 0 | AJ36: 0 | AK36: 31 | AL36: 3774 | AM36: 0.002879917622
A37: 26 | B37: 6494 | C37: 18184 | D37: 9162 | E37: 19581 | F37: 17306 | G37: 15370 | H37: 18541 | I37: 13258 | J37: 0 | K37: 0 | L37: 0 | M37: 0 | N37: 0 | O37: 0 | P37: 0 | Q37: 0 | R37: 0 | S37: 0 | T37: 0 | U37: 0 | V37: 0 | W37: 12529 | X37: 0 | Y37: 1793 | Z37: 5916 | AA37: 0 | AB37: 0 | AC37: 0 | AD37: 0 | AE37: 0 | AF37: 0 | AG37: 0 | AH37: 0 | AI37: 0 | AJ37: 0 | AK37: 34 | AL37: 4355 | AM37: 0.002941548824
A38: 27 | B38: 20578 | C38: 27553 | D38: 26267 | E38: 25302 | F38: 20211 | G38: 19701 | H38: 25389 | I38: 25457 | J38: 29896 | K38: 47711 | L38: 27885 | M38: 29203 | N38: 26555 | O38: 22112 | P38: 28649 | Q38: 28836 | R38: 26287 | S38: 53019 | T38: 31095 | U38: 21862 | V38: 32759 | W38: 26429 | X38: 17905 | Y38: 0 | Z38: 1620 | AA38: 18847 | AB38: 19165 | AC38: 0 | AD38: 0 | AE38: 0 | AF38: 0 | AG38: 0 | AH38: 0 | AI38: 0 | AJ38: 0 | AK38: 34 | AL38: 6451 | AM38: 0.003122746944
A39: 28 | B39: 21019 | C39: 20884 | D39: 20593 | E39: 29719 | F39: 21136 | G39: 24747 | H39: 26721 | I39: 35107 | J39: 32850 | K39: 35755 | L39: 29348 | M39: 28551 | N39: 31526 | O39: 30732 | P39: 32585 | Q39: 29368 | R39: 21999 | S39: 24102 | T39: 7666 | U39: 25526 | V39: 45464 | W39: 23771 | X39: 30102 | Y39: 23106 | Z39: 14177 | AA39: 0 | AB39: 0 | AC39: 0 | AD39: 0 | AE39: 0 | AF39: 0 | AG39: 0 | AH39: 0 | AI39: 0 | AJ39: 0 | AK39: 33 | AL39: 7310 | AM39: 0.003171741962
A40: 29 | B40: 24722 | C40: 20008 | D40: 13804 | E40: 20487 | F40: 8790 | G40: 19581 | H40: 20211 | I40: 30944 | J40: 32034 | K40: 27190 | L40: 25970 | M40: 39924 | N40: 37155 | O40: 70318 | P40: 42185 | Q40: 43465 | R40: 28649 | S40: 20115 | T40: 17832 | U40: 2969 | V40: 3642 | W40: 16501 | X40: 0 | Y40: 0 | Z40: 1734 | AA40: 0 | AB40: 0 | AC40: 0 | AD40: 0 | AE40: 0 | AF40: 0 | AG40: 0 | AH40: 0 | AI40: 0 | AJ40: 0 | AK40: 31 | AL40: 7371 | AM40: 0.003228604794
A41: 30 | B41: 0 | C41: 0 | D41: 0 | E41: 0 | F41: 0 | G41: 0 | H41: 0 | I41: 0 | J41: 0 | K41: 0 | L41: 0 | M41: 0 | N41: 0 | O41: 0 | P41: 0 | Q41: 0 | R41: 0 | S41: 0 | T41: 14847 | U41: 1793 | V41: 0 | W41: 1698 | X41: 0 | Y41: 0 | Z41: 0 | AA41: 0 | AB41: 0 | AC41: 0 | AD41: 0 | AE41: 0 | AF41: 0 | AG41: 0 | AH41: 0 | AI41: 0 | AJ41: 0 | AK41: 37 | AL41: 7599 | AM41: 0.003242433071
A42: 31 | B42: 19512 | C42: 16286 | D42: 15018 | E42: 27054 | F42: 19769 | G42: 17942 | H42: 21412 | I42: 19378 | J42: 21354 | K42: 18964 | L42: 18142 | M42: 20935 | N42: 22827 | O42: 21782 | P42: 46149 | Q42: 46193 | R42: 28458 | S42: 0 | T42: 0 | U42: 0 | V42: 0 | W42: 0 | X42: 0 | Y42: 0 | Z42: 0 | AA42: 0 | AB42: 0 | AC42: 0 | AD42: 0 | AE42: 0 | AF42: 0 | AG42: 0 | AH42: 0 | AI42: 0 | AJ42: 0 | AK42: 40 | AL42: 786 | AM42: 0.003277122974
A43: 32 | B43: 0 | C43: 0 | D43: 0 | E43: 0 | F43: 0 | G43: 0 | H43: 0 | I43: 0 | J43: 0 | K43: 0 | L43: 0 | M43: 0 | N43: 10334 | O43: 5520 | P43: 17803 | Q43: 13495 | R43: 0 | S43: 0 | T43: 0 | U43: 0 | V43: 0 | W43: 0 | X43: 0 | Y43: 0 | Z43: 0 | AA43: 0 | AB43: 0 | AC43: 0 | AD43: 0 | AE43: 0 | AF43: 0 | AG43: 0 | AH43: 0 | AI43: 0 | AJ43: 0 | AK43: 34 | AL43: 3094 | AM43: 0.003290951252
A44: 33 | B44: 21103 | C44: 35575 | D44: 46989 | E44: 45656 | F44: 54667 | G44: 64464 | H44: 70633 | I44: 76511 | J44: 83662 | K44: 98269 | L44: 65527 | M44: 92882 | N44: 59638 | O44: 50295 | P44: 64462 | Q44: 70620 | R44: 58836 | S44: 67433 | T44: 73677 | U44: 66292 | V44: 26553 | W44: 22537 | X44: 19050 | Y44: 16526 | Z44: 0 | AA44: 0 | AB44: 0 | AC44: 0 | AD44: 0 | AE44: 0 | AF44: 0 | AG44: 0 | AH44: 0 | AI44: 0 | AJ44: 0 | AK44: 31 | AL44: 5504 | AM44: 0.003418982029
A45: 34 | B45: 31097 | C45: 32647 | D45: 26866 | E45: 19581 | F45: 28496 | G45: 21193 | H45: 25001 | I45: 18140 | J45: 20166 | K45: 19769 | L45: 20316 | M45: 4445 | N45: 12332 | O45: 17818 | P45: 26870 | Q45: 19413 | R45: 20935 | S45: 14598 | T45: 0 | U45: 16062 | V45: 0 | W45: 0 | X45: 0 | Y45: 0 | Z45: 0 | AA45: 0 | AB45: 0 | AC45: 0 | AD45: 0 | AE45: 0 | AF45: 0 | AG45: 0 | AH45: 0 | AI45: 0 | AJ45: 0 | AK45: 33 | AL45: 3622 | AM45: 0.003437817097
A46: 35 | B46: 0 | C46: 4637 | D46: 15022 | E46: 24481 | F46: 23279 | G46: 21029 | H46: 16953 | I46: 26555 | J46: 25629 | K46: 30388 | L46: 35630 | M46: 46282 | N46: 51496 | O46: 56294 | P46: 59027 | Q46: 50606 | R46: 42220 | S46: 24951 | T46: 28926 | U46: 39060 | V46: 38295 | W46: 35607 | X46: 49754 | Y46: 0 | Z46: 0 | AA46: 0 | AB46: 0 | AC46: 0 | AD46: 0 | AE46: 0 | AF46: 0 | AG46: 0 | AH46: 0 | AI46: 0 | AJ46: 0 | AK46: 38 | AL46: 76 | AM46: 0.003445208073
A47: 36 | B47: 10807 | C47: 27756 | D47: 14804 | E47: 0 | F47: 4303 | G47: 20945 | H47: 13644 | I47: 12056 | J47: 16143 | K47: 4441 | L47: 4419 | M47: 13907 | N47: 28715 | O47: 27332 | P47: 26831 | Q47: 34646 | R47: 19413 | S47: 33194 | T47: 40061 | U47: 34377 | V47: 27166 | W47: 42599 | X47: 31925 | Y47: 25361 | Z47: 22478 | AA47: 28587 | AB47: 26661 | AC47: 32449 | AD47: 15902 | AE47: 0 | AF47: 0 | AG47: 0 | AH47: 0 | AI47: 0 | AJ47: 0 | AK47: 32 | AL47: 4469 | AM47: 0.003480613232
A48: 37 | B48: 18730 | C48: 31831 | D48: 31967 | E48: 20080 | F48: 10727 | G48: 20546 | H48: 30292 | I48: 44510 | J48: 55743 | K48: 61141 | L48: 80812 | M48: 91793 | N48: 83662 | O48: 59553 | P48: 57590 | Q48: 82022 | R48: 80575 | S48: 75083 | T48: 73440 | U48: 80034 | V48: 0 | W48: 0 | X48: 0 | Y48: 0 | Z48: 2451 | AA48: 14915 | AB48: 6791 | AC48: 0 | AD48: 16489 | AE48: 24082 | AF48: 14372 | AG48: 0 | AH48: 0 | AI48: 0 | AJ48: 0 | AK48: 31 | AL48: 4156 | AM48: 0.003511965275
A49: 38 | B49: 48124 | C49: 68739 | D49: 70040 | E49: 68511 | F49: 47410 | G49: 52047 | H49: 70700 | I49: 63417 | J49: 54498 | K49: 54667 | L49: 64464 | M49: 80812 | N49: 98157 | O49: 57138 | P49: 61229 | Q49: 56397 | R49: 58374 | S49: 44196 | T49: 0 | U49: 0 | V49: 0 | W49: 0 | X49: 0 | Y49: 0 | Z49: 0 | AA49: 0 | AB49: 0 | AC49: 0 | AD49: 0 | AE49: 0 | AF49: 0 | AG49: 0 | AH49: 0 | AI49: 0 | AJ49: 0 | AK49: 30 | AL49: 2627 | AM49: 0.00374263525
A50: 39 | B50: 18735 | C50: 0 | D50: 0 | E50: 0 | F50: 0 | G50: 0 | H50: 0 | I50: 0 | J50: 0 | K50: 0 | L50: 0 | M50: 0 | N50: 0 | O50: 0 | P50: 0 | Q50: 0 | R50: 0 | S50: 0 | T50: 0 | U50: 0 | V50: 0 | W50: 0 | X50: 0 | Y50: 0 | Z50: 0 | AA50: 0 | AB50: 0 | AC50: 0 | AD50: 0 | AE50: 0 | AF50: 0 | AG50: 0 | AH50: 0 | AI50: 0 | AJ50: 0 | AK50: 36 | AL50: 297 | AM50: 0.003900706768
A51: 40 | B51: 0 | C51: 0 | D51: 9211 | E51: 0 | F51: 22052 | G51: 22707 | H51: 20264 | I51: 28496 | J51: 28078 | K51: 23337 | L51: 23669 | M51: 20981 | N51: 25983 | O51: 22737 | P51: 29993 | Q51: 24110 | R51: 30605 | S51: 26935 | T51: 28373 | U51: 32035 | V51: 32306 | W51: 38164 | X51: 40672 | Y51: 27230 | Z51: 21961 | AA51: 19292 | AB51: 18762 | AC51: 27707 | AD51: 30868 | AE51: 25639 | AF51: 16426 | AG51: 0 | AH51: 0 | AI51: 0 | AJ51: 0 | AK51: 32 | AL51: 9292 | AM51: 0.004055559635
A52: 41 | B52: 0 | C52: 0 | D52: 0 | E52: 0 | F52: 18193 | G52: 29420 | H52: 45877 | I52: 51300 | J52: 58933 | K52: 40857 | L52: 72953 | M52: 69877 | N52: 73041 | O52: 72705 | P52: 82520 | Q52: 93683 | R52: 62224 | S52: 49842 | T52: 54019 | U52: 64437 | V52: 48659 | W52: 34260 | X52: 31442 | Y52: 35989 | Z52: 51166 | AA52: 80841 | AB52: 77607 | AC52: 74026 | AD52: 56817 | AE52: 63134 | AF52: 0 | AG52: 0 | AH52: 0 | AI52: 0 | AJ52: 0 | AK52: 30 | AL52: 1678 | AM52: 0.004209339619
A53: 42 | B53: 5352 | C53: 14775 | D53: 7275 | E53: 0 | F53: 0 | G53: 0 | H53: 0 | I53: 0 | J53: 0 | K53: 0 | L53: 0 | M53: 0 | N53: 0 | O53: 0 | P53: 0 | Q53: 0 | R53: 0 | S53: 0 | T53: 0 | U53: 0 | V53: 0 | W53: 0 | X53: 0 | Y53: 0 | Z53: 0 | AA53: 0 | AB53: 0 | AC53: 0 | AD53: 0 | AE53: 0 | AF53: 0 | AG53: 0 | AH53: 0 | AI53: 0 | AJ53: 0 | AK53: 60 | AL53: 2123 | AM53: 0.004250943661
A54: 43 | B54: 33551 | C54: 29270 | D54: 23366 | E54: 24464 | F54: 25457 | G54: 25970 | H54: 18786 | I54: 35694 | J54: 56837 | K54: 55840 | L54: 57791 | M54: 42351 | N54: 42228 | O54: 51076 | P54: 77447 | Q54: 45512 | R54: 42144 | S54: 23771 | T54: 0 | U54: 0 | V54: 0 | W54: 0 | X54: 0 | Y54: 0 | Z54: 0 | AA54: 0 | AB54: 0 | AC54: 0 | AD54: 0 | AE54: 0 | AF54: 0 | AG54: 0 | AH54: 0 | AI54: 0 | AJ54: 0 | AK54: 35 | AL54: 5168 | AM54: 0.004271566868
A55: 44 | B55: 14440 | C55: 16623 | D55: 20440 | E55: 23542 | F55: 20546 | G55: 28726 | H55: 30159 | I55: 28817 | J55: 38444 | K55: 54607 | L55: 38579 | M55: 30850 | N55: 31842 | O55: 35286 | P55: 38859 | Q55: 42608 | R55: 35518 | S55: 37420 | T55: 36351 | U55: 38053 | V55: 34894 | W55: 36716 | X55: 41739 | Y55: 0 | Z55: 32246 | AA55: 47035 | AB55: 56277 | AC55: 33513 | AD55: 28272 | AE55: 0 | AF55: 0 | AG55: 0 | AH55: 0 | AI55: 0 | AJ55: 0 | AK55: 31 | AL55: 9356 | AM55: 0.004276812077
A56: 45 | B56: 13487 | C56: 22248 | D56: 17913 | E56: 15665 | F56: 22218 | G56: 31223 | H56: 25736 | I56: 22952 | J56: 41556 | K56: 48602 | L56: 55461 | M56: 30759 | N56: 28511 | O56: 30907 | P56: 22019 | Q56: 16201 | R56: 21982 | S56: 24473 | T56: 27408 | U56: 16742 | V56: 24102 | W56: 19922 | X56: 25526 | Y56: 23442 | Z56: 23017 | AA56: 21434 | AB56: 23699 | AC56: 18762 | AD56: 15205 | AE56: 9455 | AF56: 0 | AG56: 0 | AH56: 0 | AI56: 0 | AJ56: 0 | AK56: 31 | AL56: 3817 | AM56: 0.004289805889
A57: 46 | B57: 0 | C57: 17779 | D57: 12031 | E57: 4303 | F57: 19839 | G57: 16718 | H57: 15555 | I57: 23669 | J57: 31069 | K57: 29348 | L57: 17942 | M57: 25004 | N57: 21226 | O57: 15178 | P57: 17615 | Q57: 17317 | R57: 14925 | S57: 18368 | T57: 21782 | U57: 16585 | V57: 15598 | W57: 17925 | X57: 13669 | Y57: 14177 | Z57: 0 | AA57: 15277 | AB57: 37272 | AC57: 27127 | AD57: 0 | AE57: 0 | AF57: 0 | AG57: 0 | AH57: 0 | AI57: 0 | AJ57: 0 | AK57: 31 | AL57: 9500 | AM57: 0.004408419132
A58: 47 | B58: 20013 | C58: 22557 | D58: 21651 | E58: 20077 | F58: 23821 | G58: 33577 | H58: 44225 | I58: 40914 | J58: 46324 | K58: 49160 | L58: 63179 | M58: 73041 | N58: 70318 | O58: 69992 | P58: 68027 | Q58: 79107 | R58: 97405 | S58: 80400 | T58: 106633 | U58: 73677 | V58: 77111 | W58: 31905 | X58: 26852 | Y58: 16612 | Z58: 15564 | AA58: 0 | AB58: 0 | AC58: 0 | AD58: 0 | AE58: 0 | AF58: 0 | AG58: 0 | AH58: 0 | AI58: 0 | AJ58: 0 | AK58: 32 | AL58: 5316 | AM58: 0.004500925541
A59: 48 | B59: 27171 | C59: 19181 | D59: 25703 | E59: 34702 | F59: 31011 | G59: 25674 | H59: 22738 | I59: 12056 | J59: 18140 | K59: 21597 | L59: 18786 | M59: 22737 | N59: 22073 | O59: 20986 | P59: 22112 | Q59: 25071 | R59: 23014 | S59: 25821 | T59: 18650 | U59: 21782 | V59: 32389 | W59: 24036 | X59: 21961 | Y59: 13669 | Z59: 15150 | AA59: 18640 | AB59: 17400 | AC59: 0 | AD59: 2139 | AE59: 0 | AF59: 0 | AG59: 0 | AH59: 0 | AI59: 0 | AJ59: 0 | AK59: 31 | AL59: 3671 | AM59: 0.00454801321
A60: 49 | B60: 35043 | C60: 37462 | D60: 30919 | E60: 39843 | F60: 27396 | G60: 33828 | H60: 33886 | I60: 32034 | J60: 29371 | K60: 30850 | L60: 40892 | M60: 41894 | N60: 30352 | O60: 38596 | P60: 33277 | Q60: 37420 | R60: 33799 | S60: 32881 | T60: 25880 | U60: 19162 | V60: 15558 | W60: 19086 | X60: 0 | Y60: 0 | Z60: 0 | AA60: 0 | AB60: 0 | AC60: 0 | AD60: 0 | AE60: 0 | AF60: 0 | AG60: 0 | AH60: 0 | AI60: 0 | AJ60: 0 | AK60: 32 | AL60: 6442 | AM60: 0.004687607288
A61: 50 | B61: 0 | C61: 20858 | D61: 17763 | E61: 43580 | F61: 28849 | G61: 17652 | H61: 15942 | I61: 14427 | J61: 13644 | K61: 15959 | L61: 29073 | M61: 0 | N61: 0 | O61: 0 | P61: 0 | Q61: 0 | R61: 0 | S61: 0 | T61: 0 | U61: 0 | V61: 0 | W61: 0 | X61: 0 | Y61: 0 | Z61: 0 | AA61: 0 | AB61: 0 | AC61: 0 | AD61: 0 | AE61: 0 | AF61: 0 | AG61: 0 | AH61: 0 | AI61: 0 | AJ61: 0 | AK61: 30 | AL61: 2340 | AM61: 0.004710733891
A62: 51 | B62: 4802 | C62: 0 | D62: 0 | E62: 0 | F62: 16926 | G62: 37137 | H62: 49199 | I62: 45656 | J62: 31007 | K62: 29808 | L62: 40914 | M62: 64439 | N62: 70385 | O62: 40465 | P62: 65527 | Q62: 72705 | R62: 56718 | S62: 53337 | T62: 51486 | U62: 70620 | V62: 64797 | W62: 44435 | X62: 42155 | Y62: 30516 | Z62: 24675 | AA62: 35989 | AB62: 19494 | AC62: 28926 | AD62: 39705 | AE62: 30868 | AF62: 23687 | AG62: 30973 | AH62: 0 | AI62: 0 | AJ62: 0 | AK62: 30 | AL62: 6537 | AM62: 0.004812419415
A63: 52 | B63: 27040 | C63: 40434 | D63: 57791 | E63: 60838 | F63: 67410 | G63: 56621 | H63: 53439 | I63: 30702 | J63: 50495 | K63: 30355 | L63: 32291 | M63: 38154 | N63: 44965 | O63: 30969 | P63: 33892 | Q63: 37303 | R63: 50295 | S63: 43855 | T63: 55545 | U63: 41157 | V63: 40061 | W63: 51847 | X63: 35091 | Y63: 23771 | Z63: 26429 | AA63: 23339 | AB63: 33425 | AC63: 18640 | AD63: 0 | AE63: 0 | AF63: 0 | AG63: 0 | AH63: 0 | AI63: 0 | AJ63: 0 | AK63: 30 | AL63: 779 | AM63: 0.005036771297
A64: 53 | B64: 0 | C64: 19875 | D64: 0 | E64: 7349 | F64: 15827 | G64: 30188 | H64: 32992 | I64: 38204 | J64: 36523 | K64: 41827 | L64: 31313 | M64: 38039 | N64: 43426 | O64: 48282 | P64: 63616 | Q64: 82022 | R64: 62166 | S64: 69650 | T64: 57395 | U64: 71462 | V64: 68071 | W64: 51496 | X64: 57324 | Y64: 46788 | Z64: 31905 | AA64: 49693 | AB64: 51166 | AC64: 64462 | AD64: 34665 | AE64: 39981 | AF64: 0 | AG64: 0 | AH64: 0 | AI64: 0 | AJ64: 0 | AK64: 31 | AL64: 290 | AM64: 0.00519400835
A65: 54 | B65: 17600 | C65: 20232 | D65: 18246 | E65: 26483 | F65: 42138 | G65: 33316 | H65: 18165 | I65: 24385 | J65: 28995 | K65: 21535 | L65: 36787 | M65: 18541 | N65: 25457 | O65: 19363 | P65: 15613 | Q65: 21029 | R65: 18724 | S65: 16877 | T65: 14144 | U65: 15990 | V65: 16742 | W65: 6501 | X65: 0 | Y65: 0 | Z65: 13077 | AA65: 9847 | AB65: 0 | AC65: 13642 | AD65: 15039 | AE65: 0 | AF65: 0 | AG65: 0 | AH65: 0 | AI65: 0 | AJ65: 0 | AK65: 29 | AL65: 557 | AM65: 0.005268752575
A66: 55 | B66: 0 | C66: 12475 | D66: 20988 | E66: 18995 | F66: 15827 | G66: 29942 | H66: 32702 | I66: 31976 | J66: 37555 | K66: 32023 | L66: 34436 | M66: 42219 | N66: 52461 | O66: 30591 | P66: 27840 | Q66: 17913 | R66: 26555 | S66: 19895 | T66: 26303 | U66: 20115 | V66: 20935 | W66: 16879 | X66: 16662 | Y66: 0 | Z66: 0 | AA66: 0 | AB66: 0 | AC66: 0 | AD66: 0 | AE66: 0 | AF66: 0 | AG66: 0 | AH66: 0 | AI66: 0 | AJ66: 0 | AK66: 31 | AL66: 202 | AM66: 0.00527125597
A67: 56 | B67: 0 | C67: 0 | D67: 0 | E67: 0 | F67: 0 | G67: 0 | H67: 0 | I67: 0 | J67: 0 | K67: 18011 | L67: 0 | M67: 18786 | N67: 27885 | O67: 25588 | P67: 28050 | Q67: 26476 | R67: 26303 | S67: 40727 | T67: 39168 | U67: 19174 | V67: 26507 | W67: 19849 | X67: 15828 | Y67: 21434 | Z67: 14543 | AA67: 0 | AB67: 0 | AC67: 0 | AD67: 0 | AE67: 0 | AF67: 0 | AG67: 0 | AH67: 0 | AI67: 0 | AJ67: 0 | AK67: 31 | AL67: 6616 | AM67: 0.005310118198
A68: 57 | B68: 0 | C68: 0 | D68: 0 | E68: 0 | F68: 10709 | G68: 19551 | H68: 3498 | I68: 11970 | J68: 6135 | K68: 35518 | L68: 34336 | M68: 26412 | N68: 17832 | O68: 19174 | P68: 19954 | Q68: 23442 | R68: 10918 | S68: 7253 | T68: 1734 | U68: 0 | V68: 5916 | W68: 0 | X68: 0 | Y68: 0 | Z68: 0 | AA68: 0 | AB68: 0 | AC68: 0 | AD68: 0 | AE68: 0 | AF68: 0 | AG68: 0 | AH68: 0 | AI68: 0 | AJ68: 0 | AK68: 36 | AL68: 7303 | AM68: 0.005583703518
A69: 58 | B69: 14128 | C69: 19636 | D69: 18199 | E69: 11834 | F69: 22508 | G69: 17317 | H69: 38053 | I69: 21958 | J69: 42155 | K69: 33167 | L69: 45215 | M69: 26852 | N69: 17325 | O69: 20546 | P69: 46210 | Q69: 52205 | R69: 52182 | S69: 63134 | T69: 0 | U69: 0 | V69: 0 | W69: 0 | X69: 0 | Y69: 0 | Z69: 0 | AA69: 0 | AB69: 0 | AC69: 0 | AD69: 0 | AE69: 0 | AF69: 0 | AG69: 0 | AH69: 0 | AI69: 0 | AJ69: 0 | AK69: 45 | AL69: 7846 | AM69: 0.005589306355
A70: 59 | B70: 0 | C70: 0 | D70: 3104 | E70: 5397 | F70: 0 | G70: 0 | H70: 0 | I70: 0 | J70: 0 | K70: 0 | L70: 0 | M70: 22738 | N70: 0 | O70: 0 | P70: 0 | Q70: 0 | R70: 23025 | S70: 0 | T70: 0 | U70: 0 | V70: 0 | W70: 0 | X70: 0 | Y70: 0 | Z70: 0 | AA70: 0 | AB70: 0 | AC70: 0 | AD70: 0 | AE70: 0 | AF70: 0 | AG70: 0 | AH70: 0 | AI70: 0 | AJ70: 0 | AK70: 29 | AL70: 5383 | AM70: 0.005659997463
A71: 60 | B71: 0 | C71: 0 | D71: 16690 | E71: 0 | F71: 3712 | G71: 15942 | H71: 20211 | I71: 16718 | J71: 3828 | K71: 11998 | L71: 20784 | M71: 0 | N71: 21662 | O71: 16201 | P71: 22423 | Q71: 15178 | R71: 9860 | S71: 24215 | T71: 26480 | U71: 15155 | V71: 21782 | W71: 0 | X71: 0 | Y71: 0 | Z71: 0 | AA71: 0 | AB71: 0 | AC71: 0 | AD71: 23164 | AE71: 0 | AF71: 0 | AG71: 0 | AH71: 0 | AI71: 0 | AJ71: 0 | AK71: 31 | AL71: 6294 | AM71: 0.005808651447
A72: 61 | B72: 19152 | C72: 23934 | D72: 22603 | E72: 19925 | F72: 18447 | G72: 16146 | H72: 30427 | I72: 48292 | J72: 54282 | K72: 35284 | L72: 48868 | M72: 62424 | N72: 0 | O72: 76511 | P72: 118290 | Q72: 57971 | R72: 70668 | S72: 92882 | T72: 75737 | U72: 65490 | V72: 67499 | W72: 47209 | X72: 49528 | Y72: 44149 | Z72: 49315 | AA72: 43617 | AB72: 41570 | AC72: 32430 | AD72: 21578 | AE72: 15150 | AF72: 14466 | AG72: 26661 | AH72: 21771 | AI72: 7348 | AJ72: 0 | AK72: 28 | AL72: 6412 | AM72: 0.005817949772
A73: 62 | B73: 49024 | C73: 44914 | D73: 41323 | E73: 36484 | F73: 36161 | G73: 37182 | H73: 23402 | I73: 20211 | J73: 26041 | K73: 32723 | L73: 32291 | M73: 32080 | N73: 29348 | O73: 30249 | P73: 35587 | Q73: 31612 | R73: 41637 | S73: 43855 | T73: 47209 | U73: 42298 | V73: 39618 | W73: 33850 | X73: 46788 | Y73: 38756 | Z73: 43223 | AA73: 46597 | AB73: 72331 | AC73: 36430 | AD73: 52205 | AE73: 43593 | AF73: 35911 | AG73: 0 | AH73: 0 | AI73: 0 | AJ73: 0 | AK73: 29 | AL73: 8814 | AM73: 0.005868732929
A74: 63 | B74: 14496 | C74: 17062 | D74: 16074 | E74: 23689 | F74: 29592 | G74: 32397 | H74: 34649 | I74: 43578 | J74: 38784 | K74: 51749 | L74: 51300 | M74: 50103 | N74: 47000 | O74: 39285 | P74: 45735 | Q74: 56397 | R74: 56837 | S74: 69992 | T74: 59629 | U74: 64462 | V74: 68267 | W74: 62268 | X74: 50394 | Y74: 61883 | Z74: 59027 | AA74: 44061 | AB74: 0 | AC74: 0 | AD74: 0 | AE74: 0 | AF74: 0 | AG74: 0 | AH74: 0 | AI74: 0 | AJ74: 0 | AK74: 30 | AL74: 2527 | AM74: 0.00604814291
A75: 64 | B75: 0 | C75: 0 | D75: 0 | E75: 0 | F75: 0 | G75: 15915 | H75: 26525 | I75: 28995 | J75: 27057 | K75: 28586 | L75: 26098 | M75: 29007 | N75: 38522 | O75: 33651 | P75: 32390 | Q75: 42895 | R75: 51481 | S75: 48261 | T75: 43371 | U75: 0 | V75: 3935 | W75: 46317 | X75: 36716 | Y75: 42144 | Z75: 56154 | AA75: 43721 | AB75: 39334 | AC75: 23912 | AD75: 25653 | AE75: 21592 | AF75: 20128 | AG75: 15577 | AH75: 0 | AI75: 0 | AJ75: 0 | AK75: 30 | AL75: 2895 | AM75: 0.006114900112
A76: 65 | B76: 0 | C76: 0 | D76: 0 | E76: 0 | F76: 29942 | G76: 25134 | H76: 18951 | I76: 27057 | J76: 20382 | K76: 23337 | L76: 27190 | M76: 34518 | N76: 35610 | O76: 27885 | P76: 27286 | Q76: 28050 | R76: 27794 | S76: 34646 | T76: 32266 | U76: 26885 | V76: 19174 | W76: 25526 | X76: 42144 | Y76: 37562 | Z76: 43721 | AA76: 23106 | AB76: 20102 | AC76: 19937 | AD76: 33277 | AE76: 20128 | AF76: 15577 | AG76: 0 | AH76: 0 | AI76: 0 | AJ76: 0 | AK76: 28 | AL76: 3512 | AM76: 0.006420195103
A77: 66 | B77: 21635 | C77: 17780 | D77: 13617 | E77: 14995 | F77: 17529 | G77: 13191 | H77: 18593 | I77: 23173 | J77: 30844 | K77: 21136 | L77: 20211 | M77: 22738 | N77: 19635 | O77: 15232 | P77: 15449 | Q77: 18006 | R77: 26426 | S77: 34730 | T77: 24110 | U77: 17867 | V77: 28649 | W77: 33321 | X77: 41157 | Y77: 33782 | Z77: 51847 | AA77: 55666 | AB77: 45215 | AC77: 51733 | AD77: 0 | AE77: 0 | AF77: 0 | AG77: 0 | AH77: 0 | AI77: 0 | AJ77: 0 | AK77: 29 | AL77: 5896 | AM77: 0.006422102451
A78: 67 | B78: 17670 | C78: 22288 | D78: 16138 | E78: 18537 | F78: 18961 | G78: 11559 | H78: 33796 | I78: 26023 | J78: 25674 | K78: 23247 | L78: 29950 | M78: 29371 | N78: 20166 | O78: 18786 | P78: 17080 | Q78: 16201 | R78: 12332 | S78: 21984 | T78: 22508 | U78: 14856 | V78: 3935 | W78: 14598 | X78: 34377 | Y78: 35616 | Z78: 16365 | AA78: 19370 | AB78: 16612 | AC78: 22478 | AD78: 0 | AE78: 23805 | AF78: 0 | AG78: 0 | AH78: 0 | AI78: 0 | AJ78: 0 | AK78: 29 | AL78: 5006 | AM78: 0.006437122822
A79: 68 | B79: 16127 | C79: 19176 | D79: 10182 | E79: 17014 | F79: 22707 | G79: 22381 | H79: 20211 | I79: 20382 | J79: 23972 | K79: 20498 | L79: 0 | M79: 17445 | N79: 31336 | O79: 39222 | P79: 55840 | Q79: 51889 | R79: 56763 | S79: 49842 | T79: 33194 | U79: 40647 | V79: 48074 | W79: 39935 | X79: 31442 | Y79: 28108 | Z79: 20442 | AA79: 35608 | AB79: 19500 | AC79: 0 | AD79: 0 | AE79: 0 | AF79: 0 | AG79: 0 | AH79: 0 | AI79: 0 | AJ79: 0 | AK79: 31 | AL79: 3908 | AM79: 0.00646930933
A80: 69 | B80: 30736 | C80: 28029 | D80: 45445 | E80: 46237 | F80: 51749 | G80: 51300 | H80: 38615 | I80: 27190 | J80: 41699 | K80: 48282 | L80: 40408 | M80: 45115 | N80: 42185 | O80: 52586 | P80: 56763 | Q80: 54496 | R80: 58836 | S80: 75774 | T80: 64041 | U80: 39935 | V80: 37562 | W80: 43223 | X80: 37032 | Y80: 43370 | Z80: 38010 | AA80: 20204 | AB80: 15014 | AC80: 24785 | AD80: 0 | AE80: 0 | AF80: 0 | AG80: 0 | AH80: 0 | AI80: 0 | AJ80: 0 | AK80: 35 | AL80: 2475 | AM80: 0.006719052792
A81: 70 | B81: 13641 | C81: 15034 | D81: 12940 | E81: 12313 | F81: 16953 | G81: 0 | H81: 0 | I81: 23586 | J81: 5520 | K81: 3245 | L81: 19413 | M81: 20935 | N81: 17460 | O81: 16662 | P81: 13077 | Q81: 0 | R81: 0 | S81: 0 | T81: 0 | U81: 0 | V81: 0 | W81: 0 | X81: 0 | Y81: 0 | Z81: 0 | AA81: 0 | AB81: 0 | AC81: 0 | AD81: 0 | AE81: 0 | AF81: 0 | AG81: 0 | AH81: 0 | AI81: 0 | AJ81: 0 | AK81: 38 | AL81: 6524 | AM81: 0.006815493107
A82: 71 | B82: 12151 | C82: 18107 | D82: 19926 | E82: 18840 | F82: 16612 | G82: 27245 | H82: 28587 | I82: 30868 | J82: 20128 | K82: 30044 | L82: 0 | M82: 0 | N82: 0 | O82: 0 | P82: 0 | Q82: 0 | R82: 0 | S82: 0 | T82: 0 | U82: 0 | V82: 0 | W82: 0 | X82: 0 | Y82: 0 | Z82: 0 | AA82: 0 | AB82: 0 | AC82: 0 | AD82: 0 | AE82: 0 | AF82: 0 | AG82: 0 | AH82: 0 | AI82: 0 | AJ82: 0 | AK82: 51 | AL82: 9523 | AM82: 0.006906926632
A83: 72 | B83: 0 | C83: 0 | D83: 0 | E83: 0 | F83: 0 | G83: 0 | H83: 0 | I83: 0 | J83: 0 | K83: 0 | L83: 0 | M83: 13258 | N83: 0 | O83: 0 | P83: 0 | Q83: 0 | R83: 0 | S83: 0 | T83: 0 | U83: 0 | V83: 0 | W83: 0 | X83: 0 | Y83: 0 | Z83: 5472 | AA83: 0 | AB83: 17325 | AC83: 21497 | AD83: 9139 | AE83: 0 | AF83: 0 | AG83: 0 | AH83: 0 | AI83: 0 | AJ83: 0 | AK83: 28 | AL83: 2817 | AM83: 0.007050693035
A84: 73 | B84: 0 | C84: 0 | D84: 9974 | E84: 0 | F84: 0 | G84: 0 | H84: 0 | I84: 0 | J84: 0 | K84: 0 | L84: 0 | M84: 0 | N84: 0 | O84: 0 | P84: 0 | Q84: 0 | R84: 0 | S84: 0 | T84: 0 | U84: 0 | V84: 0 | W84: 0 | X84: 0 | Y84: 0 | Z84: 0 | AA84: 0 | AB84: 0 | AC84: 0 | AD84: 0 | AE84: 0 | AF84: 0 | AG84: 0 | AH84: 0 | AI84: 0 | AJ84: 0 | AK84: 47 | AL84: 1335 | AM84: 0.007245004177
A85: 74 | B85: 0 | C85: 0 | D85: 0 | E85: 13917 | F85: 5176 | G85: 6194 | H85: 10727 | I85: 19169 | J85: 16721 | K85: 23821 | L85: 25674 | M85: 30944 | N85: 29950 | O85: 27557 | P85: 26565 | Q85: 45735 | R85: 49000 | S85: 59766 | T85: 50395 | U85: 50295 | V85: 57395 | W85: 60567 | X85: 50393 | Y85: 31207 | Z85: 35573 | AA85: 35091 | AB85: 35480 | AC85: 42889 | AD85: 38149 | AE85: 28926 | AF85: 21782 | AG85: 23805 | AH85: 15014 | AI85: 15577 | AJ85: 0 | AK85: 29 | AL85: 4052 | AM85: 0.007455408573
A86: 75 | B86: 6363 | C86: 2386 | D86: 0 | E86: 16392 | F86: 0 | G86: 0 | H86: 0 | I86: 0 | J86: 0 | K86: 0 | L86: 0 | M86: 3935 | N86: 25814 | O86: 0 | P86: 0 | Q86: 18011 | R86: 0 | S86: 0 | T86: 1793 | U86: 0 | V86: 0 | W86: 0 | X86: 0 | Y86: 0 | Z86: 0 | AA86: 0 | AB86: 0 | AC86: 0 | AD86: 0 | AE86: 0 | AF86: 0 | AG86: 0 | AH86: 0 | AI86: 0 | AJ86: 0 | AK86: 41 | AL86: 4482 | AM86: 0.007540047169
A87: 76 | B87: 0 | C87: 0 | D87: 0 | E87: 0 | F87: 0 | G87: 4883 | H87: 4889 | I87: 6472 | J87: 13258 | K87: 12313 | L87: 17076 | M87: 15166 | N87: 22073 | O87: 20143 | P87: 25184 | Q87: 25071 | R87: 21244 | S87: 0 | T87: 0 | U87: 0 | V87: 0 | W87: 0 | X87: 0 | Y87: 17325 | Z87: 0 | AA87: 0 | AB87: 0 | AC87: 0 | AD87: 0 | AE87: 0 | AF87: 0 | AG87: 0 | AH87: 0 | AI87: 0 | AJ87: 0 | AK87: 31 | AL87: 2184 | AM87: 0.0077496171
A88: 77 | B88: 0 | C88: 0 | D88: 0 | E88: 0 | F88: 0 | G88: 0 | H88: 0 | I88: 0 | J88: 0 | K88: 0 | L88: 0 | M88: 0 | N88: 0 | O88: 0 | P88: 18599 | Q88: 3502 | R88: 17281 | S88: 19174 | T88: 22333 | U88: 13077 | V88: 5472 | W88: 13233 | X88: 14847 | Y88: 14177 | Z88: 0 | AA88: 0 | AB88: 0 | AC88: 0 | AD88: 0 | AE88: 0 | AF88: 0 | AG88: 0 | AH88: 0 | AI88: 0 | AJ88: 0 | AK88: 35 | AL88: 3215 | AM88: 0.007892549038
A89: 78 | B89: 0 | C89: 0 | D89: 0 | E89: 12667 | F89: 4618 | G89: 0 | H89: 0 | I89: 19164 | J89: 18675 | K89: 13481 | L89: 21439 | M89: 4441 | N89: 4419 | O89: 5791 | P89: 24218 | Q89: 20986 | R89: 24473 | S89: 23718 | T89: 19413 | U89: 14925 | V89: 18368 | W89: 16662 | X89: 15558 | Y89: 0 | Z89: 0 | AA89: 0 | AB89: 0 | AC89: 0 | AD89: 0 | AE89: 0 | AF89: 0 | AG89: 0 | AH89: 0 | AI89: 0 | AJ89: 0 | AK89: 32 | AL89: 9754 | AM89: 0.007989227772
A90: 79 | B90: 18511 | C90: 16551 | D90: 23168 | E90: 24266 | F90: 32430 | G90: 32093 | H90: 36954 | I90: 43129 | J90: 28256 | K90: 30668 | L90: 33415 | M90: 36176 | N90: 35535 | O90: 34255 | P90: 32723 | Q90: 25457 | R90: 30850 | S90: 30591 | T90: 33870 | U90: 42895 | V90: 32731 | W90: 43125 | X90: 47120 | Y90: 44092 | Z90: 62268 | AA90: 50394 | AB90: 43137 | AC90: 41739 | AD90: 34855 | AE90: 32246 | AF90: 20442 | AG90: 37255 | AH90: 33605 | AI90: 42823 | AJ90: 43593 | AK90: 24 | AL90: 2583 | AM90: 0.008171975613
A91: 80 | B91: 13381 | C91: 0 | D91: 0 | E91: 0 | F91: 0 | G91: 0 | H91: 0 | I91: 0 | J91: 0 | K91: 0 | L91: 17076 | M91: 17080 | N91: 16953 | O91: 0 | P91: 0 | Q91: 0 | R91: 0 | S91: 0 | T91: 0 | U91: 0 | V91: 55666 | W91: 34373 | X91: 20898 | Y91: 30483 | Z91: 15150 | AA91: 15205 | AB91: 14971 | AC91: 15014 | AD91: 21680 | AE91: 0 | AF91: 0 | AG91: 0 | AH91: 0 | AI91: 0 | AJ91: 0 | AK91: 31 | AL91: 8864 | AM91: 0.008320868015
A92: 81 | B92: 10980 | C92: 27281 | D92: 27953 | E92: 37089 | F92: 44574 | G92: 39902 | H92: 61996 | I92: 71735 | J92: 43804 | K92: 59933 | L92: 85469 | M92: 99904 | N92: 97037 | O92: 69016 | P92: 61968 | Q92: 53734 | R92: 39844 | S92: 46324 | T92: 59991 | U92: 63179 | V92: 63616 | W92: 52278 | X92: 40392 | Y92: 44733 | Z92: 46431 | AA92: 35630 | AB92: 40602 | AC92: 31207 | AD92: 32114 | AE92: 19849 | AF92: 19868 | AG92: 15561 | AH92: 17325 | AI92: 15150 | AJ92: 20515 | AK92: 22 | AL92: 5785 | AM92: 0.008331477642
A93: 82 | B93: 14923 | C93: 14804 | D93: 25865 | E93: 19983 | F93: 12945 | G93: 7752 | H93: 8588 | I93: 11998 | J93: 16507 | K93: 18558 | L93: 0 | M93: 43512 | N93: 6135 | O93: 5520 | P93: 23718 | Q93: 26412 | R93: 19216 | S93: 21958 | T93: 26015 | U93: 23147 | V93: 37562 | W93: 36246 | X93: 23699 | Y93: 0 | Z93: 15366 | AA93: 0 | AB93: 0 | AC93: 3313 | AD93: 0 | AE93: 0 | AF93: 0 | AG93: 0 | AH93: 0 | AI93: 0 | AJ93: 0 | AK93: 33 | AL93: 2220 | AM93: 0.00841575861
A94: 83 | B94: 16728 | C94: 17383 | D94: 30089 | E94: 22218 | F94: 18165 | G94: 28726 | H94: 25663 | I94: 33577 | J94: 33201 | K94: 30355 | L94: 34736 | M94: 28909 | N94: 23279 | O94: 22019 | P94: 34730 | Q94: 33311 | R94: 35703 | S94: 34082 | T94: 40310 | U94: 30814 | V94: 21958 | W94: 21782 | X94: 16585 | Y94: 18613 | Z94: 2321 | AA94: 0 | AB94: 0 | AC94: 0 | AD94: 0 | AE94: 0 | AF94: 0 | AG94: 0 | AH94: 0 | AI94: 0 | AJ94: 0 | AK94: 30 | AL94: 9182 | AM94: 0.008453190327
A95: 84 | B95: 0 | C95: 14126 | D95: 24362 | E95: 24184 | F95: 21340 | G95: 20955 | H95: 16292 | I95: 16926 | J95: 18165 | K95: 21632 | L95: 30159 | M95: 24270 | N95: 17778 | O95: 19535 | P95: 28319 | Q95: 36669 | R95: 35843 | S95: 38280 | T95: 38480 | U95: 42999 | V95: 30023 | W95: 38278 | X95: 40727 | Y95: 50393 | Z95: 43130 | AA95: 36716 | AB95: 39219 | AC95: 27230 | AD95: 34259 | AE95: 28585 | AF95: 28926 | AG95: 38449 | AH95: 45911 | AI95: 18083 | AJ95: 39576 | AK95: 26 | AL95: 4838 | AM95: 0.008496105671
A96: 85 | B96: 0 | C96: 0 | D96: 0 | E96: 0 | F96: 30282 | G96: 17476 | H96: 25223 | I96: 27833 | J96: 27999 | K96: 41011 | L96: 61164 | M96: 69672 | N96: 52047 | O96: 59519 | P96: 67499 | Q96: 56157 | R96: 57770 | S96: 61141 | T96: 77826 | U96: 86509 | V96: 83662 | W96: 72637 | X96: 97722 | Y96: 92519 | Z96: 69930 | AA96: 52586 | AB96: 71150 | AC96: 55545 | AD96: 61092 | AE96: 89450 | AF96: 76484 | AG96: 91300 | AH96: 90819 | AI96: 66473 | AJ96: 51166 | AK96: 21 | AL96: 2615 | AM96: 0.00849622488
A97: 86 | B97: 24035 | C97: 18578 | D97: 7980 | E97: 28726 | F97: 41069 | G97: 35535 | H97: 26041 | I97: 30355 | J97: 30759 | K97: 24837 | L97: 28141 | M97: 28257 | N97: 19723 | O97: 28625 | P97: 21733 | Q97: 28649 | R97: 32266 | S97: 31135 | T97: 26693 | U97: 26015 | V97: 32389 | W97: 42599 | X97: 32772 | Y97: 23106 | Z97: 33425 | AA97: 26200 | AB97: 18847 | AC97: 15429 | AD97: 0 | AE97: 0 | AF97: 0 | AG97: 0 | AH97: 0 | AI97: 0 | AJ97: 0 | AK97: 32 | AL97: 2603 | AM97: 0.008504331112
A98: 87 | B98: 2012 | C98: 0 | D98: 18640 | E98: 29993 | F98: 28050 | G98: 43465 | H98: 47605 | I98: 26412 | J98: 25821 | K98: 16879 | L98: 19507 | M98: 0 | N98: 14901 | O98: 0 | P98: 0 | Q98: 0 | R98: 0 | S98: 0 | T98: 0 | U98: 0 | V98: 0 | W98: 0 | X98: 0 | Y98: 0 | Z98: 0 | AA98: 0 | AB98: 0 | AC98: 0 | AD98: 0 | AE98: 0 | AF98: 0 | AG98: 0 | AH98: 0 | AI98: 0 | AJ98: 0 | AK98: 43 | AL98: 1908 | AM98: 0.008588373661
A99: 88 | B99: 14489 | C99: 29463 | D99: 25778 | E99: 23918 | F99: 25520 | G99: 21731 | H99: 17087 | I99: 15388 | J99: 9547 | K99: 13507 | L99: 17201 | M99: 16654 | N99: 0 | O99: 0 | P99: 0 | Q99: 0 | R99: 0 | S99: 0 | T99: 0 | U99: 0 | V99: 0 | W99: 0 | X99: 0 | Y99: 0 | Z99: 14692 | AA99: 18451 | AB99: 2969 | AC99: 3642 | AD99: 17835 | AE99: 0 | AF99: 0 | AG99: 0 | AH99: 0 | AI99: 0 | AJ99: 0 | AK99: 24 | AL99: 6358 | AM99: 0.008593380451
A100: 89 | B100: 16082 | C100: 21596 | D100: 31787 | E100: 31316 | F100: 29938 | G100: 31917 | H100: 24933 | I100: 25184 | J100: 20347 | K100: 19413 | L100: 16364 | M100: 17089 | N100: 16735 | O100: 6404 | P100: 0 | Q100: 0 | R100: 0 | S100: 0 | T100: 0 | U100: 0 | V100: 0 | W100: 0 | X100: 0 | Y100: 0 | Z100: 0 | AA100: 0 | AB100: 0 | AC100: 0 | AD100: 0 | AE100: 0 | AF100: 0 | AG100: 0 | AH100: 0 | AI100: 0 | AJ100: 0 | AK100: 41 | AL100: 500 | AM100: 0.00860363245
A101: 90 | B101: 18874 | C101: 14999 | D101: 7150 | E101: 21535 | F101: 16718 | G101: 15402 | H101: 19378 | I101: 20166 | J101: 21275 | K101: 17080 | L101: 21412 | M101: 36210 | N101: 29082 | O101: 28649 | P101: 32266 | Q101: 32035 | R101: 25880 | S101: 29424 | T101: 28973 | U101: 22691 | V101: 24409 | W101: 15788 | X101: 18762 | Y101: 16135 | Z101: 0 | AA101: 0 | AB101: 0 | AC101: 0 | AD101: 0 | AE101: 0 | AF101: 0 | AG101: 0 | AH101: 0 | AI101: 0 | AJ101: 0 | AK101: 37 | AL101: 8230 | AM101: 0.008625805378
A102: 91 | B102: 0 | C102: 0 | D102: 2771 | E102: 3130 | F102: 0 | G102: 20784 | H102: 9795 | I102: 11171 | J102: 19227 | K102: 13199 | L102: 19818 | M102: 7349 | N102: 24279 | O102: 11559 | P102: 12118 | Q102: 27131 | R102: 20082 | S102: 14487 | T102: 13145 | U102: 23669 | V102: 23194 | W102: 23279 | X102: 20367 | Y102: 29203 | Z102: 37303 | AA102: 26476 | AB102: 23718 | AC102: 16732 | AD102: 17832 | AE102: 21335 | AF102: 26507 | AG102: 38092 | AH102: 23771 | AI102: 40525 | AJ102: 43352 | AK102: 20 | AL102: 5144 | AM102: 0.008766233921
A103: 92 | B103: 12989 | C103: 0 | D103: 0 | E103: 0 | F103: 0 | G103: 6135 | H103: 5520 | I103: 0 | J103: 23014 | K103: 26307 | L103: 20621 | M103: 21782 | N103: 15558 | O103: 0 | P103: 13233 | Q103: 13669 | R103: 0 | S103: 19937 | T103: 34558 | U103: 38733 | V103: 24661 | W103: 0 | X103: 0 | Y103: 0 | Z103: 0 | AA103: 0 | AB103: 0 | AC103: 0 | AD103: 0 | AE103: 0 | AF103: 0 | AG103: 0 | AH103: 0 | AI103: 0 | AJ103: 0 | AK103: 40 | AL103: 9108 | AM103: 0.008821070194
A104: 93 | B104: 15994 | C104: 25345 | D104: 21464 | E104: 33793 | F104: 46005 | G104: 33796 | H104: 49319 | I104: 34411 | J104: 37624 | K104: 0 | L104: 15232 | M104: 20166 | N104: 7050 | O104: 21802 | P104: 13404 | Q104: 16877 | R104: 19895 | S104: 27408 | T104: 20695 | U104: 31479 | V104: 24681 | W104: 29050 | X104: 27166 | Y104: 35480 | Z104: 25097 | AA104: 17325 | AB104: 19582 | AC104: 22453 | AD104: 30527 | AE104: 29157 | AF104: 16426 | AG104: 0 | AH104: 0 | AI104: 0 | AJ104: 0 | AK104: 29 | AL104: 348 | AM104: 0.008902132511
A105: 94 | B105: 14552 | C105: 21323 | D105: 24106 | E105: 15129 | F105: 28505 | G105: 38221 | H105: 37232 | I105: 30045 | J105: 36161 | K105: 33415 | L105: 46237 | M105: 48868 | N105: 40850 | O105: 46089 | P105: 52178 | Q105: 43228 | R105: 32127 | S105: 25163 | T105: 0 | U105: 0 | V105: 0 | W105: 0 | X105: 22725 | Y105: 3935 | Z105: 0 | AA105: 0 | AB105: 0 | AC105: 0 | AD105: 2321 | AE105: 8196 | AF105: 1793 | AG105: 0 | AH105: 2764 | AI105: 0 | AJ105: 0 | AK105: 28 | AL105: 6021 | AM105: 0.009044349194
A106: 95 | B106: 0 | C106: 0 | D106: 0 | E106: 0 | F106: 0 | G106: 0 | H106: 0 | I106: 0 | J106: 0 | K106: 0 | L106: 0 | M106: 0 | N106: 0 | O106: 0 | P106: 0 | Q106: 0 | R106: 0 | S106: 0 | T106: 0 | U106: 0 | V106: 0 | W106: 0 | X106: 0 | Y106: 0 | Z106: 0 | AA106: 0 | AB106: 0 | AC106: 0 | AD106: 0 | AE106: 0 | AF106: 0 | AG106: 0 | AH106: 0 | AI106: 0 | AJ106: 0 | AK106: 68 | AL106: 6972 | AM106: 0.009340822697
A107: 96 | B107: 0 | C107: 0 | D107: 0 | E107: 24401 | F107: 31036 | G107: 27411 | H107: 22939 | I107: 15915 | J107: 26051 | K107: 28995 | L107: 33828 | M107: 35321 | N107: 21129 | O107: 19091 | P107: 17427 | Q107: 20555 | R107: 25163 | S107: 21412 | T107: 26555 | U107: 32585 | V107: 25071 | W107: 21999 | X107: 26885 | Y107: 30618 | Z107: 41694 | AA107: 27166 | AB107: 18799 | AC107: 10198 | AD107: 0 | AE107: 0 | AF107: 0 | AG107: 0 | AH107: 0 | AI107: 0 | AJ107: 0 | AK107: 28 | AL107: 1454 | AM107: 0.00935536623
A108: 97 | B108: 27695 | C108: 33549 | D108: 46462 | E108: 46762 | F108: 45655 | G108: 46718 | H108: 53301 | I108: 44595 | J108: 43580 | K108: 61242 | L108: 54282 | M108: 41946 | N108: 28496 | O108: 44790 | P108: 44737 | Q108: 54217 | R108: 60865 | S108: 47711 | T108: 49456 | U108: 56837 | V108: 52022 | W108: 65490 | X108: 60005 | Y108: 51922 | Z108: 34150 | AA108: 45595 | AB108: 42844 | AC108: 55666 | AD108: 50606 | AE108: 66473 | AF108: 47219 | AG108: 37716 | AH108: 28587 | AI108: 39981 | AJ108: 28560 | AK108: 28 | AL108: 7092 | AM108: 0.009419977665
A109: 98 | B109: 0 | C109: 0 | D109: 0 | E109: 2847 | F109: 5397 | G109: 5176 | H109: 22023 | I109: 18593 | J109: 25540 | K109: 32702 | L109: 23821 | M109: 28087 | N109: 29808 | O109: 32034 | P109: 29841 | Q109: 29399 | R109: 23769 | S109: 30969 | T109: 27286 | U109: 28050 | V109: 24473 | W109: 21043 | X109: 18142 | Y109: 16364 | Z109: 20621 | AA109: 23199 | AB109: 43635 | AC109: 22344 | AD109: 34259 | AE109: 21578 | AF109: 33425 | AG109: 31484 | AH109: 50219 | AI109: 54563 | AJ109: 50767 | AK109: 27 | AL109: 1397 | AM109: 0.009462058544
A110: 99 | B110: 17422 | C110: 5486 | D110: 0 | E110: 17529 | F110: 23327 | G110: 17659 | H110: 18165 | I110: 15476 | J110: 14535 | K110: 18122 | L110: 16718 | M110: 6472 | N110: 0 | O110: 29399 | P110: 7050 | Q110: 3498 | R110: 7216 | S110: 14133 | T110: 0 | U110: 0 | V110: 0 | W110: 0 | X110: 0 | Y110: 0 | Z110: 0 | AA110: 0 | AB110: 0 | AC110: 0 | AD110: 0 | AE110: 0 | AF110: 0 | AG110: 0 | AH110: 0 | AI110: 0 | AJ110: 0 | AK110: 28 | AL110: 7841 | AM110: 0.009679019451
A111: 100 | B111: 16564 | C111: 19875 | D111: 20200 | E111: 29951 | F111: 24856 | G111: 22505 | H111: 26599 | I111: 30045 | J111: 32790 | K111: 37182 | L111: 47092 | M111: 37133 | N111: 40850 | O111: 57356 | P111: 52178 | Q111: 64067 | R111: 66332 | S111: 67954 | T111: 72705 | U111: 75737 | V111: 82419 | W111: 84569 | X111: 74187 | Y111: 58836 | Z111: 60102 | AA111: 80129 | AB111: 91300 | AC111: 0 | AD111: 0 | AE111: 0 | AF111: 0 | AG111: 0 | AH111: 0 | AI111: 0 | AJ111: 0 | AK111: 28 | AL111: 3873 | AM111: 0.009755313396
A112: 101 | B112: 19384 | C112: 23234 | D112: 18996 | E112: 23327 | F112: 33039 | G112: 19169 | H112: 29164 | I112: 28541 | J112: 31007 | K112: 26041 | L112: 22161 | M112: 29007 | N112: 27054 | O112: 35361 | P112: 30969 | Q112: 43229 | R112: 46531 | S112: 44733 | T112: 48271 | U112: 58802 | V112: 48879 | W112: 41088 | X112: 29424 | Y112: 30774 | Z112: 0 | AA112: 0 | AB112: 0 | AC112: 0 | AD112: 0 | AE112: 0 | AF112: 0 | AG112: 0 | AH112: 0 | AI112: 0 | AJ112: 0 | AK112: 29 | AL112: 5645 | AM112: 0.009766280651
A113: 102 | B113: 18194 | C113: 19853 | D113: 13838 | E113: 14375 | F113: 17080 | G113: 18724 | H113: 16738 | I113: 35518 | J113: 38278 | K113: 23014 | L113: 43261 | M113: 48929 | N113: 42155 | O113: 29445 | P113: 23771 | Q113: 21434 | R113: 19292 | S113: 0 | T113: 0 | U113: 0 | V113: 0 | W113: 0 | X113: 0 | Y113: 0 | Z113: 0 | AA113: 0 | AB113: 0 | AC113: 0 | AD113: 0 | AE113: 0 | AF113: 0 | AG113: 0 | AH113: 0 | AI113: 0 | AJ113: 0 | AK113: 39 | AL113: 137 | AM113: 0.009786784649
A114: 103 | B114: 18428 | C114: 8999 | D114: 17107 | E114: 5397 | F114: 18295 | G114: 4090 | H114: 17659 | I114: 13533 | J114: 15476 | K114: 18129 | L114: 20211 | M114: 18529 | N114: 23972 | O114: 28695 | P114: 25363 | Q114: 35361 | R114: 39295 | S114: 35923 | T114: 56718 | U114: 60893 | V114: 48271 | W114: 55545 | X114: 61092 | Y114: 45595 | Z114: 50501 | AA114: 33798 | AB114: 32171 | AC114: 39803 | AD114: 24951 | AE114: 39202 | AF114: 38010 | AG114: 36203 | AH114: 19247 | AI114: 21421 | AJ114: 0 | AK114: 28 | AL114: 4521 | AM114: 0.009836375713
A115: 104 | B115: 19538 | C115: 23391 | D115: 28907 | E115: 35529 | F115: 27923 | G115: 31231 | H115: 31158 | I115: 32604 | J115: 32000 | K115: 38204 | L115: 33828 | M115: 33886 | N115: 31313 | O115: 28319 | P115: 33449 | Q115: 42876 | R115: 33870 | S115: 29743 | T115: 27332 | U115: 33843 | V115: 42832 | W115: 50390 | X115: 47371 | Y115: 49497 | Z115: 51350 | AA115: 40672 | AB115: 24036 | AC115: 26429 | AD115: 30085 | AE115: 29989 | AF115: 38010 | AG115: 36203 | AH115: 29854 | AI115: 34074 | AJ115: 0 | AK115: 28 | AL115: 6598 | AM115: 0.009880840778
